{"text_format":"1","workbook":"xlsx","n_sheets":2,"sheets":["Konfigurator","AF-Artikel"],"not_rendered":{"charts":0,"images":81,"macros":1,"external_links":0,"defined_names":2,"comments":0,"pivot_tables":0},"unopened":[],"bounds":{"document_bytes":16777216,"sheet_cells":100000,"rows_first":2000,"rows_last":500,"rows_between":2000,"halvings":0,"cell_chars":16384,"cell_head_chars":4096},"cells_cut":0,"cells_raw":0,"read":"whole","date_system":"1900"}

{"sheet":"Konfigurator","index":0,"n_rows":949,"n_cols":20,"rows_kept":949,"cut":false,"hidden":false,"merged":[[230,11,230,12],[228,11,228,12],[184,11,184,12],[186,11,186,12],[215,11,215,12],[216,11,216,12],[1,16,4,17],[39,11,39,14],[40,11,40,14],[195,11,195,12],[194,11,194,12],[181,11,181,13],[191,11,191,12],[192,11,192,12],[183,11,183,13],[185,11,185,13],[182,11,182,12],[179,11,179,13],[180,11,180,13],[598,11,598,13],[393,11,393,12],[408,11,408,13],[395,11,395,13],[396,11,396,13],[407,11,407,13],[567,11,567,13],[563,11,563,13],[233,11,233,13],[246,11,246,13],[247,11,247,12],[245,11,245,12],[243,11,243,12],[596,11,596,12],[421,11,421,12],[584,11,584,13],[585,11,585,13],[586,11,586,12],[587,11,587,12],[593,11,593,12],[594,11,594,12],[390,11,390,13],[231,11,231,12],[234,11,234,12],[581,11,581,12],[582,11,582,12],[591,11,591,13],[592,11,592,13],[608,11,608,12],[609,11,609,12],[610,11,610,12],[602,11,602,12],[603,11,603,12],[605,11,605,13],[606,11,606,13],[561,11,561,12],[560,11,560,13],[574,11,574,12],[575,11,575,12],[577,11,577,13],[578,11,578,13],[579,11,579,12],[580,11,580,12],[566,11,566,13],[599,11,599,13],[405,11,405,12],[631,11,631,12],[623,11,623,12],[624,11,624,12],[626,11,626,13],[627,11,627,13],[628,11,628,12],[629,11,629,12],[630,11,630,12],[588,11,588,12],[589,11,589,12],[619,11,619,13],[620,11,620,13],[614,11,614,12],[615,11,615,12],[616,11,616,12],[617,11,617,12],[601,11,601,12],[607,11,607,12],[612,11,612,13],[613,11,613,13],[621,11,621,12],[622,11,622,12],[600,11,600,12],[595,11,595,12],[572,11,572,12],[573,11,573,12],[570,11,570,13],[571,11,571,13],[564,11,564,13],[565,11,565,12],[568,11,568,12],[532,11,532,12],[533,11,533,12],[552,11,552,12],[553,11,553,12],[554,11,554,12],[558,11,558,12],[556,11,556,13],[557,11,557,13],[559,11,559,13],[551,11,551,12],[544,11,544,12],[545,11,545,12],[547,11,547,12],[549,11,549,13],[550,11,550,13],[528,11,528,13],[542,11,542,13],[546,11,546,12],[538,11,538,12],[539,11,539,12],[540,11,540,12],[543,11,543,12],[537,11,537,12],[529,11,529,13],[530,11,530,12],[523,11,523,12],[524,11,524,12],[525,11,525,12],[517,11,517,12],[520,11,520,12],[526,11,526,12],[536,11,536,12],[535,11,535,13],[531,11,531,12],[516,11,516,13],[521,11,521,12],[518,11,518,13],[519,11,519,12],[511,11,511,13],[513,11,513,13],[514,11,514,13],[515,11,515,12],[522,11,522,12],[501,11,501,13],[504,11,504,13],[498,11,498,12],[500,11,500,12],[502,11,502,12],[505,11,505,13],[507,11,507,13],[509,11,509,13],[510,11,510,12],[508,11,508,12],[506,11,506,12],[479,11,479,12],[480,11,480,12],[481,11,481,12],[482,11,482,12],[492,11,492,12],[488,11,488,12],[489,11,489,12],[494,11,494,13],[499,11,499,13],[490,11,490,12],[491,11,491,12],[484,11,484,13],[485,11,485,12],[486,11,486,12],[487,11,487,12],[495,11,495,13],[496,11,496,13],[497,11,497,13],[465,11,465,13],[466,11,466,13],[467,11,467,13],[469,11,469,13],[468,11,468,12],[476,11,476,12],[477,11,477,12],[474,11,474,13],[478,11,478,12],[470,11,470,12],[472,11,472,12],[471,11,471,13],[475,11,475,12],[460,11,460,12],[461,11,461,12],[462,11,462,12],[464,11,464,13],[455,11,455,12],[456,11,456,12],[459,11,459,12],[458,11,458,13],[447,11,447,12],[454,11,454,12],[449,11,449,13],[450,11,450,13],[453,11,453,12],[452,11,452,13],[451,11,451,12],[441,11,441,12],[444,11,444,12],[445,11,445,12],[446,11,446,12],[434,11,434,12],[435,11,435,12],[438,11,438,12],[440,11,440,12],[392,11,392,13],[425,11,425,13],[410,11,410,12],[411,11,411,12],[413,11,413,13],[414,11,414,13],[419,11,419,13],[416,11,416,12],[417,11,417,12],[422,11,422,12],[423,11,423,12],[399,11,399,12],[398,11,398,13],[401,11,401,13],[402,11,402,13],[397,11,397,12],[409,11,409,12],[415,11,415,12],[420,11,420,13],[404,11,404,12],[378,11,378,13],[371,11,371,12],[370,11,370,13],[373,11,373,13],[374,11,374,13],[385,11,385,12],[377,11,377,12],[375,11,375,13],[376,11,376,13],[387,11,387,12],[384,11,384,13],[386,11,386,13],[379,11,379,12],[381,11,381,13],[382,11,382,13],[383,11,383,13],[403,11,403,13],[391,11,391,12],[389,11,389,13],[367,11,367,12],[369,11,369,12],[366,11,366,13],[368,11,368,13],[365,11,365,12],[362,11,362,13],[363,11,363,13],[364,11,364,13],[345,11,345,13],[347,11,347,13],[340,11,340,12],[344,11,344,12],[342,11,342,13],[343,11,343,13],[356,11,356,12],[358,11,358,12],[360,11,360,12],[357,11,357,13],[359,11,359,13],[346,11,346,12],[348,11,348,12],[349,11,349,13],[352,11,352,13],[353,11,353,13],[329,11,329,12],[328,11,328,13],[331,11,331,13],[323,11,323,12],[325,11,325,12],[324,11,324,13],[326,11,326,13],[327,11,327,12],[339,11,339,13],[334,11,334,12],[332,11,332,13],[333,11,333,13],[335,11,335,13],[336,11,336,12],[338,11,338,12],[337,11,337,13],[320,11,320,13],[321,11,321,13],[322,11,322,13],[314,11,314,12],[316,11,316,12],[315,11,315,13],[317,11,317,13],[300,11,300,12],[302,11,302,13],[303,11,303,13],[304,11,304,13],[313,11,313,13],[305,11,305,12],[307,11,307,12],[306,11,306,13],[309,11,309,13],[318,11,318,12],[312,11,312,12],[310,11,310,13],[311,11,311,13],[298,11,298,12],[296,11,296,13],[297,11,297,13],[299,11,299,13],[291,11,291,12],[293,11,293,12],[292,11,292,13],[295,11,295,13],[279,11,279,12],[284,11,284,12],[285,11,285,13],[281,11,281,13],[282,11,282,13],[283,11,283,13],[289,11,289,13],[290,11,290,13],[288,11,288,13],[236,11,236,12],[237,11,237,12],[286,11,286,12],[229,11,229,12],[220,11,220,13],[213,11,213,12],[214,11,214,12],[211,11,211,13],[221,11,221,12],[244,11,244,13],[235,11,235,12],[212,11,212,12],[218,11,218,13],[267,11,267,13],[268,11,268,13],[276,11,276,13],[269,11,269,13],[226,11,226,12],[227,11,227,12],[223,11,223,12],[264,11,264,13],[278,11,278,13],[277,11,277,12],[271,11,271,13],[16,5,21,5],[175,11,175,12],[7,9,8,9],[11,9,12,9],[9,8,10,8],[9,9,10,9],[11,6,12,8],[9,6,10,7],[7,8,8,8],[7,6,8,7],[35,11,35,12],[36,11,36,12],[15,6,24,6],[171,11,171,12],[173,11,173,12],[25,11,25,13],[39,6,40,6],[170,11,170,13],[172,11,172,13],[167,11,167,13],[150,11,151,14],[168,11,168,13],[122,11,124,14],[126,11,127,14],[238,11,238,12],[242,11,242,13],[256,11,256,13],[248,11,248,12],[263,11,263,12],[249,11,249,12],[197,11,197,12],[431,11,431,13],[224,11,224,12],[225,11,225,12],[208,11,208,12],[209,11,209,12],[204,11,204,13],[205,11,205,12],[206,11,206,12],[207,11,207,12],[219,11,219,12],[222,11,222,12],[272,11,272,12],[274,11,274,13],[275,11,275,13],[265,11,265,12],[255,11,255,13],[258,11,258,13],[437,11,437,13],[443,11,443,13],[439,11,439,12],[427,11,427,12],[428,11,428,12],[429,11,429,12],[432,11,432,12],[239,11,239,12],[433,11,433,12],[355,11,355,13],[350,11,350,12],[354,11,354,12],[250,11,250,12],[252,11,252,12],[426,11,426,13],[254,11,254,13],[251,11,251,12],[270,11,270,12],[240,11,240,12],[260,11,260,13],[262,11,262,13],[261,11,261,12],[259,11,259,12],[257,11,257,12],[176,11,176,13],[177,11,177,12],[169,11,169,12],[174,11,174,13],[138,11,139,14],[145,11,148,14],[133,11,136,14],[166,11,166,13],[187,11,187,13],[189,11,189,13],[201,11,201,12],[202,11,202,12],[193,11,193,12],[198,11,198,12],[199,11,199,12],[200,11,200,12],[190,11,190,13],[196,11,196,12]]}
[1,null,null,null,null,"Kunde: ",null,"Vers.:","2.04_03",null,null,"Menge","Art.-Nr.","Artikelbeschreibung","Einzel-Liste","Einzel-EK","Gravur-Text","Reihenfolge"]
[2,null,null,null,null,"Bearbeiter: ",null,null,null,null,{"$f":"IF($A$25>1,\"Fehler\",IF(AND(H36>0,H37>0,I35<1),\"Fehler\",\"\"))","v":""},{"$f":"IF($A$25<>0,IF(VLOOKUP($A1,$A28:$I$165,1)=1,VLOOKUP($A1,$A28:$I$165,9)& \" x\",\"\"),\"\")","v":""},{"$f":"IF($A$25<>0,IF($A$1>=$A1,VLOOKUP($A1,$A$28:$H$165,8),\"\"),\"\")","v":""},{"$f":"IF($A$25<>0,IF($A$1>=$A1,VLOOKUP($A1,$A$28:$H$165,7)&IF(AND($H$36>0,$H$37>0,$M2=5016),\",  -  Breite: \"&$H$36&\"mm\"&\", Höhe: \"&$H$37&\"mm\",IF(M2=5016,\"   -   Größenangabe fehlt!\",\"\"))),\"\")","v":""},{"$f":"IF($A$25<>0,IF($A$1>=$A1,VLOOKUP($A1,$A$28:$J$165,10),\"\"),\"\")","v":""},{"$f":"IF(M2=\"\",\"\",ROUND($O2-($O2*$I$10),2))","v":""},{"$f":"IF($A$25>1,\"Mehr als 1 Anschlussfeld\",\"\")","v":""}]
[3,null,null,null,null,"Projekt: ",null,null,null,null,null,{"$f":"IF(AND($A$25=1,$I$40<>\"\"),E40&\" x\",IF(AND($A$25=1,$I$40=0,$A$24<>0),A24&\" x\",\"\"))","v":""},{"$f":"IF(OR(AND($I$40<>\"\",$I$35<>0),AND($I$40<>\"\",$I$28<>0),AND($I$40<>\"\",$I$29<>0),AND($I$40<>\"\",$I$30<>0),AND($I$40<>\"\",$I$31<>0),AND($I$40<>\"\",$I$32<>0),AND($I$40<>\"\",$I$33<>0)),$H$40,IF(AND($A$25=1,$A$24<>0),$H$40,\"\"))","v":""},{"$f":"IF(OR(AND($I$40<>\"\",$I$35<>0),AND($I$40<>\"\",$I$28<>0),AND($I$40<>\"\",$I$29<>0),AND($I$40<>\"\",$I$30<>0),AND($I$40<>\"\",$I$31<>0),AND($I$40<>\"\",$I$32<>0),AND($I$40<>\"\",$I$33<>0)),$G$39,IF(AND($A$25=1,$A$24<>0),$G$39,\"\"))","v":""},{"$f":"IF(OR(AND($I$40<>\"\",$I$35<>0),AND($I$40<>\"\",$I$28<>0),AND($I$40<>\"\",$I$29<>0),AND($I$40<>\"\",$I$30<>0),AND($I$40<>\"\",$I$31<>0),AND($I$40<>\"\",$I$32<>0),AND($I$40<>\"\",$I$33<>0)),$J$40,IF(AND($A$25=1,$A$24<>0),$J$40,\"\"))","v":""},{"$f":"IF(M3=\"\",\"\",$O3-($O3*$I$10))","v":""},null,null,null,{"$f":"SUM(T6:T25)","v":0}]
[4,null,null,null,null,"Bestell-Nummer: ",null,null,null,null,null,{"$f":"IF(AND($A$25=1,$C$123=1,$I$121>0),$E$123&\" x\",IF(AND($A$25=1,$C$124=1,$I$121>0),$E$124&\" x\",IF(AND($A$25=1,$C$125=1,$I$121>0),$E$125&\" x\",IF(AND($A$25=1,$C$134=1,$I$132>0),$E$134&\" x\",IF(AND($A$25=1,$C$135=1,$I$132>0),$E$135&\" x\",IF(AND($A$25=1,$C$136=1,$I$132>0),$E$136&\" x\",IF(AND($A$25=1,$C$137=1,$I$132>0),$E$137&\" x\",\"\")))))))&IF(AND($A$25=1,$C$146=1,$I$144>0),$E$146&\" x\",IF(AND($A$25=1,$C$147=1,$I$144>0),$E$147&\" x\",IF(AND($A$25=1,$C$148=1,$I$144>0),$E$148&\" x\",IF(AND($A$25=1,$C$149=1,$I$144>0),$E$149&\" x\",\"\"))))","v":""},{"$f":"IF(AND($A$25=1,$C$123=1,$I$121>0),$H$123,IF(AND($A$25=1,$C$124=1,$I$121>0),$H$124,IF(AND($A$25=1,$C$125=1,$I$121>0),$H$125,IF(AND($A$25=1,$C$134=1,$I$132>0),$H$134,IF(AND($A$25=1,$C$135=1,$I$132>0),$H$135,IF(AND($A$25=1,$C$136=1,$I$132>0),$H$136,IF(AND($A$25=1,$C$137=1,$I$132>0),$H$137,\"\")))))))&IF(AND($A$25=1,$C$146=1,$I$144>0),$H$146,IF(AND($A$25=1,$C$147=1,$I$144>0),$H$147,IF(AND($A$25=1,$C$148=1,$I$144>0),$H$148,IF(AND($A$25=1,$C$149=1,$I$144>0),$H$149,\"\"))))","v":""},{"$f":"IF(AND($A$25=1,$C$123=1,$I$121>0),$G$123,IF(AND($A$25=1,$C$124=1,$I$121>0),$G$124,IF(AND($A$25=1,$C$125=1,$I$121>0),$G$125,IF(AND($A$25=1,$C$134=1,$I$132>0),$G$134,IF(AND($A$25=1,$C$135=1,$I$132>0),$G$135,IF(AND($A$25=1,$C$136=1,$I$132>0),$G$136,IF(AND($A$25=1,$C$137=1,$I$132>0),$G$137,\"\")))))))&IF(AND($A$25=1,$C$148=1,$I$144>0),$G$148,IF(AND($A$25=1,$C$146=1,$I$144>0),$G$146,IF(AND($A$25=1,$C$147=1,$I$144>0),$G$147,IF(AND($A$25=1,$C$149=1,$I$144>0),$G$149,\"\"))))","v":""},{"$f":"IF(AND($A$25=1,$C$123=1,$I$121>0),$J$123,IF(AND($A$25=1,$C$124=1,$I$121>0),$J$124,IF(AND($A$25=1,$C$125=1,$I$121>0),$J$125,IF(AND($A$25=1,$C$134=1,$I$132>0),$J$134,IF(AND($A$25=1,$C$135=1,$I$132>0),$J$135,IF(AND($A$25=1,$C$136=1,$I$132>0),$J$136,IF(AND($A$25=1,$C$137=1,$I$132>0),$J$137,\"\")))))))&IF(AND($A$25=1,$C$148=1,$I$144>0),$J$148,IF(AND($A$25=1,$C$146=1,$I$144>0),$J$146,IF(AND($A$25=1,$C$147=1,$I$144>0),$J$147,IF(AND($A$25=1,$C$149=1,$I$144>0),$J$149,\"\"))))","v":""},{"$f":"IF(M4=\"\",\"\",$O4-($O4*$I$10))","v":""},null,null,null,{"$f":"SUM(T7:T26)","v":0}]
[5,null,null,null,null,"Datum: ",null,null,null,null,null,{"$f":"IF(AND($A$25=1,$C$139=1,$I$132>0),$E$139&\" x\",IF(AND($A$25=1,$C$140=1,$I$132>0),$E$140&\" x\",IF(AND($A$25=1,$C$151=1,$I$144>0),$E$151&\" x\",IF(AND($A$25=1,$C$152=1,$I$144>0),$E$152&\" x\",IF(AND($A$25=1,$C$100=1,$I$93>0),$E$100&\" x\",\"\")))))","v":""},{"$f":"IF(AND($A$25=1,$C$139=1,$I$132>0),$H$139,IF(AND($A$25=1,$C$140=1,$I$132>0),$H$140,IF(AND($A$25=1,$C$151=1,$I$144>0),$H$151,IF(AND($A$25=1,$C$152=1,$I$144>0),$H$152,IF(AND($A$25=1,$C$100=1,$I$93>0),$H$100,\"\")))))","v":""},{"$f":"IF(AND($A$25=1,$C$139=1,$I$132>0),$G$139,IF(AND($A$25=1,$C$140=1,$I$132>0),$G$140,IF(AND($A$25=1,$C$151=1,$I$144>0),$G$151,IF(AND($A$25=1,$C$152=1,$I$144>0),$G$152,IF(AND($A$25=1,$C$100=1,$I$93>0),$G$100,\"\")))))","v":""},{"$f":"IF(AND($A$25=1,$C$139=1,$I$132>0),$J$139,IF(AND($A$25=1,$C$140=1,$I$132>0),$J$140,IF(AND($A$25=1,$C$151=1,$I$144>0),$J$151,IF(AND($A$25=1,$C$152=1,$I$144>0),$J$152,IF(AND($A$25=1,$C$100=1,$I$93>0),$J$100,\"\")))))","v":""},{"$f":"IF(M5=\"\",\"\",$O5-($O5*$I$10))","v":""},null,null,null,{"$f":"SUM(T7:T26)","v":0}]
[6,null,null,null,null,null,null,null,"Kundenrabatt",null,{"$f":"IF($M6=\"\",\"\",IF($T$3=0,\"\",IF(AND($R6>0,$M6>0),\"\",\"Fehler\")))","v":""},{"$f":"IF(AND(R6=0,$A$26>=$A1),VLOOKUP($A1,$B$166:$E$950,4)& \" x\",IF(AND(R6>0,$A$26>=$A1),VLOOKUP($A1,$C$166:$E$950,3,FALSE)& \" x\",\"\"))","v":""},{"$f":"IF($A$26>=$A1,IF(AND($A$26>=$A1,$R6=0),VLOOKUP($A1,$B$166:$H$950,7),IF(AND($A$26>=$A1,$R6>0),VLOOKUP($A1,$C$166:$H$950,6,FALSE),\"\")),\"\")","v":""},{"$f":"IF($A$26>=$A1,IF(AND($A$26>=$A1,$R6=0),VLOOKUP($A1,$B$166:$H$950,6),IF(AND($A$26>=$A1,$R6>0),VLOOKUP($A1,$C$166:$H$950,5,FALSE))),\"\")","v":""},{"$f":"IF($A$26>=$A1,IF(AND($A$26>=$A1,$R6=0),VLOOKUP($A1,$B$166:$J$950,9),IF(AND($A$26>=$A1,$R6>0),VLOOKUP($A1,$C$166:$J$950,8,FALSE),\"\")),\"\")","v":""},{"$f":"IF(M6=\"\",\"\",$O6-($O6*$I$10))","v":""},{"$f":"IF($A$26>=$A1,IF(AND($A$26>=$A1,$R6=0),VLOOKUP($A1,$B$166:$L$950,11),IF(AND($A$26>=$A1,$R6>0),VLOOKUP($A1,$C$166:$N$950,10,FALSE))),\"\")","v":""},{"$f":"IF(ISNA(VLOOKUP($A1,$C$166:$O$950,15,FALSE)),0,IF($A$26>=$A1,VLOOKUP($A1,$C$166:$O$950,13,FALSE),\"\"))","v":0},{"$f":"IF($M6=\"\",\"\",IF($T$3=0,\"\",IF(AND($R6>0,$M6>0),\"\",\"Reihenfolge\")))","v":""},{"$f":"IF($R6>0,1,0)","v":0}]
[7,null,null,null,null,null,null,null,"eintragen",null,{"$f":"IF($M7=\"\",\"\",IF($T$3=0,\"\",IF(AND($R7>0,$M7>0),\"\",\"Fehler\")))","v":""},"","","","",{"$f":"IF(M7=\"\",\"\",$O7-($O7*$I$10))","v":""},"",0,{"$f":"IF($M7=\"\",\"\",IF($T$3=0,\"\",IF(AND($R7>0,$M7>0),\"\",\"Reihenfolge\")))","v":""},{"$f":"IF($R7>1,1,0)","v":0}]
[8,null,null,null,null,null,"zzgl. MwSt.  Summe: ",null,"È",{"$f":"SUM($K$28:$K$632)","v":0},"","","","","","","",0,{"$f":"IF($M8=\"\",\"\",IF($T$3=0,\"\",IF(AND($R8>0,$M8>0),\"\",\"Reihenfolge\")))","v":""},0]
[9,null,null,null,null,null,null,null,null,null,"","","","","","","",0,"",0]
[10,null,null,null,null,null,"Kundenrabatt: ",null,0,{"$f":"($J$8*I10)*-1","v":0},"","","","","","","",0,"",0]
[11,null,null,null,null,null,null,null,null,null,"","","","","","","",0,"",0]
[12,null,null,null,null,null,"zzgl. MwSt.       Ihr Netto-EK: ",null,null,{"$f":"J8+J10","v":0},"","","","","","","",0,"",0]
[13,null,null,null,null,null,null,null,null,null,"","","","","","","",0,"",0]
[14,null,null,null,null,null,null,null,null,null,"","","","","","","",0,"",0]
[15,null,null,null,null,null,"Kommentarfeld",null,null,null,"","","","","","","",0,"",0]
[16,null,null,null,null,null,null,null,null,null,"","","","","","","",0,"",0]
[17,null,null,null,null,"Die Bilder können durch anklicken und ziehen mit der Maus vergrößert werden.",null,null,null,null,"","","","","","","",0,"",0]
[18,null,null,null,null,null,null,null,null,null,"","","","","","","",0,"",0]
[19,null,null,null,null,null,null,null,null,null,"","","","","","","",0,"",0]
[20,null,null,null,null,null,null,null,null,null,"","","","","","","",0,"",0]
[21,null,null,null,null,null,null,null,null,null,"","","","","","","",0,"",0]
[22,null,null,null,null,null,null,null,null,null,"","","","","","","",0,"",0]
[null,null,null,null,null,null,null,null,null,null,"","","","","","","",0,"",0]
[{"$f":"IF(I28<>\"\",SUM(D167:D1114)*I28,IF(I29<>\"\",SUM(D167:D1114)*I29,IF(I30<>\"\",SUM(D167:D1114)*I30,IF(I31<>\"\",SUM(D167:D1114)*I31,IF(I32<>\"\",SUM(D167:D1114)*I32,IF(I33<>\"\",SUM(D167:D1114)*I33,IF(I35<>\"\",SUM(D167:D1114)*I35,0)))))))","v":0},"Menge Gravurzeichen",null,null,null,null,null,null,null,null,"","","","","","","",0,"",0]
[{"$f":"SUM(A28:A165)","v":0},"Menge Anschl-Felder",null,null,null,null,null,null,null,null,"","","","","","","",0,"",0]
[{"$f":"SUM(A166:A949)","v":0},"Menge Buchsen",null,null,null,"Bilder","Bezeichnung","Art.-Nr.","Menge","Einzelpreis","Einzel-Summe","Gravur-Text",null,null,"Reihenfolge der Bestückung (von links nach rechts)"]
["Menge","Standard-Reihe","Reihenfolge","Gravurzeichen","Kom.Menge",null,null,null,null,"Zu den Anschlüssen"]
[{"$f":"IF(I28>0,1,\"\")","v":""},{"$f":"IF($A28=1,COUNTIF($A$27:$A27,1)+1,\"\")","v":""},null,null,null,null,"19\"-Frontplatte 4mm 1HE Aluminium eloxiert (ohne Gravur)",5004,null,{"$f":"IF(ISNA(VLOOKUP($H28,'AF-Artikel'!$A$3:$D$5437,3)),\"\",VLOOKUP($H28,'AF-Artikel'!$A$3:$D$5437,3))","v":61.77},{"$f":"I28*J28","v":0}]
["",{"$f":"IF($A29=1,COUNTIF($A$27:$A28,1)+1,\"\")","v":""},null,null,null,null,"19\"-Frontplatte 4mm 2HE Aluminium eloxiert (ohne Gravur)",5005,null,{"$f":"IF(ISNA(VLOOKUP($H29,'AF-Artikel'!$A$3:$D$5437,3)),\"\",VLOOKUP($H29,'AF-Artikel'!$A$3:$D$5437,3))","v":72.239999999999995},0]
["",{"$f":"IF($A30=1,COUNTIF($A$27:$A29,1)+1,\"\")","v":""},null,null,null,null,"19\"-Frontplatte 4mm 3HE Aluminium eloxiert (ohne Gravur)",5006,null,{"$f":"IF(ISNA(VLOOKUP($H30,'AF-Artikel'!$A$3:$D$5437,3)),\"\",VLOOKUP($H30,'AF-Artikel'!$A$3:$D$5437,3))","v":81.67},0]
["",{"$f":"IF($A31=1,COUNTIF($A$27:$A30,1)+1,\"\")","v":""},null,null,null,null,"19\"-Frontplatte 4mm 4HE Aluminium eloxiert (ohne Gravur)",5007,null,{"$f":"IF(ISNA(VLOOKUP($H31,'AF-Artikel'!$A$3:$D$5437,3)),\"\",VLOOKUP($H31,'AF-Artikel'!$A$3:$D$5437,3))","v":91.09},0]
["",{"$f":"IF($A32=1,COUNTIF($A$27:$A31,1)+1,\"\")","v":""},null,null,null,null,"19\"-Frontplatte 4mm 5HE Aluminium eloxiert (ohne Gravur)",5008,null,{"$f":"IF(ISNA(VLOOKUP($H32,'AF-Artikel'!$A$3:$D$5437,3)),\"\",VLOOKUP($H32,'AF-Artikel'!$A$3:$D$5437,3))","v":101.56},0]
["",{"$f":"IF($A33=1,COUNTIF($A$27:$A32,1)+1,\"\")","v":""},null,null,null,null,"19\"-Frontplatte 4mm 6HE Aluminium eloxiert (ohne Gravur)",5009,null,{"$f":"IF(ISNA(VLOOKUP($H33,'AF-Artikel'!$A$3:$D$5437,3)),\"\",VLOOKUP($H33,'AF-Artikel'!$A$3:$D$5437,3))","v":110.98},0]
["",{"$f":"IF($A34=1,COUNTIF($A$27:$A33,1)+1,\"\")","v":""},null,null,null,null,null,null,null,"Zu den Anschlüssen"]
["",{"$f":"IF($A35=1,COUNTIF($A$27:$A34,1)+1,\"\")","v":""},null,null,null,null,"Freie Aluminium-Platte eloxiert",5016,null,{"$f":"IF(OR($H$36=0,$H$37=0),(21.987),IF(H38=1,((2*($H$36/10+$H$37/10)*(0.2094))+($H$36/10*$H$37/10*(0.1047))+(21.987)),IF(H38>1,((2*($H$36/10+$H$37/10)*0.2094)+($H$36/10*$H$37/10*0.1047)+(21.987))*H38)))","v":21.986999999999998},{"$f":"IF(OR($H$36=\"\",$H$37=\"\"),0,$I$35*$J$35)","v":0}]
[null,null,null,null,null,null,"Breite (mm) ",null,null,{"$f":"IF(OR($H$36=0,$H$37=0),(21.987),IF(L37=1,((2*($H$36/10+$H$37/10)*(0.2094))+($H$36/10*$H$37/10*(0.1047))+(21.987)),IF(L37>1,((2*($H$36/10+$H$37/10)*0.2094)+($H$36/10*$H$37/10*0.1047)+(21.987))*L37)))","v":21.986999999999998}]
[null,null,null,null,null,null,"Höhe (mm) "]
[null,null,null,null,null,null,null,{"$f":"IF(H36*H37<20000,1,1.25)","v":1}]
[null,null,null,null,null,null,"Gravur je Zeichen"]
[null,null,{"$f":"IF(I40>0,1,\"\")","v":""},null,{"$f":"IF($C$40=\"\",0,SUM($I$40*VLOOKUP($A$1,$A$28:$I$166,9)))","v":0},null,"Entweder hier Menge der Gravur-Zeichen eintragen >>>\noder gewünschte Gravur-Texte hinter die ausgewählten Anschlüsse eintragen.",5010,null,{"$f":"VLOOKUP($H$40,'AF-Artikel'!$A$3:$D$5437,3)","v":0.52},{"$f":"IF(AND($A$25=1,$I$28>0),$I$40*$J$40*$I$28,IF(AND($A$25=1,$I$29>0),$I$40*$J$40*$I$29,IF(AND($A$25=1,$I$30>0),$I$40*$J$40*$I$30,IF(AND($A$25=1,$I$31>0),$I$40*$J$40*$I$31,IF(AND($A$25=1,$I$32>0),$I$40*$J$40*$I$32,IF(AND($A$25=1,$I$33>0),$I$40*$J$40*$I$33,IF(AND($A$25=1,$I$35>0),$I$40*$J$40*$I$35,0)))))))","v":0},{"$f":"IF(I40>0,\" Gravur-Texte werden nach hier eingetragener Menge berechnet!\",\"\")","v":""}]
[null,{"$f":"IF($A41=1,COUNTIF($A$27:$A40,1)+1,\"\")","v":""},null,null,null,null,null,null,{"$f":"IF(A24=0,0,A24)","v":0},{"$f":"VLOOKUP($H$40,'AF-Artikel'!$A$3:$D$5437,3)","v":0.52},{"$f":"IF(AND($A$25=1,$I40=0,$I$28<>0),$I$41*$J$40*$I$28,IF(AND($A$25=1,$I40=0,$I$29<>0),$I$41*$J$41*$I$29,IF(AND($A$25=1,$I40=0,$I$30<>0),$I$41*$J$40*$I$30,IF(AND($A$25=1,$I40=0,$I$31<>0),$I$41*$J$40*$I$31,IF(AND($A$25=1,$I40=0,$I$32<>0),$I$41*$J$40*$I$32,IF(AND($A$25=1,$I40=0,$I$33<>0),$I$41*$J$40*$I$33,IF(AND($A$25=1,$I40=0,$I$35<>0),$I$41*$J$40*$I$35,0)))))))","v":0},{"$f":"IF(AND(A24<>0,I40=\"\"),\" Gravur-Texte werden nach Anzahl der Buchstaben berechnet!\",\"\")","v":""}]
[null,{"$f":"IF($A42=1,COUNTIF($A$27:$A41,1)+1,\"\")","v":""}]
[null,{"$f":"IF($A43=1,COUNTIF($A$27:$A42,1)+1,\"\")","v":""}]
[null,{"$f":"IF($A44=1,COUNTIF($A$27:$A43,1)+1,\"\")","v":""}]
[null,{"$f":"IF($A45=1,COUNTIF($A$27:$A44,1)+1,\"\")","v":""}]
[null,{"$f":"IF($A46=1,COUNTIF($A$27:$A45,1)+1,\"\")","v":""}]
[null,{"$f":"IF($A47=1,COUNTIF($A$27:$A46,1)+1,\"\")","v":""}]
[null,{"$f":"IF($A48=1,COUNTIF($A$27:$A47,1)+1,\"\")","v":""}]
[null,{"$f":"IF($A49=1,COUNTIF($A$27:$A48,1)+1,\"\")","v":""}]
[null,{"$f":"IF($A50=1,COUNTIF($A$27:$A49,1)+1,\"\")","v":""}]
[null,{"$f":"IF($A51=1,COUNTIF($A$27:$A50,1)+1,\"\")","v":""}]
[null,{"$f":"IF($A52=1,COUNTIF($A$27:$A51,1)+1,\"\")","v":""}]
[{"$f":"IF(I53>0,1,\"\")","v":""},{"$f":"IF($A53=1,COUNTIF($A$27:$A52,1)+1,\"\")","v":""},null,null,null,null,null,null,null,"Zu den Anschlüssen"]
[{"$f":"IF(I54>0,1,\"\")","v":""},{"$f":"IF($A54=1,COUNTIF($A$27:$A53,1)+1,\"\")","v":""},null,null,null,null,"Wandgehäuse groß, schwarz, L x B x H: 215mm x 130mm x 65mm",5002,null,{"$f":"IF(ISNA(VLOOKUP($H54,'AF-Artikel'!$A$3:$D$5437,3)),\"\",VLOOKUP($H54,'AF-Artikel'!$A$3:$D$5437,3))","v":99.47},{"$f":"I54*J54","v":0}]
[null,null,null,null,null,null,"Gehäusekorpus aus ABS mit eingelegter Alu-Platte inklusive Montage und Gravur.",null,null,{"$f":"IF(ISNA(VLOOKUP($H55,'AF-Artikel'!$A$3:$D$5437,3)),\"\",VLOOKUP($H55,'AF-Artikel'!$A$3:$D$5437,3))","v":""}]
[null,null,null,null,null,null,null,null,null,{"$f":"IF(ISNA(VLOOKUP($H56,'AF-Artikel'!$A$3:$D$5437,3)),\"\",VLOOKUP($H56,'AF-Artikel'!$A$3:$D$5437,3))","v":""}]
[{"$f":"IF(I57>0,1,\"\")","v":""},{"$f":"IF($A57=1,COUNTIF($A$27:$A56,1)+1,\"\")","v":""},null,null,null,null,"Wandgehäuse groß, grau, L x B x H: 215mm x 130mm x 65mm",5021,null,{"$f":"IF(ISNA(VLOOKUP($H57,'AF-Artikel'!$A$3:$D$5437,3)),\"\",VLOOKUP($H57,'AF-Artikel'!$A$3:$D$5437,3))","v":99.47},{"$f":"I57*J57","v":0}]
[null,null,null,null,null,null,"Gehäusekorpus aus ABS mit eingelegter Alu-Platte inklusive Montage und Gravur.",null,null,{"$f":"IF(ISNA(VLOOKUP($H58,'AF-Artikel'!$A$3:$D$5437,3)),\"\",VLOOKUP($H58,'AF-Artikel'!$A$3:$D$5437,3))","v":""}]
[null,null,null,null,null,null,null,null,null,{"$f":"IF(ISNA(VLOOKUP($H59,'AF-Artikel'!$A$3:$D$5437,3)),\"\",VLOOKUP($H59,'AF-Artikel'!$A$3:$D$5437,3))","v":""}]
[null,null,null,null,null,null,null,null,null,{"$f":"IF(ISNA(VLOOKUP($H60,'AF-Artikel'!$A$3:$D$5437,3)),\"\",VLOOKUP($H60,'AF-Artikel'!$A$3:$D$5437,3))","v":""}]
[null,null,null,null,null,null,null,null,null,{"$f":"IF(ISNA(VLOOKUP($H61,'AF-Artikel'!$A$3:$D$5437,3)),\"\",VLOOKUP($H61,'AF-Artikel'!$A$3:$D$5437,3))","v":""}]
[null,null,null,null,null,null,null,null,null,{"$f":"IF(ISNA(VLOOKUP($H62,'AF-Artikel'!$A$3:$D$5437,3)),\"\",VLOOKUP($H62,'AF-Artikel'!$A$3:$D$5437,3))","v":""}]
[{"$f":"IF(I63>0,1,\"\")","v":""},{"$f":"IF($A63=1,COUNTIF($A$27:$A62,1)+1,\"\")","v":""},null,null,null,null,"Wandgehäuse mittel, schwarz, L x B x H: 160mm x 95mm x 45mm",5003,null,{"$f":"IF(ISNA(VLOOKUP($H63,'AF-Artikel'!$A$3:$D$5437,3)),\"\",VLOOKUP($H63,'AF-Artikel'!$A$3:$D$5437,3))","v":93.18},{"$f":"I63*J63","v":0}]
[null,null,null,null,null,null,"Gehäusekorpus aus ABS mit eingelegter Alu-Platte inklusive Montage und Gravur.",null,null,{"$f":"IF(ISNA(VLOOKUP($H64,'AF-Artikel'!$A$3:$D$5437,3)),\"\",VLOOKUP($H64,'AF-Artikel'!$A$3:$D$5437,3))","v":""}]
[null,null,null,null,null,null,null,null,null,{"$f":"IF(ISNA(VLOOKUP($H65,'AF-Artikel'!$A$3:$D$5437,3)),\"\",VLOOKUP($H65,'AF-Artikel'!$A$3:$D$5437,3))","v":""}]
[{"$f":"IF(I66>0,1,\"\")","v":""},{"$f":"IF($A66=1,COUNTIF($A$27:$A65,1)+1,\"\")","v":""},null,null,null,null,"Wandgehäuse mittel, grau, L x B x H: 160mm x 95mm x 45mm",5023,null,{"$f":"IF(ISNA(VLOOKUP($H66,'AF-Artikel'!$A$3:$D$5437,3)),\"\",VLOOKUP($H66,'AF-Artikel'!$A$3:$D$5437,3))","v":93.18},{"$f":"I66*J66","v":0}]
[null,null,null,null,null,null,"Gehäusekorpus aus ABS mit eingelegter Alu-Platte inklusive Montage und Gravur.",null,null,{"$f":"IF(ISNA(VLOOKUP($H67,'AF-Artikel'!$A$3:$D$5437,3)),\"\",VLOOKUP($H67,'AF-Artikel'!$A$3:$D$5437,3))","v":""}]
[null,null,null,null,null,null,null,null,null,{"$f":"IF(ISNA(VLOOKUP($H68,'AF-Artikel'!$A$3:$D$5437,3)),\"\",VLOOKUP($H68,'AF-Artikel'!$A$3:$D$5437,3))","v":""}]
[null,null,null,null,null,null,null,null,null,{"$f":"IF(ISNA(VLOOKUP($H69,'AF-Artikel'!$A$3:$D$5437,3)),\"\",VLOOKUP($H69,'AF-Artikel'!$A$3:$D$5437,3))","v":""}]
[null,null,null,null,null,null,null,null,null,{"$f":"IF(ISNA(VLOOKUP($H70,'AF-Artikel'!$A$3:$D$5437,3)),\"\",VLOOKUP($H70,'AF-Artikel'!$A$3:$D$5437,3))","v":""}]
[null,null,null,null,null,null,null,null,null,{"$f":"IF(ISNA(VLOOKUP($H71,'AF-Artikel'!$A$3:$D$5437,3)),\"\",VLOOKUP($H71,'AF-Artikel'!$A$3:$D$5437,3))","v":""}]
[{"$f":"IF(I72>0,1,\"\")","v":""},{"$f":"IF($A72=1,COUNTIF($A$27:$A71,1)+1,\"\")","v":""},null,null,null,null,"Wandgehäuse klein, schwarz, L x B x H: 125mm x 70mm x 35mm",5018,null,{"$f":"IF(ISNA(VLOOKUP($H72,'AF-Artikel'!$A$3:$D$5437,3)),\"\",VLOOKUP($H72,'AF-Artikel'!$A$3:$D$5437,3))","v":78.53},{"$f":"I72*J72","v":0}]
[null,null,null,null,null,null,"Gehäusekorpus aus ABS mit eingelegter Alu-Platte inklusive Montage und Gravur.",null,null,{"$f":"IF(ISNA(VLOOKUP($H73,'AF-Artikel'!$A$3:$D$5437,3)),\"\",VLOOKUP($H73,'AF-Artikel'!$A$3:$D$5437,3))","v":""}]
[null,null,null,null,null,null,null,null,null,{"$f":"IF(ISNA(VLOOKUP($H74,'AF-Artikel'!$A$3:$D$5437,3)),\"\",VLOOKUP($H74,'AF-Artikel'!$A$3:$D$5437,3))","v":""}]
[{"$f":"IF(I75>0,1,\"\")","v":""},{"$f":"IF($A75=1,COUNTIF($A$27:$A74,1)+1,\"\")","v":""},null,null,null,null,"Wandgehäuse klein, grau, L x B x H: 125mm x 70mm x 35mm",5024,null,{"$f":"IF(ISNA(VLOOKUP($H75,'AF-Artikel'!$A$3:$D$5437,3)),\"\",VLOOKUP($H75,'AF-Artikel'!$A$3:$D$5437,3))","v":78.53},{"$f":"I75*J75","v":0}]
[null,null,null,null,null,null,"Gehäusekorpus aus ABS mit eingelegter Alu-Platte inklusive Montage und Gravur.",null,null,{"$f":"IF(ISNA(VLOOKUP($H76,'AF-Artikel'!$A$3:$D$5437,3)),\"\",VLOOKUP($H76,'AF-Artikel'!$A$3:$D$5437,3))","v":""}]
[null,null,null,null,null,null,null,null,null,{"$f":"IF(ISNA(VLOOKUP($H77,'AF-Artikel'!$A$3:$D$5437,3)),\"\",VLOOKUP($H77,'AF-Artikel'!$A$3:$D$5437,3))","v":""}]
[null,null,null,null,null,null,null,null,null,{"$f":"IF(ISNA(VLOOKUP($H78,'AF-Artikel'!$A$3:$D$5437,3)),\"\",VLOOKUP($H78,'AF-Artikel'!$A$3:$D$5437,3))","v":""}]
[{"$f":"IF(I79>0,1,\"\")","v":""},{"$f":"IF($A79=1,COUNTIF($A$27:$A78,1)+1,\"\")","v":""},null,null,null,null,"Wandgehäuse, weiß, L x B x H: 80mm x 80mm x 50mm",5027,null,{"$f":"IF(ISNA(VLOOKUP($H79,'AF-Artikel'!$A$3:$D$5437,3)),\"\",VLOOKUP($H79,'AF-Artikel'!$A$3:$D$5437,3))","v":70.13},{"$f":"I79*J79","v":0}]
[null,null,null,null,null,null,"Gehäusekorpus aus ABS mit eingelegter Alu-Platte inklusive Montage und Gravur.",null,null,{"$f":"IF(ISNA(VLOOKUP($H80,'AF-Artikel'!$A$3:$D$5437,3)),\"\",VLOOKUP($H80,'AF-Artikel'!$A$3:$D$5437,3))","v":""}]
[null,null,null,null,null,null,null,null,null,{"$f":"IF(ISNA(VLOOKUP($H81,'AF-Artikel'!$A$3:$D$5437,3)),\"\",VLOOKUP($H81,'AF-Artikel'!$A$3:$D$5437,3))","v":""}]
[null,null,null,null,null,null,null,null,null,{"$f":"IF(ISNA(VLOOKUP($H82,'AF-Artikel'!$A$3:$D$5437,3)),\"\",VLOOKUP($H82,'AF-Artikel'!$A$3:$D$5437,3))","v":""}]
[{"$f":"IF(I83>0,1,\"\")","v":""},{"$f":"IF($A83=1,COUNTIF($A$27:$A77,1)+1,\"\")","v":""},null,null,null,null,null,null,null,"Zu den Anschlüssen"]
[{"$f":"IF(I84>0,1,\"\")","v":""},{"$f":"IF($A84=1,COUNTIF($A$27:$A83,1)+1,\"\")","v":""},null,null,null,null,"Aluminiumplatte für Schalterflächenprogramm",5019,null,{"$f":"IF(ISNA(VLOOKUP($H84,'AF-Artikel'!$A$3:$D$5437,3)),\"\",VLOOKUP($H84,'AF-Artikel'!$A$3:$D$5437,3))","v":47.12},{"$f":"I84*J84","v":0}]
[null,null,null,null,null,null,"inkl. Gravur und Trägerplatte zur Befestigung an einer Unterputz- bzw. Hohlwanddose",null,null,{"$f":"IF(ISNA(VLOOKUP($H85,'AF-Artikel'!$A$3:$D$5437,3)),\"\",VLOOKUP($H85,'AF-Artikel'!$A$3:$D$5437,3))","v":""}]
[null,null,null,null,null,null,"Bitte geben Sie unbedingt den Hersteller und den Namen des Schalterflächenprogramms an.",null,null,{"$f":"IF(ISNA(VLOOKUP($H86,'AF-Artikel'!$A$3:$D$5437,3)),\"\",VLOOKUP($H86,'AF-Artikel'!$A$3:$D$5437,3))","v":""}]
[null,null,null,null,null,null,null,null,null,{"$f":"IF(ISNA(VLOOKUP($H87,'AF-Artikel'!$A$3:$D$5437,3)),\"\",VLOOKUP($H87,'AF-Artikel'!$A$3:$D$5437,3))","v":""}]
[null,null,null,null,null,null,null,null,null,{"$f":"IF(ISNA(VLOOKUP($H88,'AF-Artikel'!$A$3:$D$5437,3)),\"\",VLOOKUP($H88,'AF-Artikel'!$A$3:$D$5437,3))","v":""}]
[null,null,null,null,null,null,null,null,null,{"$f":"IF(ISNA(VLOOKUP($H89,'AF-Artikel'!$A$3:$D$5437,3)),\"\",VLOOKUP($H89,'AF-Artikel'!$A$3:$D$5437,3))","v":""}]
[null,null,null,null,null,null,null,null,null,{"$f":"IF(ISNA(VLOOKUP($H90,'AF-Artikel'!$A$3:$D$5437,3)),\"\",VLOOKUP($H90,'AF-Artikel'!$A$3:$D$5437,3))","v":""}]
[null,null,null,null,null,null,null,null,null,{"$f":"IF(ISNA(VLOOKUP($H91,'AF-Artikel'!$A$3:$D$5437,3)),\"\",VLOOKUP($H91,'AF-Artikel'!$A$3:$D$5437,3))","v":""}]
[{"$f":"IF(I92>0,1,\"\")","v":""},{"$f":"IF($A92=1,COUNTIF($A$27:$A91,1)+1,\"\")","v":""},null,null,null,null,null,null,null,"Zu den Anschlüssen"]
[{"$f":"IF(I93>0,1,\"\")","v":""},{"$f":"IF($A93=1,COUNTIF($A$27:$A92,1)+1,\"\")","v":""},null,null,null,null,"Tischanschlussbox inkl. Schraubklemmen-Inbusschraube, Montage und Gravur",5011,null,{"$f":"IF(ISNA(VLOOKUP($H93,'AF-Artikel'!$A$3:$D$5437,3)),\"\",VLOOKUP($H93,'AF-Artikel'!$A$3:$D$5437,3))","v":193.7},{"$f":"I93*J93","v":0}]
[null,null,null,null,null,null,"'- Auch Steckdosen müssen kalkuliert werden. -",null,null,{"$f":"IF(ISNA(VLOOKUP($H94,'AF-Artikel'!$A$3:$D$5437,3)),\"\",VLOOKUP($H94,'AF-Artikel'!$A$3:$D$5437,3))","v":""}]
[null,null,null,null,null,null,null,null,null,{"$f":"IF(ISNA(VLOOKUP($H95,'AF-Artikel'!$A$3:$D$5437,3)),\"\",VLOOKUP($H95,'AF-Artikel'!$A$3:$D$5437,3))","v":""}]
[null,null,null,null,null,null,null,null,null,{"$f":"IF(ISNA(VLOOKUP($H96,'AF-Artikel'!$A$3:$D$5437,3)),\"\",VLOOKUP($H96,'AF-Artikel'!$A$3:$D$5437,3))","v":""}]
[null,null,null,null,null,null,null,null,null,{"$f":"IF(ISNA(VLOOKUP($H97,'AF-Artikel'!$A$3:$D$5437,3)),\"\",VLOOKUP($H97,'AF-Artikel'!$A$3:$D$5437,3))","v":""}]
[null,null,null,null,null,null,null,null,null,{"$f":"IF(ISNA(VLOOKUP($H98,'AF-Artikel'!$A$3:$D$5437,3)),\"\",VLOOKUP($H98,'AF-Artikel'!$A$3:$D$5437,3))","v":""}]
[null,null,null,null,null,null,null,null,null,{"$f":"IF(ISNA(VLOOKUP($H99,'AF-Artikel'!$A$3:$D$5437,3)),\"\",VLOOKUP($H99,'AF-Artikel'!$A$3:$D$5437,3))","v":""}]
[null,null,{"$f":"IF(I$100=0,\"\",IF(I$100>1,0,IF(I$100=1,1,0)))","v":""},null,{"$f":"IF(OR($C100=\"\",$I$93=\"\"),0,SUM($I100*VLOOKUP($A$1,$A$93:$I$107,9)))","v":0},null,"Option Flügelspannschraube M6",1763,null,{"$f":"IF(ISNA(VLOOKUP($H100,'AF-Artikel'!$A$3:$D$5437,3)),\"\",VLOOKUP($H100,'AF-Artikel'!$A$3:$D$5437,3))","v":25.6},{"$f":"I100*J100*E100","v":0}]
[null,null,null,null,null,null,null,null,null,{"$f":"IF(ISNA(VLOOKUP($H101,'AF-Artikel'!$A$3:$D$5437,3)),\"\",VLOOKUP($H101,'AF-Artikel'!$A$3:$D$5437,3))","v":""}]
[null,null,null,null,null,null,null,null,null,{"$f":"IF(ISNA(VLOOKUP($H102,'AF-Artikel'!$A$3:$D$5437,3)),\"\",VLOOKUP($H102,'AF-Artikel'!$A$3:$D$5437,3))","v":""}]
[null,null,null,null,null,null,null,null,null,{"$f":"IF(ISNA(VLOOKUP($H103,'AF-Artikel'!$A$3:$D$5437,3)),\"\",VLOOKUP($H103,'AF-Artikel'!$A$3:$D$5437,3))","v":""}]
[null,null,null,null,null,null,null,null,null,{"$f":"IF(ISNA(VLOOKUP($H104,'AF-Artikel'!$A$3:$D$5437,3)),\"\",VLOOKUP($H104,'AF-Artikel'!$A$3:$D$5437,3))","v":""}]
[null,null,null,null,null,null,null,null,null,{"$f":"IF(ISNA(VLOOKUP($H105,'AF-Artikel'!$A$3:$D$5437,3)),\"\",VLOOKUP($H105,'AF-Artikel'!$A$3:$D$5437,3))","v":""}]
[null,null,null,null,null,null,null,null,null,{"$f":"IF(ISNA(VLOOKUP($H106,'AF-Artikel'!$A$3:$D$5437,3)),\"\",VLOOKUP($H106,'AF-Artikel'!$A$3:$D$5437,3))","v":""}]
[null,null,null,null,null,null,null,null,null,{"$f":"IF(ISNA(VLOOKUP($H107,'AF-Artikel'!$A$3:$D$5437,3)),\"\",VLOOKUP($H107,'AF-Artikel'!$A$3:$D$5437,3))","v":""}]
[{"$f":"IF(I108>0,1,\"\")","v":""},{"$f":"IF($A108=1,COUNTIF($A$27:$A107,1)+1,\"\")","v":""},null,null,null,null,null,null,null,"Zu den Anschlüssen"]
[{"$f":"IF(I109>0,1,\"\")","v":""},{"$f":"IF($A109=1,COUNTIF($A$27:$A108,1)+1,\"\")","v":""},null,null,null,null,"Tischeinbaufeld, ausklappbar",5012,null,{"$f":"IF(ISNA(VLOOKUP($H109,'AF-Artikel'!$A$3:$D$5437,3)),\"\",VLOOKUP($H109,'AF-Artikel'!$A$3:$D$5437,3))","v":303.63},{"$f":"I109*J109","v":0}]
[null,null,null,null,null,null,"Edelstahl, inkl. unterer Abdeckwanne, Montage und Gravur. Fertigungsbedingt erfolgt die Lieferung immer mit 2 Schukosteckdosen, die am Ende der Tabelle eingerechnet werden müssen.",null,null,{"$f":"IF(ISNA(VLOOKUP($H110,'AF-Artikel'!$A$3:$D$5437,3)),\"\",VLOOKUP($H110,'AF-Artikel'!$A$3:$D$5437,3))","v":""}]
[null,null,null,null,null,null,null,null,null,{"$f":"IF(ISNA(VLOOKUP($H111,'AF-Artikel'!$A$3:$D$5437,3)),\"\",VLOOKUP($H111,'AF-Artikel'!$A$3:$D$5437,3))","v":""}]
[null,null,null,null,null,null,null,null,null,{"$f":"IF(ISNA(VLOOKUP($H112,'AF-Artikel'!$A$3:$D$5437,3)),\"\",VLOOKUP($H112,'AF-Artikel'!$A$3:$D$5437,3))","v":""}]
[null,null,null,null,null,null,null,null,null,{"$f":"IF(ISNA(VLOOKUP($H113,'AF-Artikel'!$A$3:$D$5437,3)),\"\",VLOOKUP($H113,'AF-Artikel'!$A$3:$D$5437,3))","v":""}]
[null,null,null,null,null,null,null,null,null,{"$f":"IF(ISNA(VLOOKUP($H114,'AF-Artikel'!$A$3:$D$5437,3)),\"\",VLOOKUP($H114,'AF-Artikel'!$A$3:$D$5437,3))","v":""}]
[null,null,null,null,null,null,null,null,null,{"$f":"IF(ISNA(VLOOKUP($H115,'AF-Artikel'!$A$3:$D$5437,3)),\"\",VLOOKUP($H115,'AF-Artikel'!$A$3:$D$5437,3))","v":""}]
[null,null,null,null,null,null,null,null,null,{"$f":"IF(ISNA(VLOOKUP($H116,'AF-Artikel'!$A$3:$D$5437,3)),\"\",VLOOKUP($H116,'AF-Artikel'!$A$3:$D$5437,3))","v":""}]
[null,null,null,null,null,null,null,null,null,{"$f":"IF(ISNA(VLOOKUP($H117,'AF-Artikel'!$A$3:$D$5437,3)),\"\",VLOOKUP($H117,'AF-Artikel'!$A$3:$D$5437,3))","v":""}]
[null,null,null,null,null,null,null,null,null,{"$f":"IF(ISNA(VLOOKUP($H118,'AF-Artikel'!$A$3:$D$5437,3)),\"\",VLOOKUP($H118,'AF-Artikel'!$A$3:$D$5437,3))","v":""}]
[null,null,null,null,null,null,null,null,null,{"$f":"IF(ISNA(VLOOKUP($H119,'AF-Artikel'!$A$3:$D$5437,3)),\"\",VLOOKUP($H119,'AF-Artikel'!$A$3:$D$5437,3))","v":""}]
[{"$f":"IF(I120>0,1,\"\")","v":""},{"$f":"IF($A120=1,COUNTIF($A$27:$A108,1)+1,\"\")","v":""},null,null,null,null,null,null,null,"Zu den Anschlüssen"]
[{"$f":"IF(I121>0,1,\"\")","v":""},{"$f":"IF($A121=1,COUNTIF($A$27:$A120,1)+1,\"\")","v":""},null,null,null,null,"Tischeinbaufeld 162, feststehend LxB 162mm x 121mm, incl. Montage und Gravur",5040,null,{"$f":"IF(ISNA(VLOOKUP($H121,'AF-Artikel'!$A$3:$D$5437,3)),\"\",VLOOKUP($H121,'AF-Artikel'!$A$3:$D$5437,3))","v":241.75},{"$f":"I121*J121","v":0}]
[null,null,null,null,null,null,"'- Auch Steckdosen müssen kalkuliert werden. -"]
[null,null,{"$f":"IF(SUM(I$123:I$125)=0,\"\",IF(SUM(I$123:I$125)>1,0,IF(AND(SUM(I$123:I$125)>=1,I123>=1),1,0)))","v":""},null,{"$f":"IF(OR($C123=\"\",$I$121=\"\"),0,SUM($I123*VLOOKUP($A$1,$A$121:$I$130,9)))","v":0},null,{"$f":"IF(ISNA(VLOOKUP($H123,'AF-Artikel'!$A$3:$D$5437,4)),\"\",VLOOKUP($H123,'AF-Artikel'!$A$3:$D$5437,4))","v":"Option Aluminium 90° Außenkante 162mm"},5041,null,{"$f":"IF(ISNA(VLOOKUP($H123,'AF-Artikel'!$A$3:$D$5437,3)),\"\",VLOOKUP($H123,'AF-Artikel'!$A$3:$D$5437,3))","v":99.18},{"$f":"I123*J123*E123","v":0},{"$f":"IF(OR(AND(I123=1,I124=1),AND(I123=1,I125=1),AND(I124=1,I125=1)),\" Es darf nur eine Option aktiviert sein!\",\"\")","v":""}]
[null,null,{"$f":"IF(SUM(I$123:I$125)=0,\"\",IF(SUM(I$123:I$125)>1,0,IF(AND(SUM(I$123:I$125)>=1,I124>=1),1,0)))","v":""},null,{"$f":"IF(OR($C124=\"\",$I$121=\"\"),0,SUM($I124*VLOOKUP($A$1,$A$121:$I$130,9)))","v":0},null,{"$f":"IF(ISNA(VLOOKUP($H124,'AF-Artikel'!$A$3:$D$5437,4)),\"\",VLOOKUP($H124,'AF-Artikel'!$A$3:$D$5437,4))","v":"Option Aluminium 45° Außenkante 162mm"},5042,null,{"$f":"IF(ISNA(VLOOKUP($H124,'AF-Artikel'!$A$3:$D$5437,3)),\"\",VLOOKUP($H124,'AF-Artikel'!$A$3:$D$5437,3))","v":136.11000000000001},{"$f":"I124*J124*E124","v":0}]
[null,null,{"$f":"IF(SUM(I$123:I$125)=0,\"\",IF(SUM(I$123:I$125)>1,0,IF(AND(SUM(I$123:I$125)>=1,I125>=1),1,0)))","v":""},null,{"$f":"IF(OR($C125=\"\",$I$121=\"\"),0,SUM($I125*VLOOKUP($A$1,$A$121:$I$130,9)))","v":0},null,{"$f":"IF(ISNA(VLOOKUP($H125,'AF-Artikel'!$A$3:$D$5437,4)),\"\",VLOOKUP($H125,'AF-Artikel'!$A$3:$D$5437,4))","v":"Sonderlackierung Tischeinbaufeld (Preis pro Charge)"},5523,null,{"$f":"IF(ISNA(VLOOKUP($H125,'AF-Artikel'!$A$3:$D$5437,3)),\"\",VLOOKUP($H125,'AF-Artikel'!$A$3:$D$5437,3))","v":99.47},{"$f":"I125*J125*E125","v":0}]
[]
[null,null,{"$f":"IF(AND(I127>0,I128=\"\"),1,\"\")","v":""},null,null,null,null,null,null,null,null,{"$f":"IF(OR(AND(I127=1,I128=1),AND(I127=1,I129=1),AND(I128=1,I129=1)),\" Es darf nur eine Option aktiviert sein!\",\"\")","v":""}]
[null,null,{"$f":"IF(AND(I128>0,I129=\"\"),1,\"\")","v":""}]
[]
[]
[{"$f":"IF(I131>0,1,\"\")","v":""},{"$f":"IF($A131=1,COUNTIF($A$27:$A119,1)+1,\"\")","v":""},null,null,null,null,null,null,null,"Zu den Anschlüssen"]
[{"$f":"IF(I132>0,1,\"\")","v":""},{"$f":"IF($A132=1,COUNTIF($A$27:$A131,1)+1,\"\")","v":""},null,null,null,null,"Tischeinbaufeld 315, feststehend LxB 315mm x 190mm, incl. Montage und Gravur",5020,null,{"$f":"IF(ISNA(VLOOKUP($H132,'AF-Artikel'!$A$3:$D$5437,3)),\"\",VLOOKUP($H132,'AF-Artikel'!$A$3:$D$5437,3))","v":319.33999999999997},{"$f":"I132*J132","v":0}]
[null,null,null,null,null,null,"- Auch Steckdosen müssen kalkuliert werden. -",null,null,{"$f":"IF(ISNA(VLOOKUP($H133,'AF-Artikel'!$A$3:$D$5437,3)),\"\",VLOOKUP($H133,'AF-Artikel'!$A$3:$D$5437,3))","v":""}]
[null,null,{"$f":"IF(SUM(I$134:I$137)=0,\"\",IF(SUM(I$134:I$137)>1,0,IF(AND(SUM(I$134:I$137)>=1,I134>=1),1,0)))","v":""},null,{"$f":"IF(OR($C134=\"\",$I$132=\"\"),0,SUM($I134*VLOOKUP($A$1,$A$132:$I$142,9)))","v":0},null,{"$f":"IF(ISNA(VLOOKUP($H134,'AF-Artikel'!$A$3:$D$5437,4)),\"\",VLOOKUP($H134,'AF-Artikel'!$A$3:$D$5437,4))","v":"Option Aluminiumoberfläche mit Außenkante 90° für Tischeinbaufeld 28TE/315mm"},5524,null,{"$f":"IF(ISNA(VLOOKUP($H134,'AF-Artikel'!$A$3:$D$5437,3)),\"\",VLOOKUP($H134,'AF-Artikel'!$A$3:$D$5437,3))","v":171.32},{"$f":"I134*J134*E134","v":0},{"$f":"IF(SUM(I134:I137)>1,\" Es darf nur eine Option aktiviert sein!\",\"\")","v":""}]
[null,null,{"$f":"IF(SUM(I$134:I$137)=0,\"\",IF(SUM(I$134:I$137)>1,0,IF(AND(SUM(I$134:I$137)>=1,I135>=1),1,0)))","v":""},null,{"$f":"IF(OR($C135=\"\",$I$132=\"\"),0,SUM($I135*VLOOKUP($A$1,$A$132:$I$142,9)))","v":0},null,{"$f":"IF(ISNA(VLOOKUP($H135,'AF-Artikel'!$A$3:$D$5437,4)),\"\",VLOOKUP($H135,'AF-Artikel'!$A$3:$D$5437,4))","v":"Option Aluminiumoberfläche incl. angefaster Außenkante 45° für Tischeinbaufeld 28TE/315mm"},5538,null,{"$f":"IF(ISNA(VLOOKUP($H135,'AF-Artikel'!$A$3:$D$5437,3)),\"\",VLOOKUP($H135,'AF-Artikel'!$A$3:$D$5437,3))","v":237.94},{"$f":"I135*J135*E135","v":0}]
[null,null,{"$f":"IF(SUM(I$134:I$137)=0,\"\",IF(SUM(I$134:I$137)>1,0,IF(AND(SUM(I$134:I$137)>=1,I136>=1),1,0)))","v":""},null,{"$f":"IF(OR($C136=\"\",$I$132=\"\"),0,SUM($I136*VLOOKUP($A$1,$A$132:$I$142,9)))","v":0},null,{"$f":"IF(ISNA(VLOOKUP($H136,'AF-Artikel'!$A$3:$D$5437,4)),\"\",VLOOKUP($H136,'AF-Artikel'!$A$3:$D$5437,4))","v":"Option Edelstahloberfläche mit Außenkante 90° für Tischeinbaufeld 28TE/315mm"},5528,null,{"$f":"IF(ISNA(VLOOKUP($H136,'AF-Artikel'!$A$3:$D$5437,3)),\"\",VLOOKUP($H136,'AF-Artikel'!$A$3:$D$5437,3))","v":247.48},{"$f":"I136*J136*E136","v":0}]
[null,null,{"$f":"IF(SUM(I$134:I$137)=0,\"\",IF(SUM(I$134:I$137)>1,0,IF(AND(SUM(I$134:I$137)>=1,I137>=1),1,0)))","v":""},null,{"$f":"IF(OR($C137=\"\",$I$132=\"\"),0,SUM($I137*VLOOKUP($A$1,$A$132:$I$142,9)))","v":0},null,{"$f":"IF(ISNA(VLOOKUP($H137,'AF-Artikel'!$A$3:$D$5437,4)),\"\",VLOOKUP($H137,'AF-Artikel'!$A$3:$D$5437,4))","v":"Sonderlackierung Tischeinbaufeld (Preis pro Charge)"},5523,null,{"$f":"IF(ISNA(VLOOKUP($H137,'AF-Artikel'!$A$3:$D$5437,3)),\"\",VLOOKUP($H137,'AF-Artikel'!$A$3:$D$5437,3))","v":99.47},{"$f":"I137*J137*E137","v":0}]
[null,null,null,null,null,null,null,null,null,null,{"$f":"IF(ISNA(VLOOKUP($H138,'AF-Artikel'!$A$3:$D$5437,3)),\"\",VLOOKUP($H138,'AF-Artikel'!$A$3:$D$5437,3))","v":""}]
[null,null,{"$f":"IF(AND(I139>0,I140=\"\"),1,\"\")","v":""},null,{"$f":"IF(OR($C139=\"\",$I$132=\"\"),0,SUM($I139*VLOOKUP($A$1,$A$132:$I$142,9)))","v":0},null,{"$f":"IF(ISNA(VLOOKUP($H139,'AF-Artikel'!$A$3:$D$5437,4)),\"\",VLOOKUP($H139,'AF-Artikel'!$A$3:$D$5437,4))","v":"Option integrierter LAN-Switch mit 5 Ports für Tischanschl. 28TE/315"},5529,null,{"$f":"IF(ISNA(VLOOKUP($H139,'AF-Artikel'!$A$3:$D$5437,3)),\"\",VLOOKUP($H139,'AF-Artikel'!$A$3:$D$5437,3))","v":142.78},{"$f":"I139*J139*E139","v":0},{"$f":"IF(OR(AND(I139=1,I140=1),AND(I139=1,I141=1),AND(I140=1,I141=1)),\" Es darf nur eine Option aktiviert sein!\",\"\")","v":""}]
[null,null,{"$f":"IF(AND(I140>0,I141=\"\"),1,\"\")","v":""},null,{"$f":"IF(OR($C140=\"\",$I$132=\"\"),0,SUM($I140*VLOOKUP($A$1,$A$132:$I$142,9)))","v":0},null,{"$f":"IF(ISNA(VLOOKUP($H140,'AF-Artikel'!$A$3:$D$5437,4)),\"\",VLOOKUP($H140,'AF-Artikel'!$A$3:$D$5437,4))","v":"Option Deckel horizontal, Kabelausgang hinten für Durchführungsbu."},"5520-HOR",null,{"$f":"IF(ISNA(VLOOKUP($H140,'AF-Artikel'!$A$3:$D$5437,3)),\"\",VLOOKUP($H140,'AF-Artikel'!$A$3:$D$5437,3))","v":0},{"$f":"I140*J140*E140","v":0}]
[null,null,null,null,null,null,null,null,null,{"$f":"IF(ISNA(VLOOKUP($H141,'AF-Artikel'!$A$3:$D$5437,3)),\"\",VLOOKUP($H141,'AF-Artikel'!$A$3:$D$5437,3))","v":""}]
[null,null,null,null,null,null,null,null,null,{"$f":"IF(ISNA(VLOOKUP($H142,'AF-Artikel'!$A$3:$D$5437,3)),\"\",VLOOKUP($H142,'AF-Artikel'!$A$3:$D$5437,3))","v":""}]
[{"$f":"IF(I143>0,1,\"\")","v":""},{"$f":"IF($A143=1,COUNTIF($A$27:$A142,1)+1,\"\")","v":""},null,null,null,null,null,null,null,"Zu den Anschlüssen"]
[{"$f":"IF(I144>0,1,\"\")","v":""},{"$f":"IF($A144=1,COUNTIF($A$27:$A143,1)+1,\"\")","v":""},null,null,null,null,"Tischeinbaufeld 395, feststehend LxB 395mm x 190mm, incl. Montage und Gravur",5022,null,{"$f":"IF(ISNA(VLOOKUP($H144,'AF-Artikel'!$A$3:$D$5437,3)),\"\",VLOOKUP($H144,'AF-Artikel'!$A$3:$D$5437,3))","v":355.98},{"$f":"I144*J144","v":0}]
[null,null,null,null,null,null,"- Auch Steckdosen müssen kalkuliert werden. -",null,null,{"$f":"IF(ISNA(VLOOKUP($H145,'AF-Artikel'!$A$3:$D$5437,3)),\"\",VLOOKUP($H145,'AF-Artikel'!$A$3:$D$5437,3))","v":""}]
[null,null,{"$f":"IF(SUM(I$146:I$149)=0,\"\",IF(SUM(I$146:I$149)>1,0,IF(AND(SUM(I$146:I$149)>=1,I146>=1),1,0)))","v":""},null,{"$f":"IF(OR($C146=\"\",$I$144=\"\"),0,SUM($I146*VLOOKUP($A$1,$A$144:$I$154,9)))","v":0},null,{"$f":"IF(ISNA(VLOOKUP($H146,'AF-Artikel'!$A$3:$D$5437,4)),\"\",VLOOKUP($H146,'AF-Artikel'!$A$3:$D$5437,4))","v":"Option Aluminiumoberfläche mit Außenkante 90° für Tischeinbaufeld 44TE/395mm"},5526,null,{"$f":"IF(ISNA(VLOOKUP($H146,'AF-Artikel'!$A$3:$D$5437,3)),\"\",VLOOKUP($H146,'AF-Artikel'!$A$3:$D$5437,3))","v":192.23},{"$f":"I146*J146*E146","v":0},{"$f":"IF(SUM(I146:I149)>1,\" Es darf nur eine Option aktiviert sein!\",\"\")","v":""}]
[null,null,{"$f":"IF(SUM(I$146:I$149)=0,\"\",IF(SUM(I$146:I$149)>1,0,IF(AND(SUM(I$146:I$149)>=1,I147>=1),1,0)))","v":""},null,{"$f":"IF(OR($C147=\"\",$I$144=\"\"),0,SUM($I147*VLOOKUP($A$1,$A$144:$I$154,9)))","v":0},null,{"$f":"IF(ISNA(VLOOKUP($H147,'AF-Artikel'!$A$3:$D$5437,4)),\"\",VLOOKUP($H147,'AF-Artikel'!$A$3:$D$5437,4))","v":"Option Aluminiumoberfläche incl. angefaster Außenkante 45° für Tischeinbaufeld  44TE/395mm"},5539,null,{"$f":"IF(ISNA(VLOOKUP($H147,'AF-Artikel'!$A$3:$D$5437,3)),\"\",VLOOKUP($H147,'AF-Artikel'!$A$3:$D$5437,3))","v":266.99},{"$f":"I147*J147*E147","v":0}]
[null,null,{"$f":"IF(SUM(I$146:I$149)=0,\"\",IF(SUM(I$146:I$149)>1,0,IF(AND(SUM(I$146:I$149)>=1,I148>=1),1,0)))","v":""},null,{"$f":"IF(OR($C148=\"\",$I$144=\"\"),0,SUM($I148*VLOOKUP($A$1,$A$144:$I$154,9)))","v":0},null,{"$f":"IF(ISNA(VLOOKUP($H148,'AF-Artikel'!$A$3:$D$5437,4)),\"\",VLOOKUP($H148,'AF-Artikel'!$A$3:$D$5437,4))","v":"Option Edelstahloberfläche mit Außenkante 90° für Tischeinbaufeld 44TE/395mm"},5537,null,{"$f":"IF(ISNA(VLOOKUP($H148,'AF-Artikel'!$A$3:$D$5437,3)),\"\",VLOOKUP($H148,'AF-Artikel'!$A$3:$D$5437,3))","v":284.77999999999997},{"$f":"I148*J148*E148","v":0}]
[null,null,{"$f":"IF(SUM(I$146:I$149)=0,\"\",IF(SUM(I$146:I$149)>1,0,IF(AND(SUM(I$146:I$149)>=1,I149>=1),1,0)))","v":""},null,{"$f":"IF(OR($C149=\"\",$I$144=\"\"),0,SUM($I149*VLOOKUP($A$1,$A$144:$I$154,9)))","v":0},null,{"$f":"IF(ISNA(VLOOKUP($H149,'AF-Artikel'!$A$3:$D$5437,4)),\"\",VLOOKUP($H149,'AF-Artikel'!$A$3:$D$5437,4))","v":"Sonderlackierung Tischeinbaufeld (Preis pro Charge)"},5523,null,{"$f":"IF(ISNA(VLOOKUP($H149,'AF-Artikel'!$A$3:$D$5437,3)),\"\",VLOOKUP($H149,'AF-Artikel'!$A$3:$D$5437,3))","v":99.47},{"$f":"I149*J149*E149","v":0}]
[]
[null,null,{"$f":"IF(AND(I151>0,I152=\"\"),1,\"\")","v":""},null,{"$f":"IF(OR($C151=\"\",$I$144=\"\"),0,SUM($I151*VLOOKUP($A$1,$A$144:$I$154,9)))","v":0},null,{"$f":"IF(ISNA(VLOOKUP($H151,'AF-Artikel'!$A$3:$D$5437,4)),\"\",VLOOKUP($H151,'AF-Artikel'!$A$3:$D$5437,4))","v":"Option integrierter LAN-Switch mit 8 Ports für Tischanschl. 44TE/395"},5536,null,{"$f":"IF(ISNA(VLOOKUP($H151,'AF-Artikel'!$A$3:$D$5437,3)),\"\",VLOOKUP($H151,'AF-Artikel'!$A$3:$D$5437,3))","v":161.81},{"$f":"I151*J151*E151","v":0},{"$f":"IF(OR(AND(I151=1,I152=1),AND(I151=1,I153=1),AND(I152=1,I153=1)),\" Es darf nur eine Option aktiviert sein!\",\"\")","v":""}]
[null,null,{"$f":"IF(AND(I152>0,I153=\"\"),1,\"\")","v":""},null,{"$f":"IF(OR($C152=\"\",$I$144=\"\"),0,SUM($I152*VLOOKUP($A$1,$A$144:$I$154,9)))","v":0},null,{"$f":"IF(ISNA(VLOOKUP($H152,'AF-Artikel'!$A$3:$D$5437,4)),\"\",VLOOKUP($H152,'AF-Artikel'!$A$3:$D$5437,4))","v":"Option Deckel horizontal, Kabelausgang hinten für Durchführungsbu."},"5520-HOR",null,{"$f":"IF(ISNA(VLOOKUP($H152,'AF-Artikel'!$A$3:$D$5437,3)),\"\",VLOOKUP($H152,'AF-Artikel'!$A$3:$D$5437,3))","v":0},{"$f":"I152*J152*E152","v":0}]
[]
[null,null,null,null,null,null,null,null,null,{"$f":"IF(ISNA(VLOOKUP($H154,'AF-Artikel'!$A$3:$D$5437,3)),\"\",VLOOKUP($H154,'AF-Artikel'!$A$3:$D$5437,3))","v":""}]
[{"$f":"IF(I155>0,1,\"\")","v":""},{"$f":"IF($A155=1,COUNTIF($A$27:$A154,1)+1,\"\")","v":""},null,null,null,null,null,null,null,"Zu den Anschlüssen"]
[{"$f":"IF(I156>0,1,\"\")","v":""},{"$f":"IF($A156=1,COUNTIF($A$27:$A155,1)+1,\"\")","v":""},null,null,null,null,"Tischeinbaufeld, rund, ausziehbar, incl. Montage und Gravur",5017,null,{"$f":"IF(ISNA(VLOOKUP($H156,'AF-Artikel'!$A$3:$D$5437,3)),\"\",VLOOKUP($H156,'AF-Artikel'!$A$3:$D$5437,3))","v":269.08},{"$f":"I156*J156","v":0}]
[null,null,null,null,null,null,"- Auch Steckdosen müssen kalkuliert werden. -"]
[null,null,null,null,null,null,null,null,null,{"$f":"IF(ISNA(VLOOKUP($H158,'AF-Artikel'!$A$3:$D$5437,3)),\"\",VLOOKUP($H158,'AF-Artikel'!$A$3:$D$5437,3))","v":""}]
[null,null,null,null,null,null,null,null,null,{"$f":"IF(ISNA(VLOOKUP($H159,'AF-Artikel'!$A$3:$D$5437,3)),\"\",VLOOKUP($H159,'AF-Artikel'!$A$3:$D$5437,3))","v":""}]
[null,null,null,null,null,null,null,null,null,{"$f":"IF(ISNA(VLOOKUP($H160,'AF-Artikel'!$A$3:$D$5437,3)),\"\",VLOOKUP($H160,'AF-Artikel'!$A$3:$D$5437,3))","v":""}]
[null,null,null,null,null,null,null,null,null,{"$f":"IF(ISNA(VLOOKUP($H161,'AF-Artikel'!$A$3:$D$5437,3)),\"\",VLOOKUP($H161,'AF-Artikel'!$A$3:$D$5437,3))","v":""}]
[null,null,null,null,null,null,null,null,null,{"$f":"IF(ISNA(VLOOKUP($H162,'AF-Artikel'!$A$3:$D$5437,3)),\"\",VLOOKUP($H162,'AF-Artikel'!$A$3:$D$5437,3))","v":""}]
[null,null,null,null,null,null,null,null,null,{"$f":"IF(ISNA(VLOOKUP($H163,'AF-Artikel'!$A$3:$D$5437,3)),\"\",VLOOKUP($H163,'AF-Artikel'!$A$3:$D$5437,3))","v":""}]
[null,null,null,null,null,null,null,null,null,{"$f":"IF(ISNA(VLOOKUP($H164,'AF-Artikel'!$A$3:$D$5437,3)),\"\",VLOOKUP($H164,'AF-Artikel'!$A$3:$D$5437,3))","v":""}]
[null,null,null,null,null,null,null,null,null,{"$f":"IF(ISNA(VLOOKUP($H165,'AF-Artikel'!$A$3:$D$5437,3)),\"\",VLOOKUP($H165,'AF-Artikel'!$A$3:$D$5437,3))","v":""}]
[]
[{"$f":"IF(I167>0,1,\"\")","v":""},{"$f":"IF($A167=1,COUNTIF($A166:$A$166,1)+1,\"\")","v":""},{"$f":"IF(AND($I167>0,$O167>0),$O167,\"\")","v":""},{"$f":"IF($I167>0,LEN($L167)*$A$25,\"0\")","v":"0"},{"$f":"IF($A$25=0,$I167,IF(OR($A167=\"\",$A$25>0),$I167,SUM($I167*VLOOKUP($A$1,$A$28:$I$165,9))))","v":0},null,"VGA-Buchse Lötanschluss",5100,null,{"$f":"IF(ISNA(VLOOKUP($H167,'AF-Artikel'!$A$3:$D$5437,3)),\"\",VLOOKUP($H167,'AF-Artikel'!$A$3:$D$5437,3))","v":9.89},{"$f":"I167*J167","v":0}]
[{"$f":"IF(I168>0,1,\"\")","v":""},{"$f":"IF($A168=1,COUNTIF($A$166:$A167,1)+1,\"\")","v":""},{"$f":"IF(AND($I168>0,$O168>0),$O168,\"\")","v":""},{"$f":"IF($I168>0,LEN($L168)*$A$25,\"0\")","v":"0"},0,null,"VGA-Buchse rückseitig steckbar (Buchse)",5187,null,{"$f":"IF(ISNA(VLOOKUP($H168,'AF-Artikel'!$A$3:$D$5437,3)),\"\",VLOOKUP($H168,'AF-Artikel'!$A$3:$D$5437,3))","v":13.14},{"$f":"I168*J168","v":0}]
[{"$f":"IF(I169>0,1,\"\")","v":""},{"$f":"IF($A169=1,COUNTIF($A$166:$A168,1)+1,\"\")","v":""},"",{"$f":"IF($I169>0,LEN($L169)*$A$25,\"0\")","v":"0"},0,null,"VGA-Buchse auf 5xBNC-Kupplung 30cm",5101,null,{"$f":"IF(ISNA(VLOOKUP($H169,'AF-Artikel'!$A$3:$D$5437,3)),\"\",VLOOKUP($H169,'AF-Artikel'!$A$3:$D$5437,3))","v":56.88},{"$f":"I169*J169","v":0}]
["",{"$f":"IF($A170=1,COUNTIF($A$166:$A169,1)+1,\"\")","v":""},"",null,0,null,"zusätzliche Kabellänge für obiges Kabel in m",5300,null,{"$f":"IF(ISNA(VLOOKUP($H170,'AF-Artikel'!$A$3:$D$5437,3)),\"\",VLOOKUP($H170,'AF-Artikel'!$A$3:$D$5437,3))","v":4.82},0]
["",{"$f":"IF($A171=1,COUNTIF($A$166:$A170,1)+1,\"\")","v":""},"",{"$f":"IF($I171>0,LEN($L171)*$A$25,\"0\")","v":"0"},0,null,"VGA-Buchse auf 5xBNC-Stecker 30cm",5102,null,{"$f":"IF(ISNA(VLOOKUP($H171,'AF-Artikel'!$A$3:$D$5437,3)),\"\",VLOOKUP($H171,'AF-Artikel'!$A$3:$D$5437,3))","v":47.26},0]
["",{"$f":"IF($A172=1,COUNTIF($A$166:$A171,1)+1,\"\")","v":""},"",null,0,null,"zusätzliche Kabellänge für obiges Kabel in m",5300,null,{"$f":"IF(ISNA(VLOOKUP($H172,'AF-Artikel'!$A$3:$D$5437,3)),\"\",VLOOKUP($H172,'AF-Artikel'!$A$3:$D$5437,3))","v":4.82},0]
["",{"$f":"IF($A173=1,COUNTIF($A$166:$A172,1)+1,\"\")","v":""},"",{"$f":"IF($I173>0,LEN($L173)*$A$25,\"0\")","v":"0"},0,null,"VGA-Buchse auf VGA-Kupplung 30cm",5103,null,{"$f":"IF(ISNA(VLOOKUP($H173,'AF-Artikel'!$A$3:$D$5437,3)),\"\",VLOOKUP($H173,'AF-Artikel'!$A$3:$D$5437,3))","v":43.99},0]
["",{"$f":"IF($A174=1,COUNTIF($A$166:$A173,1)+1,\"\")","v":""},"",null,0,null,"zusätzliche Kabellänge für obiges Kabel in m",5300,null,{"$f":"IF(ISNA(VLOOKUP($H174,'AF-Artikel'!$A$3:$D$5437,3)),\"\",VLOOKUP($H174,'AF-Artikel'!$A$3:$D$5437,3))","v":4.82},0]
["",{"$f":"IF($A175=1,COUNTIF($A$166:$A174,1)+1,\"\")","v":""},"",{"$f":"IF($I175>0,LEN($L175)*$A$25,\"0\")","v":"0"},0,null,"VGA-Buchse auf VGA-Stecker 30cm",5104,null,{"$f":"IF(ISNA(VLOOKUP($H175,'AF-Artikel'!$A$3:$D$5437,3)),\"\",VLOOKUP($H175,'AF-Artikel'!$A$3:$D$5437,3))","v":43.99},0]
["",{"$f":"IF($A176=1,COUNTIF($A$166:$A175,1)+1,\"\")","v":""},"",null,0,null,"zusätzliche Kabellänge für obiges Kabel in m",5300,null,{"$f":"IF(ISNA(VLOOKUP($H176,'AF-Artikel'!$A$3:$D$5437,3)),\"\",VLOOKUP($H176,'AF-Artikel'!$A$3:$D$5437,3))","v":4.82},0]
[{"$f":"IF(I177>0,1,\"\")","v":""},{"$f":"IF($A177=1,COUNTIF($A$166:$A176,1)+1,\"\")","v":""},"",{"$f":"IF($I177>0,LEN($L177)*$A$25,\"0\")","v":"0"},0,null,"VGA-Buchse auf offenes Kabelende 30cm",5223,null,{"$f":"IF(ISNA(VLOOKUP($H177,'AF-Artikel'!$A$3:$D$5437,3)),\"\",VLOOKUP($H177,'AF-Artikel'!$A$3:$D$5437,3))","v":33.82},{"$f":"I177*J177","v":0}]
[{"$f":"IF(I178>0,1,\"\")","v":""},{"$f":"IF($A178=1,COUNTIF($A$166:$A177,1)+1,\"\")","v":""},"",null,0,null,"zusätzliche Kabellänge für obiges Kabel in m",5300,null,{"$f":"IF(ISNA(VLOOKUP($H178,'AF-Artikel'!$A$3:$D$5437,3)),\"\",VLOOKUP($H178,'AF-Artikel'!$A$3:$D$5437,3))","v":4.82},{"$f":"I178*J178","v":0}]
["",{"$f":"IF($A179=1,COUNTIF($A$166:$A178,1)+1,\"\")","v":""},"",null,0]
["",{"$f":"IF($A180=1,COUNTIF($A$166:$A179,1)+1,\"\")","v":""},"",{"$f":"IF($I180>0,LEN($L180)*$A$25,\"0\")","v":"0"},0,null,"DVI-Buchse Lötanschluss",5196,null,{"$f":"IF(ISNA(VLOOKUP($H180,'AF-Artikel'!$A$3:$D$5437,3)),\"\",VLOOKUP($H180,'AF-Artikel'!$A$3:$D$5437,3))","v":13.19},{"$f":"I180*J180","v":0}]
["",{"$f":"IF($A181=1,COUNTIF($A$166:$A180,1)+1,\"\")","v":""},"",{"$f":"IF($I181>0,LEN($L181)*$A$25,\"0\")","v":"0"},0,null,"DVI-Buchse rückseitig steckbar (Buchse)",5202,null,{"$f":"IF(ISNA(VLOOKUP($H181,'AF-Artikel'!$A$3:$D$5437,3)),\"\",VLOOKUP($H181,'AF-Artikel'!$A$3:$D$5437,3))","v":28.79},0]
["",{"$f":"IF($A182=1,COUNTIF($A$166:$A181,1)+1,\"\")","v":""},"",{"$f":"IF($I182>0,LEN($L182)*$A$25,\"0\")","v":"0"},0,null,"DVI-Buchse auf DVI-D-Stecker 30cm",5197,null,{"$f":"IF(ISNA(VLOOKUP($H182,'AF-Artikel'!$A$3:$D$5437,3)),\"\",VLOOKUP($H182,'AF-Artikel'!$A$3:$D$5437,3))","v":56.12},0]
["",{"$f":"IF($A183=1,COUNTIF($A$166:$A182,1)+1,\"\")","v":""},"",null,0,null,"zusätzliche Kabellänge für obiges Kabel in m",5313,null,{"$f":"IF(ISNA(VLOOKUP($H183,'AF-Artikel'!$A$3:$D$5437,3)),\"\",VLOOKUP($H183,'AF-Artikel'!$A$3:$D$5437,3))","v":6.6},0]
["",{"$f":"IF($A184=1,COUNTIF($A$166:$A183,1)+1,\"\")","v":""},"",{"$f":"IF($I184>0,LEN($L184)*$A$25,\"0\")","v":"0"},0,null,"DVI-Buchse auf DVI-I-Stecker 30cm",5217,null,{"$f":"IF(ISNA(VLOOKUP($H184,'AF-Artikel'!$A$3:$D$5437,3)),\"\",VLOOKUP($H184,'AF-Artikel'!$A$3:$D$5437,3))","v":66.17},0]
["",{"$f":"IF($A185=1,COUNTIF($A$166:$A184,1)+1,\"\")","v":""},"",null,0,null,"zusätzliche Kabellänge für obiges Kabel in m",5314,null,{"$f":"IF(ISNA(VLOOKUP($H185,'AF-Artikel'!$A$3:$D$5437,3)),\"\",VLOOKUP($H185,'AF-Artikel'!$A$3:$D$5437,3))","v":7.58},0]
["",{"$f":"IF($A186=1,COUNTIF($A$166:$A185,1)+1,\"\")","v":""},"",{"$f":"IF($I186>0,LEN($L186)*$A$25,\"0\")","v":"0"},0,null,"DVI-Buchse auf DVI-D-Kupplung 30cm",5198,null,{"$f":"IF(ISNA(VLOOKUP($H186,'AF-Artikel'!$A$3:$D$5437,3)),\"\",VLOOKUP($H186,'AF-Artikel'!$A$3:$D$5437,3))","v":56.12},0]
["",{"$f":"IF($A187=1,COUNTIF($A$166:$A186,1)+1,\"\")","v":""},"",null,0,null,"zusätzliche Kabellänge für obiges Kabel in m",5313,null,{"$f":"IF(ISNA(VLOOKUP($H187,'AF-Artikel'!$A$3:$D$5437,3)),\"\",VLOOKUP($H187,'AF-Artikel'!$A$3:$D$5437,3))","v":6.6},0]
["",{"$f":"IF($A188=1,COUNTIF($A$166:$A187,1)+1,\"\")","v":""},"",{"$f":"IF($I188>0,LEN($L188)*$A$25,\"0\")","v":"0"},0,null,"DVI-Buchse auf DVI-I-Kupplung 20cm",5222,null,{"$f":"IF(ISNA(VLOOKUP($H188,'AF-Artikel'!$A$3:$D$5437,3)),\"\",VLOOKUP($H188,'AF-Artikel'!$A$3:$D$5437,3))","v":66.17},0]
["",{"$f":"IF($A189=1,COUNTIF($A$166:$A188,1)+1,\"\")","v":""},"",null,0]
["",{"$f":"IF($A190=1,COUNTIF($A$166:$A189,1)+1,\"\")","v":""},"",{"$f":"IF($I190>0,LEN($L190)*$A$25,\"0\")","v":"0"},0,null,"HDMI-Buchse rückseitig steckbar (Buchse) incl. Winkeladapter",5203,null,{"$f":"IF(ISNA(VLOOKUP($H190,'AF-Artikel'!$A$3:$D$5437,3)),\"\",VLOOKUP($H190,'AF-Artikel'!$A$3:$D$5437,3))","v":28.79},{"$f":"I190*J190","v":0}]
[{"$f":"IF(I191>0,1,\"\")","v":""},{"$f":"IF($A191=1,COUNTIF($A$166:$A190,1)+1,\"\")","v":""},"",{"$f":"IF($I191>0,LEN($L191)*$A$25,\"0\")","v":"0"},0,null,"HDMI-Buchse auf HDMI-Kupplung 30cm",5221,null,{"$f":"IF(ISNA(VLOOKUP($H191,'AF-Artikel'!$A$3:$D$5437,3)),\"\",VLOOKUP($H191,'AF-Artikel'!$A$3:$D$5437,3))","v":47.12},{"$f":"I191*J191","v":0}]
["",{"$f":"IF($A192=1,COUNTIF($A$166:$A191,1)+1,\"\")","v":""},"",null,0,null,null,null,null,{"$f":"IF(ISNA(VLOOKUP($H192,'AF-Artikel'!$A$3:$D$5437,3)),\"\",VLOOKUP($H192,'AF-Artikel'!$A$3:$D$5437,3))","v":""}]
["",{"$f":"IF($A193=1,COUNTIF($A$166:$A192,1)+1,\"\")","v":""},"",null,0,null,"HDMI-Verbindungskabel Stecker-Stecker 0,5m",4585,null,{"$f":"IF(ISNA(VLOOKUP($H193,'AF-Artikel'!$A$3:$D$5437,3)),\"\",VLOOKUP($H193,'AF-Artikel'!$A$3:$D$5437,3))","v":15.52},{"$f":"I193*J193","v":0}]
["",{"$f":"IF($A194=1,COUNTIF($A$166:$A193,1)+1,\"\")","v":""},"",null,0,null,"HDMI-Verbindungskabel Stecker-Stecker 1m",4451,null,{"$f":"IF(ISNA(VLOOKUP($H194,'AF-Artikel'!$A$3:$D$5437,3)),\"\",VLOOKUP($H194,'AF-Artikel'!$A$3:$D$5437,3))","v":18.03},0]
["",{"$f":"IF($A195=1,COUNTIF($A$166:$A194,1)+1,\"\")","v":""},"",null,0,null,"HDMI-Verbindungskabel Stecker-Stecker 2m",4452,null,{"$f":"IF(ISNA(VLOOKUP($H195,'AF-Artikel'!$A$3:$D$5437,3)),\"\",VLOOKUP($H195,'AF-Artikel'!$A$3:$D$5437,3))","v":22.6},0]
["",{"$f":"IF($A196=1,COUNTIF($A$166:$A195,1)+1,\"\")","v":""},"",null,0,null,"HDMI-Verbindungskabel Stecker-Stecker 3m",4453,null,{"$f":"IF(ISNA(VLOOKUP($H196,'AF-Artikel'!$A$3:$D$5437,3)),\"\",VLOOKUP($H196,'AF-Artikel'!$A$3:$D$5437,3))","v":29.01},0]
["",{"$f":"IF($A197=1,COUNTIF($A$166:$A196,1)+1,\"\")","v":""},"",null,0,null,"HDMI-Verbindungskabel Stecker-Stecker 5m",4454,null,{"$f":"IF(ISNA(VLOOKUP($H197,'AF-Artikel'!$A$3:$D$5437,3)),\"\",VLOOKUP($H197,'AF-Artikel'!$A$3:$D$5437,3))","v":40.6},0]
["",{"$f":"IF($A198=1,COUNTIF($A$166:$A197,1)+1,\"\")","v":""},"",null,0,null,"HDMI-Verbindungskabel Stecker-Stecker 7,5m",4553,null,{"$f":"IF(ISNA(VLOOKUP($H198,'AF-Artikel'!$A$3:$D$5437,3)),\"\",VLOOKUP($H198,'AF-Artikel'!$A$3:$D$5437,3))","v":48.46},0]
["",{"$f":"IF($A199=1,COUNTIF($A$166:$A198,1)+1,\"\")","v":""},"",null,0,null,"HDMI-Verbindungskabel Stecker-Stecker 10m",4455,null,{"$f":"IF(ISNA(VLOOKUP($H199,'AF-Artikel'!$A$3:$D$5437,3)),\"\",VLOOKUP($H199,'AF-Artikel'!$A$3:$D$5437,3))","v":56.51},0]
["",{"$f":"IF($A200=1,COUNTIF($A$166:$A199,1)+1,\"\")","v":""},"",null,0,null,"HDMI-Verbindungskabel Stecker-Stecker 15m",4456,null,{"$f":"IF(ISNA(VLOOKUP($H200,'AF-Artikel'!$A$3:$D$5437,3)),\"\",VLOOKUP($H200,'AF-Artikel'!$A$3:$D$5437,3))","v":136.80000000000001},0]
["",{"$f":"IF($A201=1,COUNTIF($A$166:$A200,1)+1,\"\")","v":""},"",null,0,null,"HDMI-Verbindungskabel Stecker-Stecker 20m",4457,null,{"$f":"IF(ISNA(VLOOKUP($H201,'AF-Artikel'!$A$3:$D$5437,3)),\"\",VLOOKUP($H201,'AF-Artikel'!$A$3:$D$5437,3))","v":173.36},0]
["",{"$f":"IF($A202=1,COUNTIF($A$166:$A201,1)+1,\"\")","v":""},"",null,0,null,"HDMI-Verbindungskabel Stecker-Stecker 25m",4458,null,{"$f":"IF(ISNA(VLOOKUP($H202,'AF-Artikel'!$A$3:$D$5437,3)),\"\",VLOOKUP($H202,'AF-Artikel'!$A$3:$D$5437,3))","v":209.89},0]
["",{"$f":"IF($A203=1,COUNTIF($A$166:$A202,1)+1,\"\")","v":""},"",null,0,null,"HDMI-Verbindungskabel Stecker-Stecker 30m",4459,null,{"$f":"IF(ISNA(VLOOKUP($H203,'AF-Artikel'!$A$3:$D$5437,3)),\"\",VLOOKUP($H203,'AF-Artikel'!$A$3:$D$5437,3))","v":247.18},0]
["",{"$f":"IF($A204=1,COUNTIF($A$166:$A196,1)+1,\"\")","v":""},"",null,0]
["",{"$f":"IF($A205=1,COUNTIF($A$166:$A204,1)+1,\"\")","v":""},"",{"$f":"IF($I205>0,LEN($L205)*$A$25,\"0\")","v":"0"},0,null,"HDMI-Bu-Keystone-abgewinkelt / Kupplung 25cm",5287,null,{"$f":"IF(ISNA(VLOOKUP($H205,'AF-Artikel'!$A$3:$D$5437,3)),\"\",VLOOKUP($H205,'AF-Artikel'!$A$3:$D$5437,3))","v":47.12},{"$f":"I205*J205","v":0}]
["",{"$f":"IF($A206=1,COUNTIF($A$166:$A205,1)+1,\"\")","v":""},"",null,0,null,null,null,null,{"$f":"IF(ISNA(VLOOKUP($H206,'AF-Artikel'!$A$3:$D$5437,3)),\"\",VLOOKUP($H206,'AF-Artikel'!$A$3:$D$5437,3))","v":""}]
["",{"$f":"IF($A207=1,COUNTIF($A$166:$A206,1)+1,\"\")","v":""},"",null,0,null,null,null,null,{"$f":"IF(ISNA(VLOOKUP($H207,'AF-Artikel'!$A$3:$D$5437,3)),\"\",VLOOKUP($H207,'AF-Artikel'!$A$3:$D$5437,3))","v":""}]
["",{"$f":"IF($A208=1,COUNTIF($A$166:$A207,1)+1,\"\")","v":""},"",null,0,null,null,null,null,{"$f":"IF(ISNA(VLOOKUP($H208,'AF-Artikel'!$A$3:$D$5437,3)),\"\",VLOOKUP($H208,'AF-Artikel'!$A$3:$D$5437,3))","v":""}]
["",{"$f":"IF($A209=1,COUNTIF($A$166:$A208,1)+1,\"\")","v":""},"",null,0,null,null,null,null,{"$f":"IF(ISNA(VLOOKUP($H209,'AF-Artikel'!$A$3:$D$5437,3)),\"\",VLOOKUP($H209,'AF-Artikel'!$A$3:$D$5437,3))","v":""}]
["",{"$f":"IF($A210=1,COUNTIF($A$166:$A209,1)+1,\"\")","v":""},"",null,0,null,null,null,null,{"$f":"IF(ISNA(VLOOKUP($H210,'AF-Artikel'!$A$3:$D$5437,3)),\"\",VLOOKUP($H210,'AF-Artikel'!$A$3:$D$5437,3))","v":""}]
[{"$f":"IF(I211>0,1,\"\")","v":""},{"$f":"IF($A211=1,COUNTIF($A$166:$A203,1)+1,\"\")","v":""},"",null,0]
["",{"$f":"IF($A212=1,COUNTIF($A$166:$A211,1)+1,\"\")","v":""},"",{"$f":"IF($I212>0,LEN($L212)*$A$25,\"0\")","v":"0"},0,null,"HDMI-Buchse auf HDMI-Kupplung 360° drehbar",5255,null,{"$f":"IF(ISNA(VLOOKUP($H212,'AF-Artikel'!$A$3:$D$5437,3)),\"\",VLOOKUP($H212,'AF-Artikel'!$A$3:$D$5437,3))","v":40},{"$f":"I212*J212","v":0}]
["",{"$f":"IF($A213=1,COUNTIF($A$166:$A212,1)+1,\"\")","v":""},"",null,0,null,null,null,null,{"$f":"IF(ISNA(VLOOKUP($H213,'AF-Artikel'!$A$3:$D$5437,3)),\"\",VLOOKUP($H213,'AF-Artikel'!$A$3:$D$5437,3))","v":""}]
["",{"$f":"IF($A214=1,COUNTIF($A$166:$A213,1)+1,\"\")","v":""},"",null,0,null,null,null,null,{"$f":"IF(ISNA(VLOOKUP($H214,'AF-Artikel'!$A$3:$D$5437,3)),\"\",VLOOKUP($H214,'AF-Artikel'!$A$3:$D$5437,3))","v":""}]
["",{"$f":"IF($A215=1,COUNTIF($A$166:$A214,1)+1,\"\")","v":""},"",null,0,null,null,null,null,{"$f":"IF(ISNA(VLOOKUP($H215,'AF-Artikel'!$A$3:$D$5437,3)),\"\",VLOOKUP($H215,'AF-Artikel'!$A$3:$D$5437,3))","v":""}]
["",{"$f":"IF($A216=1,COUNTIF($A$166:$A215,1)+1,\"\")","v":""},"",null,0,null,null,null,null,{"$f":"IF(ISNA(VLOOKUP($H216,'AF-Artikel'!$A$3:$D$5437,3)),\"\",VLOOKUP($H216,'AF-Artikel'!$A$3:$D$5437,3))","v":""}]
["",{"$f":"IF($A217=1,COUNTIF($A$166:$A216,1)+1,\"\")","v":""},"",null,0,null,null,null,null,{"$f":"IF(ISNA(VLOOKUP($H217,'AF-Artikel'!$A$3:$D$5437,3)),\"\",VLOOKUP($H217,'AF-Artikel'!$A$3:$D$5437,3))","v":""}]
[{"$f":"IF(I218>0,1,\"\")","v":""},{"$f":"IF($A218=1,COUNTIF($A$166:$A217,1)+1,\"\")","v":""},"",null,0]
[{"$f":"IF(I219>0,1,\"\")","v":""},{"$f":"IF($A219=1,COUNTIF($A$166:$A218,1)+1,\"\")","v":""},"",{"$f":"IF($I219>0,LEN($L219)*$A$25,\"0\")","v":"0"},0,null,"HDMI-Buchse auf HDMI-Stecker,  AWG24-Kabel  30cm",5268,null,{"$f":"IF(ISNA(VLOOKUP($H219,'AF-Artikel'!$A$3:$D$5437,3)),\"\",VLOOKUP($H219,'AF-Artikel'!$A$3:$D$5437,3))","v":84.96},{"$f":"I219*J219","v":0}]
[{"$f":"IF(I220>0,1,\"\")","v":""},{"$f":"IF($A220=1,COUNTIF($A$166:$A219,1)+1,\"\")","v":""},"",null,0,null,"zusätzliche Kabellänge für obiges Kabel in m",5318,null,{"$f":"IF(ISNA(VLOOKUP($H220,'AF-Artikel'!$A$3:$D$5437,3)),\"\",VLOOKUP($H220,'AF-Artikel'!$A$3:$D$5437,3))","v":8.73},{"$f":"I220*J220","v":0}]
[{"$f":"IF(I221>0,1,\"\")","v":""},{"$f":"IF($A221=1,COUNTIF($A$166:$A220,1)+1,\"\")","v":""},"",{"$f":"IF($I221>0,LEN($L221)*$A$25,\"0\")","v":"0"},0,null,"HDMI-Buchse auf offenes Ende,  AWG24-Kabel  30cm",5269,null,{"$f":"IF(ISNA(VLOOKUP($H221,'AF-Artikel'!$A$3:$D$5437,3)),\"\",VLOOKUP($H221,'AF-Artikel'!$A$3:$D$5437,3))","v":50.82},{"$f":"I221*J221","v":0}]
[{"$f":"IF(I222>0,1,\"\")","v":""},{"$f":"IF($A222=1,COUNTIF($A$166:$A221,1)+1,\"\")","v":""},"",null,0,null,"zusätzliche Kabellänge für obiges Kabel in m",5318,null,{"$f":"IF(ISNA(VLOOKUP($H222,'AF-Artikel'!$A$3:$D$5437,3)),\"\",VLOOKUP($H222,'AF-Artikel'!$A$3:$D$5437,3))","v":8.73},{"$f":"I222*J222","v":0}]
[{"$f":"IF(I223>0,1,\"\")","v":""},{"$f":"IF($A223=1,COUNTIF($A$166:$A222,1)+1,\"\")","v":""},"",null,0,null,null,null,null,{"$f":"IF(ISNA(VLOOKUP($H223,'AF-Artikel'!$A$3:$D$5437,3)),\"\",VLOOKUP($H223,'AF-Artikel'!$A$3:$D$5437,3))","v":""}]
[{"$f":"IF(I224>0,1,\"\")","v":""},{"$f":"IF($A224=1,COUNTIF($A$166:$A223,1)+1,\"\")","v":""},"",null,0,null,{"$f":"IF(ISNA(VLOOKUP($H224,'AF-Artikel'!$A$3:$D$5437,4)),\"\",VLOOKUP($H224,'AF-Artikel'!$A$3:$D$5437,4))","v":"HDMI-Verriegelung für HDMI-St. Art.-Nr.1600, Set"},1671,null,{"$f":"IF(ISNA(VLOOKUP($H224,'AF-Artikel'!$A$3:$D$5437,3)),\"\",VLOOKUP($H224,'AF-Artikel'!$A$3:$D$5437,3))","v":14.2},{"$f":"I224*J224","v":0}]
["",{"$f":"IF($A225=1,COUNTIF($A$166:$A224,1)+1,\"\")","v":""},"",null,0,null,null,null,null,{"$f":"IF(ISNA(VLOOKUP($H225,'AF-Artikel'!$A$3:$D$5437,3)),\"\",VLOOKUP($H225,'AF-Artikel'!$A$3:$D$5437,3))","v":""}]
["",{"$f":"IF($A226=1,COUNTIF($A$166:$A225,1)+1,\"\")","v":""},"",null,0,null,null,null,null,{"$f":"IF(ISNA(VLOOKUP($H226,'AF-Artikel'!$A$3:$D$5437,3)),\"\",VLOOKUP($H226,'AF-Artikel'!$A$3:$D$5437,3))","v":""}]
["",{"$f":"IF($A227=1,COUNTIF($A$166:$A226,1)+1,\"\")","v":""},"",null,0,null,null,null,null,{"$f":"IF(ISNA(VLOOKUP($H227,'AF-Artikel'!$A$3:$D$5437,3)),\"\",VLOOKUP($H227,'AF-Artikel'!$A$3:$D$5437,3))","v":""}]
["",{"$f":"IF($A228=1,COUNTIF($A$166:$A227,1)+1,\"\")","v":""},"",null,0,null,null,null,null,{"$f":"IF(ISNA(VLOOKUP($H228,'AF-Artikel'!$A$3:$D$5437,3)),\"\",VLOOKUP($H228,'AF-Artikel'!$A$3:$D$5437,3))","v":""}]
["",{"$f":"IF($A229=1,COUNTIF($A$166:$A228,1)+1,\"\")","v":""},"",null,0,null,null,null,null,{"$f":"IF(ISNA(VLOOKUP($H229,'AF-Artikel'!$A$3:$D$5437,3)),\"\",VLOOKUP($H229,'AF-Artikel'!$A$3:$D$5437,3))","v":""}]
["",{"$f":"IF($A230=1,COUNTIF($A$166:$A229,1)+1,\"\")","v":""},"",null,0,null,null,null,null,{"$f":"IF(ISNA(VLOOKUP($H230,'AF-Artikel'!$A$3:$D$5437,3)),\"\",VLOOKUP($H230,'AF-Artikel'!$A$3:$D$5437,3))","v":""}]
["",{"$f":"IF($A231=1,COUNTIF($A$166:$A230,1)+1,\"\")","v":""},"",null,{"$f":"IF($A$25=0,$I231,IF(OR($A231=\"\",$A$25>0),$I231,SUM($I231*VLOOKUP($A$1,$A$28:$I$165,9))))","v":0},null,null,null,null,{"$f":"IF(ISNA(VLOOKUP($H231,'AF-Artikel'!$A$3:$D$5437,3)),\"\",VLOOKUP($H231,'AF-Artikel'!$A$3:$D$5437,3))","v":""}]
["",{"$f":"IF($A232=1,COUNTIF($A$166:$A231,1)+1,\"\")","v":""},"",null,0,null,null,null,null,{"$f":"IF(ISNA(VLOOKUP($H232,'AF-Artikel'!$A$3:$D$5437,3)),\"\",VLOOKUP($H232,'AF-Artikel'!$A$3:$D$5437,3))","v":""}]
["",{"$f":"IF($A233=1,COUNTIF($A$166:$A232,1)+1,\"\")","v":""},"",null,0]
["",{"$f":"IF($A234=1,COUNTIF($A$166:$A233,1)+1,\"\")","v":""},"",{"$f":"IF($I234>0,LEN($L234)*$A$25,\"0\")","v":"0"},0,null,"DisplayPort-Buchse rückseitig steckbar (Buchse)",5219,null,{"$f":"IF(ISNA(VLOOKUP($H234,'AF-Artikel'!$A$3:$D$5437,3)),\"\",VLOOKUP($H234,'AF-Artikel'!$A$3:$D$5437,3))","v":40.83},{"$f":"I234*J234","v":0}]
["",{"$f":"IF($A235=1,COUNTIF($A$166:$A234,1)+1,\"\")","v":""},"",null,0]
["",{"$f":"IF($A236=1,COUNTIF($A$166:$A235,1)+1,\"\")","v":""},"",null,0,null,"DisplayPort-Verbindungskabel Stecker-Stecker 1m",4641,null,{"$f":"IF(ISNA(VLOOKUP($H236,'AF-Artikel'!$A$3:$D$5437,3)),\"\",VLOOKUP($H236,'AF-Artikel'!$A$3:$D$5437,3))","v":21.46},0]
["",{"$f":"IF($A237=1,COUNTIF($A$166:$A236,1)+1,\"\")","v":""},{"$f":"IF(AND($I237>0,$O237>0),$O237,\"\")","v":""},null,0,null,"DisplayPort-Verbindungskabel Stecker-Stecker 2m",4593,null,{"$f":"IF(ISNA(VLOOKUP($H237,'AF-Artikel'!$A$3:$D$5437,3)),\"\",VLOOKUP($H237,'AF-Artikel'!$A$3:$D$5437,3))","v":25.9},0]
["",{"$f":"IF($A238=1,COUNTIF($A$166:$A237,1)+1,\"\")","v":""},"",null,0,null,"DisplayPort-Verbindungskabel Stecker-Stecker 3m",4642,null,{"$f":"IF(ISNA(VLOOKUP($H238,'AF-Artikel'!$A$3:$D$5437,3)),\"\",VLOOKUP($H238,'AF-Artikel'!$A$3:$D$5437,3))","v":28.23},0]
["",{"$f":"IF($A239=1,COUNTIF($A$166:$A238,1)+1,\"\")","v":""},"",null,0,null,"DisplayPort-Verbindungskabel Stecker-Stecker 5m",4643,null,{"$f":"IF(ISNA(VLOOKUP($H239,'AF-Artikel'!$A$3:$D$5437,3)),\"\",VLOOKUP($H239,'AF-Artikel'!$A$3:$D$5437,3))","v":33.06},0]
["",{"$f":"IF($A240=1,COUNTIF($A$166:$A239,1)+1,\"\")","v":""},"",null,0,null,"DisplayPort-Verbindungskabel Stecker-Stecker 7m",4644,null,{"$f":"IF(ISNA(VLOOKUP($H240,'AF-Artikel'!$A$3:$D$5437,3)),\"\",VLOOKUP($H240,'AF-Artikel'!$A$3:$D$5437,3))","v":40.79},0]
["",{"$f":"IF($A241=1,COUNTIF($A$166:$A240,1)+1,\"\")","v":""},"",null,0,null,"DisplayPort-Verbindungskabel Stecker-Stecker 10m",4567,null,{"$f":"IF(ISNA(VLOOKUP($H241,'AF-Artikel'!$A$3:$D$5437,3)),\"\",VLOOKUP($H241,'AF-Artikel'!$A$3:$D$5437,3))","v":52.39},0]
[{"$f":"IF(I242>0,1,\"\")","v":""},{"$f":"IF($A242=1,COUNTIF($A$166:$A241,1)+1,\"\")","v":""},"",null,0]
["",{"$f":"IF($A243=1,COUNTIF($A$166:$A242,1)+1,\"\")","v":""},"",{"$f":"IF($I243>0,LEN($L243)*$A$25,\"0\")","v":"0"},0,null,"DisplayPort-Buchse auf DisplayPort-Kupplung, 30cm",5282,null,{"$f":"IF(ISNA(VLOOKUP($H243,'AF-Artikel'!$A$3:$D$5437,3)),\"\",VLOOKUP($H243,'AF-Artikel'!$A$3:$D$5437,3))","v":71.38},{"$f":"I243*J243","v":0}]
["",{"$f":"IF($A244=1,COUNTIF($A$166:$A243,1)+1,\"\")","v":""},{"$f":"IF(AND($I244>0,$O244>0),$O244,\"\")","v":""},null,0,null,"zusätzliche Kabellänge für obiges Kabel in m",5320,null,{"$f":"IF(ISNA(VLOOKUP($H244,'AF-Artikel'!$A$3:$D$5437,3)),\"\",VLOOKUP($H244,'AF-Artikel'!$A$3:$D$5437,3))","v":4.04},0]
["",{"$f":"IF($A245=1,COUNTIF($A$166:$A244,1)+1,\"\")","v":""},{"$f":"IF(AND($I245>0,$O245>0),$O245,\"\")","v":""},{"$f":"IF($I245>0,LEN($L245)*$A$25,\"0\")","v":"0"},0,null,"DisplayPort-Buchse auf DisplayPort-Stecker 30cm",5280,null,{"$f":"IF(ISNA(VLOOKUP($H245,'AF-Artikel'!$A$3:$D$5437,3)),\"\",VLOOKUP($H245,'AF-Artikel'!$A$3:$D$5437,3))","v":71.38},0]
["",{"$f":"IF($A246=1,COUNTIF($A$166:$A245,1)+1,\"\")","v":""},{"$f":"IF(AND($I246>0,$O246>0),$O246,\"\")","v":""},null,0,null,"zusätzliche Kabellänge für obiges Kabel in m",5320,null,{"$f":"IF(ISNA(VLOOKUP($H246,'AF-Artikel'!$A$3:$D$5437,3)),\"\",VLOOKUP($H246,'AF-Artikel'!$A$3:$D$5437,3))","v":4.04},0]
[{"$f":"IF(I247>0,1,\"\")","v":""},{"$f":"IF($A247=1,COUNTIF($A$166:$A246,1)+1,\"\")","v":""},{"$f":"IF(AND($I247>0,$O247>0),$O247,\"\")","v":""},{"$f":"IF($I247>0,LEN($L247)*$A$25,\"0\")","v":"0"},0,null,"DisplayPort-Buchse auf DisplayPort-Ku., 30cm, aktiv, incl. Netzteil",5288,null,{"$f":"IF(ISNA(VLOOKUP($H247,'AF-Artikel'!$A$3:$D$5437,3)),\"\",VLOOKUP($H247,'AF-Artikel'!$A$3:$D$5437,3))","v":161.62},0]
[{"$f":"IF(I248>0,1,\"\")","v":""},{"$f":"IF($A248=1,COUNTIF($A$166:$A247,1)+1,\"\")","v":""},{"$f":"IF(AND($I248>0,$O248>0),$O248,\"\")","v":""},null,0,null,"zusätzliche Kabellänge für obiges Kabel in m",5320,null,{"$f":"IF(ISNA(VLOOKUP($H248,'AF-Artikel'!$A$3:$D$5437,3)),\"\",VLOOKUP($H248,'AF-Artikel'!$A$3:$D$5437,3))","v":4.04},0]
["",{"$f":"IF($A249=1,COUNTIF($A$166:$A246,1)+1,\"\")","v":""},"",null,0]
["",{"$f":"IF($A250=1,COUNTIF($A$166:$A249,1)+1,\"\")","v":""},"",null,0]
["",{"$f":"IF($A251=1,COUNTIF($A$166:$A250,1)+1,\"\")","v":""},"",null,0]
["",{"$f":"IF($A252=1,COUNTIF($A$166:$A251,1)+1,\"\")","v":""},"",null,0]
["",{"$f":"IF($A253=1,COUNTIF($A$166:$A252,1)+1,\"\")","v":""},"",null,0]
["",{"$f":"IF($A254=1,COUNTIF($A$166:$A253,1)+1,\"\")","v":""},"",null,0]
["",{"$f":"IF($A255=1,COUNTIF($A$166:$A254,1)+1,\"\")","v":""},"",{"$f":"IF($I255>0,LEN($L255)*$A$25,\"0\")","v":"0"},0,null,"3,5mm-Stereoklinkenbuchse Lötanschluss",5105,null,{"$f":"IF(ISNA(VLOOKUP($H255,'AF-Artikel'!$A$3:$D$5437,3)),\"\",VLOOKUP($H255,'AF-Artikel'!$A$3:$D$5437,3))","v":8.66},{"$f":"I255*J255","v":0}]
["",{"$f":"IF($A256=1,COUNTIF($A$166:$A255,1)+1,\"\")","v":""},"","0",0,null,"3,5mm-Stereoklinkenbuchse rückseitig steckbar",5201,null,{"$f":"IF(ISNA(VLOOKUP($H256,'AF-Artikel'!$A$3:$D$5437,3)),\"\",VLOOKUP($H256,'AF-Artikel'!$A$3:$D$5437,3))","v":18.329999999999998},0]
["",{"$f":"IF($A257=1,COUNTIF($A$166:$A256,1)+1,\"\")","v":""},"","0",0,null,"3,5mm-Stereoklinkenbuchse auf 3,5mm Stereoklinkenkupplung 30cm",5106,null,{"$f":"IF(ISNA(VLOOKUP($H257,'AF-Artikel'!$A$3:$D$5437,3)),\"\",VLOOKUP($H257,'AF-Artikel'!$A$3:$D$5437,3))","v":17.59},0]
["",{"$f":"IF($A258=1,COUNTIF($A$166:$A257,1)+1,\"\")","v":""},"",null,0,null,"zusätzliche Kabellänge für obiges Kabel in m",5301,null,{"$f":"IF(ISNA(VLOOKUP($H258,'AF-Artikel'!$A$3:$D$5437,3)),\"\",VLOOKUP($H258,'AF-Artikel'!$A$3:$D$5437,3))","v":0.61},0]
["",{"$f":"IF($A259=1,COUNTIF($A$166:$A258,1)+1,\"\")","v":""},"","0",0,null,"3,5mm-Stereoklinkenbuchse auf 3,5mm Stereoklinkenstecker 30cm",5107,null,{"$f":"IF(ISNA(VLOOKUP($H259,'AF-Artikel'!$A$3:$D$5437,3)),\"\",VLOOKUP($H259,'AF-Artikel'!$A$3:$D$5437,3))","v":17.59},0]
["",{"$f":"IF($A260=1,COUNTIF($A$166:$A259,1)+1,\"\")","v":""},"",null,0,null,"zusätzliche Kabellänge für obiges Kabel in m",5301,null,{"$f":"IF(ISNA(VLOOKUP($H260,'AF-Artikel'!$A$3:$D$5437,3)),\"\",VLOOKUP($H260,'AF-Artikel'!$A$3:$D$5437,3))","v":0.61},0]
["",{"$f":"IF($A261=1,COUNTIF($A$166:$A260,1)+1,\"\")","v":""},{"$f":"IF(AND($I261>0,$O261>0),$O261,\"\")","v":""},"0",0,null,"3,5mm-Stereoklinkenbuchse auf 2xCinchkupplung 30cm",5108,null,{"$f":"IF(ISNA(VLOOKUP($H261,'AF-Artikel'!$A$3:$D$5437,3)),\"\",VLOOKUP($H261,'AF-Artikel'!$A$3:$D$5437,3))","v":19.68},0]
["",{"$f":"IF($A262=1,COUNTIF($A$166:$A261,1)+1,\"\")","v":""},"",null,0,null,"zusätzliche Kabellänge für obiges Kabel in m",5302,null,{"$f":"IF(ISNA(VLOOKUP($H262,'AF-Artikel'!$A$3:$D$5437,3)),\"\",VLOOKUP($H262,'AF-Artikel'!$A$3:$D$5437,3))","v":2.13},0]
["",{"$f":"IF($A263=1,COUNTIF($A$166:$A262,1)+1,\"\")","v":""},"","0",0,null,"3,5mm-Stereoklinkenbuchse auf 2xCinchstecker 30cm",5109,null,{"$f":"IF(ISNA(VLOOKUP($H263,'AF-Artikel'!$A$3:$D$5437,3)),\"\",VLOOKUP($H263,'AF-Artikel'!$A$3:$D$5437,3))","v":19.68},0]
["",{"$f":"IF($A264=1,COUNTIF($A$166:$A263,1)+1,\"\")","v":""},"",null,0,null,"zusätzliche Kabellänge für obiges Kabel in m",5302,null,{"$f":"IF(ISNA(VLOOKUP($H264,'AF-Artikel'!$A$3:$D$5437,3)),\"\",VLOOKUP($H264,'AF-Artikel'!$A$3:$D$5437,3))","v":2.13},0]
[{"$f":"IF(I265>0,1,\"\")","v":""},{"$f":"IF($A265=1,COUNTIF($A$166:$A264,1)+1,\"\")","v":""},"","0",0,null,"3,5mm-Stereoklinkenbuchse auf offenes Kabelende 30cm",5278,null,{"$f":"IF(ISNA(VLOOKUP($H265,'AF-Artikel'!$A$3:$D$5437,3)),\"\",VLOOKUP($H265,'AF-Artikel'!$A$3:$D$5437,3))","v":13.29},{"$f":"I265*J265","v":0}]
[{"$f":"IF(I266>0,1,\"\")","v":""},{"$f":"IF($A266=1,COUNTIF($A$166:$A265,1)+1,\"\")","v":""},"",null,0,null,"zusätzliche Kabellänge für obiges Kabel in m",5302,null,{"$f":"IF(ISNA(VLOOKUP($H266,'AF-Artikel'!$A$3:$D$5437,3)),\"\",VLOOKUP($H266,'AF-Artikel'!$A$3:$D$5437,3))","v":2.13},{"$f":"I266*J266","v":0}]
["",{"$f":"IF($A267=1,COUNTIF($A$166:$A266,1)+1,\"\")","v":""},"",null,0]
["",{"$f":"IF($A268=1,COUNTIF($A$166:$A267,1)+1,\"\")","v":""},"","0",0,null,"BNC-Buchse rot Lötanschluss",5110,null,{"$f":"IF(ISNA(VLOOKUP($H268,'AF-Artikel'!$A$3:$D$5437,3)),\"\",VLOOKUP($H268,'AF-Artikel'!$A$3:$D$5437,3))","v":12.04},{"$f":"I268*J268","v":0}]
["",{"$f":"IF($A269=1,COUNTIF($A$166:$A268,1)+1,\"\")","v":""},"","0",0,null,"BNC-Buchse rot rückseitig steckbar",5116,null,{"$f":"IF(ISNA(VLOOKUP($H269,'AF-Artikel'!$A$3:$D$5437,3)),\"\",VLOOKUP($H269,'AF-Artikel'!$A$3:$D$5437,3))","v":13.09},0]
[{"$f":"IF(I270>0,1,\"\")","v":""},{"$f":"IF($A270=1,COUNTIF($A$166:$A269,1)+1,\"\")","v":""},"","0",0,null,"BNC-Buchse rot auf BNC-Kupplung 30cm",5122,null,{"$f":"IF(ISNA(VLOOKUP($H270,'AF-Artikel'!$A$3:$D$5437,3)),\"\",VLOOKUP($H270,'AF-Artikel'!$A$3:$D$5437,3))","v":19.79},0]
["",{"$f":"IF($A271=1,COUNTIF($A$166:$A270,1)+1,\"\")","v":""},"",null,0,null,"zusätzliche Kabellänge für obiges Kabel in m",5303,null,{"$f":"IF(ISNA(VLOOKUP($H271,'AF-Artikel'!$A$3:$D$5437,3)),\"\",VLOOKUP($H271,'AF-Artikel'!$A$3:$D$5437,3))","v":0.52},0]
["",{"$f":"IF($A272=1,COUNTIF($A$166:$A271,1)+1,\"\")","v":""},"","0",0,null,"BNC-Buchse rot auf BNC-Stecker 30cm",5128,null,{"$f":"IF(ISNA(VLOOKUP($H272,'AF-Artikel'!$A$3:$D$5437,3)),\"\",VLOOKUP($H272,'AF-Artikel'!$A$3:$D$5437,3))","v":18.22},0]
["",{"$f":"IF($A273=1,COUNTIF($A$166:$A272,1)+1,\"\")","v":""},"",null,0,null,"zusätzliche Kabellänge für obiges Kabel in m",5303,null,{"$f":"IF(ISNA(VLOOKUP($H273,'AF-Artikel'!$A$3:$D$5437,3)),\"\",VLOOKUP($H273,'AF-Artikel'!$A$3:$D$5437,3))","v":0.52},0]
["",{"$f":"IF($A274=1,COUNTIF($A$166:$A273,1)+1,\"\")","v":""},"",null,0]
["",{"$f":"IF($A275=1,COUNTIF($A$166:$A274,1)+1,\"\")","v":""},"","0",0,null,"BNC-Buchse grün Lötanschluss",5111,null,{"$f":"IF(ISNA(VLOOKUP($H275,'AF-Artikel'!$A$3:$D$5437,3)),\"\",VLOOKUP($H275,'AF-Artikel'!$A$3:$D$5437,3))","v":12.04},{"$f":"I275*J275","v":0}]
["",{"$f":"IF($A276=1,COUNTIF($A$166:$A275,1)+1,\"\")","v":""},"","0",0,null,"BNC-Buchse grün rückseitig steckbar",5117,null,{"$f":"IF(ISNA(VLOOKUP($H276,'AF-Artikel'!$A$3:$D$5437,3)),\"\",VLOOKUP($H276,'AF-Artikel'!$A$3:$D$5437,3))","v":13.09},0]
["",{"$f":"IF($A277=1,COUNTIF($A$166:$A276,1)+1,\"\")","v":""},"","0",0,null,"BNC-Buchse grün auf BNC-Kupplung 30cm",5123,null,{"$f":"IF(ISNA(VLOOKUP($H277,'AF-Artikel'!$A$3:$D$5437,3)),\"\",VLOOKUP($H277,'AF-Artikel'!$A$3:$D$5437,3))","v":19.79},0]
["",{"$f":"IF($A278=1,COUNTIF($A$166:$A277,1)+1,\"\")","v":""},"",null,0,null,"zusätzliche Kabellänge für obiges Kabel in m",5303,null,{"$f":"IF(ISNA(VLOOKUP($H278,'AF-Artikel'!$A$3:$D$5437,3)),\"\",VLOOKUP($H278,'AF-Artikel'!$A$3:$D$5437,3))","v":0.52},0]
["",{"$f":"IF($A279=1,COUNTIF($A$166:$A278,1)+1,\"\")","v":""},"","0",0,null,"BNC-Buchse grün auf BNC-Stecker 30cm",5129,null,{"$f":"IF(ISNA(VLOOKUP($H279,'AF-Artikel'!$A$3:$D$5437,3)),\"\",VLOOKUP($H279,'AF-Artikel'!$A$3:$D$5437,3))","v":18.22},0]
["",{"$f":"IF($A280=1,COUNTIF($A$166:$A279,1)+1,\"\")","v":""},"",null,0,null,"zusätzliche Kabellänge für obiges Kabel in m",5303,null,{"$f":"IF(ISNA(VLOOKUP($H280,'AF-Artikel'!$A$3:$D$5437,3)),\"\",VLOOKUP($H280,'AF-Artikel'!$A$3:$D$5437,3))","v":0.52},0]
["",{"$f":"IF($A281=1,COUNTIF($A$166:$A280,1)+1,\"\")","v":""},"",null,0]
["",{"$f":"IF($A282=1,COUNTIF($A$166:$A281,1)+1,\"\")","v":""},"","0",0,null,"BNC-Buchse blau Lötanschluss",5112,null,{"$f":"IF(ISNA(VLOOKUP($H282,'AF-Artikel'!$A$3:$D$5437,3)),\"\",VLOOKUP($H282,'AF-Artikel'!$A$3:$D$5437,3))","v":12.04},{"$f":"I282*J282","v":0}]
["",{"$f":"IF($A283=1,COUNTIF($A$166:$A282,1)+1,\"\")","v":""},"","0",0,null,"BNC-Buchse blau rückseitig steckbar",5118,null,{"$f":"IF(ISNA(VLOOKUP($H283,'AF-Artikel'!$A$3:$D$5437,3)),\"\",VLOOKUP($H283,'AF-Artikel'!$A$3:$D$5437,3))","v":13.09},0]
["",{"$f":"IF($A284=1,COUNTIF($A$166:$A283,1)+1,\"\")","v":""},"","0",0,null,"BNC-Buchse blau auf BNC-Kupplung 30cm",5124,null,{"$f":"IF(ISNA(VLOOKUP($H284,'AF-Artikel'!$A$3:$D$5437,3)),\"\",VLOOKUP($H284,'AF-Artikel'!$A$3:$D$5437,3))","v":19.79},0]
["",{"$f":"IF($A285=1,COUNTIF($A$166:$A284,1)+1,\"\")","v":""},"",null,0,null,"zusätzliche Kabellänge für obiges Kabel in m",5303,null,{"$f":"IF(ISNA(VLOOKUP($H285,'AF-Artikel'!$A$3:$D$5437,3)),\"\",VLOOKUP($H285,'AF-Artikel'!$A$3:$D$5437,3))","v":0.52},0]
["",{"$f":"IF($A286=1,COUNTIF($A$166:$A285,1)+1,\"\")","v":""},"","0",0,null,"BNC-Buchse blau auf BNC-Stecker 30cm",5130,null,{"$f":"IF(ISNA(VLOOKUP($H286,'AF-Artikel'!$A$3:$D$5437,3)),\"\",VLOOKUP($H286,'AF-Artikel'!$A$3:$D$5437,3))","v":18.22},0]
["",{"$f":"IF($A287=1,COUNTIF($A$166:$A286,1)+1,\"\")","v":""},"",null,0,null,"zusätzliche Kabellänge für obiges Kabel in m",5303,null,{"$f":"IF(ISNA(VLOOKUP($H287,'AF-Artikel'!$A$3:$D$5437,3)),\"\",VLOOKUP($H287,'AF-Artikel'!$A$3:$D$5437,3))","v":0.52},0]
["",{"$f":"IF($A288=1,COUNTIF($A$166:$A287,1)+1,\"\")","v":""},"",null,0]
["",{"$f":"IF($A289=1,COUNTIF($A$166:$A288,1)+1,\"\")","v":""},"","0",0,null,"BNC-Buchse schwarz Lötanschluss",5113,null,{"$f":"IF(ISNA(VLOOKUP($H289,'AF-Artikel'!$A$3:$D$5437,3)),\"\",VLOOKUP($H289,'AF-Artikel'!$A$3:$D$5437,3))","v":12.04},{"$f":"I289*J289","v":0}]
["",{"$f":"IF($A290=1,COUNTIF($A$166:$A289,1)+1,\"\")","v":""},"","0",0,null,"BNC-Buchse schwarz rückseitig steckbar",5119,null,{"$f":"IF(ISNA(VLOOKUP($H290,'AF-Artikel'!$A$3:$D$5437,3)),\"\",VLOOKUP($H290,'AF-Artikel'!$A$3:$D$5437,3))","v":13.09},0]
["",{"$f":"IF($A291=1,COUNTIF($A$166:$A290,1)+1,\"\")","v":""},"","0",0,null,"BNC-Buchse schwarz auf BNC-Kupplung 30cm",5125,null,{"$f":"IF(ISNA(VLOOKUP($H291,'AF-Artikel'!$A$3:$D$5437,3)),\"\",VLOOKUP($H291,'AF-Artikel'!$A$3:$D$5437,3))","v":19.79},0]
["",{"$f":"IF($A292=1,COUNTIF($A$166:$A291,1)+1,\"\")","v":""},"",null,0,null,"zusätzliche Kabellänge für obiges Kabel in m",5303,null,{"$f":"IF(ISNA(VLOOKUP($H292,'AF-Artikel'!$A$3:$D$5437,3)),\"\",VLOOKUP($H292,'AF-Artikel'!$A$3:$D$5437,3))","v":0.52},0]
["",{"$f":"IF($A293=1,COUNTIF($A$166:$A292,1)+1,\"\")","v":""},"","0",0,null,"BNC-Buchse schwarz auf BNC-Stecker 30cm",5131,null,{"$f":"IF(ISNA(VLOOKUP($H293,'AF-Artikel'!$A$3:$D$5437,3)),\"\",VLOOKUP($H293,'AF-Artikel'!$A$3:$D$5437,3))","v":18.22},0]
["",{"$f":"IF($A294=1,COUNTIF($A$166:$A293,1)+1,\"\")","v":""},"","0",0,null,"zusätzliche Kabellänge für obiges Kabel in m",5303,null,{"$f":"IF(ISNA(VLOOKUP($H294,'AF-Artikel'!$A$3:$D$5437,3)),\"\",VLOOKUP($H294,'AF-Artikel'!$A$3:$D$5437,3))","v":0.52},0]
["",{"$f":"IF($A295=1,COUNTIF($A$166:$A294,1)+1,\"\")","v":""},"",null,{"$f":"IF($A$25=0,$I295,IF(OR($A295=\"\",$A$25>0),$I295,SUM($I295*VLOOKUP($A$1,$A$28:$I$165,9))))","v":0}]
["",{"$f":"IF($A296=1,COUNTIF($A$166:$A295,1)+1,\"\")","v":""},"","0",0,null,"BNC-Buchse weiß Lötanschluss",5114,null,{"$f":"IF(ISNA(VLOOKUP($H296,'AF-Artikel'!$A$3:$D$5437,3)),\"\",VLOOKUP($H296,'AF-Artikel'!$A$3:$D$5437,3))","v":12.04},{"$f":"I296*J296","v":0}]
["",{"$f":"IF($A297=1,COUNTIF($A$166:$A296,1)+1,\"\")","v":""},"","0",0,null,"BNC-Buchse weiß rückseitig steckbar",5120,null,{"$f":"IF(ISNA(VLOOKUP($H297,'AF-Artikel'!$A$3:$D$5437,3)),\"\",VLOOKUP($H297,'AF-Artikel'!$A$3:$D$5437,3))","v":13.09},0]
["",{"$f":"IF($A298=1,COUNTIF($A$166:$A297,1)+1,\"\")","v":""},"","0",0,null,"BNC-Buchse weiß auf BNC-Kupplung 30cm",5126,null,{"$f":"IF(ISNA(VLOOKUP($H298,'AF-Artikel'!$A$3:$D$5437,3)),\"\",VLOOKUP($H298,'AF-Artikel'!$A$3:$D$5437,3))","v":19.79},0]
["",{"$f":"IF($A299=1,COUNTIF($A$166:$A298,1)+1,\"\")","v":""},"",null,0,null,"zusätzliche Kabellänge für obiges Kabel in m",5303,null,{"$f":"IF(ISNA(VLOOKUP($H299,'AF-Artikel'!$A$3:$D$5437,3)),\"\",VLOOKUP($H299,'AF-Artikel'!$A$3:$D$5437,3))","v":0.52},0]
["",{"$f":"IF($A300=1,COUNTIF($A$166:$A299,1)+1,\"\")","v":""},"","0",0,null,"BNC-Buchse weiß auf BNC-Stecker 30cm",5132,null,{"$f":"IF(ISNA(VLOOKUP($H300,'AF-Artikel'!$A$3:$D$5437,3)),\"\",VLOOKUP($H300,'AF-Artikel'!$A$3:$D$5437,3))","v":18.22},0]
["",{"$f":"IF($A301=1,COUNTIF($A$166:$A300,1)+1,\"\")","v":""},"",null,0,null,"zusätzliche Kabellänge für obiges Kabel in m",5303,null,{"$f":"IF(ISNA(VLOOKUP($H301,'AF-Artikel'!$A$3:$D$5437,3)),\"\",VLOOKUP($H301,'AF-Artikel'!$A$3:$D$5437,3))","v":0.52},0]
["",{"$f":"IF($A302=1,COUNTIF($A$166:$A301,1)+1,\"\")","v":""},"",null,0]
["",{"$f":"IF($A303=1,COUNTIF($A$166:$A302,1)+1,\"\")","v":""},"","0",0,null,"BNC-Buchse gelb Lötanschluss",5115,null,{"$f":"IF(ISNA(VLOOKUP($H303,'AF-Artikel'!$A$3:$D$5437,3)),\"\",VLOOKUP($H303,'AF-Artikel'!$A$3:$D$5437,3))","v":12.04},{"$f":"I303*J303","v":0}]
["",{"$f":"IF($A304=1,COUNTIF($A$166:$A303,1)+1,\"\")","v":""},"","0",0,null,"BNC-Buchse gelb rückseitig steckbar",5121,null,{"$f":"IF(ISNA(VLOOKUP($H304,'AF-Artikel'!$A$3:$D$5437,3)),\"\",VLOOKUP($H304,'AF-Artikel'!$A$3:$D$5437,3))","v":13.09},0]
["",{"$f":"IF($A305=1,COUNTIF($A$166:$A304,1)+1,\"\")","v":""},"","0",0,null,"BNC-Buchse gelb auf BNC-Kupplung 30cm",5127,null,{"$f":"IF(ISNA(VLOOKUP($H305,'AF-Artikel'!$A$3:$D$5437,3)),\"\",VLOOKUP($H305,'AF-Artikel'!$A$3:$D$5437,3))","v":19.79},0]
["",{"$f":"IF($A306=1,COUNTIF($A$166:$A305,1)+1,\"\")","v":""},"",null,0,null,"zusätzliche Kabellänge für obiges Kabel in m",5303,null,{"$f":"IF(ISNA(VLOOKUP($H306,'AF-Artikel'!$A$3:$D$5437,3)),\"\",VLOOKUP($H306,'AF-Artikel'!$A$3:$D$5437,3))","v":0.52},0]
["",{"$f":"IF($A307=1,COUNTIF($A$166:$A306,1)+1,\"\")","v":""},"","0",0,null,"BNC-Buchse gelb auf BNC-Stecker 30cm",5133,null,{"$f":"IF(ISNA(VLOOKUP($H307,'AF-Artikel'!$A$3:$D$5437,3)),\"\",VLOOKUP($H307,'AF-Artikel'!$A$3:$D$5437,3))","v":18.22},0]
["",{"$f":"IF($A308=1,COUNTIF($A$166:$A307,1)+1,\"\")","v":""},"",null,0,null,"zusätzliche Kabellänge für obiges Kabel in m",5303,null,{"$f":"IF(ISNA(VLOOKUP($H308,'AF-Artikel'!$A$3:$D$5437,3)),\"\",VLOOKUP($H308,'AF-Artikel'!$A$3:$D$5437,3))","v":0.52},0]
["",{"$f":"IF($A309=1,COUNTIF($A$166:$A308,1)+1,\"\")","v":""},"",null,0]
["",{"$f":"IF($A310=1,COUNTIF($A$166:$A309,1)+1,\"\")","v":""},"","0",0,null,"Cinch-Buchse schwarz Lötanschluss",5135,null,{"$f":"IF(ISNA(VLOOKUP($H310,'AF-Artikel'!$A$3:$D$5437,3)),\"\",VLOOKUP($H310,'AF-Artikel'!$A$3:$D$5437,3))","v":9.9499999999999993},{"$f":"I310*J310","v":0}]
["",{"$f":"IF($A311=1,COUNTIF($A$166:$A310,1)+1,\"\")","v":""},"","0",0,null,"Cinch-Buchse schwarz rückseitig steckbar",5189,null,{"$f":"IF(ISNA(VLOOKUP($H311,'AF-Artikel'!$A$3:$D$5437,3)),\"\",VLOOKUP($H311,'AF-Artikel'!$A$3:$D$5437,3))","v":14.13},0]
["",{"$f":"IF($A312=1,COUNTIF($A$166:$A311,1)+1,\"\")","v":""},"","0",0,null,"Cinch-Buchse schwarz auf Cinch-Kupplung 30cm",5140,null,{"$f":"IF(ISNA(VLOOKUP($H312,'AF-Artikel'!$A$3:$D$5437,3)),\"\",VLOOKUP($H312,'AF-Artikel'!$A$3:$D$5437,3))","v":16.23},0]
["",{"$f":"IF($A313=1,COUNTIF($A$166:$A312,1)+1,\"\")","v":""},"",null,0,null,"zusätzliche Kabellänge für obiges Kabel in m",5303,null,{"$f":"IF(ISNA(VLOOKUP($H313,'AF-Artikel'!$A$3:$D$5437,3)),\"\",VLOOKUP($H313,'AF-Artikel'!$A$3:$D$5437,3))","v":0.52},0]
["",{"$f":"IF($A314=1,COUNTIF($A$166:$A313,1)+1,\"\")","v":""},"","0",0,null,"Cinch-Buchse schwarz auf Cinch-Stecker 30cm",5145,null,{"$f":"IF(ISNA(VLOOKUP($H314,'AF-Artikel'!$A$3:$D$5437,3)),\"\",VLOOKUP($H314,'AF-Artikel'!$A$3:$D$5437,3))","v":16.23},0]
["",{"$f":"IF($A315=1,COUNTIF($A$166:$A314,1)+1,\"\")","v":""},{"$f":"IF(AND($I315>0,$O315>0),$O315,\"\")","v":""},"0",0,null,"zusätzliche Kabellänge für obiges Kabel in m",5303,null,{"$f":"IF(ISNA(VLOOKUP($H315,'AF-Artikel'!$A$3:$D$5437,3)),\"\",VLOOKUP($H315,'AF-Artikel'!$A$3:$D$5437,3))","v":0.52},0]
["",{"$f":"IF($A316=1,COUNTIF($A$166:$A315,1)+1,\"\")","v":""},"",{"$f":"IF($I316>0,LEN($L316)*$A$25,\"0\")","v":"0"},0,null,"Cinch-Buchse schwarz auf BNC-Kupplung 30cm",5229,null,{"$f":"IF(ISNA(VLOOKUP($H316,'AF-Artikel'!$A$3:$D$5437,3)),\"\",VLOOKUP($H316,'AF-Artikel'!$A$3:$D$5437,3))","v":18.11},0]
["",{"$f":"IF($A317=1,COUNTIF($A$166:$A316,1)+1,\"\")","v":""},"","0",0,null,"zusätzliche Kabellänge für obiges Kabel in m",5303,null,{"$f":"IF(ISNA(VLOOKUP($H317,'AF-Artikel'!$A$3:$D$5437,3)),\"\",VLOOKUP($H317,'AF-Artikel'!$A$3:$D$5437,3))","v":0.52},0]
["",{"$f":"IF($A318=1,COUNTIF($A$166:$A317,1)+1,\"\")","v":""},"","0",0,null,"Cinch-Buchse schwarz auf BNC-Stecker 30cm",5228,null,{"$f":"IF(ISNA(VLOOKUP($H318,'AF-Artikel'!$A$3:$D$5437,3)),\"\",VLOOKUP($H318,'AF-Artikel'!$A$3:$D$5437,3))","v":17.59},0]
["",{"$f":"IF($A319=1,COUNTIF($A$166:$A318,1)+1,\"\")","v":""},"",null,0,null,"zusätzliche Kabellänge für obiges Kabel in m",5303,null,{"$f":"IF(ISNA(VLOOKUP($H319,'AF-Artikel'!$A$3:$D$5437,3)),\"\",VLOOKUP($H319,'AF-Artikel'!$A$3:$D$5437,3))","v":0.52},0]
["",{"$f":"IF($A320=1,COUNTIF($A$166:$A319,1)+1,\"\")","v":""},"",null,0]
["",{"$f":"IF($A321=1,COUNTIF($A$166:$A320,1)+1,\"\")","v":""},"","0",0,null,"Cinch-Buchse rot Lötanschluss",5134,null,{"$f":"IF(ISNA(VLOOKUP($H321,'AF-Artikel'!$A$3:$D$5437,3)),\"\",VLOOKUP($H321,'AF-Artikel'!$A$3:$D$5437,3))","v":9.9499999999999993},{"$f":"I321*J321","v":0}]
["",{"$f":"IF($A322=1,COUNTIF($A$166:$A321,1)+1,\"\")","v":""},"","0",0,null,"Cinch-Buchse rot rückseitig steckbar",5188,null,{"$f":"IF(ISNA(VLOOKUP($H322,'AF-Artikel'!$A$3:$D$5437,3)),\"\",VLOOKUP($H322,'AF-Artikel'!$A$3:$D$5437,3))","v":14.13},0]
["",{"$f":"IF($A323=1,COUNTIF($A$166:$A322,1)+1,\"\")","v":""},"","0",0,null,"Cinch-Buchse rot auf Cinch-Kupplung 30cm",5139,null,{"$f":"IF(ISNA(VLOOKUP($H323,'AF-Artikel'!$A$3:$D$5437,3)),\"\",VLOOKUP($H323,'AF-Artikel'!$A$3:$D$5437,3))","v":16.23},0]
["",{"$f":"IF($A324=1,COUNTIF($A$166:$A323,1)+1,\"\")","v":""},"",null,0,null,"zusätzliche Kabellänge für obiges Kabel in m",5303,null,{"$f":"IF(ISNA(VLOOKUP($H324,'AF-Artikel'!$A$3:$D$5437,3)),\"\",VLOOKUP($H324,'AF-Artikel'!$A$3:$D$5437,3))","v":0.52},0]
["",{"$f":"IF($A325=1,COUNTIF($A$166:$A324,1)+1,\"\")","v":""},"","0",0,null,"Cinch-Buchse rot auf Cinch-Stecker 30cm",5144,null,{"$f":"IF(ISNA(VLOOKUP($H325,'AF-Artikel'!$A$3:$D$5437,3)),\"\",VLOOKUP($H325,'AF-Artikel'!$A$3:$D$5437,3))","v":16.23},0]
["",{"$f":"IF($A326=1,COUNTIF($A$166:$A325,1)+1,\"\")","v":""},"",null,0,null,"zusätzliche Kabellänge für obiges Kabel in m",5303,null,{"$f":"IF(ISNA(VLOOKUP($H326,'AF-Artikel'!$A$3:$D$5437,3)),\"\",VLOOKUP($H326,'AF-Artikel'!$A$3:$D$5437,3))","v":0.52},0]
["",{"$f":"IF($A327=1,COUNTIF($A$166:$A326,1)+1,\"\")","v":""},"","0",0,null,"Cinch-Buchse rot auf BNC-Kupplung 30cm",5204,null,{"$f":"IF(ISNA(VLOOKUP($H327,'AF-Artikel'!$A$3:$D$5437,3)),\"\",VLOOKUP($H327,'AF-Artikel'!$A$3:$D$5437,3))","v":18.11},0]
["",{"$f":"IF($A328=1,COUNTIF($A$166:$A327,1)+1,\"\")","v":""},"",null,0,null,"zusätzliche Kabellänge für obiges Kabel in m",5303,null,{"$f":"IF(ISNA(VLOOKUP($H328,'AF-Artikel'!$A$3:$D$5437,3)),\"\",VLOOKUP($H328,'AF-Artikel'!$A$3:$D$5437,3))","v":0.52},0]
["",{"$f":"IF($A329=1,COUNTIF($A$166:$A328,1)+1,\"\")","v":""},"","0",0,null,"Cinch-Buchse rot auf BNC-Stecker 30cm",5205,null,{"$f":"IF(ISNA(VLOOKUP($H329,'AF-Artikel'!$A$3:$D$5437,3)),\"\",VLOOKUP($H329,'AF-Artikel'!$A$3:$D$5437,3))","v":17.59},0]
["",{"$f":"IF($A330=1,COUNTIF($A$166:$A329,1)+1,\"\")","v":""},"",null,0,null,"zusätzliche Kabellänge für obiges Kabel in m",5303,null,{"$f":"IF(ISNA(VLOOKUP($H330,'AF-Artikel'!$A$3:$D$5437,3)),\"\",VLOOKUP($H330,'AF-Artikel'!$A$3:$D$5437,3))","v":0.52},0]
["",{"$f":"IF($A331=1,COUNTIF($A$166:$A330,1)+1,\"\")","v":""},"",null,0]
["",{"$f":"IF($A332=1,COUNTIF($A$166:$A331,1)+1,\"\")","v":""},"","0",0,null,"Cinch-Buchse gelb Lötanschluss",5136,null,{"$f":"IF(ISNA(VLOOKUP($H332,'AF-Artikel'!$A$3:$D$5437,3)),\"\",VLOOKUP($H332,'AF-Artikel'!$A$3:$D$5437,3))","v":9.9499999999999993},{"$f":"I332*J332","v":0}]
["",{"$f":"IF($A333=1,COUNTIF($A$166:$A332,1)+1,\"\")","v":""},"","0",0,null,"Cinch-Buchse gelb rückseitig steckbar",5190,null,{"$f":"IF(ISNA(VLOOKUP($H333,'AF-Artikel'!$A$3:$D$5437,3)),\"\",VLOOKUP($H333,'AF-Artikel'!$A$3:$D$5437,3))","v":14.13},0]
[{"$f":"IF(I334>0,1,\"\")","v":""},{"$f":"IF($A334=1,COUNTIF($A$166:$A333,1)+1,\"\")","v":""},"","0",0,null,"Cinch-Buchse gelb auf Cinch-Kupplung 30cm",5141,null,{"$f":"IF(ISNA(VLOOKUP($H334,'AF-Artikel'!$A$3:$D$5437,3)),\"\",VLOOKUP($H334,'AF-Artikel'!$A$3:$D$5437,3))","v":16.23},0]
["",{"$f":"IF($A335=1,COUNTIF($A$166:$A334,1)+1,\"\")","v":""},"",null,0,null,"zusätzliche Kabellänge für obiges Kabel in m",5303,null,{"$f":"IF(ISNA(VLOOKUP($H335,'AF-Artikel'!$A$3:$D$5437,3)),\"\",VLOOKUP($H335,'AF-Artikel'!$A$3:$D$5437,3))","v":0.52},0]
["",{"$f":"IF($A336=1,COUNTIF($A$166:$A335,1)+1,\"\")","v":""},"","0",0,null,"Cinch-Buchse gelb auf Cinch-Stecker 30cm",5146,null,{"$f":"IF(ISNA(VLOOKUP($H336,'AF-Artikel'!$A$3:$D$5437,3)),\"\",VLOOKUP($H336,'AF-Artikel'!$A$3:$D$5437,3))","v":16.23},0]
["",{"$f":"IF($A337=1,COUNTIF($A$166:$A336,1)+1,\"\")","v":""},"",null,0,null,"zusätzliche Kabellänge für obiges Kabel in m",5303,null,{"$f":"IF(ISNA(VLOOKUP($H337,'AF-Artikel'!$A$3:$D$5437,3)),\"\",VLOOKUP($H337,'AF-Artikel'!$A$3:$D$5437,3))","v":0.52},0]
["",{"$f":"IF($A338=1,COUNTIF($A$166:$A337,1)+1,\"\")","v":""},"","0",0,null,"Cinch-Buchse gelb auf BNC-Kupplung 30cm",5149,null,{"$f":"IF(ISNA(VLOOKUP($H338,'AF-Artikel'!$A$3:$D$5437,3)),\"\",VLOOKUP($H338,'AF-Artikel'!$A$3:$D$5437,3))","v":18.11},0]
["",{"$f":"IF($A339=1,COUNTIF($A$166:$A338,1)+1,\"\")","v":""},"",null,0,null,"zusätzliche Kabellänge für obiges Kabel in m",5303,null,{"$f":"IF(ISNA(VLOOKUP($H339,'AF-Artikel'!$A$3:$D$5437,3)),\"\",VLOOKUP($H339,'AF-Artikel'!$A$3:$D$5437,3))","v":0.52},0]
["",{"$f":"IF($A340=1,COUNTIF($A$166:$A339,1)+1,\"\")","v":""},"","0",0,null,"Cinch-Buchse gelb auf BNC-Stecker 30cm",5152,null,{"$f":"IF(ISNA(VLOOKUP($H340,'AF-Artikel'!$A$3:$D$5437,3)),\"\",VLOOKUP($H340,'AF-Artikel'!$A$3:$D$5437,3))","v":17.59},0]
["",{"$f":"IF($A341=1,COUNTIF($A$166:$A340,1)+1,\"\")","v":""},"",null,0,null,"zusätzliche Kabellänge für obiges Kabel in m",5303,null,{"$f":"IF(ISNA(VLOOKUP($H341,'AF-Artikel'!$A$3:$D$5437,3)),\"\",VLOOKUP($H341,'AF-Artikel'!$A$3:$D$5437,3))","v":0.52},0]
["",{"$f":"IF($A342=1,COUNTIF($A$166:$A341,1)+1,\"\")","v":""},"",null,0]
["",{"$f":"IF($A343=1,COUNTIF($A$166:$A342,1)+1,\"\")","v":""},"","0",0,null,"Cinch-Buchse grün Lötanschluss",5137,null,{"$f":"IF(ISNA(VLOOKUP($H343,'AF-Artikel'!$A$3:$D$5437,3)),\"\",VLOOKUP($H343,'AF-Artikel'!$A$3:$D$5437,3))","v":9.9499999999999993},{"$f":"I343*J343","v":0}]
["",{"$f":"IF($A344=1,COUNTIF($A$166:$A343,1)+1,\"\")","v":""},"","0",0,null,"Cinch-Buchse grün auf Cinch-Kupplung 30cm",5142,null,{"$f":"IF(ISNA(VLOOKUP($H344,'AF-Artikel'!$A$3:$D$5437,3)),\"\",VLOOKUP($H344,'AF-Artikel'!$A$3:$D$5437,3))","v":16.23},0]
["",{"$f":"IF($A345=1,COUNTIF($A$166:$A344,1)+1,\"\")","v":""},"",null,0,null,"zusätzliche Kabellänge für obiges Kabel in m",5303,null,{"$f":"IF(ISNA(VLOOKUP($H345,'AF-Artikel'!$A$3:$D$5437,3)),\"\",VLOOKUP($H345,'AF-Artikel'!$A$3:$D$5437,3))","v":0.52},0]
["",{"$f":"IF($A346=1,COUNTIF($A$166:$A345,1)+1,\"\")","v":""},"","0",0,null,"Cinch-Buchse grün auf Cinch-Stecker 30cm",5147,null,{"$f":"IF(ISNA(VLOOKUP($H346,'AF-Artikel'!$A$3:$D$5437,3)),\"\",VLOOKUP($H346,'AF-Artikel'!$A$3:$D$5437,3))","v":16.23},0]
["",{"$f":"IF($A347=1,COUNTIF($A$166:$A346,1)+1,\"\")","v":""},"",null,0,null,"zusätzliche Kabellänge für obiges Kabel in m",5303,null,{"$f":"IF(ISNA(VLOOKUP($H347,'AF-Artikel'!$A$3:$D$5437,3)),\"\",VLOOKUP($H347,'AF-Artikel'!$A$3:$D$5437,3))","v":0.52},0]
["",{"$f":"IF($A348=1,COUNTIF($A$166:$A347,1)+1,\"\")","v":""},"","0",0,null,"Cinch-Buchse grün auf BNC-Kupplung 30cm",5150,null,{"$f":"IF(ISNA(VLOOKUP($H348,'AF-Artikel'!$A$3:$D$5437,3)),\"\",VLOOKUP($H348,'AF-Artikel'!$A$3:$D$5437,3))","v":18.11},0]
["",{"$f":"IF($A349=1,COUNTIF($A$166:$A348,1)+1,\"\")","v":""},"",null,0,null,"zusätzliche Kabellänge für obiges Kabel in m",5303,null,{"$f":"IF(ISNA(VLOOKUP($H349,'AF-Artikel'!$A$3:$D$5437,3)),\"\",VLOOKUP($H349,'AF-Artikel'!$A$3:$D$5437,3))","v":0.52},0]
["",{"$f":"IF($A350=1,COUNTIF($A$166:$A349,1)+1,\"\")","v":""},"","0",0,null,"Cinch-Buchse grün auf BNC-Stecker 30cm",5153,null,{"$f":"IF(ISNA(VLOOKUP($H350,'AF-Artikel'!$A$3:$D$5437,3)),\"\",VLOOKUP($H350,'AF-Artikel'!$A$3:$D$5437,3))","v":17.59},0]
["",{"$f":"IF($A351=1,COUNTIF($A$166:$A350,1)+1,\"\")","v":""},"",null,0,null,"zusätzliche Kabellänge für obiges Kabel in m",5303,null,{"$f":"IF(ISNA(VLOOKUP($H351,'AF-Artikel'!$A$3:$D$5437,3)),\"\",VLOOKUP($H351,'AF-Artikel'!$A$3:$D$5437,3))","v":0.52},0]
["",{"$f":"IF($A352=1,COUNTIF($A$166:$A351,1)+1,\"\")","v":""},"",null,0]
["",{"$f":"IF($A353=1,COUNTIF($A$166:$A352,1)+1,\"\")","v":""},"","0",0,null,"Cinch-Buchse blau Lötanschluss",5138,null,{"$f":"IF(ISNA(VLOOKUP($H353,'AF-Artikel'!$A$3:$D$5437,3)),\"\",VLOOKUP($H353,'AF-Artikel'!$A$3:$D$5437,3))","v":9.9499999999999993},{"$f":"I353*J353","v":0}]
["",{"$f":"IF($A354=1,COUNTIF($A$166:$A353,1)+1,\"\")","v":""},"","0",0,null,"Cinch-Buchse blau auf Cinch-Kupplung 30cm",5143,null,{"$f":"IF(ISNA(VLOOKUP($H354,'AF-Artikel'!$A$3:$D$5437,3)),\"\",VLOOKUP($H354,'AF-Artikel'!$A$3:$D$5437,3))","v":16.23},0]
["",{"$f":"IF($A355=1,COUNTIF($A$166:$A354,1)+1,\"\")","v":""},"",null,0,null,"zusätzliche Kabellänge für obiges Kabel in m",5303,null,{"$f":"IF(ISNA(VLOOKUP($H355,'AF-Artikel'!$A$3:$D$5437,3)),\"\",VLOOKUP($H355,'AF-Artikel'!$A$3:$D$5437,3))","v":0.52},0]
["",{"$f":"IF($A356=1,COUNTIF($A$166:$A355,1)+1,\"\")","v":""},"","0",0,null,"Cinch-Buchse blau auf Cinch-Stecker 30cm",5148,null,{"$f":"IF(ISNA(VLOOKUP($H356,'AF-Artikel'!$A$3:$D$5437,3)),\"\",VLOOKUP($H356,'AF-Artikel'!$A$3:$D$5437,3))","v":16.23},0]
["",{"$f":"IF($A357=1,COUNTIF($A$166:$A356,1)+1,\"\")","v":""},"",null,0,null,"zusätzliche Kabellänge für obiges Kabel in m",5303,null,{"$f":"IF(ISNA(VLOOKUP($H357,'AF-Artikel'!$A$3:$D$5437,3)),\"\",VLOOKUP($H357,'AF-Artikel'!$A$3:$D$5437,3))","v":0.52},0]
["",{"$f":"IF($A358=1,COUNTIF($A$166:$A357,1)+1,\"\")","v":""},"","0",0,null,"Cinch-Buchse blau auf BNC-Kupplung 30cm",5151,null,{"$f":"IF(ISNA(VLOOKUP($H358,'AF-Artikel'!$A$3:$D$5437,3)),\"\",VLOOKUP($H358,'AF-Artikel'!$A$3:$D$5437,3))","v":18.11},0]
["",{"$f":"IF($A359=1,COUNTIF($A$166:$A358,1)+1,\"\")","v":""},"",null,{"$f":"IF($A$25=0,$I359,IF(OR($A359=\"\",$A$25>0),$I359,SUM($I359*VLOOKUP($A$1,$A$28:$I$165,9))))","v":0},null,"zusätzliche Kabellänge für obiges Kabel in m",5303,null,{"$f":"IF(ISNA(VLOOKUP($H359,'AF-Artikel'!$A$3:$D$5437,3)),\"\",VLOOKUP($H359,'AF-Artikel'!$A$3:$D$5437,3))","v":0.52},0]
["",{"$f":"IF($A360=1,COUNTIF($A$166:$A359,1)+1,\"\")","v":""},"","0",0,null,"Cinch-Buchse blau auf BNC-Stecker 30cm",5154,null,{"$f":"IF(ISNA(VLOOKUP($H360,'AF-Artikel'!$A$3:$D$5437,3)),\"\",VLOOKUP($H360,'AF-Artikel'!$A$3:$D$5437,3))","v":17.59},0]
["",{"$f":"IF($A361=1,COUNTIF($A$166:$A360,1)+1,\"\")","v":""},"",null,0,null,"zusätzliche Kabellänge für obiges Kabel in m",5303,null,{"$f":"IF(ISNA(VLOOKUP($H361,'AF-Artikel'!$A$3:$D$5437,3)),\"\",VLOOKUP($H361,'AF-Artikel'!$A$3:$D$5437,3))","v":0.52},0]
["",{"$f":"IF($A362=1,COUNTIF($A$166:$A361,1)+1,\"\")","v":""},"",null,0]
["",{"$f":"IF($A363=1,COUNTIF($A$166:$A362,1)+1,\"\")","v":""},"","0",0,null,"4pin-Mini-DIN-Buchse Lötanschluss",5155,null,{"$f":"IF(ISNA(VLOOKUP($H363,'AF-Artikel'!$A$3:$D$5437,3)),\"\",VLOOKUP($H363,'AF-Artikel'!$A$3:$D$5437,3))","v":10.26},{"$f":"I363*J363","v":0}]
["",{"$f":"IF($A364=1,COUNTIF($A$166:$A363,1)+1,\"\")","v":""},"","0",0,null,"4pin-Mini-DIN-Buchse rückseitig steckbar",5216,null,{"$f":"IF(ISNA(VLOOKUP($H364,'AF-Artikel'!$A$3:$D$5437,3)),\"\",VLOOKUP($H364,'AF-Artikel'!$A$3:$D$5437,3))","v":27.75},0]
["",{"$f":"IF($A365=1,COUNTIF($A$166:$A364,1)+1,\"\")","v":""},"","0",0,null,"4pin-Mini-DIN-Buchse auf 2xBNC-Kupplung 30cm",5156,null,{"$f":"IF(ISNA(VLOOKUP($H365,'AF-Artikel'!$A$3:$D$5437,3)),\"\",VLOOKUP($H365,'AF-Artikel'!$A$3:$D$5437,3))","v":27.75},0]
["",{"$f":"IF($A366=1,COUNTIF($A$166:$A365,1)+1,\"\")","v":""},"",null,0,null,"zusätzliche Kabellänge für obiges Kabel in m",5304,null,{"$f":"IF(ISNA(VLOOKUP($H366,'AF-Artikel'!$A$3:$D$5437,3)),\"\",VLOOKUP($H366,'AF-Artikel'!$A$3:$D$5437,3))","v":2.13},0]
["",{"$f":"IF($A367=1,COUNTIF($A$166:$A366,1)+1,\"\")","v":""},"","0",0,null,"4pin-Mini-DIN-Buchse auf 2xBNC-Stecker 30cm",5157,null,{"$f":"IF(ISNA(VLOOKUP($H367,'AF-Artikel'!$A$3:$D$5437,3)),\"\",VLOOKUP($H367,'AF-Artikel'!$A$3:$D$5437,3))","v":27.01},0]
["",{"$f":"IF($A368=1,COUNTIF($A$166:$A367,1)+1,\"\")","v":""},"",null,0,null,"zusätzliche Kabellänge für obiges Kabel in m",5304,null,{"$f":"IF(ISNA(VLOOKUP($H368,'AF-Artikel'!$A$3:$D$5437,3)),\"\",VLOOKUP($H368,'AF-Artikel'!$A$3:$D$5437,3))","v":2.13},0]
["",{"$f":"IF($A369=1,COUNTIF($A$166:$A368,1)+1,\"\")","v":""},"","0",0,null,"4pin-Mini-DIN-Buchse auf 4pin-Mini-DIN-Kupplung 30cm",5158,null,{"$f":"IF(ISNA(VLOOKUP($H369,'AF-Artikel'!$A$3:$D$5437,3)),\"\",VLOOKUP($H369,'AF-Artikel'!$A$3:$D$5437,3))","v":27.75},0]
["",{"$f":"IF($A370=1,COUNTIF($A$166:$A369,1)+1,\"\")","v":""},"",null,0,null,"zusätzliche Kabellänge für obiges Kabel in m",5304,null,{"$f":"IF(ISNA(VLOOKUP($H370,'AF-Artikel'!$A$3:$D$5437,3)),\"\",VLOOKUP($H370,'AF-Artikel'!$A$3:$D$5437,3))","v":2.13},0]
["",{"$f":"IF($A371=1,COUNTIF($A$166:$A370,1)+1,\"\")","v":""},"","0",0,null,"4pin-Mini-DIN-Buchse auf 4pin-Mini-DIN-Stecker 30cm",5159,null,{"$f":"IF(ISNA(VLOOKUP($H371,'AF-Artikel'!$A$3:$D$5437,3)),\"\",VLOOKUP($H371,'AF-Artikel'!$A$3:$D$5437,3))","v":27.75},0]
["",{"$f":"IF($A372=1,COUNTIF($A$166:$A371,1)+1,\"\")","v":""},"",null,0,null,"zusätzliche Kabellänge für obiges Kabel in m",5304,null,{"$f":"IF(ISNA(VLOOKUP($H372,'AF-Artikel'!$A$3:$D$5437,3)),\"\",VLOOKUP($H372,'AF-Artikel'!$A$3:$D$5437,3))","v":2.13},0]
["",{"$f":"IF($A373=1,COUNTIF($A$166:$A372,1)+1,\"\")","v":""},"",null,0]
["",{"$f":"IF($A374=1,COUNTIF($A$166:$A373,1)+1,\"\")","v":""},"","0",0,null,"9pin-Sub-D-Buchse Lötanschluss",5160,null,{"$f":"IF(ISNA(VLOOKUP($H374,'AF-Artikel'!$A$3:$D$5437,3)),\"\",VLOOKUP($H374,'AF-Artikel'!$A$3:$D$5437,3))","v":9.74},{"$f":"I374*J374","v":0}]
["",{"$f":"IF($A375=1,COUNTIF($A$166:$A374,1)+1,\"\")","v":""},"","0",0,null,"9pin-Sub-D-Buchse/Buchse steckbar",5161,null,{"$f":"IF(ISNA(VLOOKUP($H375,'AF-Artikel'!$A$3:$D$5437,3)),\"\",VLOOKUP($H375,'AF-Artikel'!$A$3:$D$5437,3))","v":11.94},0]
["",{"$f":"IF($A376=1,COUNTIF($A$166:$A375,1)+1,\"\")","v":""},"","0",0,null,"9pin-Sub-D-Buchse/Stiftleiste steckbar",5162,null,{"$f":"IF(ISNA(VLOOKUP($H376,'AF-Artikel'!$A$3:$D$5437,3)),\"\",VLOOKUP($H376,'AF-Artikel'!$A$3:$D$5437,3))","v":11.94},0]
["",{"$f":"IF($A377=1,COUNTIF($A$166:$A376,1)+1,\"\")","v":""},"","0",0,null,"9pin-Sub-D-Buchse auf 9pin-Sub-D-Kupplung 30cm",5163,null,{"$f":"IF(ISNA(VLOOKUP($H377,'AF-Artikel'!$A$3:$D$5437,3)),\"\",VLOOKUP($H377,'AF-Artikel'!$A$3:$D$5437,3))","v":30.89},0]
["",{"$f":"IF($A378=1,COUNTIF($A$166:$A377,1)+1,\"\")","v":""},"",null,0,null,"zusätzliche Kabellänge für obiges Kabel in m",5307,null,{"$f":"IF(ISNA(VLOOKUP($H378,'AF-Artikel'!$A$3:$D$5437,3)),\"\",VLOOKUP($H378,'AF-Artikel'!$A$3:$D$5437,3))","v":1.35},0]
["",{"$f":"IF($A379=1,COUNTIF($A$166:$A378,1)+1,\"\")","v":""},{"$f":"IF(AND($I379>0,$O379>0),$O379,\"\")","v":""},{"$f":"IF($I379>0,LEN($L379)*$A$25,\"0\")","v":"0"},0,null,"9pin-Sub-D-Buchse auf 9pin-Sub-D-Stecker 30cm",5164,null,{"$f":"IF(ISNA(VLOOKUP($H379,'AF-Artikel'!$A$3:$D$5437,3)),\"\",VLOOKUP($H379,'AF-Artikel'!$A$3:$D$5437,3))","v":30.89},0]
["",{"$f":"IF($A380=1,COUNTIF($A$166:$A379,1)+1,\"\")","v":""},"",null,0,null,"zusätzliche Kabellänge für obiges Kabel in m",5307,null,{"$f":"IF(ISNA(VLOOKUP($H380,'AF-Artikel'!$A$3:$D$5437,3)),\"\",VLOOKUP($H380,'AF-Artikel'!$A$3:$D$5437,3))","v":1.35},0]
["",{"$f":"IF($A381=1,COUNTIF($A$166:$A380,1)+1,\"\")","v":""},"",null,0]
["",{"$f":"IF($A382=1,COUNTIF($A$166:$A381,1)+1,\"\")","v":""},"",{"$f":"IF($I382>0,LEN($L382)*$A$25,\"0\")","v":"0"},0,null,"9pin-Sub-D-Stiftleiste Lötanschluss",5165,null,{"$f":"IF(ISNA(VLOOKUP($H382,'AF-Artikel'!$A$3:$D$5437,3)),\"\",VLOOKUP($H382,'AF-Artikel'!$A$3:$D$5437,3))","v":9.74},{"$f":"I382*J382","v":0}]
["",{"$f":"IF($A383=1,COUNTIF($A$166:$A382,1)+1,\"\")","v":""},"",{"$f":"IF($I383>0,LEN($L383)*$A$25,\"0\")","v":"0"},0,null,"9pin-Sub-D-Stiftleiste/Stiftleiste steckbar",5166,null,{"$f":"IF(ISNA(VLOOKUP($H383,'AF-Artikel'!$A$3:$D$5437,3)),\"\",VLOOKUP($H383,'AF-Artikel'!$A$3:$D$5437,3))","v":11.94},0]
["",{"$f":"IF($A384=1,COUNTIF($A$166:$A383,1)+1,\"\")","v":""},"",{"$f":"IF($I384>0,LEN($L384)*$A$25,\"0\")","v":"0"},0,null,"9pin-Sub-D-Stiftleiste/Buchse steckbar",5167,null,{"$f":"IF(ISNA(VLOOKUP($H384,'AF-Artikel'!$A$3:$D$5437,3)),\"\",VLOOKUP($H384,'AF-Artikel'!$A$3:$D$5437,3))","v":11.94},0]
["",{"$f":"IF($A385=1,COUNTIF($A$166:$A384,1)+1,\"\")","v":""},"",{"$f":"IF($I385>0,LEN($L385)*$A$25,\"0\")","v":"0"},0,null,"9pin-Sub-D-Stiftleiste auf 9pin-Sub-D-Kupplung 30cm",5168,null,{"$f":"IF(ISNA(VLOOKUP($H385,'AF-Artikel'!$A$3:$D$5437,3)),\"\",VLOOKUP($H385,'AF-Artikel'!$A$3:$D$5437,3))","v":30.89},0]
["",{"$f":"IF($A386=1,COUNTIF($A$166:$A385,1)+1,\"\")","v":""},"",null,0,null,"zusätzliche Kabellänge für obiges Kabel in m",5307,null,{"$f":"IF(ISNA(VLOOKUP($H386,'AF-Artikel'!$A$3:$D$5437,3)),\"\",VLOOKUP($H386,'AF-Artikel'!$A$3:$D$5437,3))","v":1.35},0]
["",{"$f":"IF($A387=1,COUNTIF($A$166:$A386,1)+1,\"\")","v":""},"",{"$f":"IF($I387>0,LEN($L387)*$A$25,\"0\")","v":"0"},0,null,"9pin-Sub-D-Stiftleiste auf 9pin-Sub-D-Stecker 30cm",5169,null,{"$f":"IF(ISNA(VLOOKUP($H387,'AF-Artikel'!$A$3:$D$5437,3)),\"\",VLOOKUP($H387,'AF-Artikel'!$A$3:$D$5437,3))","v":30.89},0]
["",{"$f":"IF($A388=1,COUNTIF($A$166:$A387,1)+1,\"\")","v":""},"",null,0,null,"zusätzliche Kabellänge für obiges Kabel in m",5307,null,{"$f":"IF(ISNA(VLOOKUP($H388,'AF-Artikel'!$A$3:$D$5437,3)),\"\",VLOOKUP($H388,'AF-Artikel'!$A$3:$D$5437,3))","v":1.35},0]
["",{"$f":"IF($A389=1,COUNTIF($A$166:$A388,1)+1,\"\")","v":""},"",null,0]
["",{"$f":"IF($A390=1,COUNTIF($A$166:$A389,1)+1,\"\")","v":""},"",{"$f":"IF($I390>0,LEN($L390)*$A$25,\"0\")","v":"0"},0,null,"3pin-XLR-Einbaubuchse Lötanschluss",5170,null,{"$f":"IF(ISNA(VLOOKUP($H390,'AF-Artikel'!$A$3:$D$5437,3)),\"\",VLOOKUP($H390,'AF-Artikel'!$A$3:$D$5437,3))","v":10.93},{"$f":"I390*J390","v":0}]
["",{"$f":"IF($A391=1,COUNTIF($A$166:$A390,1)+1,\"\")","v":""},"",{"$f":"IF($I391>0,LEN($L391)*$A$25,\"0\")","v":"0"},0,null,"3pin-XLR-Einbaubuchse auf 3pin-XLR-Kupplung 30cm",5171,null,{"$f":"IF(ISNA(VLOOKUP($H391,'AF-Artikel'!$A$3:$D$5437,3)),\"\",VLOOKUP($H391,'AF-Artikel'!$A$3:$D$5437,3))","v":27.31},{"$f":"I391*J391","v":0}]
["",{"$f":"IF($A392=1,COUNTIF($A$166:$A391,1)+1,\"\")","v":""},"",null,0,null,"zusätzliche Kabellänge für obiges Kabel in m",5308,null,{"$f":"IF(ISNA(VLOOKUP($H392,'AF-Artikel'!$A$3:$D$5437,3)),\"\",VLOOKUP($H392,'AF-Artikel'!$A$3:$D$5437,3))","v":1.25},{"$f":"I392*J392","v":0}]
["",{"$f":"IF($A393=1,COUNTIF($A$166:$A392,1)+1,\"\")","v":""},"",{"$f":"IF($I393>0,LEN($L393)*$A$25,\"0\")","v":"0"},0,null,"3pin-XLR-Einbaubuchse auf 3pin-XLR-Stecker 30cm",5172,null,{"$f":"IF(ISNA(VLOOKUP($H393,'AF-Artikel'!$A$3:$D$5437,3)),\"\",VLOOKUP($H393,'AF-Artikel'!$A$3:$D$5437,3))","v":26.41},{"$f":"I393*J393","v":0}]
["",{"$f":"IF($A394=1,COUNTIF($A$166:$A393,1)+1,\"\")","v":""},"",null,0,null,"zusätzliche Kabellänge für obiges Kabel in m",5308,null,{"$f":"IF(ISNA(VLOOKUP($H394,'AF-Artikel'!$A$3:$D$5437,3)),\"\",VLOOKUP($H394,'AF-Artikel'!$A$3:$D$5437,3))","v":1.25},{"$f":"I394*J394","v":0}]
["",{"$f":"IF($A395=1,COUNTIF($A$166:$A394,1)+1,\"\")","v":""},"",null,0]
["",{"$f":"IF($A396=1,COUNTIF($A$166:$A395,1)+1,\"\")","v":""},"",{"$f":"IF($I396>0,LEN($L396)*$A$25,\"0\")","v":"0"},0,null,"3pin-XLR-Einbaustecker Lötanschluss",5173,null,{"$f":"IF(ISNA(VLOOKUP($H396,'AF-Artikel'!$A$3:$D$5437,3)),\"\",VLOOKUP($H396,'AF-Artikel'!$A$3:$D$5437,3))","v":10.93},{"$f":"I396*J396","v":0}]
["",{"$f":"IF($A397=1,COUNTIF($A$166:$A396,1)+1,\"\")","v":""},"",{"$f":"IF($I397>0,LEN($L397)*$A$25,\"0\")","v":"0"},0,null,"3pin-XLR-Einbaustecker auf 3pin-XLR-Kupplung 30cm",5174,null,{"$f":"IF(ISNA(VLOOKUP($H397,'AF-Artikel'!$A$3:$D$5437,3)),\"\",VLOOKUP($H397,'AF-Artikel'!$A$3:$D$5437,3))","v":27.31},{"$f":"I397*J397","v":0}]
[{"$f":"IF(I398>0,1,\"\")","v":""},{"$f":"IF($A398=1,COUNTIF($A$166:$A397,1)+1,\"\")","v":""},"",null,0,null,"zusätzliche Kabellänge für obiges Kabel in m",5308,null,{"$f":"IF(ISNA(VLOOKUP($H398,'AF-Artikel'!$A$3:$D$5437,3)),\"\",VLOOKUP($H398,'AF-Artikel'!$A$3:$D$5437,3))","v":1.25},{"$f":"I398*J398","v":0}]
["",{"$f":"IF($A399=1,COUNTIF($A$166:$A398,1)+1,\"\")","v":""},"",{"$f":"IF($I399>0,LEN($L399)*$A$25,\"0\")","v":"0"},0,null,"3pin-XLR-Einbaustecker auf 3pin-XLR-Stecker 30cm",5175,null,{"$f":"IF(ISNA(VLOOKUP($H399,'AF-Artikel'!$A$3:$D$5437,3)),\"\",VLOOKUP($H399,'AF-Artikel'!$A$3:$D$5437,3))","v":26.41},{"$f":"I399*J399","v":0}]
["",{"$f":"IF($A400=1,COUNTIF($A$166:$A399,1)+1,\"\")","v":""},"",null,0,null,"zusätzliche Kabellänge für obiges Kabel in m",5308,null,{"$f":"IF(ISNA(VLOOKUP($H400,'AF-Artikel'!$A$3:$D$5437,3)),\"\",VLOOKUP($H400,'AF-Artikel'!$A$3:$D$5437,3))","v":1.25},{"$f":"I400*J400","v":0}]
["",{"$f":"IF($A401=1,COUNTIF($A$166:$A400,1)+1,\"\")","v":""},"",null,0]
["",{"$f":"IF($A402=1,COUNTIF($A$166:$A401,1)+1,\"\")","v":""},"",{"$f":"IF($I402>0,LEN($L402)*$A$25,\"0\")","v":"0"},0,null,"4pin-XLR-Einbaubuchse Lötanschluss",5192,null,{"$f":"IF(ISNA(VLOOKUP($H402,'AF-Artikel'!$A$3:$D$5437,3)),\"\",VLOOKUP($H402,'AF-Artikel'!$A$3:$D$5437,3))","v":13.44},{"$f":"I402*J402","v":0}]
["",{"$f":"IF($A403=1,COUNTIF($A$166:$A402,1)+1,\"\")","v":""},"",{"$f":"IF($I403>0,LEN($L403)*$A$25,\"0\")","v":"0"},0,null,"4pin-XLR-Einbaubuchse auf 4-fach Lüsterklemme 30cm",5193,null,27.06,{"$f":"I403*J403","v":0}]
["",{"$f":"IF($A404=1,COUNTIF($A$166:$A403,1)+1,\"\")","v":""},"",{"$f":"IF($I404>0,LEN($L404)*$A$25,\"0\")","v":"0"},0,null,"4pin-XLR-Einbaubuchse auf 4pin-XLR-Stecker 30cm",5194,null,{"$f":"IF(ISNA(VLOOKUP($H404,'AF-Artikel'!$A$3:$D$5437,3)),\"\",VLOOKUP($H404,'AF-Artikel'!$A$3:$D$5437,3))","v":38.33},{"$f":"I404*J404","v":0}]
["",{"$f":"IF($A405=1,COUNTIF($A$166:$A404,1)+1,\"\")","v":""},"",null,0,null,"zusätzliche Kabellänge für obiges Kabel in m",5315,null,{"$f":"IF(ISNA(VLOOKUP($H405,'AF-Artikel'!$A$3:$D$5437,3)),\"\",VLOOKUP($H405,'AF-Artikel'!$A$3:$D$5437,3))","v":1.1499999999999999},{"$f":"I405*J405","v":0}]
["",{"$f":"IF($A406=1,COUNTIF($A$166:$A405,1)+1,\"\")","v":""},"",null,0,null,null,null,null,{"$f":"IF(ISNA(VLOOKUP($H406,'AF-Artikel'!$A$3:$D$5437,3)),\"\",VLOOKUP($H406,'AF-Artikel'!$A$3:$D$5437,3))","v":""}]
[{"$f":"IF(I407>0,1,\"\")","v":""},{"$f":"IF($A407=1,COUNTIF($A$166:$A406,1)+1,\"\")","v":""},"",null,0]
["",{"$f":"IF($A408=1,COUNTIF($A$166:$A407,1)+1,\"\")","v":""},"",{"$f":"IF($I408>0,LEN($L408)*$A$25,\"0\")","v":"0"},0,null,"5pin-XLR-Einbaubuchse Lötanschluss",5206,null,{"$f":"IF(ISNA(VLOOKUP($H408,'AF-Artikel'!$A$3:$D$5437,3)),\"\",VLOOKUP($H408,'AF-Artikel'!$A$3:$D$5437,3))","v":20.149999999999999},{"$f":"I408*J408","v":0}]
["",{"$f":"IF($A409=1,COUNTIF($A$166:$A408,1)+1,\"\")","v":""},"",{"$f":"IF($I409>0,LEN($L409)*$A$25,\"0\")","v":"0"},0,null,"5pin-XLR-Einbaubuchse auf 5-fach Lüsterklemme 30cm",5257,null,34.39,{"$f":"I409*J409","v":0}]
["",{"$f":"IF($A410=1,COUNTIF($A$166:$A409,1)+1,\"\")","v":""},"",{"$f":"IF($I410>0,LEN($L410)*$A$25,\"0\")","v":"0"},0,null,"zusätzliche Kabellänge für obiges Kabel in m",null,null,"Einzelpreis?",{"$f":"IF(J410=\"Einzelpreis?\",\"\",I410*J410)","v":""}]
["",{"$f":"IF($A411=1,COUNTIF($A$166:$A410,1)+1,\"\")","v":""},"",null,0]
["",{"$f":"IF($A412=1,COUNTIF($A$166:$A411,1)+1,\"\")","v":""},"",null,0,null,null,null,null,{"$f":"IF(ISNA(VLOOKUP($H412,'AF-Artikel'!$A$3:$D$5437,3)),\"\",VLOOKUP($H412,'AF-Artikel'!$A$3:$D$5437,3))","v":""}]
[{"$f":"IF(I413>0,1,\"\")","v":""},{"$f":"IF($A413=1,COUNTIF($A$166:$A412,1)+1,\"\")","v":""},"",null,0]
["",{"$f":"IF($A414=1,COUNTIF($A$166:$A413,1)+1,\"\")","v":""},"",{"$f":"IF($I414>0,LEN($L414)*$A$25,\"0\")","v":"0"},0,null,"6pin-XLR-Einbaubuchse Lötanschluss",5218,null,{"$f":"IF(ISNA(VLOOKUP($H414,'AF-Artikel'!$A$3:$D$5437,3)),\"\",VLOOKUP($H414,'AF-Artikel'!$A$3:$D$5437,3))","v":25.96},{"$f":"I414*J414","v":0}]
["",{"$f":"IF($A415=1,COUNTIF($A$166:$A414,1)+1,\"\")","v":""},"",{"$f":"IF($I415>0,LEN($L415)*$A$25,\"0\")","v":"0"},0,null,"6pin-XLR-Einbaubuchse auf 6-fach Lüsterklemme 30cm",5258,null,44.17,{"$f":"I415*J415","v":0}]
["",{"$f":"IF($A416=1,COUNTIF($A$166:$A415,1)+1,\"\")","v":""},"",{"$f":"IF($I416>0,LEN($L416)*$A$25,\"0\")","v":"0"},0,null,"zusätzliche Kabellänge für obiges Kabel in m",null,null,"Einzelpreis?",{"$f":"IF(J416=\"Einzelpreis?\",\"\",I416*J416)","v":""}]
["",{"$f":"IF($A417=1,COUNTIF($A$166:$A416,1)+1,\"\")","v":""},"",null,0]
["",{"$f":"IF($A418=1,COUNTIF($A$166:$A417,1)+1,\"\")","v":""},"",null,0]
[{"$f":"IF(I419>0,1,\"\")","v":""},{"$f":"IF($A419=1,COUNTIF($A$166:$A418,1)+1,\"\")","v":""},"",null,0]
["",{"$f":"IF($A420=1,COUNTIF($A$166:$A419,1)+1,\"\")","v":""},"",{"$f":"IF($I420>0,LEN($L420)*$A$25,\"0\")","v":"0"},0,null,"7pin-XLR-Einbaubuchse Lötanschluss",5259,null,{"$f":"IF(ISNA(VLOOKUP($H420,'AF-Artikel'!$A$3:$D$5437,3)),\"\",VLOOKUP($H420,'AF-Artikel'!$A$3:$D$5437,3))","v":31.76},{"$f":"I420*J420","v":0}]
["",{"$f":"IF($A421=1,COUNTIF($A$166:$A420,1)+1,\"\")","v":""},"",{"$f":"IF($I421>0,LEN($L421)*$A$25,\"0\")","v":"0"},0,null,"7pin-XLR-Einbaubuchse auf 7-fach Lüsterklemme 30cm",5260,null,51.44,{"$f":"I421*J421","v":0}]
["",{"$f":"IF($A422=1,COUNTIF($A$166:$A421,1)+1,\"\")","v":""},"",{"$f":"IF($I422>0,LEN($L422)*$A$25,\"0\")","v":"0"},0,null,"zusätzliche Kabellänge für obiges Kabel in m",null,null,"Einzelpreis?",{"$f":"IF(J422=\"Einzelpreis?\",\"\",I422*J422)","v":""}]
["",{"$f":"IF($A423=1,COUNTIF($A$166:$A422,1)+1,\"\")","v":""},"",null,{"$f":"IF($A$25=0,$I423,IF(OR($A423=\"\",$A$25>0),$I423,SUM($I423*VLOOKUP($A$1,$A$28:$I$165,9))))","v":0}]
["",{"$f":"IF($A424=1,COUNTIF($A$166:$A423,1)+1,\"\")","v":""},"",null,0]
["",{"$f":"IF($A425=1,COUNTIF($A$166:$A424,1)+1,\"\")","v":""},"",null,0]
["",{"$f":"IF($A426=1,COUNTIF($A$166:$A425,1)+1,\"\")","v":""},"",{"$f":"IF($I426>0,LEN($L426)*$A$25,\"0\")","v":"0"},0,null,"4pol-Speakon-Buchse (auch für 2pol passend) Lötanschluss",5176,null,{"$f":"IF(ISNA(VLOOKUP($H426,'AF-Artikel'!$A$3:$D$5437,3)),\"\",VLOOKUP($H426,'AF-Artikel'!$A$3:$D$5437,3))","v":10.68},{"$f":"I426*J426","v":0}]
["",{"$f":"IF($A427=1,COUNTIF($A$166:$A426,1)+1,\"\")","v":""},"",{"$f":"IF($I427>0,LEN($L427)*$A$25,\"0\")","v":"0"},0,null,"4pol-Speakon-Buchse auf 4-fach Lüsterklemme 30cm (4x2,5mm²)",5177,null,{"$f":"IF(ISNA(VLOOKUP($H427,'AF-Artikel'!$A$3:$D$5437,3)),\"\",VLOOKUP($H427,'AF-Artikel'!$A$3:$D$5437,3))","v":20.78},{"$f":"I427*J427","v":0}]
["",{"$f":"IF($A428=1,COUNTIF($A$166:$A427,1)+1,\"\")","v":""},"",null,0,null,"zusätzliche Kabellänge für obiges Kabel in m",5309,null,{"$f":"IF(ISNA(VLOOKUP($H428,'AF-Artikel'!$A$3:$D$5437,3)),\"\",VLOOKUP($H428,'AF-Artikel'!$A$3:$D$5437,3))","v":5.78},{"$f":"I428*J428","v":0}]
["",{"$f":"IF($A429=1,COUNTIF($A$166:$A428,1)+1,\"\")","v":""},"",null,0,null,null,null,null,{"$f":"IF(ISNA(VLOOKUP($H429,'AF-Artikel'!$A$3:$D$5437,3)),\"\",VLOOKUP($H429,'AF-Artikel'!$A$3:$D$5437,3))","v":""}]
["",{"$f":"IF($A430=1,COUNTIF($A$166:$A429,1)+1,\"\")","v":""},"",null,0,null,null,null,null,{"$f":"IF(ISNA(VLOOKUP($H430,'AF-Artikel'!$A$3:$D$5437,3)),\"\",VLOOKUP($H430,'AF-Artikel'!$A$3:$D$5437,3))","v":""}]
["",{"$f":"IF($A431=1,COUNTIF($A$166:$A430,1)+1,\"\")","v":""},"",null,0]
["",{"$f":"IF($A432=1,COUNTIF($A$166:$A431,1)+1,\"\")","v":""},"",{"$f":"IF($I432>0,LEN($L432)*$A$25,\"0\")","v":"0"},0,null,"PowerCon-Buchse, grau, Netzspannungsweitergabe, Lötanschluss",5200,null,{"$f":"IF(ISNA(VLOOKUP($H432,'AF-Artikel'!$A$3:$D$5437,3)),\"\",VLOOKUP($H432,'AF-Artikel'!$A$3:$D$5437,3))","v":10.93},{"$f":"I432*J432","v":0}]
["",{"$f":"IF($A433=1,COUNTIF($A$166:$A432,1)+1,\"\")","v":""},"",null,0,null,null,null,null,{"$f":"IF(ISNA(VLOOKUP($H433,'AF-Artikel'!$A$3:$D$5437,3)),\"\",VLOOKUP($H433,'AF-Artikel'!$A$3:$D$5437,3))","v":""}]
["",{"$f":"IF($A434=1,COUNTIF($A$166:$A433,1)+1,\"\")","v":""},"",null,0,null,null,null,null,{"$f":"IF(ISNA(VLOOKUP($H434,'AF-Artikel'!$A$3:$D$5437,3)),\"\",VLOOKUP($H434,'AF-Artikel'!$A$3:$D$5437,3))","v":""}]
["",{"$f":"IF($A435=1,COUNTIF($A$166:$A434,1)+1,\"\")","v":""},"",null,0,null,null,null,null,{"$f":"IF(ISNA(VLOOKUP($H435,'AF-Artikel'!$A$3:$D$5437,3)),\"\",VLOOKUP($H435,'AF-Artikel'!$A$3:$D$5437,3))","v":""}]
["",{"$f":"IF($A436=1,COUNTIF($A$166:$A435,1)+1,\"\")","v":""},"",null,0,null,null,null,null,{"$f":"IF(ISNA(VLOOKUP($H436,'AF-Artikel'!$A$3:$D$5437,3)),\"\",VLOOKUP($H436,'AF-Artikel'!$A$3:$D$5437,3))","v":""}]
["",{"$f":"IF($A437=1,COUNTIF($A$166:$A436,1)+1,\"\")","v":""},"",null,0]
["",{"$f":"IF($A438=1,COUNTIF($A$166:$A437,1)+1,\"\")","v":""},"",{"$f":"IF($I438>0,LEN($L438)*$A$25,\"0\")","v":"0"},0,null,"PowerCon-Buchse, blau, Netzspannungseingang,Lötanschluss",5199,null,{"$f":"IF(ISNA(VLOOKUP($H438,'AF-Artikel'!$A$3:$D$5437,3)),\"\",VLOOKUP($H438,'AF-Artikel'!$A$3:$D$5437,3))","v":10.93},{"$f":"I438*J438","v":0}]
["",{"$f":"IF($A439=1,COUNTIF($A$166:$A438,1)+1,\"\")","v":""},"",null,0,null,null,null,null,{"$f":"IF(ISNA(VLOOKUP($H439,'AF-Artikel'!$A$3:$D$5437,3)),\"\",VLOOKUP($H439,'AF-Artikel'!$A$3:$D$5437,3))","v":""}]
["",{"$f":"IF($A440=1,COUNTIF($A$166:$A439,1)+1,\"\")","v":""},"",null,0,null,null,null,null,{"$f":"IF(ISNA(VLOOKUP($H440,'AF-Artikel'!$A$3:$D$5437,3)),\"\",VLOOKUP($H440,'AF-Artikel'!$A$3:$D$5437,3))","v":""}]
["",{"$f":"IF($A441=1,COUNTIF($A$166:$A440,1)+1,\"\")","v":""},"",null,0,null,null,null,null,{"$f":"IF(ISNA(VLOOKUP($H441,'AF-Artikel'!$A$3:$D$5437,3)),\"\",VLOOKUP($H441,'AF-Artikel'!$A$3:$D$5437,3))","v":""}]
["",{"$f":"IF($A442=1,COUNTIF($A$166:$A441,1)+1,\"\")","v":""},"",null,0,null,null,null,null,{"$f":"IF(ISNA(VLOOKUP($H442,'AF-Artikel'!$A$3:$D$5437,3)),\"\",VLOOKUP($H442,'AF-Artikel'!$A$3:$D$5437,3))","v":""}]
["",{"$f":"IF($A443=1,COUNTIF($A$166:$A442,1)+1,\"\")","v":""},"",null,0]
["",{"$f":"IF($A444=1,COUNTIF($A$166:$A443,1)+1,\"\")","v":""},"",{"$f":"IF($I444>0,LEN($L444)*$A$25,\"0\")","v":"0"},0,null,"USB-Buchse Neutrik steckbar (vorne USB- A und hinten B oder umgekehrt)",5191,null,{"$f":"IF(ISNA(VLOOKUP($H444,'AF-Artikel'!$A$3:$D$5437,3)),\"\",VLOOKUP($H444,'AF-Artikel'!$A$3:$D$5437,3))","v":16.82},{"$f":"I444*J444","v":0}]
["",{"$f":"IF($A445=1,COUNTIF($A$166:$A444,1)+1,\"\")","v":""},"",null,0,null,null,null,null,{"$f":"IF(ISNA(VLOOKUP($H445,'AF-Artikel'!$A$3:$D$5437,3)),\"\",VLOOKUP($H445,'AF-Artikel'!$A$3:$D$5437,3))","v":""}]
["",{"$f":"IF($A446=1,COUNTIF($A$166:$A445,1)+1,\"\")","v":""},"",null,0,null,null,null,null,{"$f":"IF(ISNA(VLOOKUP($H446,'AF-Artikel'!$A$3:$D$5437,3)),\"\",VLOOKUP($H446,'AF-Artikel'!$A$3:$D$5437,3))","v":""}]
["",{"$f":"IF($A447=1,COUNTIF($A$166:$A446,1)+1,\"\")","v":""},"",null,0,null,null,null,null,{"$f":"IF(ISNA(VLOOKUP($H447,'AF-Artikel'!$A$3:$D$5437,3)),\"\",VLOOKUP($H447,'AF-Artikel'!$A$3:$D$5437,3))","v":""}]
["",{"$f":"IF($A448=1,COUNTIF($A$166:$A447,1)+1,\"\")","v":""},"",null,0,null,null,null,null,{"$f":"IF(ISNA(VLOOKUP($H448,'AF-Artikel'!$A$3:$D$5437,3)),\"\",VLOOKUP($H448,'AF-Artikel'!$A$3:$D$5437,3))","v":""}]
["",{"$f":"IF($A449=1,COUNTIF($A$166:$A448,1)+1,\"\")","v":""},"",null,0]
["",{"$f":"IF($A450=1,COUNTIF($A$166:$A449,1)+1,\"\")","v":""},"",{"$f":"IF($I450>0,LEN($L450)*$A$25,\"0\")","v":"0"},0,null,"EtherCon D-Serie Neutrik,  Schneid-Klemm-Anschluss",5234,null,{"$f":"IF(ISNA(VLOOKUP($H450,'AF-Artikel'!$A$3:$D$5437,3)),\"\",VLOOKUP($H450,'AF-Artikel'!$A$3:$D$5437,3))","v":28.17},{"$f":"I450*J450","v":0}]
["",{"$f":"IF($A451=1,COUNTIF($A$166:$A450,1)+1,\"\")","v":""},"",{"$f":"IF($I451>0,LEN($L451)*$A$25,\"0\")","v":"0"},0,null,"AF RJ45-EtherCon Neutrik, 30cm Kabel auf RJ45-St.",5283,null,{"$f":"IF(ISNA(VLOOKUP($H451,'AF-Artikel'!$A$3:$D$5437,3)),\"\",VLOOKUP($H451,'AF-Artikel'!$A$3:$D$5437,3))","v":40.17},{"$f":"I451*J451","v":0}]
[{"$f":"IF(I452>0,1,\"\")","v":""},{"$f":"IF($A452=1,COUNTIF($A$166:$A451,1)+1,\"\")","v":""},"",null,0,null,"zusätzliche Kabellänge für obiges Kabel in m",5310,null,{"$f":"IF(ISNA(VLOOKUP($H452,'AF-Artikel'!$A$3:$D$5437,3)),\"\",VLOOKUP($H452,'AF-Artikel'!$A$3:$D$5437,3))","v":1.99},{"$f":"I452*J452","v":0}]
[{"$f":"IF(I453>0,1,\"\")","v":""},{"$f":"IF($A453=1,COUNTIF($A$166:$A452,1)+1,\"\")","v":""},"",{"$f":"IF($I453>0,LEN($L453)*$A$25,\"0\")","v":"0"},0,null,"AF RJ45-EtherCon Neutrik, 30cm Kabel auf RJ45-Ku.",5284,null,{"$f":"IF(ISNA(VLOOKUP($H453,'AF-Artikel'!$A$3:$D$5437,3)),\"\",VLOOKUP($H453,'AF-Artikel'!$A$3:$D$5437,3))","v":40.17},{"$f":"I453*J453","v":0}]
["",{"$f":"IF($A454=1,COUNTIF($A$166:$A453,1)+1,\"\")","v":""},"",null,0,null,"zusätzliche Kabellänge für obiges Kabel in m",5310,null,{"$f":"IF(ISNA(VLOOKUP($H454,'AF-Artikel'!$A$3:$D$5437,3)),\"\",VLOOKUP($H454,'AF-Artikel'!$A$3:$D$5437,3))","v":1.99},{"$f":"I454*J454","v":0}]
["",{"$f":"IF($A455=1,COUNTIF($A$166:$A454,1)+1,\"\")","v":""},"",null,0,null,null,null,null,{"$f":"IF(ISNA(VLOOKUP($H455,'AF-Artikel'!$A$3:$D$5437,3)),\"\",VLOOKUP($H455,'AF-Artikel'!$A$3:$D$5437,3))","v":""}]
["",{"$f":"IF($A456=1,COUNTIF($A$166:$A455,1)+1,\"\")","v":""},"",null,0,null,null,null,null,{"$f":"IF(ISNA(VLOOKUP($H456,'AF-Artikel'!$A$3:$D$5437,3)),\"\",VLOOKUP($H456,'AF-Artikel'!$A$3:$D$5437,3))","v":""}]
["",{"$f":"IF($A457=1,COUNTIF($A$166:$A456,1)+1,\"\")","v":""},"",null,0,null,null,null,null,{"$f":"IF(ISNA(VLOOKUP($H457,'AF-Artikel'!$A$3:$D$5437,3)),\"\",VLOOKUP($H457,'AF-Artikel'!$A$3:$D$5437,3))","v":""}]
["",{"$f":"IF($A458=1,COUNTIF($A$166:$A457,1)+1,\"\")","v":""},"",null,0]
["",{"$f":"IF($A459=1,COUNTIF($A$166:$A458,1)+1,\"\")","v":""},"",{"$f":"IF($I459>0,LEN($L459)*$A$25,\"0\")","v":"0"},0,null,"Blindabdeckung XLR-D-Bohrung",5256,null,{"$f":"IF(ISNA(VLOOKUP($H459,'AF-Artikel'!$A$3:$D$5437,3)),\"\",VLOOKUP($H459,'AF-Artikel'!$A$3:$D$5437,3))","v":7.17},{"$f":"I459*J459","v":0}]
["",{"$f":"IF($A460=1,COUNTIF($A$166:$A459,1)+1,\"\")","v":""},"",null,0,null,null,null,null,{"$f":"IF(ISNA(VLOOKUP($H460,'AF-Artikel'!$A$3:$D$5437,3)),\"\",VLOOKUP($H460,'AF-Artikel'!$A$3:$D$5437,3))","v":""}]
["",{"$f":"IF($A461=1,COUNTIF($A$166:$A460,1)+1,\"\")","v":""},"",null,0,null,null,null,null,{"$f":"IF(ISNA(VLOOKUP($H461,'AF-Artikel'!$A$3:$D$5437,3)),\"\",VLOOKUP($H461,'AF-Artikel'!$A$3:$D$5437,3))","v":""}]
["",{"$f":"IF($A462=1,COUNTIF($A$166:$A461,1)+1,\"\")","v":""},"",null,0,null,null,null,null,{"$f":"IF(ISNA(VLOOKUP($H462,'AF-Artikel'!$A$3:$D$5437,3)),\"\",VLOOKUP($H462,'AF-Artikel'!$A$3:$D$5437,3))","v":""}]
["",{"$f":"IF($A463=1,COUNTIF($A$166:$A462,1)+1,\"\")","v":""},"",null,0,null,null,null,null,{"$f":"IF(ISNA(VLOOKUP($H463,'AF-Artikel'!$A$3:$D$5437,3)),\"\",VLOOKUP($H463,'AF-Artikel'!$A$3:$D$5437,3))","v":""}]
["",{"$f":"IF($A464=1,COUNTIF($A$166:$A463,1)+1,\"\")","v":""},{"$f":"IF(AND($I464>0,$O464>0),$O464,\"\")","v":""},null,0]
["",{"$f":"IF($A465=1,COUNTIF($A$166:$A464,1)+1,\"\")","v":""},"",{"$f":"IF($I465>0,LEN($L465)*$A$25,\"0\")","v":"0"},0,"USB 2.0","USB-A-Buchse Lötanschluss ) USB-2.0",5208,null,{"$f":"IF(ISNA(VLOOKUP($H465,'AF-Artikel'!$A$3:$D$5437,3)),\"\",VLOOKUP($H465,'AF-Artikel'!$A$3:$D$5437,3))","v":16.02},{"$f":"I465*J465","v":0}]
["",{"$f":"IF($A466=1,COUNTIF($A$166:$A465,1)+1,\"\")","v":""},"","0",0,null,"USB-A-Buchse rückseitig steckbar (USB-A-Buchse) USB-2.0",5209,null,{"$f":"IF(ISNA(VLOOKUP($H466,'AF-Artikel'!$A$3:$D$5437,3)),\"\",VLOOKUP($H466,'AF-Artikel'!$A$3:$D$5437,3))","v":22.41},0]
["",{"$f":"IF($A467=1,COUNTIF($A$166:$A466,1)+1,\"\")","v":""},"","0",0,null,"USB-A-Buchse rückseitig steckbar (USB-B-Buchse) USB-2.0",5235,null,{"$f":"IF(ISNA(VLOOKUP($H467,'AF-Artikel'!$A$3:$D$5437,3)),\"\",VLOOKUP($H467,'AF-Artikel'!$A$3:$D$5437,3))","v":22.41},0]
["",{"$f":"IF($A468=1,COUNTIF($A$166:$A467,1)+1,\"\")","v":""},"","0",0,null,"USB-A-Buchse auf USB-A-Stecker 30cm  USB-2.0",5210,null,{"$f":"IF(ISNA(VLOOKUP($H468,'AF-Artikel'!$A$3:$D$5437,3)),\"\",VLOOKUP($H468,'AF-Artikel'!$A$3:$D$5437,3))","v":25.34},0]
["",{"$f":"IF($A469=1,COUNTIF($A$166:$A468,1)+1,\"\")","v":""},"","0",0,null,"zusätzliche Kabellänge für obiges Kabel in m  USB-2.0",5312,null,{"$f":"IF(ISNA(VLOOKUP($H469,'AF-Artikel'!$A$3:$D$5437,3)),\"\",VLOOKUP($H469,'AF-Artikel'!$A$3:$D$5437,3))","v":1.78},0]
["",{"$f":"IF($A470=1,COUNTIF($A$166:$A469,1)+1,\"\")","v":""},"","0",0,null,"USB-A-Buchse auf USB-A-Kupplung 30cm  USB-2.0",5236,null,{"$f":"IF(ISNA(VLOOKUP($H470,'AF-Artikel'!$A$3:$D$5437,3)),\"\",VLOOKUP($H470,'AF-Artikel'!$A$3:$D$5437,3))","v":25.34},0]
["",{"$f":"IF($A471=1,COUNTIF($A$166:$A470,1)+1,\"\")","v":""},"","0",0,null,"zusätzliche Kabellänge für obiges Kabel in m  USB-2.0",5312,null,{"$f":"IF(ISNA(VLOOKUP($H471,'AF-Artikel'!$A$3:$D$5437,3)),\"\",VLOOKUP($H471,'AF-Artikel'!$A$3:$D$5437,3))","v":1.78},0]
["",{"$f":"IF($A472=1,COUNTIF($A$166:$A471,1)+1,\"\")","v":""},"","0",0,null,"USB-A-Buchse auf USB-B-Stecker 30cm  USB-2.0",5211,null,{"$f":"IF(ISNA(VLOOKUP($H472,'AF-Artikel'!$A$3:$D$5437,3)),\"\",VLOOKUP($H472,'AF-Artikel'!$A$3:$D$5437,3))","v":25.34},0]
["",{"$f":"IF($A473=1,COUNTIF($A$166:$A472,1)+1,\"\")","v":""},"","0",0,null,"zusätzliche Kabellänge für obiges Kabel in m  USB-2.0",5312,null,{"$f":"IF(ISNA(VLOOKUP($H473,'AF-Artikel'!$A$3:$D$5437,3)),\"\",VLOOKUP($H473,'AF-Artikel'!$A$3:$D$5437,3))","v":1.78},0]
[{"$f":"IF(I474>0,1,\"\")","v":""},{"$f":"IF($A474=1,COUNTIF($A$166:$A473,1)+1,\"\")","v":""},"",null,0]
["",{"$f":"IF($A475=1,COUNTIF($A$166:$A474,1)+1,\"\")","v":""},"",{"$f":"IF($I475>0,LEN($L475)*$A$25,\"0\")","v":"0"},0,"USB 3.0","USB-A-Buchse rückseitig steckbar (USB-A-Buchse) USB-3.0",5267,null,{"$f":"IF(ISNA(VLOOKUP($H475,'AF-Artikel'!$A$3:$D$5437,3)),\"\",VLOOKUP($H475,'AF-Artikel'!$A$3:$D$5437,3))","v":32.61},{"$f":"I475*J475","v":0}]
["",{"$f":"IF($A476=1,COUNTIF($A$166:$A475,1)+1,\"\")","v":""},"",null,0,null,null,null,null,{"$f":"IF(ISNA(VLOOKUP($H476,'AF-Artikel'!$A$3:$D$5437,3)),\"\",VLOOKUP($H476,'AF-Artikel'!$A$3:$D$5437,3))","v":""}]
["",{"$f":"IF($A477=1,COUNTIF($A$166:$A476,1)+1,\"\")","v":""},"",null,0,null,null,null,null,{"$f":"IF(ISNA(VLOOKUP($H477,'AF-Artikel'!$A$3:$D$5437,3)),\"\",VLOOKUP($H477,'AF-Artikel'!$A$3:$D$5437,3))","v":""}]
["",{"$f":"IF($A478=1,COUNTIF($A$166:$A477,1)+1,\"\")","v":""},"",null,0,null,null,null,null,{"$f":"IF(ISNA(VLOOKUP($H478,'AF-Artikel'!$A$3:$D$5437,3)),\"\",VLOOKUP($H478,'AF-Artikel'!$A$3:$D$5437,3))","v":""}]
["",{"$f":"IF($A479=1,COUNTIF($A$166:$A478,1)+1,\"\")","v":""},"",null,0,null,null,null,null,{"$f":"IF(ISNA(VLOOKUP($H479,'AF-Artikel'!$A$3:$D$5437,3)),\"\",VLOOKUP($H479,'AF-Artikel'!$A$3:$D$5437,3))","v":""}]
["",{"$f":"IF($A480=1,COUNTIF($A$166:$A479,1)+1,\"\")","v":""},"",null,0,null,null,null,null,{"$f":"IF(ISNA(VLOOKUP($H480,'AF-Artikel'!$A$3:$D$5437,3)),\"\",VLOOKUP($H480,'AF-Artikel'!$A$3:$D$5437,3))","v":""}]
["",{"$f":"IF($A481=1,COUNTIF($A$166:$A480,1)+1,\"\")","v":""},"",null,0,null,null,null,null,{"$f":"IF(ISNA(VLOOKUP($H481,'AF-Artikel'!$A$3:$D$5437,3)),\"\",VLOOKUP($H481,'AF-Artikel'!$A$3:$D$5437,3))","v":""}]
["",{"$f":"IF($A482=1,COUNTIF($A$166:$A481,1)+1,\"\")","v":""},"",null,0,null,null,null,null,{"$f":"IF(ISNA(VLOOKUP($H482,'AF-Artikel'!$A$3:$D$5437,3)),\"\",VLOOKUP($H482,'AF-Artikel'!$A$3:$D$5437,3))","v":""}]
["",{"$f":"IF($A483=1,COUNTIF($A$166:$A482,1)+1,\"\")","v":""},"",null,0,null,null,null,null,{"$f":"IF(ISNA(VLOOKUP($H483,'AF-Artikel'!$A$3:$D$5437,3)),\"\",VLOOKUP($H483,'AF-Artikel'!$A$3:$D$5437,3))","v":""}]
[{"$f":"IF(I484>0,1,\"\")","v":""},{"$f":"IF($A484=1,COUNTIF($A$166:$A483,1)+1,\"\")","v":""},"",null,0]
["",{"$f":"IF($A485=1,COUNTIF($A$166:$A484,1)+1,\"\")","v":""},"",{"$f":"IF($I485>0,LEN($L485)*$A$25,\"0\")","v":"0"},0,"USB Ladeteil","USB-A-Buchse Ladeteil 230V  5V/1A auf Aderendhülsen 30cm",5281,null,{"$f":"IF(ISNA(VLOOKUP($H485,'AF-Artikel'!$A$3:$D$5437,3)),\"\",VLOOKUP($H485,'AF-Artikel'!$A$3:$D$5437,3))","v":97.8},{"$f":"I485*J485","v":0}]
["",{"$f":"IF($A486=1,COUNTIF($A$166:$A485,1)+1,\"\")","v":""},"",null,0,null,null,null,null,{"$f":"IF(ISNA(VLOOKUP($H486,'AF-Artikel'!$A$3:$D$5437,3)),\"\",VLOOKUP($H486,'AF-Artikel'!$A$3:$D$5437,3))","v":""}]
["",{"$f":"IF($A487=1,COUNTIF($A$166:$A486,1)+1,\"\")","v":""},"",null,{"$f":"IF($A$25=0,$I487,IF(OR($A487=\"\",$A$25>0),$I487,SUM($I487*VLOOKUP($A$1,$A$28:$I$165,9))))","v":0},null,null,null,null,{"$f":"IF(ISNA(VLOOKUP($H487,'AF-Artikel'!$A$3:$D$5437,3)),\"\",VLOOKUP($H487,'AF-Artikel'!$A$3:$D$5437,3))","v":""}]
["",{"$f":"IF($A488=1,COUNTIF($A$166:$A487,1)+1,\"\")","v":""},"",null,0,null,null,null,null,{"$f":"IF(ISNA(VLOOKUP($H488,'AF-Artikel'!$A$3:$D$5437,3)),\"\",VLOOKUP($H488,'AF-Artikel'!$A$3:$D$5437,3))","v":""}]
["",{"$f":"IF($A489=1,COUNTIF($A$166:$A488,1)+1,\"\")","v":""},"",null,0,null,null,null,null,{"$f":"IF(ISNA(VLOOKUP($H489,'AF-Artikel'!$A$3:$D$5437,3)),\"\",VLOOKUP($H489,'AF-Artikel'!$A$3:$D$5437,3))","v":""}]
["",{"$f":"IF($A490=1,COUNTIF($A$166:$A489,1)+1,\"\")","v":""},"",null,0,null,null,null,null,{"$f":"IF(ISNA(VLOOKUP($H490,'AF-Artikel'!$A$3:$D$5437,3)),\"\",VLOOKUP($H490,'AF-Artikel'!$A$3:$D$5437,3))","v":""}]
["",{"$f":"IF($A491=1,COUNTIF($A$166:$A490,1)+1,\"\")","v":""},"",null,0,null,null,null,null,{"$f":"IF(ISNA(VLOOKUP($H491,'AF-Artikel'!$A$3:$D$5437,3)),\"\",VLOOKUP($H491,'AF-Artikel'!$A$3:$D$5437,3))","v":""}]
["",{"$f":"IF($A492=1,COUNTIF($A$166:$A491,1)+1,\"\")","v":""},"",null,0,null,null,null,null,{"$f":"IF(ISNA(VLOOKUP($H492,'AF-Artikel'!$A$3:$D$5437,3)),\"\",VLOOKUP($H492,'AF-Artikel'!$A$3:$D$5437,3))","v":""}]
["",{"$f":"IF($A493=1,COUNTIF($A$166:$A492,1)+1,\"\")","v":""},"",null,0,null,null,null,null,{"$f":"IF(ISNA(VLOOKUP($H493,'AF-Artikel'!$A$3:$D$5437,3)),\"\",VLOOKUP($H493,'AF-Artikel'!$A$3:$D$5437,3))","v":""}]
["",{"$f":"IF($A494=1,COUNTIF($A$166:$A483,1)+1,\"\")","v":""},"",null,0]
["",{"$f":"IF($A495=1,COUNTIF($A$166:$A494,1)+1,\"\")","v":""},"",{"$f":"IF($I495>0,LEN($L495)*$A$25,\"0\")","v":"0"},0,null,"USB-B-Buchse Lötanschluss USB-2.0",5212,null,{"$f":"IF(ISNA(VLOOKUP($H495,'AF-Artikel'!$A$3:$D$5437,3)),\"\",VLOOKUP($H495,'AF-Artikel'!$A$3:$D$5437,3))","v":16.02},{"$f":"I495*J495","v":0}]
["",{"$f":"IF($A496=1,COUNTIF($A$166:$A495,1)+1,\"\")","v":""},"","0",0,null,"USB-B-Buchse rückseitig steckbar (USB-B-Buchse) USB-2.0",5213,null,{"$f":"IF(ISNA(VLOOKUP($H496,'AF-Artikel'!$A$3:$D$5437,3)),\"\",VLOOKUP($H496,'AF-Artikel'!$A$3:$D$5437,3))","v":22.41},0]
["",{"$f":"IF($A497=1,COUNTIF($A$166:$A496,1)+1,\"\")","v":""},"","0",0,null,"USB-B-Buchse rückseitig steckbar (USB-A-Buchse) USB-2.0",5237,null,{"$f":"IF(ISNA(VLOOKUP($H497,'AF-Artikel'!$A$3:$D$5437,3)),\"\",VLOOKUP($H497,'AF-Artikel'!$A$3:$D$5437,3))","v":22.41},0]
["",{"$f":"IF($A498=1,COUNTIF($A$166:$A497,1)+1,\"\")","v":""},"","0",0,null,"USB-B-Buchse auf USB-B-Stecker 30cm USB-2.0",5214,null,{"$f":"IF(ISNA(VLOOKUP($H498,'AF-Artikel'!$A$3:$D$5437,3)),\"\",VLOOKUP($H498,'AF-Artikel'!$A$3:$D$5437,3))","v":25.34},0]
["",{"$f":"IF($A499=1,COUNTIF($A$166:$A498,1)+1,\"\")","v":""},"","0",0,null,"zusätzliche Kabellänge für obiges Kabel in m USB-2.0",5312,null,{"$f":"IF(ISNA(VLOOKUP($H499,'AF-Artikel'!$A$3:$D$5437,3)),\"\",VLOOKUP($H499,'AF-Artikel'!$A$3:$D$5437,3))","v":1.78},0]
["",{"$f":"IF($A500=1,COUNTIF($A$166:$A499,1)+1,\"\")","v":""},"","0",0,null,"USB-B-Buchse auf USB-A-Kupplung 30cm USB-2.0",5238,null,{"$f":"IF(ISNA(VLOOKUP($H500,'AF-Artikel'!$A$3:$D$5437,3)),\"\",VLOOKUP($H500,'AF-Artikel'!$A$3:$D$5437,3))","v":25.34},0]
["",{"$f":"IF($A501=1,COUNTIF($A$166:$A500,1)+1,\"\")","v":""},"","0",0,null,"zusätzliche Kabellänge für obiges Kabel in m USB-2.0",5312,null,{"$f":"IF(ISNA(VLOOKUP($H501,'AF-Artikel'!$A$3:$D$5437,3)),\"\",VLOOKUP($H501,'AF-Artikel'!$A$3:$D$5437,3))","v":1.78},0]
["",{"$f":"IF($A502=1,COUNTIF($A$166:$A501,1)+1,\"\")","v":""},"","0",0,null,"USB-B-Buchse auf USB-A-Stecker 30cm USB-2.0",5215,null,{"$f":"IF(ISNA(VLOOKUP($H502,'AF-Artikel'!$A$3:$D$5437,3)),\"\",VLOOKUP($H502,'AF-Artikel'!$A$3:$D$5437,3))","v":25.34},0]
[{"$f":"IF(I503>0,1,\"\")","v":""},{"$f":"IF($A503=1,COUNTIF($A$166:$A502,1)+1,\"\")","v":""},"","0",0,null,"zusätzliche Kabellänge für obiges Kabel in m USB-2.0",5312,null,{"$f":"IF(ISNA(VLOOKUP($H503,'AF-Artikel'!$A$3:$D$5437,3)),\"\",VLOOKUP($H503,'AF-Artikel'!$A$3:$D$5437,3))","v":1.78},0]
["",{"$f":"IF($A504=1,COUNTIF($A$166:$A503,1)+1,\"\")","v":""},"","0",0]
["",{"$f":"IF($A505=1,COUNTIF($A$166:$A504,1)+1,\"\")","v":""},"","0",0,null,"RJ45-Buchse Cat.6 schneid-klemmanschluss (werkzeuglos)",5178,null,{"$f":"IF(ISNA(VLOOKUP($H505,'AF-Artikel'!$A$3:$D$5437,3)),\"\",VLOOKUP($H505,'AF-Artikel'!$A$3:$D$5437,3))","v":12.04},{"$f":"I505*J505","v":0}]
["",{"$f":"IF($A506=1,COUNTIF($A$166:$A505,1)+1,\"\")","v":""},"","0",0,null,"RJ45-Buchse Cat.6 auf RJ45-Kupplung Cat.5 30cm",5179,null,{"$f":"IF(ISNA(VLOOKUP($H506,'AF-Artikel'!$A$3:$D$5437,3)),\"\",VLOOKUP($H506,'AF-Artikel'!$A$3:$D$5437,3))","v":22.82},0]
["",{"$f":"IF($A507=1,COUNTIF($A$166:$A506,1)+1,\"\")","v":""},"",null,0,null,"zusätzliche Kabellänge für obiges Kabel in m",5310,null,{"$f":"IF(ISNA(VLOOKUP($H507,'AF-Artikel'!$A$3:$D$5437,3)),\"\",VLOOKUP($H507,'AF-Artikel'!$A$3:$D$5437,3))","v":1.99},0]
["",{"$f":"IF($A508=1,COUNTIF($A$166:$A507,1)+1,\"\")","v":""},"",{"$f":"IF($I508>0,LEN($L508)*$A$25,\"0\")","v":"0"},0,null,"RJ45-Buchse Cat.6 auf RJ45-Kupplung Cat.6 30cm",5239,null,{"$f":"IF(ISNA(VLOOKUP($H508,'AF-Artikel'!$A$3:$D$5437,3)),\"\",VLOOKUP($H508,'AF-Artikel'!$A$3:$D$5437,3))","v":27.3},{"$f":"I508*J508","v":0}]
[{"$f":"IF(I509>0,1,\"\")","v":""},{"$f":"IF($A509=1,COUNTIF($A$166:$A508,1)+1,\"\")","v":""},"",null,0,null,"zusätzliche Kabellänge für obiges Kabel in m",5310,null,{"$f":"IF(ISNA(VLOOKUP($H509,'AF-Artikel'!$A$3:$D$5437,3)),\"\",VLOOKUP($H509,'AF-Artikel'!$A$3:$D$5437,3))","v":1.99},{"$f":"I509*J509","v":0}]
["",{"$f":"IF($A510=1,COUNTIF($A$166:$A509,1)+1,\"\")","v":""},"",{"$f":"IF($I510>0,LEN($L510)*$A$25,\"0\")","v":"0"},0,null,"RJ45-Buchse Cat.6 auf RJ45-Stecker Cat.6 30cm",5181,null,{"$f":"IF(ISNA(VLOOKUP($H510,'AF-Artikel'!$A$3:$D$5437,3)),\"\",VLOOKUP($H510,'AF-Artikel'!$A$3:$D$5437,3))","v":23.56},0]
["",{"$f":"IF($A511=1,COUNTIF($A$166:$A510,1)+1,\"\")","v":""},"",null,0,null,"zusätzliche Kabellänge für obiges Kabel in m",5310,null,{"$f":"IF(ISNA(VLOOKUP($H511,'AF-Artikel'!$A$3:$D$5437,3)),\"\",VLOOKUP($H511,'AF-Artikel'!$A$3:$D$5437,3))","v":1.99},0]
["",{"$f":"IF($A512=1,COUNTIF($A$166:$A511,1)+1,\"\")","v":""},"",{"$f":"IF($I512>0,LEN($L512)*$A$25,\"0\")","v":"0"},0,null,"RJ45-Buchse auf RJ45-Buchse Cat.6 geschirmt",5184,null,{"$f":"IF(ISNA(VLOOKUP($H512,'AF-Artikel'!$A$3:$D$5437,3)),\"\",VLOOKUP($H512,'AF-Artikel'!$A$3:$D$5437,3))","v":17.28},0]
["",{"$f":"IF($A513=1,COUNTIF($A$166:$A512,1)+1,\"\")","v":""},"",{"$f":"IF($I513>0,LEN($L513)*$A$25,\"0\")","v":"0"},0]
["",{"$f":"IF($A514=1,COUNTIF($A$166:$A513,1)+1,\"\")","v":""},"",{"$f":"IF($I514>0,LEN($L514)*$A$25,\"0\")","v":"0"},0,null,"12pol-Minicon-Buchse, Lötanschluss",5240,null,{"$f":"IF(ISNA(VLOOKUP($H514,'AF-Artikel'!$A$3:$D$5437,3)),\"\",VLOOKUP($H514,'AF-Artikel'!$A$3:$D$5437,3))","v":58.02},{"$f":"I514*J514","v":0}]
["",{"$f":"IF($A515=1,COUNTIF($A$166:$A514,1)+1,\"\")","v":""},"",{"$f":"IF($I515>0,LEN($L515)*$A$25,\"0\")","v":"0"},0,null,"12pol-Minicon-Buchse auf RJ45-Kupplung + 2xAderendhülse 30cm (Touchpanelanschluss)",5195,null,{"$f":"IF(ISNA(VLOOKUP($H515,'AF-Artikel'!$A$3:$D$5437,3)),\"\",VLOOKUP($H515,'AF-Artikel'!$A$3:$D$5437,3))","v":81.28},0]
["",{"$f":"IF($A516=1,COUNTIF($A$166:$A515,1)+1,\"\")","v":""},"",null,0,null,"zusätzliche Kabellänge für obiges Kabel in m",5306,null,{"$f":"IF(ISNA(VLOOKUP($H516,'AF-Artikel'!$A$3:$D$5437,3)),\"\",VLOOKUP($H516,'AF-Artikel'!$A$3:$D$5437,3))","v":8.23},0]
["",{"$f":"IF($A517=1,COUNTIF($A$166:$A516,1)+1,\"\")","v":""},"",{"$f":"IF($I517>0,LEN($L517)*$A$25,\"0\")","v":"0"},0,null,"12pol-Minicon-Buchse auf 12pol-Miniconstecker 30cm (Touchpanelanschluss)",5207,null,{"$f":"IF(ISNA(VLOOKUP($H517,'AF-Artikel'!$A$3:$D$5437,3)),\"\",VLOOKUP($H517,'AF-Artikel'!$A$3:$D$5437,3))","v":102.61},0]
["",{"$f":"IF($A518=1,COUNTIF($A$166:$A517,1)+1,\"\")","v":""},"",null,0,null,"zusätzliche Kabellänge für obiges Kabel in m",5306,null,{"$f":"IF(ISNA(VLOOKUP($H518,'AF-Artikel'!$A$3:$D$5437,3)),\"\",VLOOKUP($H518,'AF-Artikel'!$A$3:$D$5437,3))","v":8.23},{"$f":"I518*J518","v":0}]
[{"$f":"IF(I519>0,1,\"\")","v":""},{"$f":"IF($A519=1,COUNTIF($A$166:$A518,1)+1,\"\")","v":""},"",{"$f":"IF($I519>0,LEN($L519)*$A$25,\"0\")","v":"0"},0,null,"12pin-miniCON-Buchse, mit 30cm Kabel auf RJ45 Stecker",5279,null,{"$f":"IF(ISNA(VLOOKUP($H519,'AF-Artikel'!$A$3:$D$5437,3)),\"\",VLOOKUP($H519,'AF-Artikel'!$A$3:$D$5437,3))","v":81.95},{"$f":"I519*J519","v":0}]
[{"$f":"IF(I520>0,1,\"\")","v":""},{"$f":"IF($A520=1,COUNTIF($A$166:$A519,1)+1,\"\")","v":""},"",null,0,null,"zusätzliche Kabellänge für obiges Kabel in m",5306,null,{"$f":"IF(ISNA(VLOOKUP($H520,'AF-Artikel'!$A$3:$D$5437,3)),\"\",VLOOKUP($H520,'AF-Artikel'!$A$3:$D$5437,3))","v":8.23},{"$f":"I520*J520","v":0}]
["",{"$f":"IF($A521=1,COUNTIF($A$166:$A520,1)+1,\"\")","v":""},"",null,0,null,null,null,null,{"$f":"IF(ISNA(VLOOKUP($H521,'AF-Artikel'!$A$3:$D$5437,3)),\"\",VLOOKUP($H521,'AF-Artikel'!$A$3:$D$5437,3))","v":""}]
["",{"$f":"IF($A522=1,COUNTIF($A$166:$A521,1)+1,\"\")","v":""},"",null,0,null,"Anschlusskabel Touchpanel 12pol-Minicon-Stecker auf RJ45-Stecker + 2xAderendhülse, Länge: 1   m",8004,null,{"$f":"IF(ISNA(VLOOKUP($H522,'AF-Artikel'!$A$3:$D$5437,3)),\"\",VLOOKUP($H522,'AF-Artikel'!$A$3:$D$5437,3))","v":59.98},{"$f":"I522*J522","v":0}]
["",{"$f":"IF($A523=1,COUNTIF($A$166:$A522,1)+1,\"\")","v":""},"",null,0,null,"Anschlusskabel Touchpanel 12pol-Minicon-Stecker auf RJ45-Stecker + 2xAderendhülse, Länge: 2   m",8003,null,{"$f":"IF(ISNA(VLOOKUP($H523,'AF-Artikel'!$A$3:$D$5437,3)),\"\",VLOOKUP($H523,'AF-Artikel'!$A$3:$D$5437,3))","v":68.209999999999994},0]
["",{"$f":"IF($A524=1,COUNTIF($A$166:$A523,1)+1,\"\")","v":""},"",null,0,null,"Anschlusskabel Touchpanel 12pol-Minicon-Stecker auf RJ45-Stecker + 2xAderendhülse, Länge: 2,5m",8025,null,{"$f":"IF(ISNA(VLOOKUP($H524,'AF-Artikel'!$A$3:$D$5437,3)),\"\",VLOOKUP($H524,'AF-Artikel'!$A$3:$D$5437,3))","v":72.33},0]
["",{"$f":"IF($A525=1,COUNTIF($A$166:$A524,1)+1,\"\")","v":""},"",null,0,null,"Anschlusskabel Touchpanel 12pol-Minicon-Stecker auf RJ45-Stecker + 2xAderendhülse, Länge: 3   m",8024,null,{"$f":"IF(ISNA(VLOOKUP($H525,'AF-Artikel'!$A$3:$D$5437,3)),\"\",VLOOKUP($H525,'AF-Artikel'!$A$3:$D$5437,3))","v":76.44},0]
["",{"$f":"IF($A526=1,COUNTIF($A$166:$A525,1)+1,\"\")","v":""},"",null,0,null,"Anschlusskabel Touchpanel 12pol-Minicon-Stecker auf RJ45-Stecker + 2xAderendhülse, Länge: 4   m",8023,null,{"$f":"IF(ISNA(VLOOKUP($H526,'AF-Artikel'!$A$3:$D$5437,3)),\"\",VLOOKUP($H526,'AF-Artikel'!$A$3:$D$5437,3))","v":84.67},0]
["",{"$f":"IF($A527=1,COUNTIF($A$166:$A526,1)+1,\"\")","v":""},"",null,0,null,"Anschlusskabel Touchpanel 12pol-Minicon-Stecker auf RJ45-Stecker + 2xAderendhülse, Länge: 5   m",8034,null,{"$f":"IF(ISNA(VLOOKUP($H527,'AF-Artikel'!$A$3:$D$5437,3)),\"\",VLOOKUP($H527,'AF-Artikel'!$A$3:$D$5437,3))","v":92.9},0]
[{"$f":"IF(I528>0,1,\"\")","v":""},{"$f":"IF($A528=1,COUNTIF($A$166:$A527,1)+1,\"\")","v":""},"",{"$f":"IF($I528>0,LEN($L528)*$A$25,\"0\")","v":"0"},0]
["",{"$f":"IF($A529=1,COUNTIF($A$166:$A528,1)+1,\"\")","v":""},"",{"$f":"IF($I529>0,LEN($L529)*$A$25,\"0\")","v":"0"},0,null,{"$f":"IF(ISNA(VLOOKUP($H529,'AF-Artikel'!$A$3:$D$5437,2)),\"\",VLOOKUP($H529,'AF-Artikel'!$A$3:$D$5437,2))","v":"AF 3,5-Klinkenbuchse 4pol/löt"},5276,null,{"$f":"IF(ISNA(VLOOKUP($H529,'AF-Artikel'!$A$3:$D$5437,3)),\"\",VLOOKUP($H529,'AF-Artikel'!$A$3:$D$5437,3))","v":21.32},{"$f":"I529*J529","v":0}]
["",{"$f":"IF($A530=1,COUNTIF($A$166:$A529,1)+1,\"\")","v":""},"",{"$f":"IF($I530>0,LEN($L530)*$A$25,\"0\")","v":"0"},0,null,{"$f":"IF(ISNA(VLOOKUP($H530,'AF-Artikel'!$A$3:$D$5437,2)),\"\",VLOOKUP($H530,'AF-Artikel'!$A$3:$D$5437,2))","v":"AF 3,5-Klinkenbu.-4p. mit 30cm Kabel auf 4p.Kup."},5277,null,{"$f":"IF(ISNA(VLOOKUP($H530,'AF-Artikel'!$A$3:$D$5437,3)),\"\",VLOOKUP($H530,'AF-Artikel'!$A$3:$D$5437,3))","v":47.49},{"$f":"I530*J530","v":0}]
["",{"$f":"IF($A531=1,COUNTIF($A$166:$A530,1)+1,\"\")","v":""},"",null,0,null,"zusätzliche Kabellänge für obiges Kabel in m",5315,null,{"$f":"IF(ISNA(VLOOKUP($H531,'AF-Artikel'!$A$3:$D$5437,3)),\"\",VLOOKUP($H531,'AF-Artikel'!$A$3:$D$5437,3))","v":1.1499999999999999},{"$f":"I531*J531","v":0}]
["",{"$f":"IF($A532=1,COUNTIF($A$166:$A531,1)+1,\"\")","v":""},"",{"$f":"IF($I532>0,LEN($L532)*$A$25,\"0\")","v":"0"},0]
["",{"$f":"IF($A533=1,COUNTIF($A$166:$A532,1)+1,\"\")","v":""},"",null,0]
["",{"$f":"IF($A534=1,COUNTIF($A$166:$A533,1)+1,\"\")","v":""},"",null,0,null,null,null,null,{"$f":"IF(ISNA(VLOOKUP($H534,'AF-Artikel'!$A$3:$D$5437,3)),\"\",VLOOKUP($H534,'AF-Artikel'!$A$3:$D$5437,3))","v":""}]
["",{"$f":"IF($A535=1,COUNTIF($A$166:$A527,1)+1,\"\")","v":""},"",null,0]
["",{"$f":"IF($A536=1,COUNTIF($A$166:$A535,1)+1,\"\")","v":""},"",{"$f":"IF($I536>0,LEN($L536)*$A$25,\"0\")","v":"0"},0,null,"Antennen-Einaustecker, Lötanschluss",5230,null,{"$f":"IF(ISNA(VLOOKUP($H536,'AF-Artikel'!$A$3:$D$5437,3)),\"\",VLOOKUP($H536,'AF-Artikel'!$A$3:$D$5437,3))","v":15.39},{"$f":"I536*J536","v":0}]
["",{"$f":"IF($A537=1,COUNTIF($A$166:$A536,1)+1,\"\")","v":""},"",null,0,null,null,null,null,{"$f":"IF(ISNA(VLOOKUP($H537,'AF-Artikel'!$A$3:$D$5437,3)),\"\",VLOOKUP($H537,'AF-Artikel'!$A$3:$D$5437,3))","v":""}]
["",{"$f":"IF($A538=1,COUNTIF($A$166:$A537,1)+1,\"\")","v":""},"",null,0,null,null,null,null,{"$f":"IF(ISNA(VLOOKUP($H538,'AF-Artikel'!$A$3:$D$5437,3)),\"\",VLOOKUP($H538,'AF-Artikel'!$A$3:$D$5437,3))","v":""}]
["",{"$f":"IF($A539=1,COUNTIF($A$166:$A538,1)+1,\"\")","v":""},"",null,0,null,null,null,null,{"$f":"IF(ISNA(VLOOKUP($H539,'AF-Artikel'!$A$3:$D$5437,3)),\"\",VLOOKUP($H539,'AF-Artikel'!$A$3:$D$5437,3))","v":""}]
["",{"$f":"IF($A540=1,COUNTIF($A$166:$A539,1)+1,\"\")","v":""},"",null,0,null,null,null,null,{"$f":"IF(ISNA(VLOOKUP($H540,'AF-Artikel'!$A$3:$D$5437,3)),\"\",VLOOKUP($H540,'AF-Artikel'!$A$3:$D$5437,3))","v":""}]
["",{"$f":"IF($A541=1,COUNTIF($A$166:$A540,1)+1,\"\")","v":""},"",null,0,null,null,null,null,{"$f":"IF(ISNA(VLOOKUP($H541,'AF-Artikel'!$A$3:$D$5437,3)),\"\",VLOOKUP($H541,'AF-Artikel'!$A$3:$D$5437,3))","v":""}]
["",{"$f":"IF($A542=1,COUNTIF($A$166:$A541,1)+1,\"\")","v":""},"",null,0]
["",{"$f":"IF($A543=1,COUNTIF($A$166:$A542,1)+1,\"\")","v":""},"",{"$f":"IF($I543>0,LEN($L543)*$A$25,\"0\")","v":"0"},0,null,"Antennen-Einaubuchse, Lötanschluss",5231,null,{"$f":"IF(ISNA(VLOOKUP($H543,'AF-Artikel'!$A$3:$D$5437,3)),\"\",VLOOKUP($H543,'AF-Artikel'!$A$3:$D$5437,3))","v":15.39},{"$f":"I543*J543","v":0}]
["",{"$f":"IF($A544=1,COUNTIF($A$166:$A543,1)+1,\"\")","v":""},"",null,0,null,null,null,null,{"$f":"IF(ISNA(VLOOKUP($H544,'AF-Artikel'!$A$3:$D$5437,3)),\"\",VLOOKUP($H544,'AF-Artikel'!$A$3:$D$5437,3))","v":""}]
["",{"$f":"IF($A545=1,COUNTIF($A$166:$A544,1)+1,\"\")","v":""},"",null,0,null,null,null,null,{"$f":"IF(ISNA(VLOOKUP($H545,'AF-Artikel'!$A$3:$D$5437,3)),\"\",VLOOKUP($H545,'AF-Artikel'!$A$3:$D$5437,3))","v":""}]
["",{"$f":"IF($A546=1,COUNTIF($A$166:$A545,1)+1,\"\")","v":""},"",null,0,null,null,null,null,{"$f":"IF(ISNA(VLOOKUP($H546,'AF-Artikel'!$A$3:$D$5437,3)),\"\",VLOOKUP($H546,'AF-Artikel'!$A$3:$D$5437,3))","v":""}]
["",{"$f":"IF($A547=1,COUNTIF($A$166:$A546,1)+1,\"\")","v":""},"",null,0,null,null,null,null,{"$f":"IF(ISNA(VLOOKUP($H547,'AF-Artikel'!$A$3:$D$5437,3)),\"\",VLOOKUP($H547,'AF-Artikel'!$A$3:$D$5437,3))","v":""}]
["",{"$f":"IF($A548=1,COUNTIF($A$166:$A547,1)+1,\"\")","v":""},"",null,0,null,null,null,null,{"$f":"IF(ISNA(VLOOKUP($H548,'AF-Artikel'!$A$3:$D$5437,3)),\"\",VLOOKUP($H548,'AF-Artikel'!$A$3:$D$5437,3))","v":""}]
["",{"$f":"IF($A549=1,COUNTIF($A$166:$A548,1)+1,\"\")","v":""},{"$f":"IF(AND($I549>0,$O549>0),$O549,\"\")","v":""},null,0]
["",{"$f":"IF($A550=1,COUNTIF($A$166:$A549,1)+1,\"\")","v":""},"",{"$f":"IF($I550>0,LEN($L550)*$A$25,\"0\")","v":"0"},0,null,"Antennen-F Einaubuchse, Lötanschluss",5232,null,{"$f":"IF(ISNA(VLOOKUP($H550,'AF-Artikel'!$A$3:$D$5437,3)),\"\",VLOOKUP($H550,'AF-Artikel'!$A$3:$D$5437,3))","v":15.39},{"$f":"I550*J550","v":0}]
["",{"$f":"IF($A551=1,COUNTIF($A$166:$A550,1)+1,\"\")","v":""},"",{"$f":"IF($I551>0,LEN($L551)*$A$25,\"0\")","v":"0"},{"$f":"IF($A$25=0,$I551,IF(OR($A551=\"\",$A$25>0),$I551,SUM($I551*VLOOKUP($A$1,$A$28:$I$165,9))))","v":0},null,"Antennen-F Durchgangsverbinder",5233,null,{"$f":"IF(ISNA(VLOOKUP($H551,'AF-Artikel'!$A$3:$D$5437,3)),\"\",VLOOKUP($H551,'AF-Artikel'!$A$3:$D$5437,3))","v":15.39},{"$f":"I551*J551","v":0}]
["",{"$f":"IF($A552=1,COUNTIF($A$166:$A551,1)+1,\"\")","v":""},"",null,0,null,null,null,null,{"$f":"IF(ISNA(VLOOKUP($H552,'AF-Artikel'!$A$3:$D$5437,3)),\"\",VLOOKUP($H552,'AF-Artikel'!$A$3:$D$5437,3))","v":""}]
["",{"$f":"IF($A553=1,COUNTIF($A$166:$A552,1)+1,\"\")","v":""},"",null,0,null,null,null,null,{"$f":"IF(ISNA(VLOOKUP($H553,'AF-Artikel'!$A$3:$D$5437,3)),\"\",VLOOKUP($H553,'AF-Artikel'!$A$3:$D$5437,3))","v":""}]
["",{"$f":"IF($A554=1,COUNTIF($A$166:$A553,1)+1,\"\")","v":""},"",null,0,null,null,null,null,{"$f":"IF(ISNA(VLOOKUP($H554,'AF-Artikel'!$A$3:$D$5437,3)),\"\",VLOOKUP($H554,'AF-Artikel'!$A$3:$D$5437,3))","v":""}]
["",{"$f":"IF($A555=1,COUNTIF($A$166:$A554,1)+1,\"\")","v":""},"",null,0,null,null,null,null,{"$f":"IF(ISNA(VLOOKUP($H555,'AF-Artikel'!$A$3:$D$5437,3)),\"\",VLOOKUP($H555,'AF-Artikel'!$A$3:$D$5437,3))","v":""}]
["",{"$f":"IF($A556=1,COUNTIF($A$166:$A555,1)+1,\"\")","v":""},"",null,0]
["",{"$f":"IF($A557=1,COUNTIF($A$166:$A556,1)+1,\"\")","v":""},"",{"$f":"IF($I557>0,LEN($L557)*$A$25,\"0\")","v":"0"},0,null,"Mini-Taster 2x EIN mit LED, grün, Lötanschluss",5242,null,{"$f":"IF(ISNA(VLOOKUP($H557,'AF-Artikel'!$A$3:$D$5437,3)),\"\",VLOOKUP($H557,'AF-Artikel'!$A$3:$D$5437,3))","v":19.37},{"$f":"I557*J557","v":0}]
["",{"$f":"IF($A558=1,COUNTIF($A$166:$A557,1)+1,\"\")","v":""},"",{"$f":"IF($I558>0,LEN($L558)*$A$25,\"0\")","v":"0"},0,null,"Mini-Taster 2x EIN mit LED, grün, 30cm auf offenes Kabelende",5244,null,{"$f":"IF(ISNA(VLOOKUP($H558,'AF-Artikel'!$A$3:$D$5437,3)),\"\",VLOOKUP($H558,'AF-Artikel'!$A$3:$D$5437,3))","v":24.73},0]
["",{"$f":"IF($A559=1,COUNTIF($A$166:$A558,1)+1,\"\")","v":""},"",null,0,null,"zusätzliche Kabellänge für obiges Kabel",5315,null,{"$f":"IF(ISNA(VLOOKUP($H559,'AF-Artikel'!$A$3:$D$5437,3)),\"\",VLOOKUP($H559,'AF-Artikel'!$A$3:$D$5437,3))","v":1.1499999999999999},0]
["",{"$f":"IF($A560=1,COUNTIF($A$166:$A559,1)+1,\"\")","v":""},"",{"$f":"IF($I560>0,LEN($L560)*$A$25,\"0\")","v":"0"},0,null,"Mini-Schalter 2x EIN mit LED, grün, Lötanschluss",5246,null,{"$f":"IF(ISNA(VLOOKUP($H560,'AF-Artikel'!$A$3:$D$5437,3)),\"\",VLOOKUP($H560,'AF-Artikel'!$A$3:$D$5437,3))","v":19.37},0]
["",{"$f":"IF($A561=1,COUNTIF($A$166:$A560,1)+1,\"\")","v":""},"",{"$f":"IF($I561>0,LEN($L561)*$A$25,\"0\")","v":"0"},0,null,"Mini-Schalter 2x EIN mit LED, grün, 30cm auf offenes Kabelende",5248,null,{"$f":"IF(ISNA(VLOOKUP($H561,'AF-Artikel'!$A$3:$D$5437,3)),\"\",VLOOKUP($H561,'AF-Artikel'!$A$3:$D$5437,3))","v":24.73},0]
["",{"$f":"IF($A562=1,COUNTIF($A$166:$A561,1)+1,\"\")","v":""},"",null,0,null,"zusätzliche Kabellänge für obiges Kabel",5315,null,{"$f":"IF(ISNA(VLOOKUP($H562,'AF-Artikel'!$A$3:$D$5437,3)),\"\",VLOOKUP($H562,'AF-Artikel'!$A$3:$D$5437,3))","v":1.1499999999999999},0]
["",{"$f":"IF($A563=1,COUNTIF($A$166:$A562,1)+1,\"\")","v":""},"",null,0]
["",{"$f":"IF($A564=1,COUNTIF($A$166:$A563,1)+1,\"\")","v":""},"",{"$f":"IF($I564>0,LEN($L564)*$A$25,\"0\")","v":"0"},0,null,"Mini-Taster 2x EIN mit LED, rot, Lötanschluss",5241,null,{"$f":"IF(ISNA(VLOOKUP($H564,'AF-Artikel'!$A$3:$D$5437,3)),\"\",VLOOKUP($H564,'AF-Artikel'!$A$3:$D$5437,3))","v":19.37},{"$f":"I564*J564","v":0}]
["",{"$f":"IF($A565=1,COUNTIF($A$166:$A564,1)+1,\"\")","v":""},"",{"$f":"IF($I565>0,LEN($L565)*$A$25,\"0\")","v":"0"},0,null,"Mini-Taster 2x EIN mit LED, rot, 30cm auf offenes Kabelende",5243,null,{"$f":"IF(ISNA(VLOOKUP($H565,'AF-Artikel'!$A$3:$D$5437,3)),\"\",VLOOKUP($H565,'AF-Artikel'!$A$3:$D$5437,3))","v":24.73},0]
["",{"$f":"IF($A566=1,COUNTIF($A$166:$A565,1)+1,\"\")","v":""},"",{"$f":"IF($I566>0,LEN($L566)*$A$25,\"0\")","v":"0"},0,null,"zusätzliche Kabellänge für obiges Kabel",5315,null,{"$f":"IF(ISNA(VLOOKUP($H566,'AF-Artikel'!$A$3:$D$5437,3)),\"\",VLOOKUP($H566,'AF-Artikel'!$A$3:$D$5437,3))","v":1.1499999999999999},0]
["",{"$f":"IF($A567=1,COUNTIF($A$166:$A566,1)+1,\"\")","v":""},"",{"$f":"IF($I567>0,LEN($L567)*$A$25,\"0\")","v":"0"},0,null,"Mini-Schalter 2x EIN mit LED, rot, Lötanschluss",5245,null,{"$f":"IF(ISNA(VLOOKUP($H567,'AF-Artikel'!$A$3:$D$5437,3)),\"\",VLOOKUP($H567,'AF-Artikel'!$A$3:$D$5437,3))","v":19.37},0]
["",{"$f":"IF($A568=1,COUNTIF($A$166:$A567,1)+1,\"\")","v":""},"",{"$f":"IF($I568>0,LEN($L568)*$A$25,\"0\")","v":"0"},0,null,"Mini-Schalter 2x EIN mit LED, rot, 30cm auf offenes Kabelende",5247,null,{"$f":"IF(ISNA(VLOOKUP($H568,'AF-Artikel'!$A$3:$D$5437,3)),\"\",VLOOKUP($H568,'AF-Artikel'!$A$3:$D$5437,3))","v":24.73},0]
["",{"$f":"IF($A569=1,COUNTIF($A$166:$A568,1)+1,\"\")","v":""},"",null,0,null,"zusätzliche Kabellänge für obiges Kabel",5315,null,{"$f":"IF(ISNA(VLOOKUP($H569,'AF-Artikel'!$A$3:$D$5437,3)),\"\",VLOOKUP($H569,'AF-Artikel'!$A$3:$D$5437,3))","v":1.1499999999999999},0]
["",{"$f":"IF($A570=1,COUNTIF($A$166:$A569,1)+1,\"\")","v":""},"",null,0]
["",{"$f":"IF($A571=1,COUNTIF($A$166:$A570,1)+1,\"\")","v":""},"",{"$f":"IF($I571>0,LEN($L571)*$A$25,\"0\")","v":"0"},0,null,"Taster Ø18mm 1x UM ohne LED, Edelstahl, Lötanschluss",5249,null,{"$f":"IF(ISNA(VLOOKUP($H571,'AF-Artikel'!$A$3:$D$5437,3)),\"\",VLOOKUP($H571,'AF-Artikel'!$A$3:$D$5437,3))","v":23.08},{"$f":"I571*J571","v":0}]
["",{"$f":"IF($A572=1,COUNTIF($A$166:$A571,1)+1,\"\")","v":""},"",{"$f":"IF($I572>0,LEN($L572)*$A$25,\"0\")","v":"0"},0,null,"Taster Ø18mm 1x UM ohne LED, Edelstahl, 30cm auf offenes Kabelende",5250,null,{"$f":"IF(ISNA(VLOOKUP($H572,'AF-Artikel'!$A$3:$D$5437,3)),\"\",VLOOKUP($H572,'AF-Artikel'!$A$3:$D$5437,3))","v":28.44},{"$f":"I572*J572","v":0}]
["",{"$f":"IF($A573=1,COUNTIF($A$166:$A572,1)+1,\"\")","v":""},"",null,0,null,"zusätzliche Kabellänge für obiges Kabel",5315,null,{"$f":"IF(ISNA(VLOOKUP($H573,'AF-Artikel'!$A$3:$D$5437,3)),\"\",VLOOKUP($H573,'AF-Artikel'!$A$3:$D$5437,3))","v":1.1499999999999999},{"$f":"I573*J573","v":0}]
["",{"$f":"IF($A574=1,COUNTIF($A$166:$A573,1)+1,\"\")","v":""},"",null,0,null,null,null,null,{"$f":"IF(ISNA(VLOOKUP($H574,'AF-Artikel'!$A$3:$D$5437,3)),\"\",VLOOKUP($H574,'AF-Artikel'!$A$3:$D$5437,3))","v":""}]
["",{"$f":"IF($A575=1,COUNTIF($A$166:$A574,1)+1,\"\")","v":""},"",null,0,null,null,null,null,{"$f":"IF(ISNA(VLOOKUP($H575,'AF-Artikel'!$A$3:$D$5437,3)),\"\",VLOOKUP($H575,'AF-Artikel'!$A$3:$D$5437,3))","v":""}]
["",{"$f":"IF($A576=1,COUNTIF($A$166:$A575,1)+1,\"\")","v":""},"",null,0,null,null,null,null,{"$f":"IF(ISNA(VLOOKUP($H576,'AF-Artikel'!$A$3:$D$5437,3)),\"\",VLOOKUP($H576,'AF-Artikel'!$A$3:$D$5437,3))","v":""}]
[{"$f":"IF(I577>0,1,\"\")","v":""},{"$f":"IF($A577=1,COUNTIF($A$166:$A576,1)+1,\"\")","v":""},"",null,0]
["",{"$f":"IF($A578=1,COUNTIF($A$166:$A577,1)+1,\"\")","v":""},"",{"$f":"IF($I578>0,LEN($L578)*$A$25,\"0\")","v":"0"},0,null,"Taster Ø18mm 1x UM mit LED, blau, Edelstahl, Lötanschluss",5270,null,{"$f":"IF(ISNA(VLOOKUP($H578,'AF-Artikel'!$A$3:$D$5437,3)),\"\",VLOOKUP($H578,'AF-Artikel'!$A$3:$D$5437,3))","v":35.35},{"$f":"I578*J578","v":0}]
["",{"$f":"IF($A579=1,COUNTIF($A$166:$A578,1)+1,\"\")","v":""},"",{"$f":"IF($I579>0,LEN($L579)*$A$25,\"0\")","v":"0"},0,null,"Taster Ø18mm 1x UM mit LED, blau, Edelstahl, 30cm auf offenes Kabelende",5271,null,{"$f":"IF(ISNA(VLOOKUP($H579,'AF-Artikel'!$A$3:$D$5437,3)),\"\",VLOOKUP($H579,'AF-Artikel'!$A$3:$D$5437,3))","v":41.5},{"$f":"I579*J579","v":0}]
["",{"$f":"IF($A580=1,COUNTIF($A$166:$A579,1)+1,\"\")","v":""},"",null,0,null,"zusätzliche Kabellänge für obiges Kabel",5315,null,{"$f":"IF(ISNA(VLOOKUP($H580,'AF-Artikel'!$A$3:$D$5437,3)),\"\",VLOOKUP($H580,'AF-Artikel'!$A$3:$D$5437,3))","v":1.1499999999999999},{"$f":"I580*J580","v":0}]
["",{"$f":"IF($A581=1,COUNTIF($A$166:$A580,1)+1,\"\")","v":""},"",null,0,null,null,null,null,{"$f":"IF(ISNA(VLOOKUP($H581,'AF-Artikel'!$A$3:$D$5437,3)),\"\",VLOOKUP($H581,'AF-Artikel'!$A$3:$D$5437,3))","v":""}]
["",{"$f":"IF($A582=1,COUNTIF($A$166:$A581,1)+1,\"\")","v":""},"",null,0,null,null,null,null,{"$f":"IF(ISNA(VLOOKUP($H582,'AF-Artikel'!$A$3:$D$5437,3)),\"\",VLOOKUP($H582,'AF-Artikel'!$A$3:$D$5437,3))","v":""}]
["",{"$f":"IF($A583=1,COUNTIF($A$166:$A582,1)+1,\"\")","v":""},"",null,0,null,null,null,null,{"$f":"IF(ISNA(VLOOKUP($H583,'AF-Artikel'!$A$3:$D$5437,3)),\"\",VLOOKUP($H583,'AF-Artikel'!$A$3:$D$5437,3))","v":""}]
["",{"$f":"IF($A584=1,COUNTIF($A$166:$A583,1)+1,\"\")","v":""},"",null,0]
["",{"$f":"IF($A585=1,COUNTIF($A$166:$A584,1)+1,\"\")","v":""},"",{"$f":"IF($I585>0,LEN($L585)*$A$25,\"0\")","v":"0"},0,null,"Taster Ø22mm 1x UM ohne LED, Edelstahl, Lötanschluss",5274,null,{"$f":"IF(ISNA(VLOOKUP($H585,'AF-Artikel'!$A$3:$D$5437,3)),\"\",VLOOKUP($H585,'AF-Artikel'!$A$3:$D$5437,3))","v":36.6},{"$f":"I585*J585","v":0}]
["",{"$f":"IF($A586=1,COUNTIF($A$166:$A585,1)+1,\"\")","v":""},"",{"$f":"IF($I586>0,LEN($L586)*$A$25,\"0\")","v":"0"},0,null,"Taster Ø22mm 1x UM ohne LED, Edelstahl, 30cm auf offenes Kabelende",5275,null,{"$f":"IF(ISNA(VLOOKUP($H586,'AF-Artikel'!$A$3:$D$5437,3)),\"\",VLOOKUP($H586,'AF-Artikel'!$A$3:$D$5437,3))","v":42.76},{"$f":"I586*J586","v":0}]
["",{"$f":"IF($A587=1,COUNTIF($A$166:$A586,1)+1,\"\")","v":""},"",null,0,null,"zusätzliche Kabellänge für obiges Kabel",5315,null,{"$f":"IF(ISNA(VLOOKUP($H587,'AF-Artikel'!$A$3:$D$5437,3)),\"\",VLOOKUP($H587,'AF-Artikel'!$A$3:$D$5437,3))","v":1.1499999999999999},{"$f":"I587*J587","v":0}]
["",{"$f":"IF($A588=1,COUNTIF($A$166:$A587,1)+1,\"\")","v":""},"",null,0,null,null,null,null,{"$f":"IF(ISNA(VLOOKUP($H588,'AF-Artikel'!$A$3:$D$5437,3)),\"\",VLOOKUP($H588,'AF-Artikel'!$A$3:$D$5437,3))","v":""}]
["",{"$f":"IF($A589=1,COUNTIF($A$166:$A588,1)+1,\"\")","v":""},"",null,0,null,null,null,null,{"$f":"IF(ISNA(VLOOKUP($H589,'AF-Artikel'!$A$3:$D$5437,3)),\"\",VLOOKUP($H589,'AF-Artikel'!$A$3:$D$5437,3))","v":""}]
["",{"$f":"IF($A590=1,COUNTIF($A$166:$A589,1)+1,\"\")","v":""},"",null,0,null,null,null,null,{"$f":"IF(ISNA(VLOOKUP($H590,'AF-Artikel'!$A$3:$D$5437,3)),\"\",VLOOKUP($H590,'AF-Artikel'!$A$3:$D$5437,3))","v":""}]
[{"$f":"IF(I591>0,1,\"\")","v":""},{"$f":"IF($A591=1,COUNTIF($A$166:$A590,1)+1,\"\")","v":""},"",null,0]
["",{"$f":"IF($A592=1,COUNTIF($A$166:$A591,1)+1,\"\")","v":""},"",{"$f":"IF($I592>0,LEN($L592)*$A$25,\"0\")","v":"0"},0,null,"Taster Ø22mm 1x UM mit LED, blau, Edelstahl, Lötanschluss",5272,null,{"$f":"IF(ISNA(VLOOKUP($H592,'AF-Artikel'!$A$3:$D$5437,3)),\"\",VLOOKUP($H592,'AF-Artikel'!$A$3:$D$5437,3))","v":38.99},{"$f":"I592*J592","v":0}]
["",{"$f":"IF($A593=1,COUNTIF($A$166:$A592,1)+1,\"\")","v":""},"",{"$f":"IF($I593>0,LEN($L593)*$A$25,\"0\")","v":"0"},0,null,"Taster Ø22mm 1x UM mit LED, blau, Edelstahl, 30cm auf offenes Kabelende",5273,null,{"$f":"IF(ISNA(VLOOKUP($H593,'AF-Artikel'!$A$3:$D$5437,3)),\"\",VLOOKUP($H593,'AF-Artikel'!$A$3:$D$5437,3))","v":45.15},{"$f":"I593*J593","v":0}]
["",{"$f":"IF($A594=1,COUNTIF($A$166:$A593,1)+1,\"\")","v":""},"",null,0,null,"zusätzliche Kabellänge für obiges Kabel",5315,null,{"$f":"IF(ISNA(VLOOKUP($H594,'AF-Artikel'!$A$3:$D$5437,3)),\"\",VLOOKUP($H594,'AF-Artikel'!$A$3:$D$5437,3))","v":1.1499999999999999},{"$f":"I594*J594","v":0}]
["",{"$f":"IF($A595=1,COUNTIF($A$166:$A594,1)+1,\"\")","v":""},"",null,0,null,null,null,null,{"$f":"IF(ISNA(VLOOKUP($H595,'AF-Artikel'!$A$3:$D$5437,3)),\"\",VLOOKUP($H595,'AF-Artikel'!$A$3:$D$5437,3))","v":""}]
["",{"$f":"IF($A596=1,COUNTIF($A$166:$A595,1)+1,\"\")","v":""},"",null,0,null,null,null,null,{"$f":"IF(ISNA(VLOOKUP($H596,'AF-Artikel'!$A$3:$D$5437,3)),\"\",VLOOKUP($H596,'AF-Artikel'!$A$3:$D$5437,3))","v":""}]
["",{"$f":"IF($A597=1,COUNTIF($A$166:$A596,1)+1,\"\")","v":""},"",null,0,null,null,null,null,{"$f":"IF(ISNA(VLOOKUP($H597,'AF-Artikel'!$A$3:$D$5437,3)),\"\",VLOOKUP($H597,'AF-Artikel'!$A$3:$D$5437,3))","v":""}]
[{"$f":"IF(I598>0,1,\"\")","v":""},{"$f":"IF($A598=1,COUNTIF($A$166:$A597,1)+1,\"\")","v":""},"",null,0]
["",{"$f":"IF($A599=1,COUNTIF($A$166:$A598,1)+1,\"\")","v":""},"",{"$f":"IF($I599>0,LEN($L599)*$A$25,\"0\")","v":"0"},0,null,"Taster 18x18mm 1x EIN mit LED, rot, beschriftbar, Lötanschluss",5261,null,{"$f":"IF(ISNA(VLOOKUP($H599,'AF-Artikel'!$A$3:$D$5437,3)),\"\",VLOOKUP($H599,'AF-Artikel'!$A$3:$D$5437,3))","v":34.5},{"$f":"I599*J599","v":0}]
["",{"$f":"IF($A600=1,COUNTIF($A$166:$A599,1)+1,\"\")","v":""},"",{"$f":"IF($I600>0,LEN($L600)*$A$25,\"0\")","v":"0"},0,null,"Taster 18x18mm 1x EIN mit LED, rot, beschriftbar, 30cm auf offenes Kabelende",5262,null,{"$f":"IF(ISNA(VLOOKUP($H600,'AF-Artikel'!$A$3:$D$5437,3)),\"\",VLOOKUP($H600,'AF-Artikel'!$A$3:$D$5437,3))","v":41.22},{"$f":"I600*J600","v":0}]
["",{"$f":"IF($A601=1,COUNTIF($A$166:$A600,1)+1,\"\")","v":""},"",null,0,null,"Beschriftung Taster 18x18mm oder 24x18mm",5557,null,{"$f":"IF(ISNA(VLOOKUP($H601,'AF-Artikel'!$A$3:$D$5437,3)),\"\",VLOOKUP($H601,'AF-Artikel'!$A$3:$D$5437,3))","v":11.42},{"$f":"I601*J601","v":0}]
["",{"$f":"IF($A602=1,COUNTIF($A$166:$A601,1)+1,\"\")","v":""},"",null,0,null,"zusätzliche Kabellänge für obiges Kabel",5315,null,{"$f":"IF(ISNA(VLOOKUP($H602,'AF-Artikel'!$A$3:$D$5437,3)),\"\",VLOOKUP($H602,'AF-Artikel'!$A$3:$D$5437,3))","v":1.1499999999999999},{"$f":"I602*J602","v":0}]
["",{"$f":"IF($A603=1,COUNTIF($A$166:$A602,1)+1,\"\")","v":""},"",null,0,null,null,null,null,{"$f":"IF(ISNA(VLOOKUP($H603,'AF-Artikel'!$A$3:$D$5437,3)),\"\",VLOOKUP($H603,'AF-Artikel'!$A$3:$D$5437,3))","v":""}]
["",{"$f":"IF($A604=1,COUNTIF($A$166:$A603,1)+1,\"\")","v":""},"",null,0,null,null,null,null,{"$f":"IF(ISNA(VLOOKUP($H604,'AF-Artikel'!$A$3:$D$5437,3)),\"\",VLOOKUP($H604,'AF-Artikel'!$A$3:$D$5437,3))","v":""}]
[{"$f":"IF(I605>0,1,\"\")","v":""},{"$f":"IF($A605=1,COUNTIF($A$166:$A604,1)+1,\"\")","v":""},"",null,0]
["",{"$f":"IF($A606=1,COUNTIF($A$166:$A605,1)+1,\"\")","v":""},"",{"$f":"IF($I606>0,LEN($L606)*$A$25,\"0\")","v":"0"},0,null,"Taster 24x18mm 1x EIN mit LED, rot, beschriftbar, Lötanschluss",5263,null,{"$f":"IF(ISNA(VLOOKUP($H606,'AF-Artikel'!$A$3:$D$5437,3)),\"\",VLOOKUP($H606,'AF-Artikel'!$A$3:$D$5437,3))","v":35.68},{"$f":"I606*J606","v":0}]
["",{"$f":"IF($A607=1,COUNTIF($A$166:$A606,1)+1,\"\")","v":""},"",{"$f":"IF($I607>0,LEN($L607)*$A$25,\"0\")","v":"0"},0,null,"Taster 24x18mm 1x EIN mit LED, rot, beschriftbar, 30cm auf offenes Kabelende",5264,null,{"$f":"IF(ISNA(VLOOKUP($H607,'AF-Artikel'!$A$3:$D$5437,3)),\"\",VLOOKUP($H607,'AF-Artikel'!$A$3:$D$5437,3))","v":42.4},{"$f":"I607*J607","v":0}]
["",{"$f":"IF($A608=1,COUNTIF($A$166:$A607,1)+1,\"\")","v":""},"",null,0,null,"Beschriftung Taster 18x18mm oder 24x18mm",5557,null,{"$f":"IF(ISNA(VLOOKUP($H608,'AF-Artikel'!$A$3:$D$5437,3)),\"\",VLOOKUP($H608,'AF-Artikel'!$A$3:$D$5437,3))","v":11.42},{"$f":"I608*J608","v":0}]
["",{"$f":"IF($A609=1,COUNTIF($A$166:$A608,1)+1,\"\")","v":""},"",null,0,null,"Beschriftung Taster 18x18mm oder 24x18mm",5315,null,{"$f":"IF(ISNA(VLOOKUP($H609,'AF-Artikel'!$A$3:$D$5437,3)),\"\",VLOOKUP($H609,'AF-Artikel'!$A$3:$D$5437,3))","v":1.1499999999999999},{"$f":"I609*J609","v":0}]
["",{"$f":"IF($A610=1,COUNTIF($A$166:$A609,1)+1,\"\")","v":""},"",null,0,null,null,null,null,{"$f":"IF(ISNA(VLOOKUP($H610,'AF-Artikel'!$A$3:$D$5437,3)),\"\",VLOOKUP($H610,'AF-Artikel'!$A$3:$D$5437,3))","v":""}]
["",{"$f":"IF($A611=1,COUNTIF($A$166:$A610,1)+1,\"\")","v":""},"",null,0,null,null,null,null,{"$f":"IF(ISNA(VLOOKUP($H611,'AF-Artikel'!$A$3:$D$5437,3)),\"\",VLOOKUP($H611,'AF-Artikel'!$A$3:$D$5437,3))","v":""}]
["",{"$f":"IF($A612=1,COUNTIF($A$166:$A576,1)+1,\"\")","v":""},"",null,0]
[{"$f":"IF(I613>0,1,\"\")","v":""},{"$f":"IF($A613=1,COUNTIF($A$166:$A612,1)+1,\"\")","v":""},"",{"$f":"IF($I613>0,LEN($L613)*$A$25,\"0\")","v":"0"},0,null,"Schukosteckdose mit Isolierdose und Zugentlastung, Schraubanschluss",5185,null,{"$f":"IF(ISNA(VLOOKUP($H613,'AF-Artikel'!$A$3:$D$5437,3)),\"\",VLOOKUP($H613,'AF-Artikel'!$A$3:$D$5437,3))","v":20.78},{"$f":"I613*J613","v":0}]
["",{"$f":"IF($A614=1,COUNTIF($A$166:$A613,1)+1,\"\")","v":""},"",{"$f":"IF($I614>0,LEN($L614)*$A$25,\"0\")","v":"0"},0,null,"Schukosteckdose auf Schukostecker 3m",5186,null,{"$f":"IF(ISNA(VLOOKUP($H614,'AF-Artikel'!$A$3:$D$5437,3)),\"\",VLOOKUP($H614,'AF-Artikel'!$A$3:$D$5437,3))","v":37.83},{"$f":"I614*J614","v":0}]
["",{"$f":"IF($A615=1,COUNTIF($A$166:$A614,1)+1,\"\")","v":""},"",null,{"$f":"IF($A$25=0,$I615,IF(OR($A615=\"\",$A$25>0),$I615,SUM($I615*VLOOKUP($A$1,$A$28:$I$165,9))))","v":0},null,"zusätzliche Kabellänge für obiges Kabel in Meter",5311,null,{"$f":"IF(ISNA(VLOOKUP($H615,'AF-Artikel'!$A$3:$D$5437,3)),\"\",VLOOKUP($H615,'AF-Artikel'!$A$3:$D$5437,3))","v":1.49},{"$f":"I615*J615","v":0}]
["",{"$f":"IF($A616=1,COUNTIF($A$166:$A615,1)+1,\"\")","v":""},"",null,0,null,null,null,null,{"$f":"IF(ISNA(VLOOKUP($H616,'AF-Artikel'!$A$3:$D$5437,3)),\"\",VLOOKUP($H616,'AF-Artikel'!$A$3:$D$5437,3))","v":""}]
["",{"$f":"IF($A617=1,COUNTIF($A$166:$A616,1)+1,\"\")","v":""},"",null,0,null,"Nicht möglich bei Bodentankeinsätzen (5001, 5002, 5013, 5014)",null,null,{"$f":"IF(ISNA(VLOOKUP($H617,'AF-Artikel'!$A$3:$D$5437,3)),\"\",VLOOKUP($H617,'AF-Artikel'!$A$3:$D$5437,3))","v":""}]
["",{"$f":"IF($A618=1,COUNTIF($A$166:$A617,1)+1,\"\")","v":""},"",null,0,null,null,null,null,{"$f":"IF(ISNA(VLOOKUP($H618,'AF-Artikel'!$A$3:$D$5437,3)),\"\",VLOOKUP($H618,'AF-Artikel'!$A$3:$D$5437,3))","v":""}]
["",{"$f":"IF($A619=1,COUNTIF($A$166:$A618,1)+1,\"\")","v":""},"",null,0]
["",{"$f":"IF($A620=1,COUNTIF($A$166:$A619,1)+1,\"\")","v":""},"",{"$f":"IF($I620>0,LEN($L620)*$A$25,\"0\")","v":"0"},0,null,"Kaltgeräteeinbaudose, Steckanschluss/Lötanschluss",5251,null,{"$f":"IF(ISNA(VLOOKUP($H620,'AF-Artikel'!$A$3:$D$5437,3)),\"\",VLOOKUP($H620,'AF-Artikel'!$A$3:$D$5437,3))","v":18.47},{"$f":"I620*J620","v":0}]
["",{"$f":"IF($A621=1,COUNTIF($A$166:$A620,1)+1,\"\")","v":""},"",{"$f":"IF($I621>0,LEN($L621)*$A$25,\"0\")","v":"0"},0,null,"Kaltgeräteeinbaudose auf Schukostecker, Länge: 3m",5252,null,{"$f":"IF(ISNA(VLOOKUP($H621,'AF-Artikel'!$A$3:$D$5437,3)),\"\",VLOOKUP($H621,'AF-Artikel'!$A$3:$D$5437,3))","v":37.53},{"$f":"I621*J621","v":0}]
["",{"$f":"IF($A622=1,COUNTIF($A$166:$A621,1)+1,\"\")","v":""},"",null,0,null,"zusätzliche Kabellänge für obiges Kabel in Meter",5311,null,{"$f":"IF(ISNA(VLOOKUP($H622,'AF-Artikel'!$A$3:$D$5437,3)),\"\",VLOOKUP($H622,'AF-Artikel'!$A$3:$D$5437,3))","v":1.49},{"$f":"I622*J622","v":0}]
["",{"$f":"IF($A623=1,COUNTIF($A$166:$A622,1)+1,\"\")","v":""},"",null,0,null,null,null,null,{"$f":"IF(ISNA(VLOOKUP($H623,'AF-Artikel'!$A$3:$D$5437,3)),\"\",VLOOKUP($H623,'AF-Artikel'!$A$3:$D$5437,3))","v":""}]
["",{"$f":"IF($A624=1,COUNTIF($A$166:$A623,1)+1,\"\")","v":""},"",null,0,null,"Nicht möglich bei Bodentankeinsätzen (5001, 5002, 5013, 5014)",null,null,{"$f":"IF(ISNA(VLOOKUP($H624,'AF-Artikel'!$A$3:$D$5437,3)),\"\",VLOOKUP($H624,'AF-Artikel'!$A$3:$D$5437,3))","v":""}]
["",{"$f":"IF($A625=1,COUNTIF($A$166:$A624,1)+1,\"\")","v":""},"",null,0,null,null,null,null,{"$f":"IF(ISNA(VLOOKUP($H625,'AF-Artikel'!$A$3:$D$5437,3)),\"\",VLOOKUP($H625,'AF-Artikel'!$A$3:$D$5437,3))","v":""}]
["",{"$f":"IF($A626=1,COUNTIF($A$166:$A625,1)+1,\"\")","v":""},"",null,0]
["",{"$f":"IF($A627=1,COUNTIF($A$166:$A626,1)+1,\"\")","v":""},"",{"$f":"IF($I627>0,LEN($L627)*$A$25,\"0\")","v":"0"},0,null,"Kaltgeräteeinbaustecker, Steckanschluss/Lötanschluss",5253,null,{"$f":"IF(ISNA(VLOOKUP($H627,'AF-Artikel'!$A$3:$D$5437,3)),\"\",VLOOKUP($H627,'AF-Artikel'!$A$3:$D$5437,3))","v":18.47},{"$f":"I627*J627","v":0}]
["",{"$f":"IF($A628=1,COUNTIF($A$166:$A627,1)+1,\"\")","v":""},"",{"$f":"IF($I628>0,LEN($L628)*$A$25,\"0\")","v":"0"},0,null,"Kaltgeräteeinbaustecker, auf Schukokupplung, Länge: 3m",5254,null,{"$f":"IF(ISNA(VLOOKUP($H628,'AF-Artikel'!$A$3:$D$5437,3)),\"\",VLOOKUP($H628,'AF-Artikel'!$A$3:$D$5437,3))","v":37.53},{"$f":"I628*J628","v":0}]
["",{"$f":"IF($A629=1,COUNTIF($A$166:$A628,1)+1,\"\")","v":""},"",null,0,null,"zusätzliche Kabellänge für obiges Kabel in Meter",5311,null,{"$f":"IF(ISNA(VLOOKUP($H629,'AF-Artikel'!$A$3:$D$5437,3)),\"\",VLOOKUP($H629,'AF-Artikel'!$A$3:$D$5437,3))","v":1.49},{"$f":"I629*J629","v":0}]
["",{"$f":"IF($A630=1,COUNTIF($A$166:$A629,1)+1,\"\")","v":""},"",null,0,null,null,null,null,{"$f":"IF(ISNA(VLOOKUP($H630,'AF-Artikel'!$A$3:$D$5437,3)),\"\",VLOOKUP($H630,'AF-Artikel'!$A$3:$D$5437,3))","v":""}]
["",{"$f":"IF($A631=1,COUNTIF($A$166:$A630,1)+1,\"\")","v":""},"",null,0,null,"Nicht möglich bei Bodentankeinsätzen (5001, 5002, 5013, 5014)",null,null,{"$f":"IF(ISNA(VLOOKUP($H631,'AF-Artikel'!$A$3:$D$5437,3)),\"\",VLOOKUP($H631,'AF-Artikel'!$A$3:$D$5437,3))","v":""}]
["",{"$f":"IF($A632=1,COUNTIF($A$166:$A631,1)+1,\"\")","v":""},"",null,0,null,null,null,null,{"$f":"IF(ISNA(VLOOKUP($H632,'AF-Artikel'!$A$3:$D$5437,3)),\"\",VLOOKUP($H632,'AF-Artikel'!$A$3:$D$5437,3))","v":""}]
["",{"$f":"IF($A633=1,COUNTIF($A$166:$A632,1)+1,\"\")","v":""},"",null,0]
["",{"$f":"IF($A634=1,COUNTIF($A$28:$A633,1)+1,\"\")","v":""}]
[{"$f":"IF(I635>0,1,\"\")","v":""},{"$f":"IF($A635=1,COUNTIF($A$28:$A634,1)+1,\"\")","v":""}]
["",{"$f":"IF($A636=1,COUNTIF($A$28:$A635,1)+1,\"\")","v":""}]
["",{"$f":"IF($A637=1,COUNTIF($A$28:$A636,1)+1,\"\")","v":""}]
["",{"$f":"IF($A638=1,COUNTIF($A$28:$A637,1)+1,\"\")","v":""}]
["",{"$f":"IF($A639=1,COUNTIF($A$28:$A638,1)+1,\"\")","v":""}]
["",{"$f":"IF($A640=1,COUNTIF($A$28:$A639,1)+1,\"\")","v":""}]
["",{"$f":"IF($A641=1,COUNTIF($A$28:$A640,1)+1,\"\")","v":""}]
["",{"$f":"IF($A642=1,COUNTIF($A$28:$A641,1)+1,\"\")","v":""}]
["",{"$f":"IF($A643=1,COUNTIF($A$28:$A642,1)+1,\"\")","v":""}]
["",{"$f":"IF($A644=1,COUNTIF($A$28:$A643,1)+1,\"\")","v":""}]
["",{"$f":"IF($A645=1,COUNTIF($A$28:$A644,1)+1,\"\")","v":""}]
["",{"$f":"IF($A646=1,COUNTIF($A$28:$A645,1)+1,\"\")","v":""}]
["",{"$f":"IF($A647=1,COUNTIF($A$28:$A646,1)+1,\"\")","v":""}]
["",{"$f":"IF($A648=1,COUNTIF($A$28:$A647,1)+1,\"\")","v":""}]
["",{"$f":"IF($A649=1,COUNTIF($A$28:$A648,1)+1,\"\")","v":""}]
["",{"$f":"IF($A650=1,COUNTIF($A$28:$A649,1)+1,\"\")","v":""}]
["",{"$f":"IF($A651=1,COUNTIF($A$28:$A650,1)+1,\"\")","v":""}]
["",{"$f":"IF($A652=1,COUNTIF($A$28:$A651,1)+1,\"\")","v":""}]
["",{"$f":"IF($A653=1,COUNTIF($A$28:$A652,1)+1,\"\")","v":""}]
["",{"$f":"IF($A654=1,COUNTIF($A$28:$A653,1)+1,\"\")","v":""}]
["",{"$f":"IF($A655=1,COUNTIF($A$28:$A654,1)+1,\"\")","v":""}]
["",{"$f":"IF($A656=1,COUNTIF($A$28:$A655,1)+1,\"\")","v":""}]
["",{"$f":"IF($A657=1,COUNTIF($A$28:$A656,1)+1,\"\")","v":""}]
["",{"$f":"IF($A658=1,COUNTIF($A$28:$A657,1)+1,\"\")","v":""}]
["",{"$f":"IF($A659=1,COUNTIF($A$28:$A658,1)+1,\"\")","v":""}]
["",{"$f":"IF($A660=1,COUNTIF($A$28:$A659,1)+1,\"\")","v":""}]
["",{"$f":"IF($A661=1,COUNTIF($A$28:$A660,1)+1,\"\")","v":""}]
["",{"$f":"IF($A662=1,COUNTIF($A$28:$A661,1)+1,\"\")","v":""}]
["",{"$f":"IF($A663=1,COUNTIF($A$28:$A662,1)+1,\"\")","v":""}]
["",{"$f":"IF($A664=1,COUNTIF($A$28:$A663,1)+1,\"\")","v":""}]
["",{"$f":"IF($A665=1,COUNTIF($A$28:$A664,1)+1,\"\")","v":""}]
["",{"$f":"IF($A666=1,COUNTIF($A$28:$A665,1)+1,\"\")","v":""}]
["",{"$f":"IF($A667=1,COUNTIF($A$28:$A666,1)+1,\"\")","v":""}]
["",{"$f":"IF($A668=1,COUNTIF($A$28:$A667,1)+1,\"\")","v":""}]
["",{"$f":"IF($A669=1,COUNTIF($A$28:$A668,1)+1,\"\")","v":""}]
["",{"$f":"IF($A670=1,COUNTIF($A$28:$A669,1)+1,\"\")","v":""}]
["",{"$f":"IF($A671=1,COUNTIF($A$28:$A670,1)+1,\"\")","v":""}]
["",{"$f":"IF($A672=1,COUNTIF($A$28:$A671,1)+1,\"\")","v":""}]
["",{"$f":"IF($A673=1,COUNTIF($A$28:$A672,1)+1,\"\")","v":""}]
["",{"$f":"IF($A674=1,COUNTIF($A$28:$A673,1)+1,\"\")","v":""}]
["",{"$f":"IF($A675=1,COUNTIF($A$28:$A674,1)+1,\"\")","v":""}]
["",{"$f":"IF($A676=1,COUNTIF($A$28:$A675,1)+1,\"\")","v":""}]
["",{"$f":"IF($A677=1,COUNTIF($A$28:$A676,1)+1,\"\")","v":""}]
["",{"$f":"IF($A678=1,COUNTIF($A$28:$A677,1)+1,\"\")","v":""}]
["",{"$f":"IF($A679=1,COUNTIF($A$28:$A678,1)+1,\"\")","v":""}]
["",{"$f":"IF($A680=1,COUNTIF($A$28:$A679,1)+1,\"\")","v":""}]
["",{"$f":"IF($A681=1,COUNTIF($A$28:$A680,1)+1,\"\")","v":""}]
["",{"$f":"IF($A682=1,COUNTIF($A$28:$A681,1)+1,\"\")","v":""}]
["",{"$f":"IF($A683=1,COUNTIF($A$28:$A682,1)+1,\"\")","v":""}]
["",{"$f":"IF($A684=1,COUNTIF($A$28:$A683,1)+1,\"\")","v":""}]
["",{"$f":"IF($A685=1,COUNTIF($A$28:$A684,1)+1,\"\")","v":""}]
["",{"$f":"IF($A686=1,COUNTIF($A$28:$A685,1)+1,\"\")","v":""}]
["",{"$f":"IF($A687=1,COUNTIF($A$28:$A686,1)+1,\"\")","v":""}]
["",{"$f":"IF($A688=1,COUNTIF($A$28:$A687,1)+1,\"\")","v":""}]
["",{"$f":"IF($A689=1,COUNTIF($A$28:$A688,1)+1,\"\")","v":""}]
["",{"$f":"IF($A690=1,COUNTIF($A$28:$A689,1)+1,\"\")","v":""}]
["",{"$f":"IF($A691=1,COUNTIF($A$28:$A690,1)+1,\"\")","v":""}]
["",{"$f":"IF($A692=1,COUNTIF($A$28:$A691,1)+1,\"\")","v":""}]
["",{"$f":"IF($A693=1,COUNTIF($A$28:$A692,1)+1,\"\")","v":""}]
["",{"$f":"IF($A694=1,COUNTIF($A$28:$A693,1)+1,\"\")","v":""}]
["",{"$f":"IF($A695=1,COUNTIF($A$28:$A694,1)+1,\"\")","v":""}]
["",{"$f":"IF($A696=1,COUNTIF($A$28:$A695,1)+1,\"\")","v":""}]
["",{"$f":"IF($A697=1,COUNTIF($A$28:$A696,1)+1,\"\")","v":""}]
[{"$f":"IF(I698>0,1,\"\")","v":""},{"$f":"IF($A698=1,COUNTIF($A$28:$A697,1)+1,\"\")","v":""}]
["",{"$f":"IF($A699=1,COUNTIF($A$28:$A698,1)+1,\"\")","v":""}]
["",{"$f":"IF($A700=1,COUNTIF($A$28:$A699,1)+1,\"\")","v":""}]
["",{"$f":"IF($A701=1,COUNTIF($A$28:$A700,1)+1,\"\")","v":""}]
["",{"$f":"IF($A702=1,COUNTIF($A$28:$A701,1)+1,\"\")","v":""}]
["",{"$f":"IF($A703=1,COUNTIF($A$28:$A702,1)+1,\"\")","v":""}]
["",{"$f":"IF($A704=1,COUNTIF($A$28:$A703,1)+1,\"\")","v":""}]
["",{"$f":"IF($A705=1,COUNTIF($A$28:$A704,1)+1,\"\")","v":""}]
["",{"$f":"IF($A706=1,COUNTIF($A$28:$A705,1)+1,\"\")","v":""}]
["",{"$f":"IF($A707=1,COUNTIF($A$28:$A706,1)+1,\"\")","v":""}]
["",{"$f":"IF($A708=1,COUNTIF($A$28:$A707,1)+1,\"\")","v":""}]
["",{"$f":"IF($A709=1,COUNTIF($A$28:$A708,1)+1,\"\")","v":""}]
["",{"$f":"IF($A710=1,COUNTIF($A$28:$A709,1)+1,\"\")","v":""}]
["",{"$f":"IF($A711=1,COUNTIF($A$28:$A710,1)+1,\"\")","v":""}]
["",{"$f":"IF($A712=1,COUNTIF($A$28:$A711,1)+1,\"\")","v":""}]
["",{"$f":"IF($A713=1,COUNTIF($A$28:$A712,1)+1,\"\")","v":""}]
["",{"$f":"IF($A714=1,COUNTIF($A$28:$A713,1)+1,\"\")","v":""}]
["",{"$f":"IF($A715=1,COUNTIF($A$28:$A714,1)+1,\"\")","v":""}]
["",{"$f":"IF($A716=1,COUNTIF($A$28:$A715,1)+1,\"\")","v":""}]
["",{"$f":"IF($A717=1,COUNTIF($A$28:$A716,1)+1,\"\")","v":""}]
["",{"$f":"IF($A718=1,COUNTIF($A$28:$A717,1)+1,\"\")","v":""}]
["",{"$f":"IF($A719=1,COUNTIF($A$28:$A718,1)+1,\"\")","v":""}]
["",{"$f":"IF($A720=1,COUNTIF($A$28:$A719,1)+1,\"\")","v":""}]
["",{"$f":"IF($A721=1,COUNTIF($A$28:$A720,1)+1,\"\")","v":""}]
["",{"$f":"IF($A722=1,COUNTIF($A$28:$A721,1)+1,\"\")","v":""}]
["",{"$f":"IF($A723=1,COUNTIF($A$28:$A722,1)+1,\"\")","v":""}]
["",{"$f":"IF($A724=1,COUNTIF($A$28:$A723,1)+1,\"\")","v":""}]
["",{"$f":"IF($A725=1,COUNTIF($A$28:$A724,1)+1,\"\")","v":""}]
["",{"$f":"IF($A726=1,COUNTIF($A$28:$A725,1)+1,\"\")","v":""}]
["",{"$f":"IF($A727=1,COUNTIF($A$28:$A726,1)+1,\"\")","v":""}]
["",{"$f":"IF($A728=1,COUNTIF($A$28:$A727,1)+1,\"\")","v":""}]
["",{"$f":"IF($A729=1,COUNTIF($A$28:$A728,1)+1,\"\")","v":""}]
["",{"$f":"IF($A730=1,COUNTIF($A$28:$A729,1)+1,\"\")","v":""}]
["",{"$f":"IF($A731=1,COUNTIF($A$28:$A730,1)+1,\"\")","v":""}]
["",{"$f":"IF($A732=1,COUNTIF($A$28:$A731,1)+1,\"\")","v":""}]
["",{"$f":"IF($A733=1,COUNTIF($A$28:$A732,1)+1,\"\")","v":""}]
["",{"$f":"IF($A734=1,COUNTIF($A$28:$A733,1)+1,\"\")","v":""}]
["",{"$f":"IF($A735=1,COUNTIF($A$28:$A734,1)+1,\"\")","v":""}]
["",{"$f":"IF($A736=1,COUNTIF($A$28:$A735,1)+1,\"\")","v":""}]
["",{"$f":"IF($A737=1,COUNTIF($A$28:$A736,1)+1,\"\")","v":""}]
["",{"$f":"IF($A738=1,COUNTIF($A$28:$A737,1)+1,\"\")","v":""}]
["",{"$f":"IF($A739=1,COUNTIF($A$28:$A738,1)+1,\"\")","v":""}]
["",{"$f":"IF($A740=1,COUNTIF($A$28:$A739,1)+1,\"\")","v":""}]
["",{"$f":"IF($A741=1,COUNTIF($A$28:$A740,1)+1,\"\")","v":""}]
["",{"$f":"IF($A742=1,COUNTIF($A$28:$A741,1)+1,\"\")","v":""}]
["",{"$f":"IF($A743=1,COUNTIF($A$28:$A742,1)+1,\"\")","v":""}]
["",{"$f":"IF($A744=1,COUNTIF($A$28:$A743,1)+1,\"\")","v":""}]
["",{"$f":"IF($A745=1,COUNTIF($A$28:$A744,1)+1,\"\")","v":""}]
["",{"$f":"IF($A746=1,COUNTIF($A$28:$A745,1)+1,\"\")","v":""}]
["",{"$f":"IF($A747=1,COUNTIF($A$28:$A746,1)+1,\"\")","v":""}]
["",{"$f":"IF($A748=1,COUNTIF($A$28:$A747,1)+1,\"\")","v":""}]
["",{"$f":"IF($A749=1,COUNTIF($A$28:$A748,1)+1,\"\")","v":""}]
["",{"$f":"IF($A750=1,COUNTIF($A$28:$A749,1)+1,\"\")","v":""}]
["",{"$f":"IF($A751=1,COUNTIF($A$28:$A750,1)+1,\"\")","v":""}]
["",{"$f":"IF($A752=1,COUNTIF($A$28:$A751,1)+1,\"\")","v":""}]
["",{"$f":"IF($A753=1,COUNTIF($A$28:$A752,1)+1,\"\")","v":""}]
["",{"$f":"IF($A754=1,COUNTIF($A$28:$A753,1)+1,\"\")","v":""}]
["",{"$f":"IF($A755=1,COUNTIF($A$28:$A754,1)+1,\"\")","v":""}]
["",{"$f":"IF($A756=1,COUNTIF($A$28:$A755,1)+1,\"\")","v":""}]
["",{"$f":"IF($A757=1,COUNTIF($A$28:$A756,1)+1,\"\")","v":""}]
["",{"$f":"IF($A758=1,COUNTIF($A$28:$A757,1)+1,\"\")","v":""}]
["",{"$f":"IF($A759=1,COUNTIF($A$28:$A758,1)+1,\"\")","v":""}]
["",{"$f":"IF($A760=1,COUNTIF($A$28:$A759,1)+1,\"\")","v":""}]
["",{"$f":"IF($A761=1,COUNTIF($A$28:$A760,1)+1,\"\")","v":""}]
[{"$f":"IF(I762>0,1,\"\")","v":""},{"$f":"IF($A762=1,COUNTIF($A$28:$A761,1)+1,\"\")","v":""}]
["",{"$f":"IF($A763=1,COUNTIF($A$28:$A762,1)+1,\"\")","v":""}]
["",{"$f":"IF($A764=1,COUNTIF($A$28:$A763,1)+1,\"\")","v":""}]
["",{"$f":"IF($A765=1,COUNTIF($A$28:$A764,1)+1,\"\")","v":""}]
["",{"$f":"IF($A766=1,COUNTIF($A$28:$A765,1)+1,\"\")","v":""}]
["",{"$f":"IF($A767=1,COUNTIF($A$28:$A766,1)+1,\"\")","v":""}]
["",{"$f":"IF($A768=1,COUNTIF($A$28:$A767,1)+1,\"\")","v":""}]
["",{"$f":"IF($A769=1,COUNTIF($A$28:$A768,1)+1,\"\")","v":""}]
["",{"$f":"IF($A770=1,COUNTIF($A$28:$A769,1)+1,\"\")","v":""}]
["",{"$f":"IF($A771=1,COUNTIF($A$28:$A770,1)+1,\"\")","v":""}]
["",{"$f":"IF($A772=1,COUNTIF($A$28:$A771,1)+1,\"\")","v":""}]
["",{"$f":"IF($A773=1,COUNTIF($A$28:$A772,1)+1,\"\")","v":""}]
["",{"$f":"IF($A774=1,COUNTIF($A$28:$A773,1)+1,\"\")","v":""}]
["",{"$f":"IF($A775=1,COUNTIF($A$28:$A774,1)+1,\"\")","v":""}]
["",{"$f":"IF($A776=1,COUNTIF($A$28:$A775,1)+1,\"\")","v":""}]
["",{"$f":"IF($A777=1,COUNTIF($A$28:$A776,1)+1,\"\")","v":""}]
["",{"$f":"IF($A778=1,COUNTIF($A$28:$A777,1)+1,\"\")","v":""}]
["",{"$f":"IF($A779=1,COUNTIF($A$28:$A778,1)+1,\"\")","v":""}]
["",{"$f":"IF($A780=1,COUNTIF($A$28:$A779,1)+1,\"\")","v":""}]
["",{"$f":"IF($A781=1,COUNTIF($A$28:$A780,1)+1,\"\")","v":""}]
["",{"$f":"IF($A782=1,COUNTIF($A$28:$A781,1)+1,\"\")","v":""}]
["",{"$f":"IF($A783=1,COUNTIF($A$28:$A782,1)+1,\"\")","v":""}]
["",{"$f":"IF($A784=1,COUNTIF($A$28:$A783,1)+1,\"\")","v":""}]
["",{"$f":"IF($A785=1,COUNTIF($A$28:$A784,1)+1,\"\")","v":""}]
["",{"$f":"IF($A786=1,COUNTIF($A$28:$A785,1)+1,\"\")","v":""}]
["",{"$f":"IF($A787=1,COUNTIF($A$28:$A786,1)+1,\"\")","v":""}]
["",{"$f":"IF($A788=1,COUNTIF($A$28:$A787,1)+1,\"\")","v":""}]
["",{"$f":"IF($A789=1,COUNTIF($A$28:$A788,1)+1,\"\")","v":""}]
["",{"$f":"IF($A790=1,COUNTIF($A$28:$A789,1)+1,\"\")","v":""}]
["",{"$f":"IF($A791=1,COUNTIF($A$28:$A790,1)+1,\"\")","v":""}]
["",{"$f":"IF($A792=1,COUNTIF($A$28:$A791,1)+1,\"\")","v":""}]
["",{"$f":"IF($A793=1,COUNTIF($A$28:$A792,1)+1,\"\")","v":""}]
["",{"$f":"IF($A794=1,COUNTIF($A$28:$A793,1)+1,\"\")","v":""}]
["",{"$f":"IF($A795=1,COUNTIF($A$28:$A794,1)+1,\"\")","v":""}]
["",{"$f":"IF($A796=1,COUNTIF($A$28:$A795,1)+1,\"\")","v":""}]
["",{"$f":"IF($A797=1,COUNTIF($A$28:$A796,1)+1,\"\")","v":""}]
["",{"$f":"IF($A798=1,COUNTIF($A$28:$A797,1)+1,\"\")","v":""}]
["",{"$f":"IF($A799=1,COUNTIF($A$28:$A798,1)+1,\"\")","v":""}]
["",{"$f":"IF($A800=1,COUNTIF($A$28:$A799,1)+1,\"\")","v":""}]
["",{"$f":"IF($A801=1,COUNTIF($A$28:$A800,1)+1,\"\")","v":""}]
["",{"$f":"IF($A802=1,COUNTIF($A$28:$A801,1)+1,\"\")","v":""}]
["",{"$f":"IF($A803=1,COUNTIF($A$28:$A802,1)+1,\"\")","v":""}]
["",{"$f":"IF($A804=1,COUNTIF($A$28:$A803,1)+1,\"\")","v":""}]
["",{"$f":"IF($A805=1,COUNTIF($A$28:$A804,1)+1,\"\")","v":""}]
["",{"$f":"IF($A806=1,COUNTIF($A$28:$A805,1)+1,\"\")","v":""}]
["",{"$f":"IF($A807=1,COUNTIF($A$28:$A806,1)+1,\"\")","v":""}]
["",{"$f":"IF($A808=1,COUNTIF($A$28:$A807,1)+1,\"\")","v":""}]
["",{"$f":"IF($A809=1,COUNTIF($A$28:$A808,1)+1,\"\")","v":""}]
["",{"$f":"IF($A810=1,COUNTIF($A$28:$A809,1)+1,\"\")","v":""}]
["",{"$f":"IF($A811=1,COUNTIF($A$28:$A810,1)+1,\"\")","v":""}]
["",{"$f":"IF($A812=1,COUNTIF($A$28:$A811,1)+1,\"\")","v":""}]
["",{"$f":"IF($A813=1,COUNTIF($A$28:$A812,1)+1,\"\")","v":""}]
["",{"$f":"IF($A814=1,COUNTIF($A$28:$A813,1)+1,\"\")","v":""}]
["",{"$f":"IF($A815=1,COUNTIF($A$28:$A814,1)+1,\"\")","v":""}]
["",{"$f":"IF($A816=1,COUNTIF($A$28:$A815,1)+1,\"\")","v":""}]
["",{"$f":"IF($A817=1,COUNTIF($A$28:$A816,1)+1,\"\")","v":""}]
["",{"$f":"IF($A818=1,COUNTIF($A$28:$A817,1)+1,\"\")","v":""}]
["",{"$f":"IF($A819=1,COUNTIF($A$28:$A818,1)+1,\"\")","v":""}]
["",{"$f":"IF($A820=1,COUNTIF($A$28:$A819,1)+1,\"\")","v":""}]
["",{"$f":"IF($A821=1,COUNTIF($A$28:$A820,1)+1,\"\")","v":""}]
["",{"$f":"IF($A822=1,COUNTIF($A$28:$A821,1)+1,\"\")","v":""}]
["",{"$f":"IF($A823=1,COUNTIF($A$28:$A822,1)+1,\"\")","v":""}]
["",{"$f":"IF($A824=1,COUNTIF($A$28:$A823,1)+1,\"\")","v":""}]
["",{"$f":"IF($A825=1,COUNTIF($A$28:$A824,1)+1,\"\")","v":""}]
[{"$f":"IF(I826>0,1,\"\")","v":""},{"$f":"IF($A826=1,COUNTIF($A$28:$A825,1)+1,\"\")","v":""}]
["",{"$f":"IF($A827=1,COUNTIF($A$28:$A826,1)+1,\"\")","v":""}]
["",{"$f":"IF($A828=1,COUNTIF($A$28:$A827,1)+1,\"\")","v":""}]
["",{"$f":"IF($A829=1,COUNTIF($A$28:$A828,1)+1,\"\")","v":""}]
["",{"$f":"IF($A830=1,COUNTIF($A$28:$A829,1)+1,\"\")","v":""}]
["",{"$f":"IF($A831=1,COUNTIF($A$28:$A830,1)+1,\"\")","v":""}]
["",{"$f":"IF($A832=1,COUNTIF($A$28:$A831,1)+1,\"\")","v":""}]
["",{"$f":"IF($A833=1,COUNTIF($A$28:$A832,1)+1,\"\")","v":""}]
["",{"$f":"IF($A834=1,COUNTIF($A$28:$A833,1)+1,\"\")","v":""}]
["",{"$f":"IF($A835=1,COUNTIF($A$28:$A834,1)+1,\"\")","v":""}]
["",{"$f":"IF($A836=1,COUNTIF($A$28:$A835,1)+1,\"\")","v":""}]
["",{"$f":"IF($A837=1,COUNTIF($A$28:$A836,1)+1,\"\")","v":""}]
["",{"$f":"IF($A838=1,COUNTIF($A$28:$A837,1)+1,\"\")","v":""}]
["",{"$f":"IF($A839=1,COUNTIF($A$28:$A838,1)+1,\"\")","v":""}]
["",{"$f":"IF($A840=1,COUNTIF($A$28:$A839,1)+1,\"\")","v":""}]
["",{"$f":"IF($A841=1,COUNTIF($A$28:$A840,1)+1,\"\")","v":""}]
["",{"$f":"IF($A842=1,COUNTIF($A$28:$A841,1)+1,\"\")","v":""}]
["",{"$f":"IF($A843=1,COUNTIF($A$28:$A842,1)+1,\"\")","v":""}]
["",{"$f":"IF($A844=1,COUNTIF($A$28:$A843,1)+1,\"\")","v":""}]
["",{"$f":"IF($A845=1,COUNTIF($A$28:$A844,1)+1,\"\")","v":""}]
["",{"$f":"IF($A846=1,COUNTIF($A$28:$A845,1)+1,\"\")","v":""}]
["",{"$f":"IF($A847=1,COUNTIF($A$28:$A846,1)+1,\"\")","v":""}]
["",{"$f":"IF($A848=1,COUNTIF($A$28:$A847,1)+1,\"\")","v":""}]
["",{"$f":"IF($A849=1,COUNTIF($A$28:$A848,1)+1,\"\")","v":""}]
["",{"$f":"IF($A850=1,COUNTIF($A$28:$A849,1)+1,\"\")","v":""}]
["",{"$f":"IF($A851=1,COUNTIF($A$28:$A850,1)+1,\"\")","v":""}]
["",{"$f":"IF($A852=1,COUNTIF($A$28:$A851,1)+1,\"\")","v":""}]
["",{"$f":"IF($A853=1,COUNTIF($A$28:$A852,1)+1,\"\")","v":""}]
["",{"$f":"IF($A854=1,COUNTIF($A$28:$A853,1)+1,\"\")","v":""}]
["",{"$f":"IF($A855=1,COUNTIF($A$28:$A854,1)+1,\"\")","v":""}]
["",{"$f":"IF($A856=1,COUNTIF($A$28:$A855,1)+1,\"\")","v":""}]
["",{"$f":"IF($A857=1,COUNTIF($A$28:$A856,1)+1,\"\")","v":""}]
["",{"$f":"IF($A858=1,COUNTIF($A$28:$A857,1)+1,\"\")","v":""}]
["",{"$f":"IF($A859=1,COUNTIF($A$28:$A858,1)+1,\"\")","v":""}]
["",{"$f":"IF($A860=1,COUNTIF($A$28:$A859,1)+1,\"\")","v":""}]
["",{"$f":"IF($A861=1,COUNTIF($A$28:$A860,1)+1,\"\")","v":""}]
["",{"$f":"IF($A862=1,COUNTIF($A$28:$A861,1)+1,\"\")","v":""}]
["",{"$f":"IF($A863=1,COUNTIF($A$28:$A862,1)+1,\"\")","v":""}]
["",{"$f":"IF($A864=1,COUNTIF($A$28:$A863,1)+1,\"\")","v":""}]
["",{"$f":"IF($A865=1,COUNTIF($A$28:$A864,1)+1,\"\")","v":""}]
["",{"$f":"IF($A866=1,COUNTIF($A$28:$A865,1)+1,\"\")","v":""}]
["",{"$f":"IF($A867=1,COUNTIF($A$28:$A866,1)+1,\"\")","v":""}]
["",{"$f":"IF($A868=1,COUNTIF($A$28:$A867,1)+1,\"\")","v":""}]
["",{"$f":"IF($A869=1,COUNTIF($A$28:$A868,1)+1,\"\")","v":""}]
["",{"$f":"IF($A870=1,COUNTIF($A$28:$A869,1)+1,\"\")","v":""}]
["",{"$f":"IF($A871=1,COUNTIF($A$28:$A870,1)+1,\"\")","v":""}]
["",{"$f":"IF($A872=1,COUNTIF($A$28:$A871,1)+1,\"\")","v":""}]
["",{"$f":"IF($A873=1,COUNTIF($A$28:$A872,1)+1,\"\")","v":""}]
["",{"$f":"IF($A874=1,COUNTIF($A$28:$A873,1)+1,\"\")","v":""}]
["",{"$f":"IF($A875=1,COUNTIF($A$28:$A874,1)+1,\"\")","v":""}]
["",{"$f":"IF($A876=1,COUNTIF($A$28:$A875,1)+1,\"\")","v":""}]
["",{"$f":"IF($A877=1,COUNTIF($A$28:$A876,1)+1,\"\")","v":""}]
["",{"$f":"IF($A878=1,COUNTIF($A$28:$A877,1)+1,\"\")","v":""}]
["",{"$f":"IF($A879=1,COUNTIF($A$28:$A878,1)+1,\"\")","v":""}]
["",{"$f":"IF($A880=1,COUNTIF($A$28:$A879,1)+1,\"\")","v":""}]
["",{"$f":"IF($A881=1,COUNTIF($A$28:$A880,1)+1,\"\")","v":""}]
["",{"$f":"IF($A882=1,COUNTIF($A$28:$A881,1)+1,\"\")","v":""}]
["",{"$f":"IF($A883=1,COUNTIF($A$28:$A882,1)+1,\"\")","v":""}]
["",{"$f":"IF($A884=1,COUNTIF($A$28:$A883,1)+1,\"\")","v":""}]
["",{"$f":"IF($A885=1,COUNTIF($A$28:$A884,1)+1,\"\")","v":""}]
["",{"$f":"IF($A886=1,COUNTIF($A$28:$A885,1)+1,\"\")","v":""}]
["",{"$f":"IF($A887=1,COUNTIF($A$28:$A886,1)+1,\"\")","v":""}]
["",{"$f":"IF($A888=1,COUNTIF($A$28:$A887,1)+1,\"\")","v":""}]
["",{"$f":"IF($A889=1,COUNTIF($A$28:$A888,1)+1,\"\")","v":""}]
[{"$f":"IF(I890>0,1,\"\")","v":""},{"$f":"IF($A890=1,COUNTIF($A$28:$A889,1)+1,\"\")","v":""}]
["",{"$f":"IF($A891=1,COUNTIF($A$28:$A890,1)+1,\"\")","v":""}]
["",{"$f":"IF($A892=1,COUNTIF($A$28:$A891,1)+1,\"\")","v":""}]
["",{"$f":"IF($A893=1,COUNTIF($A$28:$A892,1)+1,\"\")","v":""}]
["",{"$f":"IF($A894=1,COUNTIF($A$28:$A893,1)+1,\"\")","v":""}]
["",{"$f":"IF($A895=1,COUNTIF($A$28:$A894,1)+1,\"\")","v":""}]
["",{"$f":"IF($A896=1,COUNTIF($A$28:$A895,1)+1,\"\")","v":""}]
["",{"$f":"IF($A897=1,COUNTIF($A$28:$A896,1)+1,\"\")","v":""}]
["",{"$f":"IF($A898=1,COUNTIF($A$28:$A897,1)+1,\"\")","v":""}]
["",{"$f":"IF($A899=1,COUNTIF($A$28:$A898,1)+1,\"\")","v":""}]
["",{"$f":"IF($A900=1,COUNTIF($A$28:$A899,1)+1,\"\")","v":""}]
["",{"$f":"IF($A901=1,COUNTIF($A$28:$A900,1)+1,\"\")","v":""}]
["",{"$f":"IF($A902=1,COUNTIF($A$28:$A901,1)+1,\"\")","v":""}]
["",{"$f":"IF($A903=1,COUNTIF($A$28:$A902,1)+1,\"\")","v":""}]
["",{"$f":"IF($A904=1,COUNTIF($A$28:$A903,1)+1,\"\")","v":""}]
["",{"$f":"IF($A905=1,COUNTIF($A$28:$A904,1)+1,\"\")","v":""}]
["",{"$f":"IF($A906=1,COUNTIF($A$28:$A905,1)+1,\"\")","v":""}]
["",{"$f":"IF($A907=1,COUNTIF($A$28:$A906,1)+1,\"\")","v":""}]
["",{"$f":"IF($A908=1,COUNTIF($A$28:$A907,1)+1,\"\")","v":""}]
["",{"$f":"IF($A909=1,COUNTIF($A$28:$A908,1)+1,\"\")","v":""}]
["",{"$f":"IF($A910=1,COUNTIF($A$28:$A909,1)+1,\"\")","v":""}]
["",{"$f":"IF($A911=1,COUNTIF($A$28:$A910,1)+1,\"\")","v":""}]
["",{"$f":"IF($A912=1,COUNTIF($A$28:$A911,1)+1,\"\")","v":""}]
["",{"$f":"IF($A913=1,COUNTIF($A$28:$A912,1)+1,\"\")","v":""}]
["",{"$f":"IF($A914=1,COUNTIF($A$28:$A913,1)+1,\"\")","v":""}]
["",{"$f":"IF($A915=1,COUNTIF($A$28:$A914,1)+1,\"\")","v":""}]
["",{"$f":"IF($A916=1,COUNTIF($A$28:$A915,1)+1,\"\")","v":""}]
["",{"$f":"IF($A917=1,COUNTIF($A$28:$A916,1)+1,\"\")","v":""}]
["",{"$f":"IF($A918=1,COUNTIF($A$28:$A917,1)+1,\"\")","v":""}]
["",{"$f":"IF($A919=1,COUNTIF($A$28:$A918,1)+1,\"\")","v":""}]
["",{"$f":"IF($A920=1,COUNTIF($A$28:$A919,1)+1,\"\")","v":""}]
["",{"$f":"IF($A921=1,COUNTIF($A$28:$A920,1)+1,\"\")","v":""}]
["",{"$f":"IF($A922=1,COUNTIF($A$28:$A921,1)+1,\"\")","v":""}]
["",{"$f":"IF($A923=1,COUNTIF($A$28:$A922,1)+1,\"\")","v":""}]
["",{"$f":"IF($A924=1,COUNTIF($A$28:$A923,1)+1,\"\")","v":""}]
["",{"$f":"IF($A925=1,COUNTIF($A$28:$A924,1)+1,\"\")","v":""}]
["",{"$f":"IF($A926=1,COUNTIF($A$28:$A925,1)+1,\"\")","v":""}]
["",{"$f":"IF($A927=1,COUNTIF($A$28:$A926,1)+1,\"\")","v":""}]
["",{"$f":"IF($A928=1,COUNTIF($A$28:$A927,1)+1,\"\")","v":""}]
["",{"$f":"IF($A929=1,COUNTIF($A$28:$A928,1)+1,\"\")","v":""}]
["",{"$f":"IF($A930=1,COUNTIF($A$28:$A929,1)+1,\"\")","v":""}]
["",{"$f":"IF($A931=1,COUNTIF($A$28:$A930,1)+1,\"\")","v":""}]
["",{"$f":"IF($A932=1,COUNTIF($A$28:$A931,1)+1,\"\")","v":""}]
["",{"$f":"IF($A933=1,COUNTIF($A$28:$A932,1)+1,\"\")","v":""}]
["",{"$f":"IF($A934=1,COUNTIF($A$28:$A933,1)+1,\"\")","v":""}]
["",{"$f":"IF($A935=1,COUNTIF($A$28:$A934,1)+1,\"\")","v":""}]
["",{"$f":"IF($A936=1,COUNTIF($A$28:$A935,1)+1,\"\")","v":""}]
["",{"$f":"IF($A937=1,COUNTIF($A$28:$A936,1)+1,\"\")","v":""}]
["",{"$f":"IF($A938=1,COUNTIF($A$28:$A937,1)+1,\"\")","v":""}]
["",{"$f":"IF($A939=1,COUNTIF($A$28:$A938,1)+1,\"\")","v":""}]
["",{"$f":"IF($A940=1,COUNTIF($A$28:$A939,1)+1,\"\")","v":""}]
["",{"$f":"IF($A941=1,COUNTIF($A$28:$A940,1)+1,\"\")","v":""}]
["",{"$f":"IF($A942=1,COUNTIF($A$28:$A941,1)+1,\"\")","v":""}]
["",{"$f":"IF($A943=1,COUNTIF($A$28:$A942,1)+1,\"\")","v":""}]
["",{"$f":"IF($A944=1,COUNTIF($A$28:$A943,1)+1,\"\")","v":""}]
["",{"$f":"IF($A945=1,COUNTIF($A$28:$A944,1)+1,\"\")","v":""}]
["",{"$f":"IF($A946=1,COUNTIF($A$28:$A945,1)+1,\"\")","v":""}]
["",{"$f":"IF($A947=1,COUNTIF($A$28:$A946,1)+1,\"\")","v":""}]
["",{"$f":"IF($A948=1,COUNTIF($A$28:$A947,1)+1,\"\")","v":""}]
["",{"$f":"IF($A949=1,COUNTIF($A$28:$A948,1)+1,\"\")","v":""}]

{"sheet":"AF-Artikel","index":1,"n_rows":1559,"n_cols":4,"rows_kept":1559,"cut":false,"hidden":false,"merged":[]}
[0,"Nicht verfügbar!",0,"INDEXC-Text"]
[1031,"Befestigungssatz Sub-D",0.6,"Befestigungssatz Sub-D"]
[1032,"Buchsenleiste HD 15pol",0.71,"Buchsenleiste HD 15pol"]
[1033,"Stiftleiste HD 15pol",0.66,"Stiftleiste HD 15pol"]
[1034,"Buchsenleiste Sub-D 15pol",0.71,"Buchsenleiste Sub-D 15pol"]
[1035,"Buchsenleiste Sub-D 37pol",1.49,"Buchsenleiste Sub-D 37pol"]
[1036,"Buchsenleiste Sub-D 50pol",3.39,"Buchsenleiste Sub-D 50pol"]
[1037,"Buchsenleiste Sub-D 25pol",0.84,"Buchsenleiste Sub-D 25pol"]
[1038,"Buchsenleiste Sub-D 9pol",0.53,"Buchsenleiste Sub-D 9pol"]
[1039,"Stiftleiste Sub-D 50pol",3.28,"Stiftleiste Sub-D 50pol"]
[1040,"Stiftleiste Sub-D 37pol",1.66,"Stiftleiste Sub-D 37pol"]
[1041,"Stiftleiste Sub-D 25pol",0.84,"Stiftleiste Sub-D 25pol"]
[1042,"Stiftleiste Sub-D 15pol",0.66,"Stiftleiste Sub-D 15pol"]
[1043,"Stiftleiste Sub-D  9pol",0.48,"Stiftleiste Sub-D 9pol"]
[1055,"Sub-D Metallhaube   9pol EVE",5.7,"Sub-D Metallhaube 9pol Typ E"]
[1062,"Knickschutztülle Helavia Cinch",0.45,"Knickschutztülle Cinchstecker"]
[1063,"Sub-D Metallhaube  9pol 10mm Typ A",3.09,"Sub-D Metallhaube 9pol max. 10mm kurze Verriegelungsschrauben Typ A"]
[1064,"Einbaubuchse Cinch rot",3.09,"Cinch-Einbaubuchse vergoldet Rot Neutrik"]
[1065,"Einbaubuchse Cinch gelb",3.09,"Cinch-Einbaubuchse vergoldet Gelb Neutrik"]
[1066,"Einbaubuchse Cinch grün",3.09,"Cinch-Einbaubuchse vergoldet Grün Neutrik"]
[1067,"Einbaubuchse Cinch blau",3.09,"Cinch-Einbaubuchse vergoldet Blau Neutrik"]
[1068,"Einbaubuchse Cinch schwarz",3.09,"Cinch-Einbaubuchse vergoldet Schwarz Neutrik"]
[1069,"Stecker Cinch schwarz Neutrik",2.72,"Cinch-Stecker,vergoldet ,Schwarz,Neutrik mit 2 Spannzangen"]
[1070,"Stecker Cinch rot Neutrik",2.72,"Cinch-Stecker,vergoldet ,Rot,Neutrik mit 2 Spannzangen"]
[1071,"Stecker Cinch gelb Neutrik",2.72,"Cinch-Stecker,vergoldet ,Gelb,Neutrik mit 2 Spannzangen"]
[1072,"Einbaubuchse XLR 3pol",7.74,"3pol-XLR-Einbaubuchse Neutrik NC3FD-LX"]
[1073,"Einbaustecker XLR 3pol",7.15,"3pol-XLR-Einbaustecker Neutrik NC3MDL1"]
[1074,"Stecker XLR 3pol",5.88,"3pol-XLR-Stecker Neutrik NC3MXX"]
[1075,"Kupplung XLR 3pol",6.99,"3pol-XLR-Kupplung Neutrik NC3FXX"]
[1076,"Einbaubuchse RJ45-EtherCon, schneid-klemm, Neutrik",19.53,"Einbaubuchse Neutrik EtherCon-Buchse mit Schneid-Klemmanschluss"]
[1077,"Stecker RJ45 Ethercon, Neutrik",6.65,"Stecker Rj45 EtherCon, Neutrik, NE8MC"]
[1078,"ZZInaktiv Crimpzange RG 59 A",43.79,"Crimpzange BNC RG 59 Typ A"]
[1079,"Gender Changer VGA-Ku./Ku.",4.29,"Gender Changer VGA-Kupplung/Kupplung"]
[1080,"Gender Changer VGA-St./St.",3.94,"Gender Changer VGA-Stecker/Stecker"]
[1081,"Gender Changer 9pol-St./St.",3.7,"Gender Changer 9pol-Sub-D-Stecker/Stecker"]
[1082,"Gender Changer 9pol-Ku./Ku.",3.7,"Gender Changer 9pol-Sub-D-Kupplung/Kupplung"]
[1083,"Gender Changer 9pol-St./Bu.",4.29,"Gender Changer 9pol-Sub-D-Stecker/Buchse"]
[1084,"Gender Changer 15pol-Ku./Ku.",4.33,"Gender Changer 15pol-Sub-D-Kupplung/Kupplung"]
[1085,"Gender Changer 9pol-St./Bu. Nullmodem",9.74,"Gender Changer 9pol-Sub-D-Stecker/Buchse Nullmodem"]
[1086,"Einbaubuchse 3,5 Klinke stereo",1.46,"3,5mm-Stereoklinkeneinbaubuchse isoliert mit Schaltkontakt"]
[1087,"Einbaubuchse 3,5 Klinke 4pol",8.19,"3,5mm-Klinkeneinbaubuchse 4-polig"]
[1088,"Stecker DVI 24+5",7.87,"Stecker DVI 24+5"]
[1089,"Stecker Speakon 2pol",6.27,"2pol-Speakon-Stecker Neutrik NL2FC"]
[1090,"Stecker XLR 4pol",7.97,"4pol-XLR-Stecker Neutrik NC4MX"]
[1091,"Stecker XLR 5pol",12.99,"5pol-XLR-Stecker Neutrik NC5MX"]
[1092,"Stecker XLR 6pol",15.62,"6pol-XLR-Stecker Neutrik NC6MX"]
[1093,"Stecker XLR 7pol",18.64,"7pol-XLR-Stecker Neutrik NC7MX"]
[1094,"Kupplung XLR 4pol",10.48,"4pol-XLR-Kupplung Neutrik NC4FX"]
[1095,"Kupplung XLR 5pol",15.66,"5pol-XLR-Kupplung Neutrik NC5FX"]
[1096,"Kupplung XLR 6pol",18.25,"6pol-XLR-Kupplung Neutrik NC6FX"]
[1097,"Kupplung XLR 7pol",21.22,"7pol-XLR-Kupplung Neutrik NC7FX"]
[1098,"Einbaustecker XLR 4pol",9,"4pol-XLR-Einbaustecker Neutrik NC4MDL1"]
[1099,"Einbaustecker XLR 5pol",13.41,"5pol-XLR-Einbaustecker Neutrik NC5MDL1"]
[1100,"Einbaustecker XLR 6pol",18.32,"6pol-XLR-Einbaustecker Neutrik NC6MDL1"]
[1101,"Einbaustecker XLR 7pol",23.12,"7pol-XLR-Einbaustecker Neutrik NC7MDL1"]
[1102,"Einbaubuchse XLR 4pol",11.21,"4pol-XLR-Einbaubuchse Neutrik NC4FD-LX"]
[1103,"Einbaubuchse XLR 5pol",17.13,"5pol-XLR-Einbaubuchse Neutrik NC5FDL1"]
[1104,"Einbaubuchse XLR 6pol",22.93,"6pol-XLR-Einbaubuchse Neutrik NC6FDL1"]
[1105,"Einbaubuchse XLR 7pol",27.72,"7pol-XLR-Einbaubuchse Neutrik NC7FDL1"]
[1108,"Einbaubuchse 2,5 Klinke stereo",3.02,"2,5mm-Stereoklinkeneinbaubuchse nicht isoliert"]
[1109,"Schrumpfschlauchbox 1,6mm sw",22.14,"Schrumpfschlauchbox 1,6mm schwarz (17m)"]
[1110,"Schrumpfschlauchbox 2,4mm sw",22.14,"Schrumpfschlauchbox 2,4mm schwarz (15m)"]
[1111,"Schrumpfschlauchbox 3,2mm sw",22.14,"Schrumpfschlauchbox 3,2mm schwarz (15m)"]
[1112,"Schrumpfschlauchbox 4,8mm sw",22.14,"Schrumpfschlauchbox 4,8mm schwarz (12m)"]
[1113,"Schrumpfschlauchbox 6,4mm sw",22.14,"Schrumpfschlauchbox 6,4mm schwarz (12m)"]
[1114,"Schrumpfschlauchbox 9,5mm sw",22.14,"Schrumpfschlauchbox 9,5mm schwarz (8m)"]
[1115,"Schrumpfschlauchbox 12,7mm sw",22.14,"Schrumpfschlauchbox 12,7mm schwarz (8m)"]
[1116,"Schrumpfschlauchbox 16,0mm sw",22.14,"Schrumpfschlauchbox 16,0mm schwarz (6m)"]
[1117,"Schrumpfschlauchbox 19,0mm sw",22.14,"Schrumpfschlauchbox 19,0mm schwarz (5m)"]
[1118,"Schrumpfschlauchbox 25,4mm sw",22.14,"Schrumpfschlauchbox 25,4mm schwarz (5m)"]
[1119,"Schrumpfschlauchbox 3,2mm trans",22.14,"Schrumpfschlauchbox 3,2mm transparent (15m)"]
[1120,"Schrumpfschlauchbox 6,4mm trans",22.14,"Schrumpfschlauchbox 6,4mm transparent (12m)"]
[1121,"Schrumpfschlauchbox 9,5mm trans",22.14,"Schrumpfschlauchbox 9,5mm transparent (8m)"]
[1122,"Schrumpfschlauchbox 12,7mm tran",22.14,"Schrumpfschlauchbox 12,7mm transparent (8m)"]
[1123,"Einbaubuchse 2,5 Klinke mono",3.02,"2,5mm-Monoklinkeneinbaubuchse nicht isoliert"]
[1124,"Knickschutz für XLR Ethercon Stecker (NE8MC) gelb",0.63,"Knickschutz für XLR Ethercon Stecker (NE8MC) gelb"]
[1125,"Knickschutz für XLR Ethercon Stecker (NE8MC) blau",0.63,"Knickschutz für XLR Ethercon Stecker (NE8MC) blau"]
[1126,"Knickschutz für XLR Ethercon Stecker (NE8MC) viol.",0.63,"Knickschutz für XLR Ethercon Stecker (NE8MC) violett"]
[1127,"Stecker, RJ45 EtherCon, Neutrik, Crimpversion",6.65,"Stecker RJ45 EtherCon, Neutrik, NE8MC6, Crimpversion"]
[1128,"Mutter M12x0,75",1.1299999999999999,"Sechskant Mutter M12x0,75"]
[1134,"Einbaubuchse 4pin-Mini-DIN rückseitig steckbar",19.34,"Einbaubuchse 4pin-Mini-DIN rückseitig steckbar"]
[1135,"Kabeltülle Braun N-BXX-1",1.52,"Kabeltülle Braun N-BXX-1"]
[1136,"Kabeltülle Rot N-BXX-2",1.52,"Kabeltülle Rot N-BXX-2"]
[1137,"Kabeltülle Orange N-BXX-3",1.52,"Kabeltülle Orange N-BXX-3"]
[1138,"Kabeltülle Gelb N-BXX-4",1.52,"Kabeltülle Gelb N-BXX-4"]
[1139,"Kabeltülle Grün N-BXX-5",1.52,"Kabeltülle Grün N-BXX-5"]
[1140,"Kabeltülle Blau N-BXX-6",1.52,"Kabeltülle Blau N-BXX-6"]
[1141,"Kabeltülle Violett N-BXX-7",1.52,"Kabeltülle Violett N-BXX-7"]
[1142,"Kabeltülle Grau N-BXX-8",1.52,"Kabeltülle Grau N-BXX-8"]
[1145,"Stecker BNC-Ku./Cinch-St.",1.43,"Adapter BNC-Kupplung /Cinch-Stecker"]
[1146,"Stecker BNC-St./Cinch-Ku.",1.55,"Adapter BNC-Stecker/Cinch-Kupplung"]
[1151,"Isolierdurchführung BNC rot",0.62,"Isolierdurchführungs-Set Rot für BNC-Buchse"]
[1152,"Isolierdurchführung BNC grün",0.62,"Isolierdurchführungs-Set Grün für BNC-Buchse"]
[1153,"Isolierdurchführung BNC blau",0.62,"Isolierdurchführungs-Set Blau für BNC-Buchse"]
[1154,"Isolierdurchführung BNC schwarz",0.62,"Isolierdurchführungs-Set Schwarz für BNC-Buchse"]
[1155,"Isolierdurchführung BNC weiß",0.62,"Isolierdurchführungs-Set Weiß für BNC-Buchse"]
[1156,"Isolierdurchführung BNC gelb",0.62,"Isolierdurchführungs-Set Gelb für BNC-Buchse"]
[1172,"Stecker 4pin-Mini-DIN hh",4.24,"4pin-Mini-DIN-Stecker Typ H"]
[1173,"Kupplung 6pin-Mini-DIN hh",4.75,"6pin-Mini-DIN-Kupplung Typ H"]
[1174,"Stecker 6pin-Mini-DIN hh",4.53,"6pin-Mini-DIN-Stecker Typ H"]
[1175,"Kupplung 4pin-Mini-DIN hh",4.46,"4pin-Mini-DIN-Kupplung Typ H"]
[1176,"Stecker 4pin-Mini-DIN ls",3.64,"4pin-Mini-DIN-Stecker Typ L"]
[1177,"Stecker Cinch gelb ls",2.61,"Cinch-Stecker,vergoldet ,Gelb,Typ L"]
[1178,"Stecker Cinch rot ls",2.61,"Cinch-Stecker,vergoldet ,Rot,Typ L"]
[1179,"Stecker Cinch schwarz ls",2.61,"Cinch-Stecker,vergoldet ,Schwarz,Typ L"]
[1180,"Kupplung Cinch gelb ls",2.52,"Cinch-Kupplung,vergoldet ,Gelb,Typ L"]
[1181,"Kupplung Cinch rot ls",2.52,"Cinch-Kupplung,vergoldet ,Rot,Typ L"]
[1182,"Kupplung Cinch schwarz ls",2.52,"Cinch-Kupplung,vergoldet ,Schwarz,Typ L"]
[1184,"Einbaubuchse XLR 3pol schwarz-g",9.39,"3pol-XLR-Einbaubuchse Neutrik NC3FDL1B schwarzes Gehäuse mit vergoldeten Kontakten"]
[1188,"Sub-D Metallhaube  9pol Typ H",5.18,"Sub-D Metallhaube 9pol max. 10mm mit langen Rändelschrauben"]
[1189,"Stecker 3pin-Mini-DIN Kunststoffausführung",3.72,"3pin-Mini-DIN-Stecker Kunststoffausführung"]
[1194,"Crimpzange RG 179 S",47.59,"Crimpzange BNC RG179 Typ S"]
[1195,"Crimpzange RG 59 S",43.79,"Crimpzange BNC RG 59 Typ S"]
[1196,"Einbaubuchse BNC/BNC S",4.37,"BNC-Durchführungsbuchse 75 Ohm unisoliert Typ S"]
[1197,"Kupplung BNC 6mm S",2.41,"BNC-Kabelbuchse für RG59 crimp."]
[1198,"Stecker BNC Verbinder S",2.84,"BNC-Verbinder Buchse/Buchse 75 Ohm Typ S"]
[1199,"Kupplung BNC 3mm S",2.86,"BNC-Kabelbuchse 75Ohm 3mm crimp. Typ S"]
[1200,"Stecker BNC 3mm Typ S",2.0499999999999998,"BNC-Crimpstecker für RG 179 75Ohm Typ S"]
[1201,"Einbaubuchse BNC unisoliert S",3.21,"BNC Einbaubuchse 75 Ohm unisoliert Typ S"]
[1202,"Knickschutztülle 6mm weiß S",0.42,"Knickschutztülle für BNC-Stecker 6mm Typ S weiß"]
[1203,"Knickschutztülle 6mm blau S",0.42,"Knickschutztülle für BNC-Stecker 6mm Typ S blau"]
[1204,"Knickschutztülle 6mm grün S",0.42,"Knickschutztülle für BNC-Stecker 6mm Typ S grün"]
[1205,"Knickschutztülle 6mm gelb S",0.42,"Knickschutztülle für BNC-Stecker 6mm Typ S gelb"]
[1206,"Knickschutztülle 6mm grau S",0.42,"Knickschutztülle für BNC-Stecker 6mm Typ S grau"]
[1207,"Knickschutztülle 6mm orange S",0.42,"Knickschutztülle für BNC-Stecker 6mm Typ S orange"]
[1208,"Knickschutztülle 6mm rot S",0.42,"Knickschutztülle für BNC-Stecker 6mm Typ S rot"]
[1209,"Knickschutztülle 6mm schwarz S",0.42,"Knickschutztülle für BNC-Stecker 6mm Typ S schwarz"]
[1210,"Stecker BNC 6mm S",1.55,"BNC-Crimpstecker für RG 59 75 Ohm Typ S"]
[1211,"Knickschutztülle 3mm rot S",0.42,"Knickschutztülle für BNC-Stecker 3mm Typ S rot"]
[1212,"Knickschutztülle 3mm weiß S",0.42,"Knickschutztülle für BNC-Stecker 3mm Typ S weiß"]
[1213,"Knickschutztülle 3mm blau S",0.42,"Knickschutztülle für BNC-Stecker 3mm Typ S blau"]
[1214,"Knickschutztülle 3mm grün S",0.42,"Knickschutztülle für BNC-Stecker 3mm Typ S grün"]
[1215,"Knickschutztülle 3mm grau S",0.42,"Knickschutztülle für BNC-Stecker 3mm Typ S grau"]
[1216,"Knickschutztülle 3mm orange S",0.42,"Knickschutztülle für BNC-Stecker 3mm Typ S orange"]
[1217,"Knickschutztülle 3mm gelb S",0.42,"Knickschutztülle für BNC-Stecker 3mm Typ S gelb"]
[1218,"Knickschutztülle 3mm schwarz S",0.42,"Knickschutztülle für BNC-Stecker 3mm Typ S schwarz"]
[1219,"Stecker 12pol-miniCON",30.67,"Stecker 12pol-miniCON, Neutrik"]
[1220,"Einbaubuchse 12pol Minicon",36.89,"Einbaubuchse Neutrik Minicon 12polig"]
[1222,"Einbaubuchse Speakon 4pol",3.52,"4pol-Speakon-Einbaubuchse Neutrik NL4MP"]
[1223,"Stecker Speakon 4pol",9,"4pol-Speakon-Stecker Neutrik NL4FX"]
[1225,"Sub-D Metallhaube 15pol EVE",10.44,"Sub-D Metallhaube 15pol Typ E"]
[1226,"Sub-D Metallhaube 25pol EVE",11.17,"Sub-D Metallhaube 25pol Typ E"]
[1227,"Sub-D Metallhaube 37pol EVE",13.34,"Sub-D Metallhaube 37pol Typ E"]
[1228,"Sub-D Metallhaube  9pol 45° EVG",10.55,"Sub-D Metallhaube 9pol 45° abgewinkelt Typ E"]
[1229,"Sub-D Metallhaube 50pol FCT kurze Haube",14.85,"Sub-D Metallhaube 50pol Typ F, kurze Haube"]
[1230,"Sub-D Rändelschraube lang FCT",1.55,"Sub-D Rändelschraube UNC4-40 langl Typ F"]
[1231,"Isolierdurchführung BNC/BNC schwarz",0.62,"Isolierdurchführungs-Set Schwarz für BNC-Durchführungsbuchse"]
[1232,"Einbaubuchse Cinch/Cinch Rot S",5.52,"Cinch-Durchführungsbuchse unisoliert Rot"]
[1233,"Einbaubuchse Cinch/Cinch, schwarz S",5.52,"Cinch-Durchführungsbuchse unisoliert Schwarz"]
[1234,"Einbaubuchse Cinch/Cinch Gelb S",5.52,"Cinch-Durchführungsbuchse unisoliert Gelb"]
[1242,"Isolierdurchführung BNC/BNC rot",0.62,"Isolierdurchführungs-Set Rot für BNC-Durchführungsbuchse"]
[1243,"Isolierdurchführung BNC/BNC grün",0.62,"Isolierdurchführungs-Set Grün für BNC-Durchführungsbuchse"]
[1244,"Isolierdurchführung BNC/BNC blau",0.62,"Isolierdurchführungs-Set Blau für BNC-Durchführungsbuchse"]
[1245,"Isolierdurchführung BNC/BNC weiß",0.62,"Isolierdurchführungs-Set Weiß für BNC-Durchführungsbuchse"]
[1246,"Isolierdurchführung BNC/BNC gelb",0.62,"Isolierdurchführungs-Set Gelb für BNC-Durchführungsbuchse"]
[1249,"Sub-D Metallhaube 50pol FCT lange Haube",14.85,"Sub-D Metallhaube 50pol Typ F, lange Haube"]
[1251,"Koaxkontakt Stift FCT Mischk.",10.3,"Koaxkontakt-Stift 75Ohm für FCT Mischkontakt-Serie"]
[1259,"Stecker BNC 4,5mm S",2.73,"BNC-Crimpstecker für 0,6/2,8 75Ohm Typ S"]
[1260,"Knickschutztülle 4,5mm, rot S",0.42,"Knickschutztülle für BNC-Stecker 4,5mm Typ S rot"]
[1261,"Knickschutztülle 4,5mm, grün S",0.42,"Knickschutztülle für BNC-Stecker 4,5mm Typ S grün"]
[1262,"Knickschutztülle 4,5mm, blau S",0.42,"Knickschutztülle für BNC-Stecker 4,5mm Typ S blau"]
[1263,"Knickschutztülle 4,5mm, schwarz S",0.42,"Knickschutztülle für BNC-Stecker 4,5mm Typ S schwarz"]
[1264,"Knickschutztülle 4,5mm, weiß S",0.42,"Knickschutztülle für BNC-Stecker 4,5mm Typ S weiß"]
[1265,"Crimpzange Typ S 3; 4,5 und 6mm",47.59,"Crimpzange BNC Typ S für 3mm, 4,5mm und 6mm BNC-Stecker"]
[1266,"ZZInaktiv Stecker Klinke 3,5mm stereo met",0.82,"Stecker Klinke 3,5mm stereo metall vergoldet"]
[1267,"Kupplung Klinke 3,5mm stereo Metall vergoldet",1.62,"Kupplung Klinke 3,5mm stereo Metall vergoldet"]
[1268,"Stecker 26pol Hirose",49.45,"Stecker Hirose 26pol"]
[1269,"Kupplung 26pol Hirose",49.45,"Kupplung Hirose 26pol"]
[1270,"Stecker Scart",0.89,"Stecker Scart"]
[1271,"Einbaubuchse PowerCon blau",5.84,"PowerCon-Einbaubuchse blau  Neutrik NAC3MPA \"Power In\""]
[1273,"Schrumpfschlauchbox 1,6mm trans",22.14,"Schrumpfschlauchbox 1,6mm transparent (17m)"]
[1274,"Schrumpfschlauchbox 2,4mm trans",22.14,"Schrumpfschlauchbox 2,4mm transparent (15m)"]
[1275,"Schrumpfschlauchbox 4,8mm trans",22.14,"Schrumpfschlauchbox 4,8mm transparent (12m)"]
[1276,"Schrumpfschlauchbox 16,0mm tran",22.14,"Schrumpfschlauchbox 16,0mm transparent (6m)"]
[1277,"Schrumpfschlauchbox 19,0mm tran",22.14,"Schrumpfschlauchbox 19,0mm transparent (5m)"]
[1278,"Schrumpfschlauchbox 25,4mm tran",22.14,"Schrumpfschlauchbox 25,4mm transparent (5m)"]
[1285,"Stecker Klinke 3,5mm stereo abg",1.66,"Stecker Klinke 3,5mm stereo abgewinkelt"]
[1322,"Abisolierwerkzeug RG59",15.45,"Abisolierwerkzeug für Koaxialkabel RG59"]
[1323,"Abisolierwerkzeug 0,6/2,8",31.47,"Abisolierwerkzeug für Koaxialkabel 0,6/2,8"]
[1324,"Scart-Adapter 3xCinch+Hosiden S",7.77,"Scartadapter mit 3 Cinchkupplungen, einer 4pin-Mini-DIN-Kupplung und IN/OUT-Schalter"]
[1325,"Einbaubuchse USB Neutrik",8.86,"USB-Einbaubuchse Neutrik NAUSB"]
[1347,"Stecker BNC 6mm abgewinkelt S",4.83,"BNC-Winkel-Crimpstecker für RG 59 75 Ohm Typ S"]
[1348,"Stecker BNC 3mm abgewinkelt S",5.12,"BNC-Winkel-Crimpstecker für RG179 75 Ohm Typ S"]
[1349,"Mittel-Pin BNC-Stecker 3mm",0.63,"Mittel-Pin für BNC-Crimpstecker 3mm für RG 179 75Ohm Typ S"]
[1350,"Mittel Pin BNC-Kupplung 3mm",0.68,"Mittel Pin für BNC-Kabelbuchse für RG 179 75Ohm Typ S"]
[1356,"Kupplung Mini-XLR 3pol",16.97,"3pol-Mini-XLR-Kupplung Switchcraft"]
[1358,"Stecker Klinke 6,3mm mono met",1.78,"Stecker Klinke 6,3mm mono metall vergoldet"]
[1359,"Stecker Klinke 6,3mm stereo met",1.82,"Stecker Klinke 6,3mm stereo metall vergoldet"]
[1360,"Kupplung Klinke 6,3mm mono Metall vergoldet",3.29,"Kupplung Klinke 6,3mm mono Metall vergoldet"]
[1361,"Kupplung Klinke 6,3mm stereo Metall vergoldet",2.36,"Kupplung Klinke 6,3mm stereo Metall vergoldet"]
[1362,"Stecker Klinke 3,5mm mono met",1.05,"Stecker Klinke 3,5mm mono metall vergoldet"]
[1363,"Kupplung Klinke 3,5mm mono Metall vergoldet",1.43,"Kupplung Klinke 3,5mm mono Metall vergoldet"]
[1364,"Stecker Klinke 2,5mm mono met",1.62,"Stecker Klinke 2,5mm mono metall"]
[1365,"Kupplung Klinke 2,5mm mono Metall vergoldet",0.89,"Kupplung Klinke 2,5mm mono metall"]
[1366,"Stecker Klinke 2,5mm stereo met",1.05,"Stecker Klinke 2,5mm stereo metall"]
[1367,"Kupplung Klinke 2,5mm stereo Metall vergoldet",1.1200000000000001,"Kupplung Klinke 2,5mm stereo metall"]
[1368,"Stecker Klinke 6,3mm mono abg",0.96,"Stecker Klinke 6,3mm mono abgewinkelt"]
[1379,"Stecker Mini-XLR 3pol",16.97,"3pol-Mini-XLR-Stecker Switchcraft"]
[1393,"Blindabdeckung XLR D-Bohrung",1.47,"Blindabdeckung fürXLR D-Bohrung"]
[1412,"Stecker Klinke 3,5mm NYS231L",1.62,"Stecker Klinke 3,5mm stereo metall  6mm Öffnung Neutrik NYS 231L"]
[1413,"Stecker Klinke 3,5mm NYS231",1.62,"Stecker Klinke 3,5mm stereo metall  4mm Öffnung Neutrik NYS 231"]
[1414,"Kupplung Klinke 3,5mm NYS240",1.62,"Kupplung Klinke 3,5mm stereo metall  4mm Öffnung Neutrik NYS240"]
[1415,"Gender Changer VGA-St./Ku.",3.94,"Gender Changer VGA-Stecker/Kupplung"]
[1422,"Kupplung Klinke 3,5mm NYS240L",1.62,"Kupplung Klinke 3,5mm stereo metall  6mm Öffnung Neutrik NYS240L"]
[1427,"Stecker 7pol Hirose",29.69,"Stecker Hirose 7pol"]
[1442,"Einbaubuchse PowerCon grau",5.84,"PowerCon-Einbaubuchse blau  Neutrik NAC3MPA \"Power Out\""]
[1446,"Stecker XLR 3pol abgewinkelt",12.88,"3pol-XLR-Winkelstecker Neutrik NC3MRX"]
[1447,"Kupplung XLR 3pol abgewinkelt",14.85,"3pol-XLR-Winkelkupplung Neutrik NC3FRX"]
[1459,"Stecker BNC 9mm Telegärtner",7.7,"BNC-Crimpstecker für 1,0/6,6 75Ohm Telegärtner"]
[1465,"Adapter DVI-Kuppl./VGA-Stecker",5.22,"Adapter DVI-I 24+5 Kupplung auf 15pol-VGA-Stecker"]
[1466,"Adapter DVI-Kuppl./DVI-Stecker",8.34,"Adapter DVI-I 24+5 Kupplung auf DVI-D 24+1-Stecker"]
[1467,"Adapter HDMI-Kuppl./DVI-Stecker",8.0500000000000007,"Adapter HDMI-19pol-Kupplung auf DVI-D-24+1-Stecker"]
[1468,"Adapter HDMI-Steck./DVI-Kuppl.",8.0500000000000007,"Adapter HDMI-19pol-Stecker auf DVI-D-24+1-Kupplung"]
[1469,"Adapter DVI-Stecker/VGA-Kuppl.",5.22,"Adapter DVI-I 24+5 Stecker auf 15pol-VGA-Kupplung"]
[1470,"Stecker XLR 4pol abgewinkelt",17.2,"4pol-XLR-Winkelstecker Neutrik NC4MRX"]
[1471,"Kupplung XLR 4pol abgewinkelt",22,"3pol-XLR-Winkelkupplung Neutrik NC4FRX"]
[1472,"Stecker PowerCon blau",12.79,"PowerCon-Stecker blau  Neutrik NAC3FCA \"Power In\""]
[1473,"Stecker PowerCon grau",12.79,"PowerCon-Stecker grau  Neutrik NAC3FCB \"Power Out\""]
[1474,"Isoliertülle D-Gehäuse",3.21,"Isoliertülle rückseitig für Neutrik D-Einbaubuchsen"]
[1483,"Gender Changer 3,5-Klinke-Bu-Bu",17.53,"Gender Changer 3,5mm-Stereoklinken-Kupplung/Kupplung"]
[1488,"Crimpzange Typ R ohne Einsatz",143.53,"Crimpzange Typ R ohne Einsatz"]
[1489,"Crimpeinsatz Typ R BNC 3,4.5,6",230.06,"Crimpeinsatz Typ R für 3mm, 4,5mm und 6mm BNC"]
[1500,"Adapter HDMI Winkel Stecker/Buchse rauf",10.16,"HDMI-Winkeladapter Stecker/Buchse rauf"]
[1508,"Crimphülse BNC 3mm",0.63,"Crimphülse für BNC-Crimpstecker oder -kupplung 3mm für RG 179  Typ S"]
[1509,"Mittel Pin BNC-Stecker 4,5mm",0.63,"Mittel Pin für BNC-Crimpstecker 4,5mm oder 6mm"]
[1522,"Stecker Klinke 3,5mm 4polig Metall vergoldet",8.31,"Stecker Klinke 3,5mm 4polig Metall vergoldet"]
[1523,"Kupplung Klinke 3,5mm 4polig Metall vergoldet",9.27,"Kupplung Klinke 3,5mm 4polig Metall vergoldet"]
[1525,"Cinch-Verbinder Bu./Bu.",2.0499999999999998,"Cinch-Verbinder Bu./Bu."]
[1533,"Adapter DVI-Kuppl./DisplayPort-Stecker",30.5,"Adapter DVI-I 24+5 Kupplung auf DisplayPort-Stecker"]
[1534,"Adapter DisplayPort-Buchse/DisplayPort-Buchse",28.56,"Adapter DisplayPort-Buchse mit Befestigungsflansch auf DisplayPort-Buchse"]
[1535,"Adapter DisplayPort-Stecker/HDMI-Kupplung",29.36,"Adapter DisplayPort-Stecker auf HDMI-Kupplung"]
[1538,"Stecker XLR 5pol abgewinkelt",20.37,"5pol-XLR-Winkelstecker Neutrik NC5MRX"]
[1543,"Adapter HDMI-Kupplung/HDMI-Kupplung",8.0500000000000007,"Adapter HDMI-19pol-Kupplung auf HDMI-19pol-Kupplung"]
[1547,"Adapter USB A-Buchse/B-Stecker",3.21,"Adapter USB A-Buchse auf USB B-Stecker"]
[1549,"Stecker BNC 50 Ohm RG58",1.55,"BNC-Crimpstecker für RG 58 50 Ohm "]
[1550,"Stecker Speakon 4pol abgewinkelt",13.88,"4pol-Speakon-Stecker abgewinkelt Neutrik NL4FRX"]
[1560,"Einbaubuchse BNC/BNC HD-SDI",19.93,"BNC-Durchführungsbuchse 75 Ohm unisoliert Typ D für HD-SDI-Signale geeignet"]
[1574,"Adapter USB A-Stecker/B-Buchse",3.21,"Adapter USB A-Stecker auf USB B-Buchse"]
[1575,"Adapter USB B-Buchse/B-Buchse",3.21,"Adapter USB B-Buchse auf USB B-Buchse"]
[1576,"Stecker Klinke 3,5mm NYS231BG, schwarz",2.5099999999999998,"Stecker Klinke 3,5mm stereo metall,  4mm Öffnung, Neutrik NYS 231BG, schwarz"]
[1577,"Kupplung Klinke 3,5mm NYS240BG, schwarz",2.5099999999999998,"Kupplung Klinke 3,5mm stereo, metall, 4mm Öffnung, Neutrik NYS240BG, schwarz"]
[1579,"Stecker Cinch rot abgewinkelt",2.61,"Cinch-Stecker, vergoldet , rot, abgewinkelt"]
[1580,"Stecker Cinch schwarz abgewinkelt",2.61,"Cinch-Stecker, vergoldet , schwarz, abgewinkelt"]
[1581,"Stecker Kaltgeräte gerade",8.2799999999999994,"Kaltgeräte-stecker gerader Kabelabgang"]
[1582,"Stecker Kaltgeräte rechts",8.2799999999999994,"Kaltgeräte-Stecker rechter Kabelabgang"]
[1583,"Adapter DVI-I Stecker/DVI-I Kupplung,90° nach oben",22.38,"Adapter DVI-I 24+5 Stecker auf DVI-I 24+5 Kupplung, Dual Link, abgewinkelt 90° nach oben"]
[1588,"Adapter HDMI-Ku./HDMI-Ku. 360°",22.43,"Adapter HDMI-19pol-Kupplung auf HDMI-19pol-Kupplung 360° drehbar"]
[1590,"Stecker 8pin-Mini-DIN hh",4.53,"8pin-Mini-DIN-Stecker Typ H"]
[1597,"Adapter Mini DisplayPort-Stecker/HDMI-Kupplung",39.270000000000003,"Adapter Mini DisplayPort-Stecker auf HDMI-Kupplung"]
[1598,"Adapter Mini DisplayPort-Stecker/VGA-Kupplung",51.64,"Adapter Mini DisplayPort-Stecker auf VGA-Kupplung"]
[1599,"Adapter Mini DisplayPort-Stecker/DVI-Kupplung",32.22,"Adapter Mini DisplayPort-Stecker auf DVI-Kupplung"]
[1600,"Stecker HDMI crimpbar AWG24",9.1199999999999992,"Stecker HDMI crimpbar AWG24"]
[1601,"Crimpzange HDMI",200.2,"Crimpzange HDMI"]
[1602,"Adapter HDMI-Kupplung/DVI-Kupplung",8.0500000000000007,"Adapter HDMI-19pol-Kupplung auf DVI-D-24+5-Kupplung"]
[1603,"Adapter USB B-Stecker/B-Stecker",3.21,"Adapter USB B-Stecker auf USB B-Stecker"]
[1611,"Adapter DVI-I Stecker/DVI-I Kuppl., 90° nach unten",29.6,"Adapter DVI-I 24+5 Stecker auf DVI-I 24+5 Kupplung, Dual Link, abgewinkelt 90° nach unten"]
[1612,"Adapter HDMI-Kuppl./DVI-Stecker 180°",16.02,"Adapter HDMI-19pol-Kupplung auf DVI-D-24+1-Stecker 180° drehbar"]
[1613,"Adapter HDMI Winkel Stecker/Buchse runter",10.16,"HDMI-Winkeladapter Stecker/Buchse runter"]
[1627,"Kabeltülle Weiss N-BXX-9",1.52,"Kabeltülle Weiss N-BXX-9"]
[1629,"Spiralschlauch PE 3",38.74,"Spiralschlauch PE 3 mit zwei parallelen Spiralen Innendurchmesser 5mm schwarz 1 Beutel a. 50m"]
[1630,"Spiralschlauch PE 6",40.36,"Spiralschlauch PE 6 mit zwei parallelen Spiralen Innendurchmesser 4mm schwarz 1 Beutel a. 25m"]
[1631,"Spiralschlauch PE 22",118.84,"Spiralschlauch PE 22 mit zwei parallelen Spiralen Innendurchmesser 19mm schwarz 1 Beutel a. 25m"]
[1635,"Einbaubuchse Cinch in D-Bohrung, schwarz",9.2899999999999991,"Einbaubuchse Cinch in D-Bohrung, N-NF2D-0, schwarz"]
[1636,"Einbaubuchse Cinch in D-Bohrung, rot",9.2899999999999991,"Einbaubuchse Cinch in D-Bohrung, N-NF2D-0, rot"]
[1640,"Adapter VGA Winkel Stecker/Buchse rauf",10.94,"VGA-Winkeladapter Stecker/Buchse rauf"]
[1641,"Adapter VGA Winkel Stecker/Buchse runter",10.94,"VGA-Winkeladapter Stecker/Buchse runter"]
[1642,"Kantenschutzprofil 0,8-1,0mm natur",69.77,"Kantenschutzprofil 0,8-1,0mm natur"]
[1646,"ABDECKKAPPE SC/SC BUCHSE",2.21," Abdeckkappe für Kupplung SC/SC Simplex Metallgehäuse"]
[1671,"HDMI-Verriegelung für HDMI-St. Art.-Nr.1600, Set",14.2,"HDMI-Verriegelung für HDMI-St. Art.-Nr.1600, Set"]
[1763,"Flügelspannschraube M6 X 100 für Tischbox ",25.6,"Option Flügelspannschraube M6"]
[3000,"Video-Audio-Umschalter 6/1",204.35,"Video-/S-Video-/Audio-stereo-Umschalter 6 Eingänge auf 1 Ausgang inkl. Fernbedienung"]
[3003,"DVI-Extender Single Link",309.5,"DVI-Extender Single Link"]
[3004,"USB Line Extender Cat.5",28.55,"USB Line Extender über Cat.5-Kabel bis zu 60m"]
[3005,"USB Repeater 2.0, 5m",28.55,"USB 2.0 Repeaterkabel 5m"]
[3007,"HDMI-Repeater bis 60m Kabellänge",95.17,"HDMI-Repeater bis 60m Kabellänge"]
[3008,"DVI-Repeater bis 60m Kabellänge",102.61,"DVI-Repeater bis 60m Kabellänge"]
[3009,"Kabel USB-A-St./USB-A-Ku. 10m",49.38,"Aktives USB-Kabel 2.0 USB-A-Stecker auf USB-A-Kupplung Länge: 10m"]
[3010,"Kabel USB-A-St./USB-A-Ku. 15m",66.91,"Aktives USB-Kabel 2.0 USB-A-Stecker auf USB-A-Kupplung Länge: 15m"]
[3011,"Kabel USB-A-St./USB-A-Ku. 20m",100.28,"Aktives USB-Kabel 2.0 USB-A-Stecker auf USB-A-Kupplung Länge: 20m Lieferung inkl. Netzteil"]
[3012,"HDMI- Tester 19pins + Schirm",159.88,"HDMI- Tester 19pins und Gesamtabschirmung"]
[3013,"HDMI-Repeater bis 80m Kabellänge",102.61,"HDMI-Repeater bis 80m Kabellänge, mit Befestigungsflansch"]
[3014,"HDMI- Tester 2teilig",159.88,"HDMI- Tester mit getrenntem Sender und Empfänger"]
[4001,"BNC-Kabel  0,5m",6.33,"BNC-Kabel 0,5m  2 x BNC-Stecker mit Knickschutztülle RG59 (75Ohm)"]
[4002,"BNC-Kabel  1,0m",6.87,"BNC-Kabel 1,0m  2 x BNC-Stecker mit Knickschutztülle RG59 (75Ohm)"]
[4003,"BNC-Kabel  2,0m",7.73,"BNC-Kabel 2,0m  2 x BNC-Stecker mit Knickschutztülle RG59 (75Ohm)"]
[4004,"BNC-Kabel  3,0m",10,"BNC-Kabel 3,0m  2 x BNC-Stecker mit Knickschutztülle RG59 (75Ohm)"]
[4005,"BNC-Kabel  5,0m",11.54,"BNC-Kabel 5,0m  2 x BNC-Stecker mit Knickschutztülle RG59 (75Ohm)"]
[4006,"BNC-Kabel  7,5m",13.54,"BNC-Kabel 7,5m  2 x BNC-Stecker mit Knickschutztülle RG59 (75Ohm)"]
[4007,"BNC-Kabel 10m",15.59,"BNC-Kabel 10m  2 x BNC-Stecker mit Knickschutztülle RG59 (75Ohm)"]
[4008,"BNC-Kabel 15m",20.85,"BNC-Kabel 15m  2 x BNC-Stecker mit Knickschutztülle RG59 (75Ohm)"]
[4009,"BNC-Kabel 20m",29.53,"BNC-Kabel 20m  2 x BNC-Stecker mit Knickschutztülle RG59 (75Ohm)"]
[4010,"Kabel 2xBNC-St./2xBNC-St.  0,5m",20.079999999999998,"Kabel 2xBNC-Stecker auf 2xBNC-Stecker Länge 0,5m"]
[4011,"Kabel 2xBNC-St./2xBNC-St.  1m",21.15,"Kabel 2xBNC-Stecker auf 2xBNC-Stecker Länge 1m"]
[4012,"Kabel 2xBNC-St./2xBNC-St.  2m",23.3,"Kabel 2xBNC-Stecker auf 2xBNC-Stecker Länge 2m"]
[4013,"Kabel 2xBNC-St./2xBNC-St.  3m",25.43,"Kabel 2xBNC-Stecker auf 2xBNC-Stecker Länge 3m"]
[4014,"Kabel 2xBNC-St./2xBNC-St.  5m",29.71,"Kabel 2xBNC-Stecker auf 2xBNC-Stecker Länge 5m"]
[4015,"Kabel 2xBNC-St./2xBNC-St.  7,5m",35.06,"Kabel 2xBNC-Stecker auf 2xBNC-Stecker Länge 7,5m"]
[4016,"Kabel 2xBNC-St./2xBNC-St. 10m",40.39,"Kabel 2xBNC-Stecker auf 2xBNC-Stecker Länge 10m"]
[4017,"Kabel 2xBNC-St./2xBNC-St. 15m",51.09,"Kabel 2xBNC-Stecker auf 2xBNC-Stecker Länge 15m"]
[4018,"Kabel 2xBNC-St./2xBNC-St. 20m",61.79,"Kabel 2xBNC-Stecker auf 2xBNC-Stecker Länge 20m"]
[4019,"Kabel 3xBNC-St./3xBNC-St. 0,5m",29.87,"Kabel 3xBNC-Stecker auf 3xBNC-Stecker Länge 0,5m"]
[4020,"Kabel 3xBNC-St./3xBNC-St. 1m",31.2,"Kabel 3xBNC-Stecker auf 3xBNC-Stecker Länge 1m"]
[4021,"Kabel 3xBNC-St./3xBNC-St. 2m",33.869999999999997,"Kabel 3xBNC-Stecker auf 3xBNC-Stecker Länge 2m"]
[4022,"Kabel 3xBNC-St./3xBNC-St. 3m",36.549999999999997,"Kabel 3xBNC-Stecker auf 3xBNC-Stecker Länge 3m"]
[4023,"Kabel 3xBNC-St./3xBNC-St. 5m",41.9,"Kabel 3xBNC-Stecker auf 3xBNC-Stecker Länge 5m"]
[4024,"Kabel 3xBNC-St./3xBNC-St. 7,5m",48.58,"Kabel 3xBNC-Stecker auf 3xBNC-Stecker Länge 7,5m"]
[4025,"Kabel 3xBNC-St./3xBNC-St. 10m",55.26,"Kabel 3xBNC-Stecker auf 3xBNC-Stecker Länge 10m"]
[4026,"Kabel 3xBNC-St./3xBNC-St. 15m",68.63,"Kabel 3xBNC-Stecker auf 3xBNC-Stecker Länge 15m"]
[4027,"Kabel 3xBNC-St./3xBNC-St. 20m",81.99,"Kabel 3xBNC-Stecker auf 3xBNC-Stecker Länge 20m"]
[4028,"Kabel 4xBNC-St./4xBNC-St.  0,5m",39.950000000000003,"Kabel 4xBNC-Stecker auf 4xBNC-Stecker Länge 0,5m"]
[4029,"Kabel 4xBNC-St./4xBNC-St.  1m",41.88,"Kabel 4xBNC-Stecker auf 4xBNC-Stecker Länge 1m"]
[4030,"Kabel 4xBNC-St./4xBNC-St.  2m",45.74,"Kabel 4xBNC-Stecker auf 4xBNC-Stecker Länge 2m"]
[4031,"Kabel 4xBNC-St./4xBNC-St.  3m",49.59,"Kabel 4xBNC-Stecker auf 4xBNC-Stecker Länge 3m"]
[4032,"Kabel 4xBNC-St./4xBNC-St.  5m",57.28,"Kabel 4xBNC-Stecker auf 4xBNC-Stecker Länge 5m"]
[4033,"Kabel 4xBNC-St./4xBNC-St.  7,5m",66.91,"Kabel 4xBNC-Stecker auf 4xBNC-Stecker Länge 7,5m"]
[4034,"Kabel 4xBNC-St./4xBNC-St. 10m",76.53,"Kabel 4xBNC-Stecker auf 4xBNC-Stecker Länge 10m"]
[4035,"Kabel 4xBNC-St./4xBNC-St. 15m",95.77,"Kabel 4xBNC-Stecker auf 4xBNC-Stecker Länge 15m"]
[4036,"Kabel 4xBNC-St./4xBNC-St. 20m",115.01,"Kabel 4xBNC-Stecker auf 4xBNC-Stecker Länge 20m"]
[4037,"Kabel 5xBNC-St./5xBNC-St.  0,5m",49.47,"Kabel 5xBNC-Stecker auf 5xBNC-Stecker Länge 0,5m"]
[4038,"Kabel 5xBNC-St./5xBNC-St.  1m",51.4,"Kabel 5xBNC-Stecker auf 5xBNC-Stecker Länge 1m"]
[4039,"Kabel 5xBNC-St./5xBNC-St.  2m",55.24,"Kabel 5xBNC-Stecker auf 5xBNC-Stecker Länge 2m"]
[4040,"Kabel 5xBNC-St./5xBNC-St.  3m",59.09,"Kabel 5xBNC-Stecker auf 5xBNC-Stecker Länge 3m"]
[4041,"Kabel 5xBNC-St./5xBNC-St.  5m",66.8,"Kabel 5xBNC-Stecker auf 5xBNC-Stecker Länge 5m"]
[4042,"Kabel 5xBNC-St./5xBNC-St.  7,5m",76.41,"Kabel 5xBNC-Stecker auf 5xBNC-Stecker Länge 7,5m"]
[4043,"Kabel 5xBNC-St./5xBNC-St. 10m",86.04,"Kabel 5xBNC-Stecker auf 5xBNC-Stecker Länge 10m"]
[4044,"Kabel 5xBNC-St./5xBNC-St. 15m",105.28,"Kabel 5xBNC-Stecker auf 5xBNC-Stecker Länge 15m"]
[4045,"Kabel 5xBNC-St./5xBNC-St. 20m",124.52,"Kabel 5xBNC-Stecker auf 5xBNC-Stecker Länge 20m"]
[4046,"Kabel BNC-St./Cinch-St. 0,5m",7.29,"Kabel BNC-Stecker auf Cinch-Stecker Länge 0,5m"]
[4047,"Kabel BNC-St./Cinch-St. 1m",7.8,"Kabel BNC-Stecker auf Cinch-Stecker Länge 1m"]
[4048,"Kabel BNC-St./Cinch-St. 2m",8.68,"Kabel BNC-Stecker auf Cinch-Stecker Länge 2m"]
[4049,"Kabel BNC-St./Cinch-St. 3m",10.94,"Kabel BNC-Stecker auf Cinch-Stecker Länge 3m"]
[4050,"Kabel BNC-St./Cinch-St. 5m",12.49,"Kabel BNC-Stecker auf Cinch-Stecker Länge 5m"]
[4051,"Kabel BNC-St./Cinch-St. 7,5m",14.49,"Kabel BNC-Stecker auf Cinch-Stecker Länge 7,5m"]
[4052,"Kabel BNC-St./Cinch-St. 10m",16.54,"Kabel BNC-Stecker auf Cinch-Stecker Länge 10m"]
[4053,"Kabel BNC-St./Cinch-St. 15m",21.8,"Kabel BNC-Stecker auf Cinch-Stecker Länge 15m"]
[4054,"Kabel BNC-St./Cinch-St. 20m",30.48,"Kabel BNC-Stecker auf Cinch-Stecker Länge 20m"]
[4055,"Kabel BNC-S.2xCinch-S.dito 0,5m",26.29,"Kabel BNC-Stecker + 2xCinch-Stecker auf BNC-Stecker + 2xCinch-Stecker Länge 0,5m"]
[4056,"Kabel BNC-S.2xCinch-S.dito 1m",27.62,"Kabel BNC-Stecker + 2xCinch-Stecker auf BNC-Stecker + 2xCinch-Stecker Länge 1m"]
[4057,"Kabel BNC-S.2xCinch-S.dito 2m",30.29,"Kabel BNC-Stecker + 2xCinch-Stecker auf BNC-Stecker + 2xCinch-Stecker Länge 2m"]
[4058,"Kabel BNC-S.2xCinch-S.dito 3m",32.97,"Kabel BNC-Stecker + 2xCinch-Stecker auf BNC-Stecker + 2xCinch-Stecker Länge 3m"]
[4059,"Kabel BNC-S.2xCinch-S.dito 5m",38.299999999999997,"Kabel BNC-Stecker + 2xCinch-Stecker auf BNC-Stecker + 2xCinch-Stecker Länge 5m"]
[4060,"Kabel BNC-S.2xCinch-S.dito 7,5m",44.98,"Kabel BNC-Stecker + 2xCinch-Stecker auf BNC-Stecker + 2xCinch-Stecker Länge 7,5m"]
[4061,"Kabel BNC-S.2xCinch-S.dito 10m",51.67,"Kabel BNC-Stecker + 2xCinch-Stecker auf BNC-Stecker + 2xCinch-Stecker Länge 10m"]
[4062,"Kabel BNC-S.2xCinch-S.dito 15m",65.03,"Kabel BNC-Stecker + 2xCinch-Stecker auf BNC-Stecker + 2xCinch-Stecker Länge 15m"]
[4063,"Kabel BNC-S.2xCinch-S.dito 20m",78.39,"Kabel BNC-Stecker + 2xCinch-Stecker auf BNC-Stecker + 2xCinch-Stecker Länge 20m"]
[4064,"Kabel Cinch-St./Cinch-St.  0,5m",8.91,"Kabel Cinch-Stecker auf Cinch-Stecker (75Ohm) Länge 0,5m"]
[4065,"Kabel Cinch-St./Cinch-St. 1m",9.61,"Kabel Cinch-Stecker auf Cinch-Stecker (75Ohm) Länge 1m"]
[4066,"Kabel Cinch-St./Cinch-St. 2m",11.05,"Kabel Cinch-Stecker auf Cinch-Stecker (75Ohm) Länge 2m"]
[4067,"Kabel Cinch-St./Cinch-St. 3m",12.45,"Kabel Cinch-Stecker auf Cinch-Stecker (75Ohm) Länge 3m"]
[4068,"Kabel Cinch-St./Cinch-St. 5m",15.31,"Kabel Cinch-Stecker auf Cinch-Stecker (75Ohm) Länge 5m"]
[4069,"Kabel Cinch-St./Cinch-St. 7,5m",18.850000000000001,"Kabel Cinch-Stecker auf Cinch-Stecker (75Ohm) Länge 7,5m"]
[4070,"Kabel Cinch-St./Cinch-St.10m",22.41,"Kabel Cinch-Stecker auf Cinch-Stecker (75Ohm) Länge 10m"]
[4071,"Kabel Cinch-St./Cinch-St.15m",29.5,"Kabel Cinch-Stecker auf Cinch-Stecker (75Ohm) Länge 15m"]
[4072,"Kabel Cinch-St./Cinch-St.20m",36.6,"Kabel Cinch-Stecker auf Cinch-Stecker (75Ohm) Länge 20m"]
[4073,"Kabel 2xCinch-St./dito    0,5m",17.45,"Kabel 2xCinch-Stecker auf 2xCinch-Stecker  Länge 0,5m"]
[4074,"Kabel 2xCinch-St./dito    1m",18.52,"Kabel 2xCinch-Stecker auf 2xCinch-Stecker  Länge 1m"]
[4075,"Kabel 2xCinch-St./dito   2m",20.66,"Kabel 2xCinch-Stecker auf 2xCinch-Stecker  Länge 2m"]
[4076,"Kabel 2xCinch-St./dito  3m",22.8,"Kabel 2xCinch-Stecker auf 2xCinch-Stecker  Länge 3m"]
[4077,"Kabel 2xCinch-St./dito  5m",27.06,"Kabel 2xCinch-Stecker auf 2xCinch-Stecker  Länge 5m"]
[4078,"Kabel 2xCinch-St./dito  7,5m",32.42,"Kabel 2xCinch-Stecker auf 2xCinch-Stecker  Länge 7,5m"]
[4079,"Kabel 2xCinch-St./dito 10m",37.770000000000003,"Kabel 2xCinch-Stecker auf 2xCinch-Stecker  Länge  10m"]
[4080,"Kabel 2xCinch-St./dito 15m",48.47,"Kabel 2xCinch-Stecker auf 2xCinch-Stecker  Länge 15m"]
[4081,"Kabel 2xCinch-St./dito 20m",59.15,"Kabel 2xCinch-Stecker auf 2xCinch-Stecker  Länge 20m"]
[4082,"Kabel 3xCinch-St./dito   0,5m",25.91,"Kabel 3xCinch-Stecker auf 3xCinch-Stecker  Länge 0,5m"]
[4083,"Kabel 3xCinch-St./dito   1m",27.24,"Kabel 3xCinch-Stecker auf 3xCinch-Stecker  Länge 1m"]
[4084,"Kabel 3xCinch-St./dito   2m",29.92,"Kabel 3xCinch-Stecker auf 3xCinch-Stecker  Länge 2m"]
[4085,"Kabel 3xCinch-St./dito  3m",32.590000000000003,"Kabel 3xCinch-Stecker auf 3xCinch-Stecker  Länge 3m"]
[4086,"Kabel 3xCinch-St./dito  5m",37.94,"Kabel 3xCinch-Stecker auf 3xCinch-Stecker  Länge 5m"]
[4087,"Kabel 3xCinch-St./dito  7,5m",44.62,"Kabel 3xCinch-Stecker auf 3xCinch-Stecker  Länge 7,5m"]
[4088,"Kabel 3xCinch-St./dito 10m",51.3,"Kabel 3xCinch-Stecker auf 3xCinch-Stecker  Länge 10m"]
[4089,"Kabel 3xCinch-St./dito 15m",64.66,"Kabel 3xCinch-Stecker auf 3xCinch-Stecker  Länge 15m"]
[4090,"Kabel 3xCinch-St./dito 20m",78.03,"Kabel 3xCinch-Stecker auf 3xCinch-Stecker  Länge 20m"]
[4091,"Kabel 3,5 St.KlinkeSt/dito   0,5m",10.24,"Kabel 3,5mm-Stereoklinkenstecker auf 3,5mm-Stereoklinkenstecker Länge 0,5m"]
[4092,"Kabel 3,5 St.KlinkeSt/dito  1m",10.61,"Kabel 3,5mm-Stereoklinkenstecker auf 3,5mm-Stereoklinkenstecker Länge 1m"]
[4093,"Kabel 3,5 St.KlinkeSt/dito  2m",11.31,"Kabel 3,5mm-Stereoklinkenstecker auf 3,5mm-Stereoklinkenstecker Länge 2m"]
[4094,"Kabel 3,5 St.KlinkeSt/dito  3m",12.01,"Kabel 3,5mm-Stereoklinkenstecker auf 3,5mm-Stereoklinkenstecker Länge 3m"]
[4095,"Kabel 3,5 St.KlinkeSt/dito  5m",13.44,"Kabel 3,5mm-Stereoklinkenstecker auf 3,5mm-Stereoklinkenstecker Länge 5m"]
[4096,"Kabel 3,5 St.KlinkeSt/dito  7,5m",15.21,"Kabel 3,5mm-Stereoklinkenstecker auf 3,5mm-Stereoklinkenstecker Länge 7,5m"]
[4097,"Kabel 3,5 St.KlinkeSt/dito 10m",17,"Kabel 3,5mm-Stereoklinkenstecker auf 3,5mm-Stereoklinkenstecker Länge 10m"]
[4098,"Kabel 3,5 St.KlinkeSt/dito 15m",20.54,"Kabel 3,5mm-Stereoklinkenstecker auf 3,5mm-Stereoklinkenstecker Länge 15m"]
[4099,"Kabel 3,5 St.KlinkeSt/dito 20m",24.1,"Kabel 3,5mm-Stereoklinkenstecker auf 3,5mm-Stereoklinkenstecker Länge 20m"]
[4100,"Kabel 3,5 St.KlinkeSt/2xCinch-Stecker   0,5m",14.2,"Kabel 3,5mm-Stereoklinkenstecker auf 2xCinch-Stecker Länge 0,5m"]
[4101,"Kabel 3,5 St.KlinkeSt/2xCinch-Stecker   1m",15.27,"Kabel 3,5mm-Stereoklinkenstecker auf 2xCinch-Stecker Länge 1m"]
[4102,"Kabel 3,5 St.KlinkeSt/2xCinch-Stecker   2m",17.420000000000002,"Kabel 3,5mm-Stereoklinkenstecker auf 2xCinch-Stecker Länge 2m"]
[4103,"Kabel 3,5 St.KlinkeSt/2xCinch-Stecker  3m",19.55,"Kabel 3,5mm-Stereoklinkenstecker auf 2xCinch-Stecker Länge 3m"]
[4104,"Kabel 3,5 St.KlinkeSt/2xCinch-Stecker  5m",23.83,"Kabel 3,5mm-Stereoklinkenstecker auf 2xCinch-Stecker Länge 5m"]
[4105,"Kabel 3,5 St.KlinkeSt/2xCinch-Stecker  7,5m",29.16,"Kabel 3,5mm-Stereoklinkenstecker auf 2xCinch-Stecker Länge 7,5m"]
[4106,"Kabel 3,5 St.KlinkeSt/2xCinch-Stecker 10m",34.51,"Kabel 3,5mm-Stereoklinkenstecker auf 2xCinch-Stecker Länge 10m"]
[4107,"Kabel 3,5 St.KlinkeSt/2xCinch-Stecker 15m",45.21,"Kabel 3,5mm-Stereoklinkenstecker auf 2xCinch-Stecker Länge 15m"]
[4108,"Kabel 3,5 St.KlinkeSt/2xCinch-Stecker 20m",55.89,"Kabel 3,5mm-Stereoklinkenstecker auf 2xCinch-Stecker Länge 20m"]
[4109,"Kabel VGA-St./VGA-St.  0,5m",42.14,"Kabel 15pol-HD-VGA-Stecker auf 15pol-HD-VGA-Stecker Länge 0,5m"]
[4110,"Kabel VGA-St./VGA-St.  1,0m",43.29,"Kabel 15pol-HD-VGA-Stecker auf 15pol-HD-VGA-Stecker Länge 1m"]
[4111,"Kabel VGA-St./VGA-St.  2m",45.51,"Kabel 15pol-HD-VGA-Stecker auf 15pol-HD-VGA-Stecker Länge 2m"]
[4112,"Kabel VGA-St./VGA-St.  3m",47.76,"Kabel 15pol-HD-VGA-Stecker auf 15pol-HD-VGA-Stecker Länge 3m"]
[4113,"Kabel VGA-St./VGA-St.  5m",52.28,"Kabel 15pol-HD-VGA-Stecker auf 15pol-HD-VGA-Stecker Länge 5m"]
[4114,"Kabel VGA-St./VGA-St.  7,5m",57.85,"Kabel 15pol-HD-VGA-Stecker auf 15pol-HD-VGA-Stecker Länge 7,5m"]
[4115,"Kabel VGA-St./VGA-St. 10m",63.49,"Kabel 15pol-HD-VGA-Stecker auf 15pol-HD-VGA-Stecker Länge 10m"]
[4116,"Kabel VGA-St./VGA-St. 15m",74.709999999999994,"Kabel 15pol-HD-VGA-Stecker auf 15pol-HD-VGA-Stecker Länge 15m"]
[4117,"Kabel VGA-St./VGA-St. 20m",85.93,"Kabel 15pol-HD-VGA-Stecker auf 15pol-HD-VGA-Stecker Länge 20m"]
[4118,"Kabel VGA-St./VGA-St. 25m",97.16,"Kabel 15pol-HD-VGA-Stecker auf 15pol-HD-VGA-Stecker Länge 25m"]
[4119,"Kabel VGA-St./VGA-Ku.  0,5m Superflex",43.15,"Superflex-Kabel 15pol-HD-VGA-Stecker auf 15pol-HD-VGA-Kupplung Länge 0,5m"]
[4120,"Kabel VGA-St./VGA-Ku.  1m",43.29,"Kabel 15pol-HD-VGA-Stecker auf 15pol-HD-VGA-Kupplung Länge 1m"]
[4121,"Kabel VGA-St./VGA-Ku.  2m",45.51,"Kabel 15pol-HD-VGA-Stecker auf 15pol-HD-VGA-Kupplung Länge 2m"]
[4122,"Kabel VGA-St./VGA-Ku.  3,0m",47.76,"Kabel 15pol-HD-VGA-Stecker auf 15pol-HD-VGA-Kupplung Länge 3m"]
[4123,"Kabel VGA-St./VGA-Ku.  5m",52.28,"Kabel 15pol-HD-VGA-Stecker auf 15pol-HD-VGA-Kupplung Länge 5m"]
[4124,"Kabel VGA-St./VGA-Ku.  7,5m",57.85,"Kabel 15pol-HD-VGA-Stecker auf 15pol-HD-VGA-Kupplung Länge 7,5m"]
[4125,"Kabel VGA-St./VGA-Ku. 10m",63.49,"Kabel 15pol-HD-VGA-Stecker auf 15pol-HD-VGA-Kupplung Länge 10m"]
[4126,"Kabel VGA-St./VGA-Ku. 15m",74.709999999999994,"Kabel 15pol-HD-VGA-Stecker auf 15pol-HD-VGA-Kupplung Länge 15m"]
[4127,"Kabel VGA-St./VGA-Ku. 20m",85.93,"Kabel 15pol-HD-VGA-Stecker auf 15pol-HD-VGA-Kupplung Länge 20m"]
[4128,"ZZKabel VGA-St./5xBNC-St.  1m",46.53,"Kabel 15pol-HD-VGA-Stecker auf 5xBNC-Stecker  Länge 1m"]
[4129,"Kabel VGA-St./5xBNC-St.  2m",48.78,"Kabel 15pol-HD-VGA-Stecker auf 5xBNC-Stecker  Länge 2m"]
[4130,"Kabel VGA-St./5xBNC-St.  3m",51.03,"Kabel 15pol-HD-VGA-Stecker auf 5xBNC-Stecker  Länge 3m"]
[4131,"Kabel VGA-St./5xBNC-St.  5m",55.51,"Kabel 15pol-HD-VGA-Stecker auf 5xBNC-Stecker  Länge 5m"]
[4132,"Kabel VGA-St./5xBNC-St.  7,5m",61.12,"Kabel 15pol-HD-VGA-Stecker auf 5xBNC-Stecker  Länge 7,5m"]
[4133,"Kabel VGA-St./5xBNC-St. 10m",66.75,"Kabel 15pol-HD-VGA-Stecker auf 5xBNC-Stecker  Länge 10m"]
[4134,"Kabel VGA-St./5xBNC-St. 15m",77.959999999999994,"Kabel 15pol-HD-VGA-Stecker auf 5xBNC-Stecker  Länge 15m"]
[4135,"Kabel VGA-St./5xBNC-St. 20m",89.19,"Kabel 15pol-HD-VGA-Stecker auf 5xBNC-Stecker  Länge 20m"]
[4136,"Kabel VGA-St./5xBNC-Ku. 0,2m Standard",29.2,"Kabel 15pol-HD-VGA-Stecker auf 5xBNC-Kupplung Länge 0,2m   Low Cost Ausführung mit vergossenen Steckern"]
[4137,"Kabel VGA-St./5xBNC-Ku. 1m Superflex",58.38,"Superflex-Kabel 15pol-HD-VGA-Stecker auf 5xBNC-Kupplung Länge 1m"]
[4138,"Kabel VGA-St./5xBNC-Ku. 2m Superflex",66.02,"Superflex-Kabel 15pol-HD-VGA-Stecker auf 5xBNC-Kupplung Länge 2m"]
[4139,"Kabel 4p.-MD-St./2xBNC-Ku. 0,2m",24.71,"Kabel 4pin-Mini-DIN-Stecker auf 2xBNC-Kupplung Länge 0,2m"]
[4140,"Kabel 4p.-MD-St./2xBNC-Ku. 1m",26.43,"Kabel 4pin-Mini-DIN-Stecker auf 2xBNC-Kupplung Länge 1m"]
[4141,"Kabel 4p.-MD-St./2xBNC-Ku. 2m",28.55,"Kabel 4pin-Mini-DIN-Stecker auf 2xBNC-Kupplung Länge 2m"]
[4142,"Kabel 3p.XLR-St./3p.XLR-Ku.0,5m",20.92,"Kabel 3pol-XLR-Stecker auf 3pol-XLR-Kupplung Länge 0,5m"]
[4143,"Kabel 3p.XLR-St./3p.XLR-Ku. 1m",21.61,"Kabel 3pol-XLR-Stecker auf 3pol-XLR-Kupplung Länge 1m"]
[4144,"Kabel 3p.XLR-St./3p.XLR-Ku. 2m",22.99,"Kabel 3pol-XLR-Stecker auf 3pol-XLR-Kupplung Länge 2m"]
[4145,"Kabel 3p.XLR-St./3p.XLR-Ku. 3m",24.38,"Kabel 3pol-XLR-Stecker auf 3pol-XLR-Kupplung Länge 3m"]
[4146,"Kabel 3p.XLR-St./3p.XLR-Ku. 5m",27.15,"Kabel 3pol-XLR-Stecker auf 3pol-XLR-Kupplung Länge 5m"]
[4147,"Kabel 3p.XLR-St./3p.XLR-Ku.7,5m",30.61,"Kabel 3pol-XLR-Stecker auf 3pol-XLR-Kupplung Länge 7,5m"]
[4148,"Kabel 3p.XLR-St./3p.XLR-Ku.10m",34.08,"Kabel 3pol-XLR-Stecker auf 3pol-XLR-Kupplung Länge 10m"]
[4149,"Kabel 3p.XLR-St./3p.XLR-Ku.15m",41,"Kabel 3pol-XLR-Stecker auf 3pol-XLR-Kupplung Länge 15m"]
[4150,"Kabel 3p.XLR-St./3p.XLR-Ku.20m",47.93,"Kabel 3pol-XLR-Stecker auf 3pol-XLR-Kupplung Länge 20m"]
[4151,"Kabel 3p.XLR-St./3p.XLR-Ku.25m",54.84,"Kabel 3pol-XLR-Stecker auf 3pol-XLR-Kupplung Länge 25m"]
[4152,"Kabel VGA-Ku.o.G/5xBNC-Ku. 0,4m",30.08,"Kabel 15pol-HD-VGA-Kupplung ohne Gehäuse auf 5xBNC-Kupplung Länge 0,4m"]
[4153,"Kabel 4p.-MD-St./4p-MD-St.   0,5m",22.31,"Kabel 4pin-Mini-DIN-Stecker auf 4pin-Mini-DIN-Stecker Länge 0,5m"]
[4154,"Kabel 4p.-MD-St./4p-MD-St.   1m",23.38,"Kabel 4pin-Mini-DIN-Stecker auf 4pin-Mini-DIN-Stecker Länge 1m"]
[4155,"Kabel 4p.-MD-St./4p-MD-St.  2m",25.5,"Kabel 4pin-Mini-DIN-Stecker auf 4pin-Mini-DIN-Stecker Länge 2m"]
[4156,"Kabel 4p.-MD-St./4p-MD-St.  3m",27.66,"Kabel 4pin-Mini-DIN-Stecker auf 4pin-Mini-DIN-Stecker Länge 3m"]
[4157,"Kabel 4p.-MD-St./4p-MD-St.  5m",31.92,"Kabel 4pin-Mini-DIN-Stecker auf 4pin-Mini-DIN-Stecker Länge 5m"]
[4158,"Kabel 4p.-MD-St./4p-MD-St.  7,5m",37.270000000000003,"Kabel 4pin-Mini-DIN-Stecker auf 4pin-Mini-DIN-Stecker Länge 7,5m"]
[4159,"Kabel 4p.-MD-St./4p-MD-St. 10m",42.62,"Kabel 4pin-Mini-DIN-Stecker auf 4pin-Mini-DIN-Stecker Länge 10m"]
[4160,"Kabel 4p.-MD-St./4p-MD-St. 15m",53.3,"Kabel 4pin-Mini-DIN-Stecker auf 4pin-Mini-DIN-Stecker Länge 15m"]
[4161,"Kabel 4p.-MD-St./4p-MD-St. 20m",64,"Kabel 4pin-Mini-DIN-Stecker auf 4pin-Mini-DIN-Stecker Länge 20m"]
[4162,"Kabel 4p.-MD-St./4p-MD-St. 25m",74.7,"Kabel 4pin-Mini-DIN-Stecker auf 4pin-Mini-DIN-Stecker Länge 25m"]
[4163,"Kabel 4p.-MD-St./2xBNC-Ku. 0,5m",25.36,"Kabel 4pin-Mini-DIN-Stecker auf 2xBNC-Kupplung Länge 0,5m"]
[4164,"Kabel VGA-St./5xBNC-Ku. 0,5m Superflex",56.46,"Superflex-Kabel 15pol-HD-VGA-Stecker auf 5xBNC-Kupplung Länge 0,5m"]
[4165,"Kabel VGA-St./VGA-Ku. 25m",97.16,"Kabel 15pol-HD-VGA-Stecker auf 15pol-HD-VGA-Kupplung Länge 25m"]
[4166,"Kabel 9p.-St./9p-St. 0,5m",26.21,"Kabel 9pin-Sub-D-Stecker auf 9pin-Sub-D-Stecker Länge 0,5m"]
[4167,"Kabel 9p.-St./9p-St. 1m",26.86,"Kabel 9pin-Sub-D-Stecker auf 9pin-Sub-D-Stecker Länge 1m"]
[4168,"Kabel 9p.-St./9p-St. 2m",28.16,"Kabel 9pin-Sub-D-Stecker auf 9pin-Sub-D-Stecker Länge 2m"]
[4169,"Kabel 9p.-St./9p-St. 3m",29.45,"Kabel 9pin-Sub-D-Stecker auf 9pin-Sub-D-Stecker Länge 3m"]
[4170,"Kabel 9p.-St./9p-St. 5m",32.03,"Kabel 9pin-Sub-D-Stecker auf 9pin-Sub-D-Stecker Länge 5m"]
[4171,"Kabel 9p.-St./9p-St. 7,5m",35.26,"Kabel 9pin-Sub-D-Stecker auf 9pin-Sub-D-Stecker Länge 7,5m"]
[4172,"Kabel 9p.-St./9p-St. 10m",38.51,"Kabel 9pin-Sub-D-Stecker auf 9pin-Sub-D-Stecker Länge 10m"]
[4173,"Kabel 9p.-St./9p-St. 15m",44.97,"Kabel 9pin-Sub-D-Stecker auf 9pin-Sub-D-Stecker Länge 15m"]
[4174,"Kabel 9p.-St./9p-St. 20m",51.43,"Kabel 9pin-Sub-D-Stecker auf 9pin-Sub-D-Stecker Länge 20m"]
[4175,"Kabel 9p.-St./9p-St. 25m",57.91,"Kabel 9pin-Sub-D-Stecker auf 9pin-Sub-D-Stecker Länge 25m"]
[4176,"Kabel 9p.-St./9p-Ku. 0,5m",26.21,"Kabel 9pin-Sub-D-Stecker auf 9pin-Sub-D-Kupplung Länge 0,5m"]
[4177,"Kabel 9p.-St./9p-Ku. 1m",26.86,"Kabel 9pin-Sub-D-Stecker auf 9pin-Sub-D-Kupplung Länge 1m"]
[4178,"Kabel 9p.-St./9p-Ku. 2m",28.16,"Kabel 9pin-Sub-D-Stecker auf 9pin-Sub-D-Kupplung Länge 2m"]
[4179,"Kabel 9p.-St./9p-Ku. 3m",29.45,"Kabel 9pin-Sub-D-Stecker auf 9pin-Sub-D-Kupplung Länge 3m"]
[4180,"Kabel 9p.-St./9p-Ku. 5m",32.03,"Kabel 9pin-Sub-D-Stecker auf 9pin-Sub-D-Kupplung Länge 5m"]
[4181,"Kabel 9p.-St./9p-Ku. 7,5m",35.26,"Kabel 9pin-Sub-D-Stecker auf 9pin-Sub-D-Kupplung Länge 7,5m"]
[4182,"Kabel 9p.-St./9p-Ku. 10m",38.51,"Kabel 9pin-Sub-D-Stecker auf 9pin-Sub-D-Kupplung Länge 10m"]
[4183,"Kabel 9p.-St./9p-Ku. 15m",44.97,"Kabel 9pin-Sub-D-Stecker auf 9pin-Sub-D-Kupplung Länge 15m"]
[4184,"Kabel 9p.-St./9p-Ku. 20m",51.43,"Kabel 9pin-Sub-D-Stecker auf 9pin-Sub-D-Kupplung Länge 20m"]
[4185,"Kabel 9p.-St./9p-Ku. 25m",57.91,"Kabel 9pin-Sub-D-Stecker auf 9pin-Sub-D-Kupplung Länge 25m"]
[4186,"Kabel VGA-Ku./5xBNC-St. 0,2m Superflex",45.52,"Superflex-Kabel 15pol-HD-VGA-Kupplung auf 5xBNC-Stecker Länge 0,2m"]
[4187,"Kabel VGA-St./5xBNC-Ku. 0,2m Superflex",53.85,"Superflex-Kabel 15pol-HD-VGA-Stecker auf 5xBNC-Kupplung Länge 0,2m"]
[4188,"Kabel 4p.-MD-St./2xBNC-St. 0,2m",20.56,"Kabel 4pin-Mini-DIN-Stecker auf 2xBNC-Stecker Länge 0,2m"]
[4189,"Kabel 4p.-MD-St./2xBNC-St. 0,5m",21.21,"Kabel 4pin-Mini-DIN-Stecker auf 2xBNC-Stecker Länge 0,5m"]
[4190,"Kabel 4p.-MD-St./2xBNC-St. 1m",22.27,"Kabel 4pin-Mini-DIN-Stecker auf 2xBNC-Stecker Länge 1m"]
[4191,"Kabel 4p.-MD-St./2xBNC-St. 2m",24.4,"Kabel 4pin-Mini-DIN-Stecker auf 2xBNC-Stecker Länge 2m"]
[4192,"Kabel 4p.-MD-St./2xBNC-St. 3m",26.53,"Kabel 4pin-Mini-DIN-Stecker auf 2xBNC-Stecker Länge 3m"]
[4193,"Kabel 4p.-MD-St./2xBNC-St. 5m",30.81,"Kabel 4pin-Mini-DIN-Stecker auf 2xBNC-Stecker Länge 5m"]
[4194,"Kabel 4p.-MD-St./2xBNC-St. 7,5m",36.17,"Kabel 4pin-Mini-DIN-Stecker auf 2xBNC-Stecker Länge 7,5m"]
[4195,"Kabel 4p.-MD-St./2xBNC-St. 10m",41.52,"Kabel 4pin-Mini-DIN-Stecker auf 2xBNC-Stecker Länge 10m"]
[4196,"Kabel 4p.-MD-St./2xBNC-St. 15m",52.19,"Kabel 4pin-Mini-DIN-Stecker auf 2xBNC-Stecker Länge 15m"]
[4197,"Kabel 4p.-MD-St./2xBNC-St. 20m",62.9,"Kabel 4pin-Mini-DIN-Stecker auf 2xBNC-Stecker Länge 20m"]
[4198,"Kabel 4p.-MD-St./4p-MD-Ku. 15m",53.3,"Kabel 4pin-Mini-DIN-Stecker auf 4pin-Mini-DIN-Kupplung Länge 15m"]
[4199,"Kabel 6p.-MD-St./6p-MD-Ku. 1m",26.06,"Kabel 6pin-Mini-DIN-Stecker auf 6pin-Mini-DIN-Kupplung Länge 1m"]
[4200,"Kabel 6p.-MD-St./6p-MD-Ku. 2m",27.41,"Kabel 6pin-Mini-DIN-Stecker auf 6pin-Mini-DIN-Kupplung Länge 2m"]
[4201,"Kabel 6p.-MD-St./6p-MD-Ku. 3m",28.77,"Kabel 6pin-Mini-DIN-Stecker auf 6pin-Mini-DIN-Kupplung Länge 3m"]
[4202,"Kabel 6p.-MD-St./6p-MD-Ku. 5m",31.47,"Kabel 6pin-Mini-DIN-Stecker auf 6pin-Mini-DIN-Kupplung Länge 5m"]
[4203,"Kabel 6p.-MD-St./6p-MD-Ku. 7,5m",34.869999999999997,"Kabel 6pin-Mini-DIN-Stecker auf 6pin-Mini-DIN-Kupplung Länge 7,5m"]
[4204,"Kabel 6p.-MD-St./6p-MD-Ku. 10m",38.25,"Kabel 6pin-Mini-DIN-Stecker auf 6pin-Mini-DIN-Kupplung Länge 10m"]
[4205,"Kabel 6p.-MD-St./6p-MD-Ku. 15m",45.02,"Kabel 6pin-Mini-DIN-Stecker auf 6pin-Mini-DIN-Kupplung Länge 15m"]
[4206,"Kabel 6p.-MD-St./6p-MD-Ku. 20m",51.8,"Kabel 6pin-Mini-DIN-Stecker auf 6pin-Mini-DIN-Kupplung Länge 20m"]
[4207,"Kabel 4p.-MD-Ku./2xBNC-Ku. 1m",26.43,"Kabel 4pin-Mini-DIN-Kupplung auf 2xBNC-Kupplung Länge 1m"]
[4208,"Kabel 5xBNC-St./5xBNC-St.  4m",62.95,"Kabel 5xBNC-Stecker auf 5xBNC-Stecker Länge 4m"]
[4209,"Kabel 4xBNC-St./4xBNC-St.  4m",53.43,"Kabel 4xBNC-Stecker auf 4xBNC-Stecker Länge 4m"]
[4210,"Kabel 2xBNC-St./2xBNC-St.  4m",27.58,"Kabel 2xBNC-Stecker auf 2xBNC-Stecker Länge 4m"]
[4211,"Kabel 4p.-MD-St./2xBNC-St. 6m",32.96,"Kabel 4pin-Mini-DIN-Stecker auf 2xBNC-Stecker Länge 6m"]
[4212,"Kabel 4p.-MD-Ku./2xBNC-St. 0,2m",20.56,"Kabel 4pin-Mini-DIN-Kupplung auf 2xBNC-Stecker Länge 0,2m"]
[4213,"Kabel Kat.5e  0,25m S/FTP  grau",1.79,"Kabel Kat.5e S/FTP doppelt geschirmt 0,25m grau"]
[4214,"Kabel Kat.5e  0,5m S/FTP  grau",1.98,"Kabel Kat.5e S/FTP doppelt geschirmt 0,5m grau"]
[4215,"Kabel Kat.5e  1m S/FTP  grau",2.4,"Kabel Kat.5e S/FTP doppelt geschirmt 1m grau"]
[4216,"Kabel Kat.5e  2m S/FTP  grau",3.28,"Kabel Kat.5e S/FTP doppelt geschirmt 2m grau"]
[4217,"Kabel Kat.5e  3m S/FTP  grau",4.3099999999999996,"Kabel Kat.5e S/FTP doppelt geschirmt 3m grau"]
[4218,"Kabel Kat.5e  5m S/FTP  grau",5.91,"Kabel Kat.5e S/FTP doppelt geschirmt 5m grau"]
[4219,"Kabel Kat.5e  7,5m S/FTP  grau",9.0399999999999991,"Kabel Kat.5e S/FTP doppelt geschirmt 7,5m grau"]
[4220,"Kabel Kat.5e 10m S/FTP  grau",10.6,"Kabel Kat.5e S/FTP doppelt geschirmt 10m grau"]
[4221,"Kabel Kat.5e 15m S/FTP  grau",14.91,"Kabel Kat.5e S/FTP doppelt geschirmt 15m grau"]
[4222,"Kabel Kat.5e 20m S/FTP  grau",19.25,"Kabel Kat.5e S/FTP doppelt geschirmt 20m grau"]
[4223,"Kabel Kat.5e 30m S/FTP  grau",28.22,"Kabel Kat.5e S/FTP doppelt geschirmt 30m grau"]
[4224,"Kabel Kat.5e 40m S/FTP  grau",36.79,"Kabel Kat.5e S/FTP doppelt geschirmt 40m grau"]
[4225,"Kabel Kat.5e 50m S/FTP  grau",46.71,"Kabel Kat.5e S/FTP doppelt geschirmt 50m grau"]
[4226,"Kabel Kat.6  0,5m S/STP  grau",4.3099999999999996,"Kabel Kat.6 S/STP doppelt geschirmt 0,5m grau halogenfrei"]
[4227,"Kabel Kat.6  1m S/STP  grau",5.1100000000000003,"Kabel Kat.6 S/STP doppelt geschirmt 1m grau halogenfrei"]
[4228,"Kabel Kat.6  2m S/STP  grau",7.06,"Kabel Kat.6 S/STP doppelt geschirmt 2m grau halogenfrei"]
[4229,"Kabel Kat.6  3m S/STP  grau",9.0399999999999991,"Kabel Kat.6 S/STP doppelt geschirmt 3m grau"]
[4230,"Kabel Kat.6  5m S/STP  grau",12.58,"Kabel Kat.6 S/STP doppelt geschirmt 5m grau halogenfrei"]
[4231,"Kabel Kat.6  7m S/STP  grau",17.28,"Kabel Kat.6 S/STP doppelt geschirmt 7m grau"]
[4232,"Kabel Kat.6 10m S/STP  grau",21.92,"Kabel Kat.6 S/STP doppelt geschirmt 10m grau halogenfrei"]
[4233,"Kabel Kat.6 15m S/STP  grau",31.45,"Kabel Kat.6 S/STP doppelt geschirmt 15m grau halogenfrei"]
[4234,"Kabel Kat.6 20m S/STP  grau",45.19,"Kabel Kat.6 S/STP doppelt geschirmt 20m grau halogenfrei"]
[4235,"Kabel Kat.6 30m S/STP  grau",60.43,"Kabel Kat.6 S/STP doppelt geschirmt 30m grau halogenfrei"]
[4236,"Kabel Kat.6 40m S/STP  grau",89.41,"Kabel Kat.6 S/STP doppelt geschirmt 40m grau halogenfrei"]
[4237,"Kabel Kat.6 50m S/STP  grau",110.76,"Kabel Kat.6 S/STP doppelt geschirmt 50m grau halogenfrei"]
[4238,"Kabel Kat.6  0,25m S/STP  grau",3.93,"Kabel Kat.6 S/STP doppelt geschirmt 0,25m grau halogenfrei"]
[4239,"Kabel VGA-St./VGA-Ku.  0,3m Superflex",42.31,"Superflex-Kabel 15pol-HD-VGA-Stecker auf 15pol-HD-VGA-Kupplung Länge 0,3m"]
[4242,"Kabel VGA-Ku./VGA-Ku.  0,3m Superflex",42.31,"Superflex-Kabel 15pol-HD-VGA-Kupplung auf 15pol-HD-VGA-Kupplung Länge 0,3m"]
[4243,"Kabel VGA-Ku./VGA-Ku. 0,5m Superflex",43.16,"Superflex-Kabel 15pol-HD-VGA-Kuplung auf 15pol-HD-VGA-Kupplung Länge 0,5m"]
[4244,"Kabel VGA-Ku./VGA-Ku. 1m Superflex",45.28,"Superflex-Kabel 15pol-HD-VGA-Kupplung auf 15pol-HD-VGA-Kupplung Länge 1m"]
[4245,"Kabel DVI 24+1 St./St.  2m",22.15,"DVI-Kabel Dual Link 24+1-Stecker auf 24+1-Stecker Länge: 2m"]
[4246,"Kabel DVI 24+1 St./St.  3m",27.37,"DVI-Kabel Dual Link 24+1-Stecker auf 24+1-Stecker Länge: 3m"]
[4247,"Kabel DVI 24+1 St./St.  5m",35.58,"DVI-Kabel Dual Link 24+1-Stecker auf 24+1-Stecker Länge: 5m"]
[4248,"Kabel DVI 24+1 St./St. 10m",58.18,"DVI-Kabel Dual Link 24+1-Stecker auf 24+1-Stecker Länge: 10m"]
[4250,"Kabel DVI 24+1 St./Ku. 10m",58.18,"DVI-Kabel Dual Link 24+1-Stecker auf 24+1-Kupplung 10m"]
[4251,"Kabel 3p.XLR-St./Cinch-St. 0,5m",14.46,"Kabel 3pol-XLR-Stecker auf Cinch-Stecker Länge 0,5m"]
[4252,"Kabel 3p.XLR-St./Cinch-St. 1m",15.15,"Kabel 3pol-XLR-Stecker auf Cinch-Stecker Länge 1m"]
[4253,"Kabel 3p.XLR-St./Cinch-St. 2m",16.54,"Kabel 3pol-XLR-Stecker auf Cinch-Stecker Länge 2m"]
[4254,"Kabel 3p.XLR-St./Cinch-St. 3m",17.91,"Kabel 3pol-XLR-Stecker auf Cinch-Stecker Länge 3m"]
[4255,"Kabel 3p.XLR-St./Cinch-St. 5m",20.69,"Kabel 3pol-XLR-Stecker auf Cinch-Stecker Länge 5m"]
[4256,"Kabel 3p.XLR-St./Cinch-St. 7,5m",24.15,"Kabel 3pol-XLR-Stecker auf Cinch-Stecker Länge 7,5m"]
[4257,"Kabel 3p.XLR-St./Cinch-St. 10m",27.61,"Kabel 3pol-XLR-Stecker auf Cinch-Stecker Länge 10m"]
[4258,"Kabel 3p.XLR-St./Cinch-St. 15m",34.54,"Kabel 3pol-XLR-Stecker auf Cinch-Stecker Länge 15m"]
[4259,"Kabel 3p.XLR-St./Cinch-St. 20m",41.46,"Kabel 3pol-XLR-Stecker auf Cinch-Stecker Länge 20m"]
[4260,"Kabel 3p.XLR-St./Cinch-St. 25m",48.38,"Kabel 3pol-XLR-Stecker auf Cinch-Stecker Länge 25m"]
[4261,"Kabel 3p.XLR-Ku./Cinch-St. 0,5m",15.35,"Kabel 3pol-XLR-Kupplung auf Cinch-Stecker Länge 0,5m"]
[4262,"Kabel 3p.XLR-Ku./Cinch-St. 1m",16.04,"Kabel 3pol-XLR-Kupplung auf Cinch-Stecker Länge 1m"]
[4263,"Kabel 3p.XLR-Ku./Cinch-St. 2m",17.420000000000002,"Kabel 3pol-XLR-Kupplung auf Cinch-Stecker Länge 2m"]
[4264,"Kabel 3p.XLR-Ku./Cinch-St. 3m",18.8,"Kabel 3pol-XLR-Kupplung auf Cinch-Stecker Länge 3m"]
[4265,"Kabel 3p.XLR-Ku./Cinch-St. 5m",21.58,"Kabel 3pol-XLR-Kupplung auf Cinch-Stecker Länge 5m"]
[4266,"Kabel 3p.XLR-Ku./Cinch-St. 7,5m",25.04,"Kabel 3pol-XLR-Kupplung auf Cinch-Stecker Länge 7,5m"]
[4267,"Kabel 3p.XLR-Ku./Cinch-St. 10m",28.51,"Kabel 3pol-XLR-Kupplung auf Cinch-Stecker Länge 10m"]
[4268,"Kabel 3p.XLR-Ku./Cinch-St. 15m",35.43,"Kabel 3pol-XLR-Kupplung auf Cinch-Stecker Länge 15m"]
[4269,"Kabel 3p.XLR-Ku./Cinch-St. 20m",42.35,"Kabel 3pol-XLR-Kupplung auf Cinch-Stecker Länge 20m"]
[4270,"Kabel 3p.XLR-Ku./Cinch-St. 25m",49.27,"Kabel 3pol-XLR-Kupplung auf Cinch-Stecker Länge 25m"]
[4271,"Kabel VGA-St./VGA-Ku. 12m",67.97,"Kabel 15pol-HD-VGA-Stecker auf 15pol-HD-VGA-Kupplung Länge 12m"]
[4272,"Kabel DVI St./5xBNC-Ku. 0,2m",53.85,"Kabel DVI 24+5-Stecker auf 5xBNC-Kupplung  Länge 0,2m"]
[4273,"Kabel DVI St./5xBNC-Ku. 0,5m",56.46,"Kabel DVI 24+5-Stecker auf 5xBNC-Kupplung Länge 0,5m"]
[4274,"Kabel DVI 24+5 St./VGA-St. 2m Standardqualität",16.02,"DVI-Adapterkabel 24+5-Stecker auf VGA-Stecker 2m Standardqualität"]
[4275,"Kabel DVI 24+1 St./Ku.  2m",22.69,"DVI-Kabel Dual Link 24+1-Stecker auf 24+1-Kupplung 2m"]
[4276,"Kabel DVI 24+1 St./Ku.  3m",25.55,"DVI-Kabel Dual Link 24+1-Stecker auf 24+1-Kupplung 3m"]
[4277,"Kabel DVI 24+1 St./Ku.  5m",37.18,"DVI-Kabel Dual Link 24+1-Stecker auf 24+1-Kupplung 5m"]
[4278,"ZZKabel VGA-St./VGA-St. 30m",108.37,"Kabel 15pol-HD-VGA-Stecker auf 15pol-HD-VGA-Stecker Länge 30m"]
[4279,"Kabel VGA-St./VGA-Ku. 13m Superflex",96.16,"Superflex-Kabel 15pol-HD-VGA-Stecker auf 15pol-HD-VGA-Kupplung Länge 13m"]
[4280,"Kabel DVI St./5xBNC-Ku. 1m",58.26,"Kabel DVI 24+5-Stecker auf 5xBNC-Kupplung Länge 1m"]
[4281,"Kabel DVI St./5xBNC-Ku. 2m",61.81,"Kabel DVI 24+5-Stecker auf 5xBNC-Kupplung Länge 2m"]
[4282,"Kabel 4p.-MD-St./2xBNC-St. 4m",28.68,"Kabel 4pin-Mini-DIN-Stecker auf 2xBNC-Stecker Länge 4m"]
[4283,"Kabel 4p.-MD-St./4p-MD-St.  1,5m",24.45,"Kabel 4pin-Mini-DIN-Stecker auf 4pin-Mini-DIN-Stecker Länge 1,5m"]
[4285,"Kabel VGA-St./VGA-Ku.  8m",58.99,"Kabel 15pol-HD-VGA-Stecker auf 15pol-HD-VGA-Kupplung Länge 8m"]
[4286,"Kabel VGA-St./VGA-St. 13m",70.209999999999994,"Kabel 15pol-HD-VGA-Stecker auf 15pol-HD-VGA-Stecker Länge 13m"]
[4287,"Kabel VGA-St./VGA-Ku.  2,5m",46.64,"Kabel 15pol-HD-VGA-Stecker auf 15pol-HD-VGA-Kupplung Länge 2,5m"]
[4288,"Kabel VGA-St./VGA-Ku. 17m Superflex",113.12,"Superflex-Kabel 15pol-HD-VGA-Stecker auf 15pol-HD-VGA-Kupplung Länge 17m"]
[4289,"Kabel VGA-St./VGA-Ku.  6,5m Superflex",68.599999999999994,"Superflex-Kabel 15pol-HD-VGA-Stecker auf 15pol-HD-VGA-Kupplung Länge 6,5m"]
[4290,"Kabel VGA-St./3xBNC-Ku. 0,3m",41.69,"Kabel 15pol-HD-VGA-Stecker auf 3xBNC-Kupplung Länge 0,3m"]
[4291,"Kabel 26pin-St./26pin-Ku. 10m",434.02,"Kamera-Kabel Länge 10m 26pin-Hirose-Stecker auf 26pin-Hirose-Kupplung"]
[4292,"Kabel 26pin-St./26pin-Ku. 20m",582.52,"Kamera-Kabel Länge 20m 26pin-Hirose-Stecker auf 26pin-Hirose-Kupplung"]
[4293,"Kabel 26pin-St./26pin-Ku. 25m",656.76,"Kamera-Kabel Länge 25m 26pin-Hirose-Stecker auf 26pin-Hirose-Kupplung"]
[4294,"Kabel 26pin-St./26pin-Ku. 50m",1027.94,"Kamera-Kabel Länge 50m 26pin-Hirose-Stecker auf 26pin-Hirose-Kupplung"]
[4295,"Kabel 26pin-St./26pin-Ku. 100m",1770.38,"Kamera-Kabel Länge 100m 26pin-Hirose-Stecker auf 26pin-Hirose-Kupplung"]
[4296,"Kabel Option Klinke für VGA spiral/spiral",14.19,"Option Audio für VGA-Kabel bestehend aus 2x3,5mm-Stereoklinkenstecker an 20-80cm ausziehbarem Spiralkabel an jeder Seite"]
[4298,"Kabel 4p.-MD-St./2xBNC-St. 2,5m",25.47,"Kabel 4pin-Mini-DIN-Stecker auf 2xBNC-Stecker Länge 2,5m"]
[4299,"Kabel VGA-St./5xBNC-St.  2,5m Superflex",49.9,"Kabel 15pol-HD-VGA-Stecker auf 5xBNC-Stecker  Länge 2,5m"]
[4300,"Kabel 4p.-MD-St./2xBNC-Ku. 1,5m",27.49,"Kabel 4pin-Mini-DIN-Stecker auf 2xBNC-Kupplung Länge 1,5m"]
[4301,"Kabel VGA-St./VGA-Ku.  4m Superflex",58,"Superflex-Kabel 15pol-HD-VGA-Stecker auf 15pol-HD-VGA-Kupplung Länge 4m"]
[4302,"Kabel VGA-St./5xBNC-St.  4m",53.26,"Kabel 15pol-HD-VGA-Stecker auf 5xBNC-Stecker  Länge 4m"]
[4303,"Kabel VGA-St./VGA-St. 12m",67.97,"Kabel 15pol-HD-VGA-Stecker auf 15pol-HD-VGA-Stecker Länge 12m"]
[4305,"Kabel VGA-Ku./5xBNC-Ku.  0,2m",53.85,"Kabel 15pol-HD-VGA-Kupplung auf 5xBNC-Kupplung Länge 0,2m"]
[4306,"Kabel Option abgewinkelter VGA",5.24,"Option einseitig abgewinkelter VGA-Stecker bzw. Kupplung für VGA-Kabel  45°"]
[4307,"Kabel 3,5 St.KlinkeSt/dito 25m",27.65,"Kabel 3,5mm-Stereoklinkenstecker auf 3,5mm-Stereoklinkenstecker Länge 25m"]
[4308,"Superflex-Kabel VGA-St./5xBNC-St. 30m Superflex",171.5,"Superflex-Kabel 15pol-HD-VGA-Stecker auf 5xBNC-Stecker  Länge 30m"]
[4309,"Kabel 5xBNC-St./5xBNC-St. 30m",163.01,"Kabel 5xBNC-Stecker auf 5xBNC-Stecker Länge 30m"]
[4310,"Kabel VGA-Ku./5xBNC-St.  0,5m Superflex",46.8,"Superflex-Kabel 15pol-HD-VGA-Kupplung auf 5xBNC-Stecker Länge 0,5m"]
[4311,"Kabel VGA-St./VGA-St. 40m",130.82,"Kabel 15pol-HD-VGA-Stecker auf 15pol-HD-VGA-Stecker Länge 40m"]
[4312,"Kabel 3xCinch-St./dito 25m",91.39,"Kabel 3xCinch-Stecker auf 3xCinch-Stecker  Länge 25m"]
[4313,"Kabel VGA-St./5xBNC-St. 0,2m Superflex",45.52,"Superflex-Kabel 15pol-HD-VGA-Stecker auf 5xBNC-Stecker Länge: 0,2m"]
[4314,"Kabel VGA-St./3xBNC-St. 0,3m",35.450000000000003,"Kabel 15pol-HD-VGA-Stecker auf 3xBNC-Stecker Länge: 0,3m"]
[4315,"Kabel VGA-St./VGA-Ku. 50m Superflex",253.04,"Superflex-Kabel 15pol-HD-VGA-Stecker auf 15pol-HD-VGA-Kupplung Länge 50m"]
[4316,"Kabel VGA-St./VGA-St. 50m",153.27000000000001,"Kabel 15pol-HD-VGA-Stecker auf 15pol-HD-VGA-Stecker Länge 50m"]
[4317,"Kabel VGA-St./VGA-St. 18m",81.45,"Kabel 15pol-HD-VGA-Stecker auf 15pol-HD-VGA-Stecker Länge 18m"]
[4318,"Kabel VGA-St./3xCinch-St. 0,5m",34.14,"Kabel 15pol-HD-VGA-Stecker auf 3xCinch-Stecker Länge: 0,5m"]
[4319,"Kabel VGA-St./3xCinch-St. 3m",40.82,"Kabel 15pol-HD-VGA-Stecker auf 3xCinch-Stecker Länge: 3m"]
[4320,"Kabel Scart-St./Scart-St. 5m",21,"Scart-Kabel Stecker-Stecker voll beschaltet, vergoldetete Stecker transparentes Kabel, Länge 5m"]
[4321,"BNC-Kabel dünn  1,0m",10.59,"BNC-Kabel 1m  2 x BNC-Stecker mit Knickschutztülle Videokabel 0,4/1,7 grün"]
[4322,"Kabel 5xBNC-St./5xBNC-St. 25m",143.76,"Kabel 5xBNC-Stecker auf 5xBNC-Stecker Länge 25m"]
[4323,"Kabel 4p.-MD-St./4p-MD-St. 30m",85.37,"Kabel 4pin-Mini-DIN-Stecker auf 4pin-Mini-DIN-Stecker Länge 30m"]
[4324,"BNC-Kabel dünn  1,5m",11.11,"BNC-Kabel 1,5m  2 x BNC-Stecker mit Knickschutztülle Videokabel 0,4/1,7 grün"]
[4325,"BNC-Kabel dünn  2m",11.64,"BNC-Kabel 2m  2 x BNC-Stecker mit Knickschutztülle Videokabel 0,4/1,7 grün"]
[4326,"Kabel Scart-St./S-Video+2xCin 2",45.31,"Scart-Stecker auf 4pin-Mini-DIN-Stecker + 2xCinchstecker, Länge 2m (Signalfluß von Scart nach 4pin/Cinch)"]
[4327,"Kabel BNC-St./SMB-Ku. 2m",18.97,"Kabel  BNC-Stecker auf SMB-Kabelbuchse Länge 2m (grünes Videokabel 0,4/1,7)"]
[4328,"Kabel BNC-St./SMB-Ku.4m",21.12,"Kabel  BNC-Stecker auf SMB-Kabelbuchse Länge 4m (grünes Videokabel 0,4/1,7)"]
[4329,"Kabel BNC-St./SMB-Ku.5m",22.18,"Kabel  BNC-Stecker auf SMB-Kabelbuchse Länge 5m (grünes Videokabel 0,4/1,7)"]
[4330,"Kabel BNC-St./SMB-Ku.7,5m",24.86,"Kabel  BNC-Stecker auf SMB-Kabelbuchse Länge 7,5m (grünes Videokabel 0,4/1,7)"]
[4331,"Kabel BNC-St./SMB-Ku.10m",27.53,"Kabel  BNC-Stecker auf SMB-Kabelbuchse Länge 10m (grünes Videokabel 0,4/1,7)"]
[4332,"BNC-Kabel dünn  5m",14.86,"BNC-Kabel 5m  2 x BNC-Stecker mit Knickschutztülle Videokabel 0,4/1,7 grün"]
[4333,"BNC-Kabel dünn 10m",20.21,"BNC-Kabel 10m  2 x BNC-Stecker mit Knickschutztülle Videokabel 0,4/1,7 grün"]
[4334,"Kabel VGA-St./VGA-St.  4m",49.48,"Kabel 15pol-HD-VGA-Stecker auf 15pol-HD-VGA-Stecker Länge 4m"]
[4335,"Kabel 4p.-MD-Ku./2xBNC-Ku. 0,2m",24.71,"Kabel 4pin-Mini-DIN-Kupplung auf 2xBNC-Kupplung Länge 0,2m"]
[4336,"Kabel Scart-St./Scart-St. 3m",16.2,"Scart-Kabel Stecker-Stecker voll beschaltet, vergoldetete Stecker transparentes Kabel, Länge 3m"]
[4337,"Kabel Scart-St./BNC+2xCin 3m IN",34.81,"Kabel  Scart-Stecker auf BNC-Stecker + 2xCinchstecker, Länge 3m (Signalfluß von Scart nach BNC/Cinch)"]
[4338,"Kabel Scart-St./BNC+2xCin 5m IN",40.159999999999997,"Kabel  Scart-Stecker auf BNC-Stecker + 2xCinchstecker, Länge 5m (Signalfluß von Scart nach BNC/Cinch)"]
[4339,"Kabel Scart-St./4xBNC-St. 3mIN",41.15,"Kabel  Scart-Stecker auf 4xBNC-Stecker, Länge 3m (Signalfluß von Scart nach BNC)"]
[4340,"Kabel Scart-St./4xBNC-St. 3mOUT",41.15,"Kabel  Scart-Stecker auf 4xBNC-Stecker, Länge 3m (Signalfluß von BNC nach Scart)"]
[4341,"Kabel BNC-St./SMB-Ku.8m",25.39,"Kabel  BNC-Stecker auf SMB-Kabelbuchse Länge 8m (grünes Videokabel 0,4/1,7)"]
[4342,"Kabel BNC-St./SMB-Ku. 1,5m",18.440000000000001,"Kabel  BNC-Stecker auf SMB-Kabelbuchse Länge 1,5m (grünes Videokabel 0,4/1,7)"]
[4343,"Kabel Option Klinke für VGA spiral/glatt10",14.19,"Option Audio für VGA-Kabel bestehend aus 2x3,5mm-Stereoklinkenstecker mit einem 20-80cm ausziehbarem Spiralkabel an der einen Seite und 10cm glatten Kabel an der anderen Seite"]
[4344,"Kabel Scart-St./Scart-St. 10m",42.75,"Scart-Kabel Stecker-Stecker voll beschaltet, vergoldetete Stecker transparentes Kabel, Länge 10m"]
[4345,"Kabel 3xCinch-St./dito 30m",104.75,"Kabel 3xCinch-Stecker auf 3xCinch-Stecker  Länge 30m"]
[4346,"Kabel 3,5 St.KlinkeSt/dito 30m",31.2,"Kabel 3,5mm-Stereoklinkenstecker auf 3,5mm-Stereoklinkenstecker Länge 30m"]
[4347,"Kabel Scart-St./BNC+2xCin 1,5IN",30.8,"Kabel  Scart-Stecker auf BNC-Stecker + 2xCinchstecker, Länge 1,5m (Signalfluß von Scart nach BNC/Cinch)"]
[4348,"Kabel Option Klinke für VGA glatt30/glatt30",14.19,"Option Audio für VGA-Kabel bestehend aus 2x3,5mm-Stereoklinkenstecker mit 30cm Kabel an jeder Seite"]
[4349,"Kabel VGA-St./VGA-St.  1,0m Superflex",45.28,"Superflex-Kabel 15pol-HD-VGA-Stecker auf 15pol-HD-VGA-Stecker Länge 1m"]
[4350,"Kabel VGA-St./VGA-St.  2m Superflex",49.52,"Superflex-Kabel 15pol-HD-VGA-Stecker auf 15pol-HD-VGA-Stecker Länge 2m"]
[4351,"Kabel VGA-St./VGA-St.  3m Superflex",53.76,"Superflex-Kabel 15pol-HD-VGA-Stecker auf 15pol-HD-VGA-Stecker Länge 3m"]
[4352,"Kabel VGA-St./VGA-St.  5m Superflex",62.24,"Superflex-Kabel 15pol-HD-VGA-Stecker auf 15pol-HD-VGA-Stecker Länge 5m"]
[4353,"Kabel VGA-St./VGA-St.  7,5m Superflex",72.84,"Superflex-Kabel 15pol-HD-VGA-Stecker auf 15pol-HD-VGA-Stecker Länge 7,5m"]
[4354,"Kabel VGA-St./VGA-St. 10m Superflex",83.44,"Superflex-Kabel 15pol-HD-VGA-Stecker auf 15pol-HD-VGA-Stecker Länge 10m"]
[4355,"Kabel VGA-St./VGA-St. 15m Superflex",104.64,"Superflex-Kabel 15pol-HD-VGA-Stecker auf 15pol-HD-VGA-Stecker Länge 15m"]
[4356,"Kabel VGA-St./VGA-St. 20m Superflex",125.84,"Superflex-Kabel 15pol-HD-VGA-Stecker auf 15pol-HD-VGA-Stecker Länge 20m"]
[4357,"Kabel VGA-St./VGA-St. 25m Superflex",147.04,"Superflex-Kabel 15pol-HD-VGA-Stecker auf 15pol-HD-VGA-Stecker Länge 25m"]
[4358,"Kabel VGA-St./VGA-Ku.  1m Superflex",45.28,"Superflex-Kabel 15pol-HD-VGA-Stecker auf 15pol-HD-VGA-Kupplung Länge 1m"]
[4359,"Kabel VGA-St./VGA-Ku.  2m Superflex",49.52,"Superflex-Kabel 15pol-HD-VGA-Stecker auf 15pol-HD-VGA-Kupplung Länge 2m"]
[4360,"Kabel VGA-St./VGA-Ku.  3,0m Superflex",53.76,"Superflex-Kabel 15pol-HD-VGA-Stecker auf 15pol-HD-VGA-Kupplung Länge 3m"]
[4361,"Kabel VGA-St./VGA-Ku.  5m Superflex",62.24,"Superflex-Kabel 15pol-HD-VGA-Stecker auf 15pol-HD-VGA-Kupplung Länge 5m"]
[4362,"Kabel VGA-St./VGA-Ku.  7,5m Superflex",72.84,"Superflex-Kabel 15pol-HD-VGA-Stecker auf 15pol-HD-VGA-Kupplung Länge 7,5m"]
[4363,"Kabel VGA-St./VGA-Ku. 10m Superflex",83.44,"Superflex-Kabel 15pol-HD-VGA-Stecker auf 15pol-HD-VGA-Kupplung Länge 10m"]
[4364,"Kabel VGA-St./VGA-Ku. 15m Superflex",104.64,"Superflex-Kabel 15pol-HD-VGA-Stecker auf 15pol-HD-VGA-Kupplung Länge 15m"]
[4365,"Kabel VGA-St./VGA-Ku. 20m Superflex",125.84,"Superflex-Kabel 15pol-HD-VGA-Stecker auf 15pol-HD-VGA-Kupplung Länge 20m"]
[4366,"Kabel VGA-St./VGA-Ku. 25m Superflex",147.04,"Superflex-Kabel 15pol-HD-VGA-Stecker auf 15pol-HD-VGA-Kupplung Länge 25m"]
[4367,"Kabel 3p.XLR-St./3p.XLR-Mini-Ku.7m",33.07,"Kabel 3pol-XLR-Stecker auf 3pol-Mini-XLR-Kupplung Länge 7m"]
[4369,"Kabel VGA-St./VGA-St.  4m Superflex",57.99,"Superflex-Kabel 15pol-HD-VGA-Stecker auf 15pol-HD-VGA-Stecker Länge 4m"]
[4373,"Kabel DVI St./5xBNC-St. 2m",55.37,"Kabel DVI 24+5-Stecker auf 5xBNC-Stecker Länge 2m"]
[4375,"Kabel VGA-St./VGA-St.  8m Superflex",74.95,"Superflex-Kabel 15pol-HD-VGA-Stecker auf 15pol-HD-VGA-Stecker Länge 8m"]
[4376,"Kabel 6p.-MD-St./6p-MD-Ku. 0,5m",25.38,"Kabel 6pin-Mini-DIN-Stecker auf 6pin-Mini-DIN-Kupplung Länge 0,5m"]
[4377,"Kabel BNC-St./SMB-Ku. 3m",20.04,"Kabel  BNC-Stecker auf SMB-Kabelbuchse Länge 3m (grünes Videokabel 0,4/1,7)"]
[4378,"Kabel SMB-Ku./SMB-Ku. 0,36m",24.54,"Kabel  SMB-Kabelbuchse auf SMB-Kabelbuchse Länge: 36cm (grünes Videokabel 0,4/1,7)"]
[4379,"BNC-Kabel dünn  3,0m",12.72,"BNC-Kabel 3m  2 x BNC-Stecker mit Knickschutztülle Videokabel 0,4/1,7 grün"]
[4380,"Kabel 2xCinch-St./dito  3m lowco",10.98,"Kabel 2xCinch-Stecker auf 2xCinch-Stecker  Länge 3m LowCost-Ausführung"]
[4381,"Kabel 3,5 St.KlinkeSt/Ku. 20m",24.1,"Kabel 3,5mm-Stereoklinkenstecker auf 3,5mm-Stereoklinkenkupplung Länge 20m"]
[4382,"Kabel DVI 24+1 St./St.  1,5m",21.35,"DVI-Kabel Dual Link 24+1-Stecker auf 24+1-Stecker, vergoldete Stecker mit Vollmetall-Hauben Länge:1,5m "]
[4386,"Kabel VGA-St./5xBNC-St.  1m Superflex",48.53,"Superflex-Kabel 15pol-HD-VGA-Stecker auf 5xBNC-Stecker Länge: 1m"]
[4387,"Kabel VGA-St./5xBNC-St.  2m Superflex",52.77,"Superflex-Kabel 15pol-HD-VGA-Stecker auf 5xBNC-Stecker Länge: 2m"]
[4388,"Kabel VGA-St./5xBNC-St.  3m Superflex",57.01,"Superflex-Kabel 15pol-HD-VGA-Stecker auf 5xBNC-Stecker Länge: 3m"]
[4389,"Kabel VGA-St./5xBNC-St.  5m Superflex",65.489999999999995,"Superflex-Kabel 15pol-HD-VGA-Stecker auf 5xBNC-Stecker Länge: 5m"]
[4390,"Kabel VGA-St./5xBNC-St.  7,5m Superflex",76.099999999999994,"Superflex-Kabel 15pol-HD-VGA-Stecker auf 5xBNC-Stecker Länge: 7,5m"]
[4391,"Kabel VGA-St./5xBNC-St. 10m Superflex",86.69,"Superflex-Kabel 15pol-HD-VGA-Stecker auf 5xBNC-Stecker Länge: 10m"]
[4392,"Kabel VGA-St./5xBNC-St. 15m Superflex",107.89,"Superflex-Kabel 15pol-HD-VGA-Stecker auf 5xBNC-Stecker Länge: 15m"]
[4393,"Kabel VGA-St./5xBNC-St. 20m Superflex",129.1,"Superflex-Kabel 15pol-HD-VGA-Stecker auf 5xBNC-Stecker Länge: 20m"]
[4394,"Kabel VGA-St./5xBNC-St. 25m Superflex",150.30000000000001,"Superflex-Kabel 15pol-HD-VGA-Stecker auf 5xBNC-Stecker Länge: 25m"]
[4400,"Kabel VGA-St./VGA-St.  0,5m Superflex",43.15,"Superflex-Kabel 15pol-HD-VGA-Stecker auf 15pol-HD-VGA-Stecker Länge 0,5m"]
[4402,"Kabel 2xCinch-St./dito 25m",69.83,"Kabel 2xCinch-Stecker auf 2xCinch-Stecker  Länge 25m"]
[4403,"Kabel 26pin-St./26pin-Ku. 200m",3255.23,"Kamera-Kabel Länge 200m  26pin-Hirose-Stecker auf 26pin-Hirose-Kupplung"]
[4404,"Kabel 26pin-St./26pin-Ku. 300m",4740.05,"Kamera-Kabel Länge 300m  26pin-Hirose-Stecker auf 26pin-Hirose-Kupplung"]
[4405,"Kabel BNC-St./SMB-Ku. 2,5m",19.510000000000002,"Kabel  BNC-Stecker auf SMB-Kabelbuchse Länge 2,5m (grünes Videokabel 0,4/1,7)"]
[4406,"Kabel 9p.-St./offen 10m",26.32,"Kabel 9pin-Sub-D-Stecker auf offenes Ende Länge 10m"]
[4407,"Kabel VGA-St./VGA-Ku.  6m Superflex",66.48,"Superflex-Kabel 15pol-HD-VGA-Stecker auf 15pol-HD-VGA-Kupplung Länge 6m"]
[4408,"Kabel 9p.-St./offen 15m",33.1,"Kabel 9pin-Sub-D-Stecker auf offenes Ende Länge 15m"]
[4409,"Kabel 9p.-St./offen 20m",39.86,"Kabel 9pin-Sub-D-Stecker auf offenes Ende Länge 20m"]
[4410,"Kabel 9p.-Ku./offen 10m",26.32,"Kabel 9pin-Sub-D-Kupplung auf offenes Ende Länge: 10m"]
[4411,"Kabel 9p.-Ku./offen 15m",33.1,"Kabel 9pin-Sub-D-Kupplung auf offenes Ende Länge: 15m"]
[4412,"Kabel 9p.-Ku./offen 20m",39.86,"Kabel 9pin-Sub-D-Kupplung auf offenes Ende Länge: 20m"]
[4413,"Kabel VGA-St./VGA-St.  1,5m Superflex",47.39,"Superflex-Kabel 15pol-HD-VGA-Stecker auf 15pol-HD-VGA-Stecker Länge 1,5m"]
[4415,"Kabel 4p.-MD-St./3xCin.-St. 15m",109.42,"Kabel 4pin-Mini-DIN-Stecker + 3xCinchstecker auf 4pin-Mini-DIN-Stecker + 3xCinchstecker Länge: 15m"]
[4416,"Kabel VGA-St./offen 10m Superflex",62.92,"Superflex-Kabel 15pol-HD-VGA-Stecker auf offenes Ende Länge: 10m"]
[4417,"Kabel VGA-St./offen 15m Superflex",84.13,"Superflex-Kabel 15pol-HD-VGA-Stecker auf offenes Ende Länge: 15m"]
[4418,"Kabel VGA-St./offen 20m Superflex",105.33,"Superflex-Kabel 15pol-HD-VGA-Stecker auf offenes Ende Länge: 20m"]
[4419,"Kabel Cinch-St./offen 10m",18.3,"Kabel Cinch-Stecker auf offenes Ende (75Ohm) Länge: 10m"]
[4420,"Kabel Cinch-St./offen 15m",25.42,"Kabel Cinch-Stecker auf offenes Ende (75Ohm) Länge 15m"]
[4421,"Kabel Cinch-St./offen 20m",32.520000000000003,"Kabel Cinch-Stecker auf offenes Ende (75Ohm) Länge 20m"]
[4422,"Kabel 8p.-MD-St /offen 10m",34.76,"Kabel 8pin-Mini-DIN-Stecker auf offenes Ende Länge 10m"]
[4423,"Kabel 8p.-MD-St /offen 15m",41.53,"Kabel 8pin-Mini-DIN-Stecker auf offenes Ende Länge 15m"]
[4424,"Kabel 8p.-MD-St /offen 20m",48.3,"Kabel 8pin-Mini-DIN-Stecker auf offenes Ende Länge 20m"]
[4426,"Kabel 4p.-MD-St./3xCin.-St. 10m",88.22,"Kabel 4pin-Mini-DIN-Stecker + 3xCinchstecker auf 4pin-Mini-DIN-Stecker + 3xCinchstecker Länge 10m"]
[4427,"Kabel 2xCinch-St./dito 30m",80.52,"Kabel 2xCinch-Stecker auf 2xCinch-Stecker  Länge 30m"]
[4428,"Kabel Option Klinke für VGA glatt30/glatt60",14.19,"Option Audio für VGA-Kabel bestehend aus 2x3,5mm-Stereoklinkenstecker mit 30cm Kabel an der einen und 60cm Kabel an der anderen Seite"]
[4429,"Kabel VGA-St./VGA-St. 30m Superflex",168.24,"Superflex-Kabel 15pol-HD-VGA-Stecker auf 15pol-HD-VGA-Stecker Länge 30m"]
[4430,"Kabel VGA-St./VGA-St.  6m Superflex",66.47,"Superflex-Kabel 15pol-HD-VGA-Stecker auf 15pol-HD-VGA-Stecker Länge 6m"]
[4431,"Kabel VGA-St./5xBNC-St.  6m Superflex",69.73,"Superflex-Kabel 15pol-HD-VGA-Stecker auf 5xBNC-Stecker Länge: 6m"]
[4432,"Kabel 5xBNC-St./5xBNC-St.  1m Superflex",51.8,"Superflex-Kabel 5xBNC-Stecker auf 5xBNC-Stecker Länge 1m"]
[4433,"Kabel 5xBNC-St./5xBNC-St.  2m Superflex",56.02,"Superflex-Kabel 5xBNC-Stecker auf 5xBNC-Stecker Länge 2m"]
[4434,"Kabel 5xBNC-St./5xBNC-St.  3m Superflex",60.27,"Superflex-Kabel 5xBNC-Stecker auf 5xBNC-Stecker Länge 3m"]
[4435,"Kabel 5xBNC-St./5xBNC-St.  5m Superflex",68.75,"Superflex-Kabel 5xBNC-Stecker auf 5xBNC-Stecker Länge 5m"]
[4436,"Kabel 5xBNC-St./5xBNC-St.  7,5 Superflex",79.349999999999994,"Superflex-Kabel 5xBNC-Stecker auf 5xBNC-Stecker Länge 7,5m"]
[4437,"Kabel 5xBNC-St./5xBNC-St. 10m Superflex",89.95,"Superflex-Kabel 5xBNC-Stecker auf 5xBNC-Stecker Länge 10m"]
[4438,"Kabel 5xBNC-St./5xBNC-St. 15m Superflex",111.15,"Superflex-Kabel 5xBNC-Stecker auf 5xBNC-Stecker Länge 15m"]
[4439,"Kabel 5xBNC-St./5xBNC-St. 20m Superflex",132.35,"Superflex-Kabel 5xBNC-Stecker auf 5xBNC-Stecker Länge 20m"]
[4440,"Kabel 5xBNC-St./5xBNC-St. 25m Superflex",153.56,"Superflex-Kabel 5xBNC-Stecker auf 5xBNC-Stecker Länge 25m"]
[4441,"Kabel DVI St./5xBNC-St. 1m",53.12,"Kabel DVI 24+5-Stecker auf 5xBNC-Stecker Länge 1m"]
[4442,"Kabel 3xCinch-St./dito  1,5m",28.58,"Kabel 3xCinch-Stecker auf 3xCinch-Stecker  Länge 1,5m"]
[4443,"Kabel VGA-Ku.o.G/VGA-Ku.o.G. 1m Superflex",49.52,"Superflex-Kabel 15pol-HD-VGA-Kupplung ohne Gehäuse auf 15pol-HD-VGA-Kupplung ohne Gehäuse  Länge 1m"]
[4444,"Kabel 26pin-St./26pin-Ku. 150m",2512.8000000000002,"Kamera-Kabel Länge 150m  26pin-Hirose-Stecker auf 26pin-Hirose-Kupplung"]
[4445,"Kabel VGA-St./5xBNC-Wink-St. 2m",82.77,"Superflex-Kabel 15pol-HD-VGA-Stecker auf 5xBNC-Winkelstecker Länge: 2m"]
[4446,"Kabel VGA-St./3xCinch-St. 2,5m",39.479999999999997,"Kabel 15pol-HD-VGA-Stecker auf 3xCinch-Stecker Länge: 2,5m"]
[4447,"Kabel DVI St./5xBNC-St. 5m",62.11,"Kabel DVI 24+5-Stecker auf 5xBNC-Stecker Länge 5m"]
[4448,"Kabel HDMI-St./DVI 18+1 St. 10m",72.069999999999993,"Kabel HDMI-19pol-Stecker auf DVI-18+1-Stecker 10m"]
[4449,"Kabel 3,5 St.KlinkeSt/2xCinch-Stecker  6m",25.97,"Kabel 3,5mm-Stereoklinkenstecker auf 2xCinch-Stecker Länge 6m"]
[4450,"Kabel VGA-St./5xBNC-Wink-St. 5m",97.19,"Superflex-Kabel 15pol-HD-VGA-Stecker auf 5xBNC-Winkelstecker Länge: 5m"]
[4451,"Kabel HDMI-St./HDMI-St. 1m",18.03,"HDMI-Kabel 19pin-Stecker auf 19pin-Stecker\r\nLänge: 1m"]
[4452,"Kabel HDMI-St./HDMI-St. 2m",22.6,"HDMI-Kabel 19pin-Stecker auf 19pin-Stecker\r\nLänge: 2m"]
[4453,"Kabel HDMI-St./HDMI-St. 3m",29.01,"HDMI-Kabel 19pin-Stecker auf 19pin-Stecker\r\nLänge: 3m"]
[4454,"Kabel HDMI-St./HDMI-St. 5m",40.6,"HDMI-Kabel 19pin-Stecker auf 19pin-Stecker\r\nLänge: 5m"]
[4455,"Kabel HDMI-St./HDMI-St. 10m",56.51,"HDMI-Kabel 19pin-Stecker auf 19pin-Stecker\r\nLänge: 10m"]
[4456,"Kabel HDMI-St./HDMI-St. 15m AWG24",136.80000000000001,"HDMI-Kabel 19pin-Stecker auf 19pin-Stecker,  Kabelquerschnitt AWG 24 (0,20mm²)\r\nLänge: 15m"]
[4457,"Kabel HDMI-St./HDMI-St. 20m AWG24",173.36,"HDMI-Kabel 19pin-Stecker auf 19pin-Stecker Länge 20m Kabelquerschnitt AWG 24 (0,20mm²)"]
[4458,"Kabel HDMI-St./HDMI-St. 25m AWG24",209.89,"HDMI-Kabel 19pin-Stecker auf 19pin-Stecker Länge 25m Kabelquerschnitt AWG 24 (0,20mm²)"]
[4459,"Kabel HDMI-St./HDMI-St. 30m AWG24",247.18,"HDMI-Kabel 19pin-Stecker auf 19pin-Stecker Länge 30m Kabelquerschnitt AWG 24 (0,20mm²)"]
[4461,"Kabel VGA-St./5xBNC-St.  8m Superflex",78.209999999999994,"Superflex-Kabel 15pol-HD-VGA-Stecker auf 5xBNC-Stecker Länge: 8m"]
[4462,"Kabel VGA-St./VGA-St. 18m Superflex",117.36,"Superflex-Kabel 15pol-HD-VGA-Stecker auf 15pol-HD-VGA-Stecker Länge 18m"]
[4463,"Kabel VGA-St./VGA-St.  2,5m Superflex",51.63,"Superflex-Kabel 15pol-HD-VGA-Stecker auf 15pol-HD-VGA-Stecker Länge 2,5m"]
[4464,"Kabel VGA-St./5xBNC-Ku. 5m Superflex",78.739999999999995,"Superflex-Kabel 15pol-HD-VGA-Stecker auf 5xBNC-Kupplung Länge 5m"]
[4465,"BNC-Kabel dünn  2,5m",12.19,"BNC-Kabel 2,5m  2 x BNC-Stecker mit Knickschutztülle Videokabel 0,4/1,7 grün"]
[4466,"Kabel VGA-St./5xBNC-St. 12m Superflex",95.17,"Superflex-Kabel 15pol-HD-VGA-Stecker auf 5xBNC-Stecker Länge: 12m"]
[4469,"BNC-Kabel 25m",43.3,"BNC-Kabel 25m  2 x BNC-Stecker mit Knickschutztülle RG59 (75Ohm)"]
[4470,"BNC-Kabel 30m",50.4,"BNC-Kabel 30m  2 x BNC-Stecker mit Knickschutztülle RG59 (75Ohm)"]
[4471,"BNC-Kabel 35m",57.5,"BNC-Kabel 35m  2 x BNC-Stecker mit Knickschutztülle RG59 (75Ohm)"]
[4472,"BNC-Kabel 40m",64.62,"BNC-Kabel 40m  2 x BNC-Stecker mit Knickschutztülle RG59 (75Ohm)"]
[4473,"Kabel 3xCinch-St./dito 35m",118.11,"Kabel 3xCinch-Stecker auf 3xCinch-Stecker  Länge 35m"]
[4474,"Kabel 3xCinch-St./dito 40m",131.47,"Kabel 3xCinch-Stecker auf 3xCinch-Stecker  Länge 40m"]
[4475,"Kabel 4p.-MD-St./4p-MD-St. 35m",96.07,"Kabel 4pin-Mini-DIN-Stecker auf 4pin-Mini-DIN-Stecker Länge 35m"]
[4476,"Kabel 4p.-MD-St./4p-MD-St. 40m",106.75,"Kabel 4pin-Mini-DIN-Stecker auf 4pin-Mini-DIN-Stecker Länge 40m"]
[4477,"Kabel DVI 24+5 St./St.  2m",27.22,"DVI-I-Kabel Dual Link 24+5-Stecker auf 24+5-Stecker 2m"]
[4478,"Kabel DVI 24+5 St./St.  3m",30.5,"DVI-I-Kabel Dual Link 24+5-Stecker auf 24+5-Stecker 3m"]
[4479,"Kabel DVI 24+5 St./St.  5m",40.04,"DVI-I-Kabel Dual Link 24+5-Stecker auf 24+5-Stecker 5m"]
[4480,"Kabel DVI 24+5 St./St. 10m",72.44,"DVI-I-Kabel Dual Link 24+5-Stecker auf 24+5-Stecker 10m"]
[4481,"Kabel DVI 24+5 St./VGA-St. 3m Standardqualität",19.579999999999998,"DVI-Adapterkabel 24+5-Stecker auf VGA-Stecker 3m Standardqualität"]
[4482,"Kabel DVI 24+5 St./VGA-St. 5m Standardqualität",24.69,"DVI-Adapterkabel 24+5-Stecker auf VGA-Stecker 5m Standardqualität"]
[4483,"Kabel BNC-St./SMB-Ku.6m",23.25,"Kabel  BNC-Stecker auf SMB-Kabelbuchse Länge 6m (grünes Videokabel 0,4/1,7)"]
[4484,"Kabel VGA-St./5xBNC-St. 18m Superflex",120.61,"Superflex-Kabel 15pol-HD-VGA-Stecker auf 5xBNC-Stecker Länge 18m"]
[4485,"Kabel VGA-St./VGA-St. 12m Superflex",91.92,"Superflex-Kabel 15pol-HD-VGA-Stecker auf 15pol-HD-VGA-Stecker Länge 12m"]
[4486,"BNC-Kabel dünn  0,5m",10.039999999999999,"BNC-Kabel 0,5m  2 x BNC-Stecker mit Knickschutztülle Videokabel 0,4/1,7 grün"]
[4487,"Kabel VGA-St./VGA-St. 11m",65.72,"Kabel 15pol-HD-VGA-Stecker auf 15pol-HD-VGA-Stecker Länge 11m"]
[4488,"Kabel VGA-St./VGA-St.  1,5m",44.4,"Kabel 15pol-HD-VGA-Stecker auf 15pol-HD-VGA-Stecker Länge 1,5m"]
[4490,"Kabel 26pin-St./26pin-Ku. 20m J",582.52,"Kamera-Kabel HK-VCP112 Länge 20m (Belegung JVC) 26pin-Hirose-Stecker auf 26pin-Hirose-Kupplung"]
[4491,"Kabel 26pin-St./26pin-Ku. 50m J",1027.94,"Kamera-Kabel HK-VC50SDC Länge 50m (Belegung JVC) 26pin-Hirose-Stecker auf 26pin-Hirose-Kupplung"]
[4492,"Kabel 26pin-St./26pin-Ku. 100mJ",1770.38,"Kamera-Kabel HK-VCP114 Länge 100m (Belegung JVC) 26pin-Hirose-Stecker auf 26pin-Hirose-Kupplung"]
[4493,"Kabel 26pin-St./26pin-Ku. 20m H",582.52,"Kamera-Kabel  Länge 20m (Belegung Hitachi) 26pin-Hirose-Stecker auf 26pin-Hirose-Kupplung"]
[4494,"Kabel 26pin-St./26pin-Ku. 50m H",1027.94,"Kamera-Kabel  Länge 50m (Belegung Hitachi) 26pin-Hirose-Stecker auf 26pin-Hirose-Kupplung"]
[4495,"Kabel 26pin-St./26pin-Ku. 100mH",1770.38,"Kamera-Kabel  Länge 100m (Belegung Hitachi) 26pin-Hirose-Stecker auf 26pin-Hirose-Kupplung"]
[4497,"Kabel HDMI-St./DVI 18+1 St.  2m",16.809999999999999,"Kabel HDMI-19pol-Stecker auf DVI-18+1-Stecker 2m"]
[4498,"Kabel Cinch-St./Cinch-St. 4m",13.87,"Kabel Cinch-Stecker auf Cinch-Stecker (75Ohm) Länge 4m"]
[4499,"Kabel 4p.-MD-St./4p-MD-St.  4m",29.79,"Kabel 4pin-Mini-DIN-Stecker auf 4pin-Mini-DIN-Stecker Länge 4m"]
[4500,"Kabel 9p.-St./9p-Ku. 4m",30.98,"Kabel 9pin-Sub-D-Stecker auf 9pin-Sub-D-Kupplung Länge 4m"]
[4501,"Kabel VGA-St./VGA-St.  9m Superflex",79.2,"Superflex-Kabel 15pol-HD-VGA-Stecker auf 15pol-HD-VGA-Stecker Länge 9m"]
[4502,"Kabel VGA-St./VGA-St. 11m Superflex",87.68,"Superflex-Kabel 15pol-HD-VGA-Stecker auf 15pol-HD-VGA-Stecker Länge 11m"]
[4503,"Kabel VGA-St./VGA-St. 13m Superflex",96.16,"Superflex-Kabel 15pol-HD-VGA-Stecker auf 15pol-HD-VGA-Stecker Länge 13m"]
[4504,"Kabel 9p.-Ku./9p-Ku. 10m",38.51,"Kabel 9pin-Sub-D-Kupplung auf 9pin-Sub-D-Kupplung Länge 10m"]
[4505,"Kabel 9p.-Ku./9p-Ku. 7,5m",35.26,"Kabel 9pin-Sub-D-Kupplung auf 9pin-Sub-D-Kupplung Länge 7,5m"]
[4506,"Kabel 9p.-Ku./9p-Ku. 1m",26.86,"Kabel 9pin-Sub-D-Kupplung auf 9pin-Sub-D-Kupplung Länge 1m"]
[4507,"Kabel 3,5 St.KlinkeSt/Ku. 15m",20.54,"Kabel 3,5mm-Stereoklinkenstecker auf  3,5mm-Stereoklinkenkupplung Länge: 15m"]
[4509,"Kabel VGA-St./VGA-St. 35m Superflex",189.44,"Superflex-Kabel 15pol-HD-VGA-Stecker auf 15pol-HD-VGA-Stecker Länge 35m"]
[4510,"Kabel VGA-Ku./5xBNC-St. 10m Superflex",86.69,"Superflex-Kabel 15pol-HD-VGA-Kupplung auf 5xBNC-Stecker Länge 10m"]
[4511,"Kabel HDMI-St./DVI 18+1 St.  5m",25.74,"Kabel HDMI-19pol-Stecker auf DVI-18+1-Stecker 5m"]
[4512,"Kabel DVI St./5xBNC-St. 0,5m",52,"Kabel DVI 24+5-Stecker auf 5xBNC-Stecker Länge 0,5m"]
[4513,"Kabel DVI 24+5 St./VGA-St.  2,5m",58.22,"DVI-Adapterkabel 24+5-Stecker auf VGA-Stecker 2,5m"]
[4514,"Kabel DVI 24+5 St./VGA-St.  5m",68.819999999999993,"DVI-Adapterkabel 24+5-Stecker auf VGA-Stecker 5m"]
[4515,"Kabel DVI 24+5 St./VGA-St. 10m",90.02,"DVI-Adapterkabel 24+5-Stecker auf VGA-Stecker 10m"]
[4516,"Kabel DVI 24+5 St./VGA-St. 15m",111.22,"DVI-Adapterkabel 24+5-Stecker auf VGA-Stecker 15m"]
[4517,"Kabel DVI 24+5 St./VGA-St. 20m",132.41999999999999,"DVI-Adapterkabel 24+5-Stecker auf VGA-Stecker 20m"]
[4518,"Kabel 5xBNC-St/dito 25m 0,6/2,8",234.63,"RGHBV-Monitorkabel 5x0,6/2,8 5xBNC-Stecker auf 5xBNC-Stecker Länge 25m"]
[4519,"Kabel 4p.-MD-St./4p-MD-Ku. 10m",42.62,"Kabel 4pin-Mini-DIN-Stecker auf 4pin-Mini-DIN-Kupplung Länge 10m"]
[4520,"Kabel Cinch-St./Cinch-Ku. 10m",22.41,"Kabel Cinch-Stecker auf Cinch-Kupplung (75Ohm) Länge 10m"]
[4521,"Kabel 3,5 St.KlinkeSt/2xCinch-Kupplung  0,2m",13.56,"Kabel 3,5mm-Stereoklinkenstecker auf  2xCinch-Kupplung Länge 0,2m"]
[4522,"Kabel VGA-St./VGA-Ku. 12m Superflex",91.92,"Superflex-Kabel 15pol-HD-VGA-Stecker auf 15pol-HD-VGA-Kupplung Länge 12m"]
[4523,"Kabel DVI 24+1 St./St. 10m AWG24",98,"DVI-Kabel Dual Link 24+1-Stecker auf 24+1-Stecker,  Kabelquerschnitt AWG 24 (0,20mm²),  Länge: 10m"]
[4524,"Kabel DVI 24+1 St./St. 15m AWG24",143.24,"DVI-Kabel Dual Link 24+1-Stecker auf 24+1-Stecker,  Kabelquerschnitt AWG 24 (0,20mm²),  Länge: 15m"]
[4525,"Kabel DVI 24+1 St./St. 20m AWG24",181.38,"DVI-Kabel Dual Link 24+1-Stecker auf 24+1-Stecker,  Kabelquerschnitt AWG 24 (0,20mm²), Länge: 20m"]
[4526,"Kabel 2xCinch-St./dito  2,5m",21.74,"Kabel 2xCinch-Stecker auf 2xCinch-Stecker  Länge  2,5m"]
[4527,"Kabel 3,5 St.KlinkeSt/2xCinch-Stecker  2,5m",18.48,"Kabel 3,5mm-Stereoklinkenstecker auf 2xCinch-Stecker Länge 2,5m"]
[4528,"Kabel DVI St./5xBNC-St. 3m",57.62,"Kabel DVI 24+5-Stecker auf 5xBNC-Stecker Länge 3m"]
[4529,"Kabel 3xCinch-St./dito  2,5m",31.26,"Kabel 3xCinch-Stecker auf 3xCinch-Stecker  Länge 2,5m"]
[4530,"Kabel VGA-St./5xBNC-St. 14m Superflex",103.65,"Superflex-Kabel 15pol-HD-VGA-Stecker auf 5xBNC-Stecker Länge: 14m"]
[4531,"Kabel VGA-St./5xBNC-St. 16m Superflex",112.13,"Superflex-Kabel 15pol-HD-VGA-Stecker auf 5xBNC-Stecker Länge: 16m"]
[4532,"Kabel HDMI-St./DVI 18+1 St.  3m",23.83,"Kabel HDMI-19pol-Stecker auf DVI-18+1-Stecker 3m"]
[4533,"Kabel 26pin-St./26pin-Ku. 5m",359.77,"Kamera-Kabel Länge 5m 26pin-Hirose-Stecker auf 26pin-Hirose-Kupplung"]
[4534,"Kabel SMB-Ku./SMB-Ku. 1m",25.23,"Kabel  SMB-Kabelbuchse auf SMB-Kabelbuchse Länge 1m (grünes Videokabel 0,4/1,7)"]
[4535,"Kabel DVI St.24+5/3xCinch-St. 2,5m",46.08,"Kabel DVI 24+5-Stecker auf 3xCinch-Stecker Länge 2,5m"]
[4536,"Kabel VGA-St./5xBNC-St.  0,5m Superflex",46.8,"Superflex-Kabel 15pol-HD-VGA-Stecker auf 5xBNC-Stecker Länge: 0,5m"]
[4537,"BNC-Kabel 50m",78.2,"BNC-Kabel 50m  2 x BNC-Stecker mit Knickschutztülle RG59 (75Ohm)"]
[4538,"Kabel DVI 24+5 St./VGA-St.  8m",81.540000000000006,"DVI-Adapterkabel 24+5-Stecker auf VGA-Stecker 8m"]
[4539,"Kabel SMB-Ku./SMB-Ku. 5m",29.5,"Kabel  SMB-Kabelbuchse auf SMB-Kabelbuchse Länge 5m (grünes Videokabel 0,4/1,7)"]
[4540,"BNC-Kabel dünn  3,5m",13.26,"BNC-Kabel 3,5m  2 x BNC-Stecker mit Knickschutztülle Videokabel 0,4/1,7 grün"]
[4541,"BNC-Kabel dünn  4m",13.78,"BNC-Kabel 4m  2 x BNC-Stecker mit Knickschutztülle Videokabel 0,4/1,7 grün"]
[4542,"Kabel VGA-St./VGA-St. 50m Superflex",253.06,"Superflex-Kabel 15pol-HD-VGA-Stecker auf 15pol-HD-VGA-Stecker Länge 50m"]
[4543,"Kabel 3,5 St.KlinkeSt/dito 50m",46.75,"Kabel 3,5mm-Stereoklinkenstecker auf 3,5mm-Stereoklinkenstecker Länge 50m"]
[4544,"Kabel 3,5 St.KlinkeSt/dito 60m",53.86,"Kabel 3,5mm-Stereoklinkenstecker auf 3,5mm-Stereoklinkenstecker Länge 60m"]
[4545,"Kabel VGA-St./VGA-St. 40m Superflex",210.65,"Superflex-Kabel 15pol-HD-VGA-Stecker auf 15pol-HD-VGA-Stecker Länge 40m"]
[4546,"Kabel VGA-Ku.oG/VGA-Ku. 0,4m Superflex",38.57,"Superflex-Kabel 15pol-HD-VGA-Kupplung ohne Gehäuse auf 15pol-HD-VGA-Kupplung mit Gehäuse  Länge 0,4m"]
[4547,"Kabel VGA-Ku.oG/VGA-St. 0,4m Superflex",38.57,"Superflex-Kabel 15pol-HD-VGA-Kupplung ohne Gehäuse auf 15pol-HD-VGA-Stecker mit Gehäuse  Länge 0,4m"]
[4548,"Kabel 3,5 St.KlinkeSt/dito 35m",35.08,"Kabel 3,5mm-Stereoklinkenstecker auf 3,5mm-Stereoklinkenstecker Länge 35m"]
[4550,"Kabel VGA-St./VGA-St. 17m Superflex",113.12,"Superflex-Kabel 15pol-HD-VGA-Stecker auf 15pol-HD-VGA-Stecker Länge 17m"]
[4551,"Kabel 3,5 St.KlinkeSt/2xCinch-Stecker 35m",88.47,"Kabel 3,5mm-Stereoklinkenstecker auf 2xCinch-Stecker Länge 35m"]
[4552,"Kabel BNC-St./SMB-Ku.20m",38.22,"Kabel  BNC-Stecker auf SMB-Kabelbuchse Länge 20m (grünes Videokabel 0,4/1,7)"]
[4553,"Kabel HDMI-St./HDMI-St. 7,5m",48.46,"HDMI-Kabel 19pin-Stecker auf 19pin-Stecker Länge 7,5m"]
[4559,"BNC-Kabel dünn  4,5m",14.32,"BNC-Kabel 4,5m  2 x BNC-Stecker mit Knickschutztülle Videokabel 0,4/1,7 grün"]
[4560,"Kabel BNC-St./SMB-Ku. 1m",17.899999999999999,"Kabel  BNC-Stecker auf SMB-Kabelbuchse Länge: 1m (grünes Videokabel 0,4/1,7)"]
[4561,"Kabel BNC-St./SMB-Ku.4,5m",21.64,"Kabel  BNC-Stecker auf SMB-Kabelbuchse Länge 4,5m (grünes Videokabel 0,4/1,7)"]
[4562,"Kabel SMB-Ku./SMB-Ku. 7m",31.64,"Kabel  SMB-Kabelbuchse auf SMB-Kabelbuchse Länge 7m (grünes Videokabel 0,4/1,7)"]
[4563,"Kabel VGA-St./VGA-St.  5m Standard",11.42,"Kabel VGA-St./VGA-St.  5m Standard"]
[4567,"Kabel DisplayPort St./St. 10m",52.39,"Kabel DisplayPort-Stecker auf \r\nDisplayPort-Stecker Länge: 10m"]
[4568,"Kabel DVI 24+1 St./St.   1m",20.46,"DVI-Kabel Dual Link\r\n24+1-Stecker auf 24+1-Stecker 1m\r\nStecker mit Vollmetall Hauben"]
[4569,"Kabel USB-A-St./USB-A-Ku. 1,8m",7.62,"USB-Kabel 2.0 USB-A-Stecker auf USB-A-Kupplung Länge: 1,8m"]
[4570,"BNC-Kabel  2,5m",8.8699999999999992,"BNC-Kabel 2,5m  2 x BNC-Stecker mit Knickschutztülle RG59 (75Ohm)"]
[4571,"Kabel Mini-VGA-St/St.. + Klinke-St./St. 3m 15/15",30.46,"Mini VGA-Kabel \r\nVGA + 3,5mm-Stereoklinkenstecker 3m\r\nKlinke jeweils 15cm länger"]
[4572,"ZZKabel VGA-St./VGA-St. 19m Superflex",121.6,"Superflex-Kabel 15pol-HD-VGA-Stecker auf 15pol-HD-VGA-Stecker Länge 19m"]
[4573,"Kabel VGA-St./VGA-St. 23m Superflex",138.56,"Superflex-Kabel 15pol-HD-VGA-Stecker auf 15pol-HD-VGA-Stecker Länge 23m"]
[4574,"Kabel VGA-St./5xBNC-Ku.3m Superflex",70.260000000000005,"Superflex-Kabel 15pol-HD-VGA-Stecker auf 5xBNC-Kupplung Länge 3m"]
[4575,"Kabel Mini-VGA-St/St. + Klinke-St./St. 1m 20/60",20.81,"VGA-Mini-Kabel \r\nVGA-Mini-Stecker + 3,5mm-Stereoklinkenstecker (60cm länger) auf \r\n15pol-HD-VGA-Mini-Stecker + 3,5mm-Steroklinkenstecker (20cm länger) Länge 1m"]
[4576,"Kabel DVI 24+5 St./VGA-St.  7,5m",79.430000000000007,"DVI-Adapterkabel 24+5-Stecker auf VGA-Stecker 7,5m"]
[4577,"Kabel HDMI-St./DVI-Ku. 0,2m",18.98,"HDMI-DVI-Adapter-Kabel 19pin-HDMI-Stecker auf 24+1-DVI-Kupplung Länge 20cm"]
[4578,"Kabel SMB-Ku./SMB-Ku. 2m",26.3,"Kabel  SMB-Kabelbuchse auf SMB-Kabelbuchse Länge 2m (grünes Videokabel 0,4/1,7)"]
[4580,"Kabel VGA-Ku./offen 10m Superflex",62.92,"Superflex-Kabel 15pol-HD-VGA-Kupplung auf offenes Ende Länge: 10m"]
[4581,"Kabel VGA-Ku./offen 15m Superflex",84.13,"Superflex-Kabel 15pol-HD-VGA-Kupplung auf offenes Ende Länge: 15m"]
[4582,"Kabel VGA-Ku./offen 20m Superflex",105.33,"Superflex-Kabel 15pol-HD-VGA-Kupplung auf offenes Ende Länge: 20m"]
[4583,"Kabel HDMI-St./DVI 18+1 St.  1m",13.5,"Kabel HDMI-19pol-Stecker auf DVI-18+1-Stecker 1m"]
[4584,"Kabel DVI 24+5 St./VGA-St.  0,5m",49.74,"DVI-Adapterkabel 24+5-Stecker auf VGA-Stecker 0,5m"]
[4585,"Kabel HDMI-St./HDMI-St. 0,5m",15.52,"HDMI-Kabel 19pin-Stecker auf 19pin-Stecker\r\nLänge: 0,5m"]
[4586,"Kabel 8p.-MD-St /9p.-Sub-D-Ku 0,2m",34.28,"Kabel 8pin-Mini-DIN-Stecker auf 9pin-Sub-D-Kupplung  Länge 20cm"]
[4587,"Kabel Mini-VGA-St/St.. + Klinke-St./St. 2m 15/15",21.79,"Mini VGA-Kabel \r\nVGA + 3,5mm-Stereoklinkenstecker 2m\r\nKlinke jeweils 15cm länger"]
[4588,"Kabel VGA-St./VGA-St. 45m Superflex",231.85,"Superflex-Kabel 15pol-HD-VGA-Stecker auf 15pol-HD-VGA-Stecker Länge 45m"]
[4589,"Kabel VGA-St./5xBNC-St. 45m Superflex",235.11,"Superflex-Kabel 15pol-HD-VGA-Stecker auf 5xBNC-Stecker Länge: 45m"]
[4590,"Kabel 4p.-MD-St./4p-MD-St. 45m",117.45,"Kabel 4pin-Mini-DIN-Stecker auf 4pin-Mini-DIN-Stecker Länge 45m"]
[4591,"BNC-Kabel 45m",72.67,"BNC-Kabel 45m  2 x BNC-Stecker mit Knickschutztülle RG59 (75Ohm)"]
[4593,"Kabel DisplayPort St./St.  2m",25.9,"Kabel DisplayPort-Stecker auf \r\nDisplayPort-Stecker Länge: 2m"]
[4594,"Kabel 9p.-Ku./offen 25m",46.63,"Kabel 9pin-Sub-D-Kupplung auf offenes Ende Länge: 25m"]
[4595,"Kabel Cinch-St./Cinch-St.25m",43.83,"Kabel Cinch-Stecker auf Cinch-Stecker (75Ohm) Länge 25m"]
[4596,"Kabel Cinch-St./Cinch-St.30m",50.96,"Kabel Cinch-Stecker auf Cinch-Stecker (75Ohm) Länge 30m"]
[4597,"Kabel Cinch-St./Cinch-St.35m",58.09,"Kabel Cinch-Stecker auf Cinch-Stecker (75Ohm) Länge 35m"]
[4598,"Kabel Cinch-St./Cinch-St.40m",65.209999999999994,"Kabel Cinch-Stecker auf Cinch-Stecker (75Ohm) Länge 40m"]
[4599,"Kabel Cinch-St./Cinch-St.45m",72.34,"Kabel Cinch-Stecker auf Cinch-Stecker (75Ohm) Länge 45m"]
[4600,"Kabel Cinch-St./Cinch-St.50m",79.459999999999994,"Kabel Cinch-Stecker auf Cinch-Stecker (75Ohm) Länge 50m"]
[4601,"Kabel 26pin-St./26pin-Ku. 30m",730.81,"Kamera-Kabel Länge 30m 26pin-Hirose-Stecker auf 26pin-Hirose-Kupplung"]
[4604,"Kabel Option Klinke für VGA glatt10/glatt10",14.19,"Option Audio für VGA-Kabel bestehend aus 2x3,5mm-Stereoklinkenstecker mit 10cm Kabel an jeder Seite"]
[4605,"Kabel 3,5 St.KlinkeSt/dito  1,5m",10.97,"Kabel 3,5mm-Stereoklinkenstecker auf 3,5mm-Stereoklinkenstecker Länge 1,5m"]
[4606,"Kabel VGA-St./5xBNC-St.  1,5m Superflex",50.65,"Superflex-Kabel 15pol-HD-VGA-Stecker auf 5xBNC-Stecker Länge: 1,5m"]
[4612,"Kabel HDMI-St./HDMI-St. 1,5m",20.309999999999999,"HDMI-Kabel 19pin-Stecker auf 19pin-Stecker\r\nLänge: 1,5m"]
[4613,"Kabel DVI 24+1 St./St.  7,5m",49.19,"DVI-Kabel Dual Link 24+1-Stecker auf 24+1-Stecker Länge: 7,5m"]
[4614,"Kabel 3,5 St.KlinkeSt/Ku. 5m",13.44,"Kabel 3,5mm-Stereoklinkenstecker auf  3,5mm-Stereoklinkenkupplung Länge: 5m"]
[4615,"Kabel Option Klinke für VGA spiral/glatt St.-Ku.",14.19,"Option Audio für VGA-Kabel bestehend aus 3,5mm-Stereoklinkenstecker mit einem 20-80cm ausziehbarem Spiralkabel an der einen Seite und 3,5mm-Stereoklinkenkupplung mit 10cm glatten Kabel an der anderen Seite"]
[4616,"Kabel VGA-St./5xBNC-Ku.1,5m Superflex",61.9,"Superflex-Kabel 15pol-HD-VGA-Stecker auf 5xBNC-Kupplung Länge 1,5m"]
[4617,"Kabel DVI 24+1 St./St.   0,5m",18.13,"DVI-Kabel Dual Link\r\n24+1-Stecker auf 24+1-Stecker\r\nLänge: 0,5m"]
[4618,"Kabel Mini-VGA-Audio-LAN 1m",42.87,"Mini VGA-Kabel \r\nVGA + 3,5mm-Stereoklinkenstecker + RJ45-Cat.5-Stecker Länge 1m\r\nDie Klinkenkabel und die LAN-Kabel sind auf der einen Seite 20cm und auf der anderen Seite 60cm länger als das VGA-Kabel"]
[4619,"Kabel Mini-VGA-Audio-LAN 2m",59.07,"Mini VGA-Kabel \r\nVGA + 3,5mm-Stereoklinkenstecker + RJ45-Cat.5-Stecker Länge 2m\r\nDie Klinkenkabel und die LAN-Kabel sind auf der einen Seite 20cm und auf der anderen Seite 60cm länger als das VGA-Kabel"]
[4620,"Kabel Mini-VGA-Audio-LAN 3m",68.760000000000005,"Mini VGA-Kabel \r\nVGA + 3,5mm-Stereoklinkenstecker + RJ45-Cat.5-Stecker Länge 3m\r\nDie Klinkenkabel und die LAN-Kabel sind auf der einen Seite 20cm und auf der anderen Seite 60cm länger als das VGA-Kabel"]
[4621,"Kabel 3,5 St.KlinkeSt/Ku. 6m",14.18,"Kabel 3,5mm-Stereoklinkenstecker auf  3,5mm-Stereoklinkenkupplung Länge: 6m"]
[4622,"Kabel 3p.XLR-St./3p.XLR-Ku.7m",30.39,"Kabel 3pol-XLR-Stecker auf 3pol-XLR-Kupplung Länge 7m"]
[4623,"Kabel HDMI-Einbaubuchse/HDMI-Ku., 25cm, rund",23.99,"HDMI-Kabel 19pin-Einbaubuchse rund auf 19pin-Kupplung\r\nLänge: 25cm"]
[4624,"Kabel DisplayPort-Stecker zu HDMI-St. 1m",37.79,"Kabel DisplayPort-Stecker zu HDMI-Stecker Länge: 1m"]
[4625,"Kabel DisplayPort-Stecker zu HDMI-St. 2m",44.19,"Kabel DisplayPort-Stecker zu HDMI-Stecker Länge: 2m"]
[4626,"Kabel DisplayPort-Stecker zu HDMI-St. 3m",53.15,"Kabel DisplayPort-Stecker zu HDMI-Stecker Länge: 3m"]
[4627,"Kabel DisplayPort-Stecker zu HDMI-St. 5m",63.1,"Kabel DisplayPort-Stecker zu HDMI-Stecker Länge: 5m"]
[4628,"Kabel 2xCinch-St./dito   1,5m",19.59,"Kabel 2xCinch-Stecker auf 2xCinch-Stecker  Länge 1,5m"]
[4629,"Kabel 3,5 St.KlinkeKu/2xCinch-Stecker  0,2m",13.56,"Kabel 3,5mm-Stereoklinkenkupplung auf  2xCinch-Stecker Länge 0,2m"]
[4630,"Kabel DVI 24+1 St./DisplayPort-St.  1m",35.93,"DVI-Adapterkabel 24+1-Stecker auf DisplayPort-Stecker 1m"]
[4631,"Kabel DVI 24+1 St./DisplayPort-St.  2m",47.29,"DVI-Adapterkabel 24+1-Stecker auf DisplayPort-Stecker 2m"]
[4632,"Kabel 2xCinch-St./dito 35m",91.21,"Kabel 2xCinch-Stecker auf 2xCinch-Stecker  Länge 35m"]
[4634,"Kabel HDMI-Einbaubuchse/HDMI-Ku., 25cm, rechteckig",23.99,"HDMI-Kabel 19pin-Einbaubuchse rechteckig auf 19pin-Kupplung,\r\nLänge: 25cm"]
[4635,"Kabel HDMI-St./DVI 18+1 St. 7,5m",46.63,"Kabel HDMI-19pol-Stecker auf DVI-18+1-Stecker 7,5m"]
[4636,"BNC-Kabel dünn 12m",22.34,"BNC-Kabel 12m  2 x BNC-Stecker mit Knickschutztülle Videokabel 0,4/1,7 grün"]
[4637,"BNC-Kabel dünn 18m",28.75,"BNC-Kabel 18m  2 x BNC-Stecker mit Knickschutztülle Videokabel 0,4/1,7 grün"]
[4638,"Kabel DVI-I Ku. 24+5 / DVI-I Ku. 24+5,  0,3m",34.31,"Kabel DVI-I Kupplung 24+5 auf DVI-I Kupplung 24+5  Länge: 30cm"]
[4640,"Kabel DisplayPort Stecker/Kupplung  1m",11.43,"Kabel DisplayPort-Stecker auf DisplayPort-Kupplung Länge: 1m"]
[4641,"Kabel DisplayPort St./St.  1m",21.46,"Kabel DisplayPort-Stecker auf \r\nDisplayPort-Stecker Länge: 1m"]
[4642,"Kabel DisplayPort St./St.  3m",28.23,"Kabel DisplayPort-Stecker auf \r\nDisplayPort-Stecker Länge: 3m"]
[4643,"Kabel DisplayPort St./St.  5m",33.06,"Kabel DisplayPort-Stecker auf \r\nDisplayPort-Stecker Länge: 5m"]
[4644,"Kabel DisplayPort St./St.  7,5m",40.79,"Kabel DisplayPort-Stecker auf \r\nDisplayPort-Stecker Länge: 7,5m"]
[4646,"Kabel VGA-St./VGA-St. 14m Superflex",100.4,"Superflex-Kabel 15pol-HD-VGA-Stecker auf 15pol-HD-VGA-Stecker Länge 14m"]
[4647,"Kabel VGA-St./VGA-St. 19m Superflex",121.6,"Superflex-Kabel 15pol-HD-VGA-Stecker auf 15pol-HD-VGA-Stecker Länge 19m"]
[4648,"Kabel DisplayPort-St./HDMI-Ku. 0,15m",28.47,"DisplayPort-HDMI-Adapter-Kabel DisplayPort-Stecker auf HDMI-Kupplung Länge 15cm"]
[4650,"Kabel 3,5 St.KlinkeSt/Ku. 10m",17,"Kabel 3,5mm-Stereoklinkenstecker auf 3,5mm-Stereoklinkenkupplung Länge 10m"]
[4651,"Kabel 3,5 St.KlinkeSt/dito 12m",18.440000000000001,"Kabel 3,5mm-Stereoklinkenstecker auf 3,5mm-Stereoklinkenstecker Länge 12m"]
[4652,"Kabel 3p.XLR-St./3p.XLR-Ku.30m",62.24,"Kabel 3pol-XLR-Stecker auf 3pol-XLR-Kupplung Länge 30m"]
[4653,"Kabel VGA-St./VGA-St.  2m Halogenfrei",55.28,"Halogenfreies-Kabel 15pol-HD-VGA-Stecker auf 15pol-HD-VGA-Stecker Länge 2m"]
[4654,"Kabel VGA-St./VGA-St.  3m Halogenfrei",62.41,"Halogenfreies-Kabel 15pol-HD-VGA-Stecker auf 15pol-HD-VGA-Stecker Länge 3m"]
[4655,"Kabel VGA-St./VGA-St.  5m Halogenfrei",76.66,"Halogenfreies-Kabel 15pol-HD-VGA-Stecker auf 15pol-HD-VGA-Stecker Länge 5m"]
[4656,"Kabel VGA-St./VGA-St. 10m Halogenfrei",112.3,"Halogenfreies-Kabel 15pol-HD-VGA-Stecker auf 15pol-HD-VGA-Stecker Länge 10m"]
[4657,"Kabel VGA-St./VGA-St. 15m Halogenfrei",147.93,"Halogenfreies-Kabel 15pol-HD-VGA-Stecker auf 15pol-HD-VGA-Stecker Länge 15m"]
[4658,"Kabel VGA-St./VGA-St. 20m Halogenfrei",183.57,"Halogenfreies-Kabel 15pol-HD-VGA-Stecker auf 15pol-HD-VGA-Stecker Länge 20m"]
[4659,"Kabel VGA-St./VGA-St. 25m Halogenfrei",219.2,"Halogenfreies-Kabel 15pol-HD-VGA-Stecker auf 15pol-HD-VGA-Stecker Länge 25m"]
[4660,"Kabel 3xBNC-St.+2xCin-St./5xCin-St. 1,5m",41.96,"Kabel 3xBNC-Stecker + 2xCinchstecker auf 5xCinchstecker Länge 1,5m"]
[4661,"Kabel Scart-St./4xBNC-St.+2xCin-St. 1,5mOUT",52.9,"Kabel  Scart-Stecker auf 4xBNC-Stecker + 2x Cinchstecker, Länge 1,5m (Signalfluß von BNC nach Scart)"]
[4662,"Kabel Scart-St./4xBNC-St.+2xCin-St. 1,5mIN",52.9,"Kabel  Scart-Stecker auf 4xBNC-Stecker + 2x Cinchstecker, Länge 1,5m (Signalfluß von Scart nach BNC)"]
[4663,"Kabel HDMI-St./HDMI-St. 5m Halogenfrei",121.75,"Halogenfreies HDMI-Kabel 19pin-Stecker auf 19pin-Stecker Länge: 5m"]
[4664,"Kabel HDMI-St./HDMI-St. 10m Halogenfrei",175.19,"Halogenfreies HDMI-Kabel 19pin-Stecker auf 19pin-Stecker Länge: 10m"]
[4665,"Kabel HDMI-St./HDMI-St. 15m Halogenfrei",228.64,"Halogenfreies HDMI-Kabel 19pin-Stecker auf 19pin-Stecker Länge: 15m"]
[4666,"Kabel HDMI-St./HDMI-St. 20m Halogenfrei",282.12,"Halogenfreies HDMI-Kabel 19pin-Stecker auf 19pin-Stecker Länge: 20m"]
[4667,"Kabel HDMI-St./HDMI-St. 25m Halogenfrei",335.55,"Halogenfreies HDMI-Kabel 19pin-Stecker auf 19pin-Stecker Länge: 25m"]
[4668,"Kabel HDMI-St./HDMI-St. 30m Halogenfrei",388.99,"Halogenfreies HDMI-Kabel 19pin-Stecker auf 19pin-Stecker Länge: 30m"]
[4669,"Kabel HDMI-St./HDMI-St. 3m Halogenfrei",100.35,"Halogenfreies HDMI-Kabel 19pin-Stecker auf 19pin-Stecker Länge: 3m"]
[4670,"Kabel HDMI-St./HDMI-St. 2m Halogenfrei",89.67,"Halogenfreies HDMI-Kabel 19pin-Stecker auf 19pin-Stecker Länge: 2m"]
[4671,"Kabel VGA-St./VGA-St. 16m Superflex",108.88,"Superflex-Kabel 15pol-HD-VGA-Stecker auf 15pol-HD-VGA-Stecker Länge 16m"]
[4675,"Kabel 5xBNC-St./5xBNC-St. 30m Superflex",174.24,"Kabel 5xBNC-Stecker auf 5xBNC-Stecker Superflex Länge 30m"]
[4676,"Kabel DVI 24+1 St., offenes Ende, 10m, AWG24",114.42,"DVI-Kabel Dual Link 24+1-Stecker auf offenes Ende,  AWG 24, Aderquerschnitt (0,20mm²), Länge 10m"]
[4677,"Kabel DVI 24+1 St., offenes Ende, 15m, AWG24",158.07,"DVI-Kabel Dual Link 24+1-Stecker auf offenes Ende,  AWG 24 Aderquerschnitt (0,20mm²), Länge 15m"]
[4678,"Kabel DVI 24+1 St., offenes Ende, 20m, AWG24",201.73,"DVI-Kabel Dual Link 24+1-Stecker auf offenes Ende,  AWG 24 Aderquerschnitt (0,20mm²), Länge 20m"]
[4679,"Kabel DVI 24+1 St., offenes Ende, 25m, AWG24",245.37,"DVI-Kabel Dual Link 24+1-Stecker auf offenes Ende,  AWG 24 Aderquerschnitt (0,20mm²), Länge 25m"]
[4680,"Kabel HDMI-St., offenes Ende 10m Halogenfrei, HK",141.05000000000001,"Halogenfreies HDMI-Kabel 19pin-Stecker auf offenes Ende Länge: 10m"]
[4681,"Kabel HDMI-St., offenes Ende 15m Halogenfrei, HK",194.51,"Halogenfreies HDMI-Kabel 19pin-Stecker auf offenes Ende Länge: 15m"]
[4682,"Kabel HDMI-St., offenes Ende 20m Halogenfrei, HK",247.96,"Halogenfreies HDMI-Kabel 19pin-Stecker auf offenes Ende Länge: 20m"]
[4683,"Kabel HDMI-St., offenes Ende 25m Halogenfrei, HK",301.42,"Halogenfreies HDMI-Kabel 19pin-Stecker auf offenes Ende Länge: 25m"]
[4684,"Kabel HDMI-St./HDMI-St. 2m AWG24 HK",78.099999999999994,"HDMI-Kabel 19pin-Stecker auf 19pin-Stecker in AWG24 Länge: 2m"]
[4685,"Kabel HDMI-St./HDMI-St. 3m AWG24 HK",86.83,"HDMI-Kabel 19pin-Stecker auf 19pin-Stecker AWG24 Länge: 3m"]
[4686,"Kabel HDMI-St./HDMI-St. 5m AWG24 HK",104.28,"HDMI-Kabel 19pin-Stecker auf 19pin-Stecker AWG24 Länge: 5m"]
[4687,"Kabel HDMI-St./HDMI-St. 10m AWG24 HK",147.94,"HDMI-Kabel 19pin-Stecker auf 19pin-Stecker AWG24 Länge: 10m"]
[4688,"Kabel HDMI-St./HDMI-St. 15m AWG24 HK",191.59,"HDMI-Kabel 19pin-Stecker auf 19pin-Stecker AWG24 Länge: 15m"]
[4689,"Kabel HDMI-St./HDMI-St. 20m AWG24 HK",235.25,"HDMI-Kabel 19pin-Stecker auf 19pin-Stecker AWG24 Länge: 20m"]
[4690,"Kabel HDMI-St./HDMI-St. 25m AWG24 HK",278.89999999999998,"HDMI-Kabel 19pin-Stecker auf 19pin-Stecker AWG24 Länge: 25m"]
[4691,"Kabel HDMI-St./HDMI-St. 30m AWG24 HK",322.56,"HDMI-Kabel 19pin-Stecker auf 19pin-Stecker AWG24 Länge: 30m"]
[4692,"Kabel HDMI-St./offenes Ende 10m AWG24 1.4 Ethernet",117.62,"HDMI-Kabel 19pin-Stecker auf offenes Ende  AWG24 Standard 1.4 mit Ethernet Länge: 10m"]
[4693,"Kabel HDMI-St./offenes Ende 15m AWG24 1.4 Ethernet",161.28,"HDMI-Kabel 19pin-Stecker auf offenes Ende  AWG24 Standard 1.4 mit Ethernet Länge: 15m"]
[4694,"Kabel HDMI-St./offenes Ende 20m AWG24 1.4 Ethernet",204.93,"HDMI-Kabel 19pin-Stecker auf offenes Ende  AWG24 Standard 1.4 mit Ethernet Länge: 20m"]
[4695,"Kabel HDMI-St./offenes Ende 25m AWG24 1.4 Ethernet",248.59,"HDMI-Kabel 19pin-Stecker auf offenes Ende  AWG24 Standard 1.4 mit Ethernet Länge: 25m"]
[4696,"Kabel DisplayPort St./St.  1,5m",23.43,"Kabel DisplayPort-Stecker auf \r\nDisplayPort-Stecker Länge: 1,5m"]
[4697,"Kabel HDMI-St./HDMI-St. 35m AWG24 HK",366.19,"HDMI-Kabel 19pin-Stecker auf 19pin-Stecker AWG24 Länge: 35m"]
[4698,"Kabel HDMI-St./HDMI-Ku. 5m",40.6,"HDMI-Kabel 19pin-Stecker auf 19pin-Kupplung Länge: 5m"]
[4699,"Kabel DVI 24+5 St./VGA-St.  1m",51.87,"DVI-Adapterkabel 24+5-Stecker auf VGA-Stecker 1m"]
[4700,"Kabel HDMI-St./HDMI-Ku. 3m",32.229999999999997,"HDMI-Kabel 19pin-Stecker auf 19pin-Kupplung Länge: 3m"]
[4701,"Kabel HDMI-St./HDMI-Ku. 1m",29.72,"HDMI-Kabel 19pin-Stecker auf 19pin-Kupplung Länge: 1m"]
[4702,"Kabel 3,5 St.KlinkeSt/2xCinch-Stecker 30m",77.290000000000006,"Kabel 3,5mm-Stereoklinkenstecker auf 2xCinch-Stecker Länge 30m"]
[4703,"Kabel HDMI-St./Mini-HDMI-St. 2m",18.3,"HDMI-Kabel 19pin-Stecker (Typ A) auf 19pin-Mini-Stecker (Typ C) Länge: 2m"]
[4704,"Kabel HDMI-St./Mini-HDMI-St. 3m",19.829999999999998,"HDMI-Kabel 19pin-Stecker (Typ A) auf 19pin-Mini-Stecker (Typ C) Länge: 3m"]
[4705,"BNC-Kabel  0,5m 50 Ohm",9.52,"BNC-Kabel 0,5m  2 x BNC-Stecker mit Knickschutztülle RG58 (50Ohm)"]
[4706,"BNC-Kabel  1,0m 50 Ohm",10.32,"BNC-Kabel 1,0m  2 x BNC-Stecker mit Knickschutztülle RG58 (50Ohm)"]
[4707,"BNC-Kabel  3,0m 50 Ohm",13.53,"BNC-Kabel 3,0m  2 x BNC-Stecker mit Knickschutztülle RG58 (50Ohm)"]
[4708,"BNC-Kabel  5,0m 50 Ohm",16.739999999999998,"BNC-Kabel 5,0m  2 x BNC-Stecker mit Knickschutztülle RG58 (50Ohm)"]
[4709,"BNC-Kabel  10,0m 50 Ohm",24.75,"BNC-Kabel 10,0m  2 x BNC-Stecker mit Knickschutztülle RG58 (50Ohm)"]
[4712,"Kabel DVI 24+1 St./DisplayPort-St.  Länge: 5m",77.81,"DVI-Adapterkabel 24+1-Stecker auf DisplayPort-Stecker Länge: 5m"]
[4713,"Kabel HDMI-St./Mini-HDMI-St. Länge: 5m",29.36,"HDMI-Kabel 19pin-Stecker (Typ A) auf 19pin-Mini-Stecker (Typ C) Länge: 5m"]
[4714,"Kabel HDMI-St./HDMI-St. aktiv Länge: 25m",228.85,"HDMI-Kabel 19pin-Stecker auf 19pin-Stecker Länge: 25m mit integriertem Verstärker und verriegelbarem Steckergehäuse"]
[4715,"Kabel HDMI-St./HDMI-St. 1m AWG24 HK",69.37,"HDMI-Kabel 19pin-Stecker auf 19pin-Stecker in AWG24 Länge: 1m"]
[4716,"Kabel HDMI-St./HDMI-St. 7,5m AWG24 HK",126.11,"HDMI-Kabel 19pin-Stecker auf 19pin-Stecker in AWG24 Länge: 7,5m"]
[4717,"Kabel HDMI-St./HDMI-St. 1m Halogenfrei",78.98,"Halogenfreies HDMI-Kabel 19pin-Stecker auf 19pin-Stecker Länge: 1m"]
[4718,"Kabel HDMI-St./HDMI-St. 7,5m Halogenfrei",148.5,"Halogenfreies HDMI-Kabel 19pin-Stecker auf 19pin-Stecker Länge: 7,5m"]
[4719,"Kabel HDMI-St./HDMI-St. 4m AWG24 HK",95.55,"HDMI-Kabel 19pin-Stecker auf 19pin-Stecker mit Ethernet 1.4, AWG24 mit vergoldeten Metallsteckern\r\nLänge: 4m"]
[4720,"Kabel VGA-St./VGA-St. 22m Superflex",134.32,"Superflex-Kabel 15pol-HD-VGA-Stecker auf 15pol-HD-VGA-Stecker Länge 22m"]
[4721,"Kabel DVI 18+1 St./St. 25m AWG24",272.47000000000003,"DVI-Kabel Dual Link 18+1-Stecker auf 18+1-Stecker,  Kabelquerschnitt AWG 24 (0,20mm²), Länge: 25m"]
[4722,"Kabel DVI 18+1 St./St. 30m AWG24",316.12,"DVI-Kabel Dual Link 18+1-Stecker auf 18+1-Stecker,  Kabelquerschnitt AWG 24 (0,20mm²), Länge: 30m"]
[4723,"Kabel DVI 18+1 St./St. 35m AWG24",359.78,"DVI-Kabel Dual Link 18+1-Stecker auf 18+1-Stecker,  Kabelquerschnitt AWG 24 (0,20mm²), Länge: 35m"]
[4725,"Kabel USB-A-St./USB-B-St. 1,8m",7.62,"USB-Kabel 2.0 USB-A-Stecker auf USB-B-Stecker Länge: 1,8m"]
[4726,"BNC-Kabel dünn  0,25m",9.7799999999999994,"BNC-Kabel 0,25m  2 x BNC-Stecker mit Knickschutztülle Videokabel 0,4/1,7 grün"]
[4727,"Kabel DVI-Stecker auf VGA-Stecker +HDMI-Stecker 2m",121.13,"Y-Kabel DVI-I-Stecker  auf VGA-Stecker +  HDMI Stecker Länge: 2m, Spleiss 30cm"]
[4728,"Kabel DVI 24+5 St./VGA-St.  3m",60.34,"DVI-Adapterkabel 24+5-Stecker auf VGA-Stecker 3m"]
[4729,"Kabel HDMI-St./HDMI-St. 0,5m AWG24 HK",64.989999999999995,"HDMI-Kabel 19pin-Stecker auf 19pin-Stecker mit Ethernet 1.4, AWG24 mit vergoldeten Metallsteckern\r\nLänge: 0,5m"]
[4730,"Kabel 3,5-4pol Klinketecker/3,5-4pol-Kupplung  5m",41.53,"Kabel 3,5mm-4pol-Klinkenstecker auf 3,5mm-4pol-Klinkenkupplung Länge 5m"]
[4731,"Kabel VGA-St./VGA-Ku. 18m Superflex",117.36,"Superflex-Kabel 15pol-HD-VGA-Stecker auf 15pol-HD-VGA-Kupplung Länge 18m"]
[4732,"Kabel VGA-St./VGA-Ku. 17m Superflex",113.12,"Superflex-Kabel 15pol-HD-VGA-Stecker auf 15pol-HD-VGA-Kupplung Länge 17m"]
[4733,"Kabel HDMI-St./HDMI-St. 12m AWG24 HK",165.39,"HDMI-Kabel 19pin-Stecker auf 19pin-Stecker mit Ethernet 1.4, AWG24 mit vergoldeten Metallsteckern\r\nLänge: 12m"]
[4734,"Kabel Kat.6 25m S/STP  grau",52.81,"Kabel Kat.6 S/STP doppelt geschirmt 25m grau halogenfrei"]
[4735,"Kabel DVI 24+1 St./St.  5m Halogenfrei",105.76,"DVI-Kabel Single Link 24+1-Stecker auf 24+1-Stecker Halogenfrei Länge: 5m"]
[4736,"Kabel DVI 24+1 St./St.  10m Halogenfrei",161.11000000000001,"DVI-Kabel Single Link 24+1-Stecker auf 24+1-Stecker Halogenfrei Länge: 10m"]
[4737,"Kabel DVI 24+1 St./St.  15m Halogenfrei",214.55,"DVI-Kabel Single Link 24+1-Stecker auf 24+1-Stecker Halogenfrei Länge: 15m"]
[4739,"HDMI Hybrid-Kabel St./St. 20m",368.74,"HDMI Hybrid-Kabel Stecker/Stecker Länge: 20m"]
[4740,"Kabel VGA-St./5xBNC-Ku. + 6pol-XLR-Kupplung 0,5m",82.43,"Kabel 15pol-HD-VGA-Stecker auf 5xBNC-Kupplung und 6pol-XLR-Kupplung Superflex Länge 0,5m"]
[4741,"Kabel HDMI-St./HDMI-St. 6m AWG24 HK",113.01,"HDMI-Kabel 19pin-Stecker auf 19pin-Stecker mit Ethernet 1.4, AWG24 mit vergoldeten Metallsteckern\r\nLänge: 6m"]
[4742,"Kabel 3,5-4pol Klinkentecker/3,5-4pol-Kupplung 7,5",44.18,"Kabel 3,5mm-4pol-Klinkenstecker auf 3,5mm-4pol-Klinkenkupplung Länge 7,5m"]
[5000,"AF GES9B schräg",78.53,"Anschlussfeld Basiseinheit  Ackermann GES9B/GB3-Becher  abgeschrägte Anschlussfläche inkl. Becher"]
[5001,"AF GESB schräg",76.95,"Anschlussfeld Basiseinheit  Ackermann GESB/GB2-Becher  abgeschrägte Anschlussfläche inkl. Becher"]
[5002,"AF Wandgehäuse 215x130x65, schwarz",99.47,"Anschlussfeld Basiseinheit  Wandgehäuse LxBxH 215x130x65mm  inkl. Montage und Gravur, schwarz"]
[5003,"AF Wandgehäuse 160x95x45, schwarz",93.18,"Anschlussfeld Basiseinheit  Wandgehäuse LxBxH 160x95x45mm  inkl. Montage und Gravur, schwarz"]
[5004,"AF 19\"-1HE",61.77,"Anschlussfeld Basiseinheit  19\"-Platte 1HE  inkl. Montage, ohne Gravur"]
[5005,"AF 19\"-2HE",72.239999999999995,"Anschlussfeld Basiseinheit  19\"-Platte 2HE  inkl. Montage, ohne Gravur"]
[5006,"AF 19\"-3HE",81.67,"Anschlussfeld Basiseinheit  19\"-Platte 3HE  inkl. Montage, ohne Gravur"]
[5007,"AF 19\"-4HE",91.09,"Anschlussfeld Basiseinheit  19\"-Platte 4HE  inkl. Montage, ohne Gravur"]
[5008,"AF 19\"-5HE",101.56,"Anschlussfeld Basiseinheit  19\"-Platte 5HE  inkl. Montage, ohne Gravur"]
[5009,"AF 19\"-6HE",110.98,"Anschlussfeld Basiseinheit  19\"-Platte 6HE  inkl. Montage, ohne Gravur"]
[5010,"AF Gravur-Zeichen",0.52,"Anschlussfeld Basiseinheit  Gravurzeichen"]
[5011,"AF Tischanschlussbox",193.7,"Anschlussfeld Basiseinheit  Tischanschlussbox inkl. Schraubklemmen, Montage und Gravur"]
[5012,"AF Tischeinbaufeld edelstahl",303.63,"Anschlussfeld Basiseinheit  Tischeinbaufeld Edelstahl inkl. Montage, Gravur und Abdeckwanne"]
[5013,"AF GB3 schräg",78.53,"Anschlussfeld Basiseinheit  Electraplan GB3-Becher, abgeschrägte Anschlussfläche incl. Becher und Gravur"]
[5014,"AF GB2 schräg",76.95,"Anschlussfeld Basiseinheit  Electraplan GB2-Becher, abgeschrägte Anschlussfläche incl. Becher und Gravur"]
[5015,"AF GES9B gerade",78.53,"Anschlussfeld Basiseinheit  Ackermann GES9B/GB3-Becher  gerade Anschlussfläche inkl. Becher und Gravur"]
[5016,"AF Aluminiumplatte",9999.99,"Anschlussfeld Basiseinheit Aluminiumplatte  \r\nBxH mm x mm"]
[5017,"AF Tischeinbaufeld rund",269.08,"Anschlussfeld Basiseinheit  Tischeinbaufeld rund, ausziehbar, inkl. Montage und Gravur"]
[5018,"AF Wandgehäuse 125x70x35, schwarz",78.53,"Anschlussfeld Basiseinheit  Wandgehäuse LxBxH 125x70x35mm  inkl. Montage und Gravur, schwarz"]
[5019,"AF Aluminiumplatte Schalterfläche",47.12,"Aluminiumplatte für Schalterflächenprogramm inklusive Gravur und Trägerplatte zur Befestigung an einer Unterputz- bzw. Hohlwanddose"]
[5020,"AF  Tischeinbaufeld 315mm",319.33999999999997,"Anschlussfeld Basiseinheit Tischeinbaufeld LxB 315mm x 190mm Einbautiefe 85mm"]
[5021,"AF Wandgehäuse 215x130x65, grau",99.47,"Anschlussfeld Basiseinheit  Wandgehäuse LxBxH 215x130x65mm  inkl. Montage und Gravur, grau"]
[5022,"AF  Tischeinbaufeld 395mm",355.98,"Anschlussfeld Basiseinheit Tischeinbaufeld LxB 395mm x 190mm Einbautiefe 85mm"]
[5023,"AF Wandgehäuse 160x95x45, grau",93.18,"Anschlussfeld Basiseinheit  Wandgehäuse LxBxH 160x95x45mm  inkl. Montage und Gravur, grau"]
[5024,"AF Wandgehäuse 125x70x35, grau",78.53,"Anschlussfeld Basiseinheit  Wandgehäuse LxBxH 125x70x35mm  inkl. Montage und Gravur, grau"]
[5027,"AF Wandgehäuse 80x80x45, weiß",70.13,"Anschlussfeld Basiseinheit  Wandgehäuse LxBxH 80x80x45mm  inkl. Montage und Gravur, weiß"]
[5040,"AF-Tischeinbaufeld klein, 162x121",241.75,"Tischeinbaufeld klein, 162x121"]
[5041,"AF Option Aluminium 90° Außenkante 162",99.18,"Option Aluminium 90° Außenkante 162mm"]
[5042,"AF Option Aluminium 45° Außenkante 162",136.11000000000001,"Option Aluminium 45° Außenkante 162mm"]
[5100,"AF VGA-Buchse Lötanschluss",9.89,"Anschlussfeld  VGA-Buchse mit Lötanschluss"]
[5101,"AF VGA-Buchse 5xBNC-Kupplung 30cm",56.88,"Anschlussfeld  VGA-Buchse auf 5xBNC-Kupplung, Länge: 30cm"]
[5102,"AF VGA-Buchse 5xBNC-Stecker 30cm",47.26,"Anschlussfeld VGA-Buchse auf 5xBNC-Stecker, Länge: 30cm"]
[5103,"AF VGA-Buchse VGA-Kupplung 30cm",43.99,"Anschlussfeld VGA-Buchse auf VGA-Kupplung, Länge: 30cm"]
[5104,"AF VGA-Buchse VGA-Stecker 30cm",43.99,"Anschlussfeld VGA-Buchse auf VGA-Stecker, Länge: 30cm"]
[5105,"AF 3,5-Klinkenbuchse Lötanschluss",8.66,"Anschlussfeld 3,5mm-Stereoklinkenbuchse mit Lötanschluss"]
[5106,"AF 3,5-Klinkenbuchse/Kupplung 30cm",17.59,"Anschlussfeld 3,5mm-Stereoklinkenbuchse auf 3,5mm-Stereoklinkenkupplung Länge: 30cm"]
[5107,"AF 3,5-Klinkenbuchse/Stecker 30cm",17.59,"Anschlussfeld 3,5mm-Stereoklinkenbuchse auf 3,5mm-Stereoklinkenstecker Länge: 30cm"]
[5108,"AF 3,5-Klinkenbuchse 2xCinch-Kupplung 30cm",19.68,"Anschlussfeld 3,5mm-Stereoklinkenbuchse auf 2xCinch-Kupplung Länge: 30cm"]
[5109,"AF 3,5-Klinkenbuchse 2xCinch-Stecker 30cm",19.68,"Anschlussfeld 3,5mm-Stereoklinkenbuchse auf 2xCinch-Stecker Länge: 30cm"]
[5110,"AF BNC-Bu. rot löt",12.04,"Anschlussfeld BNC-Buchse rot mit lötanschluss"]
[5111,"AF BNC-Bu. grün löt",12.04,"Anschlussfeld BNC-Buchse grün mit lötanschluss"]
[5112,"AF BNC-Bu. blau löt",12.04,"Anschlussfeld BNC-Buchse blau mit lötanschluss"]
[5113,"AF BNC-Bu. schwarz löt",12.04,"Anschlussfeld BNC-Buchse schwarz mit lötanschluss"]
[5114,"AF BNC-Bu. weiß löt",12.04,"Anschlussfeld BNC-Buchse weiß mit lötanschluss"]
[5115,"AF BNC-Bu. gelb löt",12.04,"Anschlussfeld BNC-Buchse gelb mit lötanschluss"]
[5116,"AF BNC-Bu. rot steckbar",13.09,"Anschlussfeld BNC-Buchse rot steckbar"]
[5117,"AF BNC-Bu. grün steckbar",13.09,"Anschlussfeld BNC-Buchse grün steckbar"]
[5118,"AF BNC-Bu. blau steckbar",13.09,"Anschlussfeld BNC-Buchse blau steckbar"]
[5119,"AF BNC-Bu. schwarz steckbar",13.09,"Anschlussfeld BNC-Buchse schwarz steckbar"]
[5120,"AF BNC-Bu. weiß steckbar",13.09,"Anschlussfeld BNC-Buchse weiß steckbar"]
[5121,"AF BNC-Bu. gelb steckbar",13.09,"Anschlussfeld BNC-Buchse gelb steckbar"]
[5122,"AF BNC-Bu. rot BNC-Ku. 30cm",19.79,"Anschlussfeld BNC-Buchse rot auf BNC-Kupplung 30cm"]
[5123,"AF BNC-Bu. grün BNC-Ku. 30cm",19.79,"Anschlussfeld BNC-Buchse grün auf BNC-Kupplung 30cm"]
[5124,"AF BNC-Bu. blau BNC-Ku. 30cm",19.79,"Anschlussfeld BNC-Buchse blau auf BNC-Kupplung 30cm"]
[5125,"AF BNC-Bu. schwarz BNC-Ku. 30cm",19.79,"Anschlussfeld BNC-Buchse schwarz auf BNC-Kupplung 30cm"]
[5126,"AF BNC-Bu. weiß BNC-Ku. 30cm",19.79,"Anschlussfeld BNC-Buchse weiß auf BNC-Kupplung 30cm"]
[5127,"AF BNC-Bu. gelb BNC-Ku. 30cm",19.79,"Anschlussfeld BNC-Buchse gelb auf BNC-Kupplung 30cm"]
[5128,"AF BNC-Bu. rot BNC-St. 30cm",18.22,"Anschlussfeld BNC-Buchse rot auf BNC-Stecker 30cm"]
[5129,"AF BNC-Bu. grün BNC-St. 30cm",18.22,"Anschlussfeld BNC-Buchse grün auf BNC-Stecker 30cm"]
[5130,"AF BNC-Bu. blau BNC-St. 30cm",18.22,"Anschlussfeld BNC-Buchse blau auf BNC-Stecker 30cm"]
[5131,"AF BNC-Bu. schwarz BNC-St. 30cm",18.22,"Anschlussfeld BNC-Buchse schwarz auf BNC-Stecker 30cm"]
[5132,"AF BNC-Bu. weiß  BNC-St. 30cm",18.22,"Anschlussfeld BNC-Buchse weiß auf BNC-Stecker 30cm"]
[5133,"AF BNC-Bu. gelb  BNC-St. 30cm",18.22,"Anschlussfeld BNC-Buchse gelb auf BNC-Stecker 30cm"]
[5134,"AF Cinch-Bu. rot löt",9.9499999999999993,"Anschlussfeld Cinch-Buchse rot mit lötanschluss"]
[5135,"AF Cinch-Bu. schwarz löt",9.9499999999999993,"Anschlussfeld Cinch-Buchse schwarz mit lötanschluss"]
[5136,"AF Cinch-Bu. gelb löt",9.9499999999999993,"Anschlussfeld Cinch-Buchse gelb mit lötanschluss"]
[5137,"AF Cinch-Bu. grün löt",9.9499999999999993,"Anschlussfeld Cinch-Buchse grün mit lötanschluss"]
[5138,"AF Cinch-Bu. blau löt",9.9499999999999993,"Anschlussfeld Cinch-Buchse blau mit lötanschluss"]
[5139,"AF Cinch-Bu. rot Cinch-Ku. 30cm",16.23,"Anschlussfeld Cinch-Buchse rot auf Cinch-Kupplung 30cm"]
[5140,"AF Cinch-Bu. schwarz Cinch-Ku. 30cm",16.23,"Anschlussfeld Cinch-Buchse schwarz auf Cinch-Kupplung 30cm"]
[5141,"AF Cinch-Bu. gelb Cinch-Ku. 30cm",16.23,"Anschlussfeld Cinch-Buchse gelb auf Cinch-Kupplung 30cm"]
[5142,"AF Cinch-Bu. grün Cinch-Ku. 30cm",16.23,"Anschlussfeld Cinch-Buchse grün auf Cinch-Kupplung 30cm"]
[5143,"AF Cinch-Bu. blau Cinch-Ku. 30cm",16.23,"Anschlussfeld Cinch-Buchse blau auf Cinch-Kupplung 30cm"]
[5144,"AF Cinch-Bu. rot Cinch-St. 30cm",16.23,"Anschlussfeld Cinch-Buchse rot auf Cinch-Stecker 30cm"]
[5145,"AF Cinch-Bu. schwarz Cinch-St. 30cm",16.23,"Anschlussfeld Cinch-Buchse schwarz auf Cinch-Stecker 30cm"]
[5146,"AF Cinch-Bu. gelb Cinch-St. 30cm",16.23,"Anschlussfeld Cinch-Buchse gelb auf Cinch-Stecker 30cm"]
[5147,"AF Cinch-Bu. grün Cinch-St. 30cm",16.23,"Anschlussfeld Cinch-Buchse grün auf Cinch-Stecker 30cm"]
[5148,"AF Cinch-Bu. blau Cinch-St. 30cm",16.23,"Anschlussfeld Cinch-Buchse blau auf Cinch-Stecker 30cm"]
[5149,"AF Cinch-Bu. gelb BNC-Ku. 30cm",18.11,"Anschlussfeld Cinch-Buchse gelb auf BNC-Kupplung 30cm"]
[5150,"AF Cinch-Bu. grün BNC-Ku. 30cm",18.11,"Anschlussfeld Cinch-Buchse grün auf BNC-Kupplung 30cm"]
[5151,"AF Cinch-Bu. blau BNC-Ku. 30cm",18.11,"Anschlussfeld Cinch-Buchse blau auf BNC-Kupplung 30cm"]
[5152,"AF Cinch-Bu. gelb BNC-St. 30cm",17.59,"Anschlussfeld Cinch-Buchse gelb auf BNC-Stecker 30cm"]
[5153,"AF Cinch-Bu. grün BNC-St. 30cm",17.59,"Anschlussfeld Cinch-Buchse grün auf BNC-Kupplung 30cm"]
[5154,"AF Cinch-Bu. blau BNC-St. 30cm",17.59,"Anschlussfeld Cinch-Buchse blau auf BNC-Kupplung 30cm"]
[5155,"AF 4p.MD-Bu. löt",10.26,"Anschlussfeld 4pin-Mini-DIN-Buchse mit lötanschluss"]
[5156,"AF 4p.MD-Bu. 2xBNC-Ku. 30cm",27.75,"Anschlussfeld 4pin-Mini-DIN-Buchse auf 2xBNC-Kupplung 30cm"]
[5157,"AF 4p.MD-Bu. 2xBNC-St. 30cm",27.01,"Anschlussfeld 4pin-Mini-DIN-Buchse auf 2xBNC-Stecker 30cm"]
[5158,"AF 4p.MD-Bu. 4p-MD-Ku. 30cm",27.75,"Anschlussfeld 4pin-Mini-DIN-Buchse auf 4pin-Mini-DIN-Kupplung 30cm"]
[5159,"AF 4p.MD-Bu. 4p-MD-St. 30cm",27.75,"Anschlussfeld 4pin-Mini-DIN-Buchse auf 4pin-Mini-DIN-Stecker 30cm"]
[5160,"AF 9p.Sub-D-Bu. löt",9.74,"Anschlussfeld 9pin-Sub-D-Buchse mit lötanschluss"]
[5161,"AF 9p.Sub-D-Bu. 9p.Sub-D-Bu.",11.94,"Anschlussfeld 9pin-Sub-D-Buchse/Buchse steckbar"]
[5162,"AF 9p.Sub-D-Bu. 9p.Sub-D-St.",11.94,"Anschlussfeld 9pin-Sub-D-Buchse/Stiftleiste steckbar"]
[5163,"AF 9p.Sub-D-Bu 9p.Sub-D-Ku 30cm",30.89,"Anschlussfeld 9pin-Sub-D-Buchse auf 9pin-Sub-D-Kupplung 30cm"]
[5164,"AF 9p.Sub-D-Bu 9p.Sub-D-St 30cm",30.89,"Anschlussfeld 9pin-Sub-D-Buchse auf 9pin-Sub-D-Stecker 30cm"]
[5165,"AF 9p.Sub-D-St. löt",9.74,"Anschlussfeld 9pin-Sub-D-Stiftleiste mit lötanschluss"]
[5166,"AF 9p.Sub-D-St. 9p.Sub-D-St.",11.94,"Anschlussfeld 9pin-Sub-D-Stiftleiste/Stiftleiste steckbar"]
[5167,"AF 9p.Sub-D-St. 9p.Sub-D-Bu.",11.94,"Anschlussfeld 9pin-Sub-D-Stiftleiste/Buchse steckbar"]
[5168,"AF 9p.Sub-D-St 9p.Sub-D-Ku 30cm",30.89,"Anschlussfeld 9pin-Sub-D-Stiftleiste auf 9pin-Sub-D-Kupplung 30cm"]
[5169,"AF 9p.Sub-D-St 9p.Sub-D-St 30cm",30.89,"Anschlussfeld 9pin-Sub-D-Stiftleiste auf 9pin-Sub-D-Stecker 30cm"]
[5170,"AF 3p.XLR-Bu. löt",10.93,"Anschlussfeld 3pin-XLR-Buchse mit lötanschluss"]
[5171,"AF 3p.XLR-Bu. 3p.XLR-Ku. 30cm",27.31,"Anschlussfeld 3pin-XLR-Buchse auf 3pin-XLR-Kupplung 30cm"]
[5172,"AF 3p.XLR-Bu. 3p.XLR-St. 30cm",26.41,"Anschlussfeld 3pin-XLR-Buchse auf 3pin-XLR-Stecker 30cm"]
[5173,"AF 3p.XLR-St. löt",10.93,"Anschlussfeld 3pin-XLR-Einbaustecker mit lötanschluss"]
[5174,"AF 3p.XLR-St. 3p.XLR-Ku. 30cm",27.31,"Anschlussfeld 3pin-XLR-Einbaustecker auf 3pin-XLR-Kupplung 30cm"]
[5175,"AF 3p.XLR-St. 3p.XLR-St. 30cm",26.41,"Anschlussfeld 3pin-XLR-Einbaustecker auf 3pin-XLR-Stecker 30cm"]
[5176,"AF 4p.Speakon-Bu. löt",10.68,"Anschlussfeld 4pol Speakon-Buchse mit lötanschluss"]
[5177,"AF 4p.Speakon-Bu. Lüsterkl 30cm",20.78,"Anschlussfeld 4pol Speakon-Buchse auf 4-fach Lüsterklemme 30cm (4x2,5mm²)"]
[5178,"AF Cat.6-Buchse, schneid-klemm",12.04,"Anschlussfeld RJ45-Cat.6-Buchse mit Schneid-Klemm-Anschluss (werkzeuglos)"]
[5179,"AF Cat.6-Buchse Cat.5-Kupplung 30cm",22.82,"Anschlussfeld RJ45-Cat.6-Buchse auf Cat.5-Kupplung, Länge: 30cm"]
[5181,"AF Cat.6-Buchse Cat.6-Stecker 30cm",23.56,"Anschlussfeld RJ45-Cat.6-Buchse auf Cat.6-Stecker, Länge: 30cm"]
[5182,"AF RJ45-Buchse/Buchse",12.04,"Anschlussfeld RJ45-Buchse auf RJ45-Buchse geschirmt"]
[5183,"AF RJ45-Cat.5Buchse/Buchse ungeschirmt",12.04,"Anschlussfeld RJ45-Cat.5-Buchse auf RJ45-Cat.5Buchse ungeschirmt"]
[5184,"AF Cat.6 Buchse/Buchse, geschirmt",17.28,"Anschlussfeld Cat.6-Buchse auf Cat.6-Buchse, Rj45,  geschirmt"]
[5185,"AF Schukosteckdose, Schraubanschluss",20.78,"Anschlussfeld Schukosteckdose mit Schraubanschluss inklusive Isolierdose und Zugentlastung"]
[5186,"AF Schukosteckdose Stecker 3m",37.83,"Anschlussfeld Schukosteckdose auf Schukostecker 3m"]
[5187,"AF VGA-Buchse/Buchse",13.14,"Anschlussfeld  VGA-Buchse auf VGA-Buchse"]
[5188,"AF Cinch-Bu. rot steckbar",14.13,"Anschlussfeld Cinch-Buchse rot steckbar"]
[5189,"AF Cinch-Bu. schwarz steckbar",14.13,"Anschlussfeld Cinch-Buchse schwarz steckbar"]
[5190,"AF Cinch-Bu. gelb steckbar",14.13,"Anschlussfeld Cinch-Buchse gelb steckbar"]
[5191,"AF USB-Bu. Neutrik steckbar",16.82,"Anschlussfeld USB-Buchse Neutrik steckbar"]
[5192,"AF 4p.XLR-Bu. löt",13.44,"Anschlussfeld 4pin-XLR-Buchse mit lötanschluss"]
[5193,"AF 4p.XLR-Bu. Lüsterklemme 30cm",27.06,"Anschlussfeld 4pin-XLR-Buchse auf 4-fach Lüsterklemme 30cm"]
[5194,"AF 4p.XLR-Bu. 4p.XLR-St. 30cm",38.33,"Anschlussfeld 4pin-XLR-Buchse auf 4pin-XLR-Stecker 30cm"]
[5195,"AF 12pin-miniCON-Bu./RJ45-Ku. 2xAder.",81.28,"Anschlussfeld 12pin-miniCON-Buchse auf RJ45-Kupplung + 2xAderendhülse (für Touchpanel) 30cm"]
[5196,"AF DVI-Buchse Lötanschluss",13.19,"Anschlussfeld DVI-Buchse Lötanschluss"]
[5197,"AF DVI-D-Buchse DVI-D-Stecker 30cm",56.12,"Anschlussfeld DVI-D-Buchse auf DVI-D-Stecker 30cm (24+1)"]
[5198,"AF DVI-D-Buchse DVI-D-Kupplung 30cm",56.12,"Anschlussfeld DVI-D-Buchse auf DVI-D-Kupplung 30cm"]
[5199,"AF Powercon-Bu.blau, Eingang, Lötanschluss",10.93,"Anschlussfeld PowerCon-Buchse blau (Netzspannungseingang) mit Lötanschluss"]
[5200,"AF Powercon-Bu.grau,Weitergabe, Lötanschluss",10.93,"Anschlussfeld PowerCon-Buchse grau (Netzspannungsweitergabe) mit Lötanschluss"]
[5201,"AF 3,5-Klinkenbuchse, steckbar",18.329999999999998,"Anschlussfeld 3,5mm-Stereoklinkenbuchse, rückseitig steckbar"]
[5202,"AF DVI-Buchse/DVI-Buchse",28.79,"Anschlussfeld DVI-I-Buchse rückseitig steckbar"]
[5203,"AF HDMI-Buchse/HDMI-Buchse",28.79,"Anschlussfeld HDMI-Buchse rückseitig steckbar inklusive 90° Winkeladapter"]
[5204,"AF Cinch-Bu. rot BNC-Ku. 30cm",18.11,"Anschlussfeld Cinch-Buchse rot auf BNC-Kupplung 30cm"]
[5205,"AF Cinch-Bu. rot BNC-St. 30cm",17.59,"Anschlussfeld Cinch-Buchse rot auf BNC-Stecker 30cm"]
[5206,"AF 5p.XLR-Bu. löt",20.149999999999999,"Anschlussfeld 5pin-XLR-Buchse mit lötanschluss"]
[5207,"AF 12pin-miniCON-Bu./St. 30cm",102.61,"Anschlussfeld 12pin-miniCON-Buchse auf 12pin-miniCON-Stecker 30cm"]
[5208,"AF USB-A-Bu./löt",16.02,"Anschlussfeld USB-A-Buchse mit Lötanschluss"]
[5209,"AF USB-A-Bu./USB-A-Bu.",22.41,"Anschlussfeld USB-A-Buchse auf USB-A-Buchse"]
[5210,"AF USB-A-Bu./USB-A-St. 30cm",25.34,"Anschlussfeld USB-A-Buchse auf USB-A-Stecker, Länge: 30cm"]
[5211,"AF USB-A-Bu./USB-B-St. 30cm",25.34,"Anschlussfeldmodul  USB-A-Buchse auf USB-B-Stecker 30cm"]
[5212,"AF USB-B-Bu./löt",16.02,"Anschlussfeld USB-B-Buchse mit Lötanschluss"]
[5213,"AF USB-B-Bu./USB-B-Bu.",22.41,"Anschlussfeld USB-B-Buchse auf USB-B-Buchse"]
[5214,"AF USB-B-Bu./USB-B-St. 30cm",25.34,"Anschlussfeldmodul  USB-B-Buchse auf USB-B-Stecker, Länge: 30cm"]
[5215,"AF USB-B-Bu./USB-A-St. 30cm",25.34,"Anschlussfeldmodul  USB-B-Buchse auf USB-A-Stecker, Länge: 30cm"]
[5216,"AF 4p.MD-Bu. steckbar",27.75,"Anschlussfeld 4pin-Mini-DIN-Buchse rückseitig steckbar"]
[5217,"AF DVI-I-Buchse DVI-I-Stecker 30cm",66.17,"Anschlussfeld DVI-I-Buchse auf DVI-I-Stecker 30cm (24+5)"]
[5218,"AF 6p.XLR-Bu. löt",25.96,"Anschlussfeld 6pin-XLR-Buchse mit lötanschluss"]
[5219,"AF DisplayPort-Buchse/DisplayPort-Buchse",40.83,"Anschlussfeld DisplayPort-Buchse rückseitig steckbar "]
[5220,"AF DisplayPort-Buchse/DisplayPort-Stecker 1m",47.74,"Anschlussfeld DisplayPort-Buchse mit 1m Kabel auf DisplayPort-Stecker"]
[5221,"AF HDMI-Buchse/HDMI-Buchse 25cm",47.12,"Anschlussfeld HDMI-Buchse auf HDMI-Kupplung Länge: 25cm"]
[5222,"AF DVI-I-Buchse DVI-I-Kupplung 20cm",66.17,"Anschlussfeld DVI-I-Buchse auf DVI-I-Kupplung 20cm (24+5)"]
[5223,"AF VGA-Buchse auf offenes Kabelende 30cm",33.82,"Anschlussfeld VGA-Buchse auf offenes Kabelende, Länge: 30cm"]
[5224,"AF VGA-Stecker, Lötanschluss",9.89,"Anschlussfeld  VGA-Stecker mit Lötanschluss"]
[5225,"AF VGA-Stecker 5xBNC-Kupplung 30cm",56.88,"Anschlussfeld  VGA-Stecker auf 5xBNC-Kupplung, Länge: 30cm"]
[5226,"AF VGA-Stecker 5xBNC-Stecker 30cm",47.26,"Anschlussfeld VGA-Stecker auf 5xBNC-Stecker, Länge: 30cm"]
[5227,"AF VGA-Stecker auf offenes Kabelende 30cm",33.82,"Anschlussfeld VGA-Stecker auf offenes Kabelende, Länge: 30cm"]
[5228,"AF Cinch-Bu. schwarz BNC-St. 30cm",17.59,"Anschlussfeld Cinch-Buchse schwarz auf BNC-Stecker 30cm"]
[5229,"AF Cinch-Bu. schwarz BNC-Ku. 30cm",18.11,"Anschlussfeld Cinch-Buchse schwarz auf BNC-Kupplung 30cm"]
[5230,"AF Antenneneinbaustecker, Lötanschluss",15.39,"Anschlussfeld Antenneneinbaustecker, Lötanschluss"]
[5231,"AF Antenneneinbaubuchse, Lötanschluss",15.39,"Anschlussfeld Antenneneinbaubuchse, Lötanschluss"]
[5232,"AF Antennen-F Einbaubuchse, Lötanschluss",15.39,"Anschlussfeld Antennen-F Einbaubuchse, Lötanschluss"]
[5233,"AF Antennen-F Durchgangsverbinder",15.39,"Anschlussfeld Antennen-F Durchgangsverbinder"]
[5234,"AF RJ45-EtherCon schneid-klemm Neutrik",28.17,"Anschlussfeld Neutrik EtherCon-Buchse mit Schneid-Klemmanschluss"]
[5235,"AF USB-A-Bu./USB-B-Bu., steckbar",22.41,"Anschlussfeld USB-A-Buchse auf USB-B-Buchse, rückseitig steckbar"]
[5236,"AF USB-A-Bu./USB-A-Ku. 30cm",25.34,"Anschlussfeld USB-A-Buchse auf USB-A-Kupplung, Länge: 30cm"]
[5237,"AF USB-B-Bu./USB-A-Bu., steckbar",22.41,"Anschlussfeld USB-B-Buchse auf USB-A-Buchse, rückseitig steckbar"]
[5238,"AF USB-B-Bu./USB-A-Ku. 30cm",25.34,"Anschlussfeld USB-B-Buchse auf USB-A-Kupplung, Länge: 30cm"]
[5239,"AF Cat.6-Buchse Cat.6-Kupplung 30cm",27.3,"Anschlussfeld RJ45-Cat.6-Buchse auf Cat.6-Kupplung, Länge: 30cm"]
[5240,"AF 12pin-miniCON-Buchse, Lötanschluss",58.02,"Anschlussfeld 12pin-miniCON-Buchse mit Lötanschluss"]
[5241,"AF Taster/LED, 2xSchließer, rot, lötbar",19.37,"AF Taster/LED, 2xSchließer, rot, lötbar"]
[5242,"AF Taster/LED, 2xSchließer, grün, Lötanschluss",19.37,"Anschlussfeld Taster grün mit integrierter LED, 2xSchließer,  Lötanschluss"]
[5243,"AF Taster/LED, 2xSchließer, rot, 30cm, offen",24.73,"Anschlussfeld Taster mit LED, 2xSchließer, rot, 30cm, offenes Ende"]
[5244,"AF Taster/LED, 2xSchließer, grün, 30cm, offen",24.73,"Anschlussfeld Taster mit LED, 2xSchließer, grün, 30cm, offenes Ende"]
[5245,"AF Schalter/ LED, 2xSchließer, rot, Lötanschluss",19.37,"Anschlussfeld Schalter/ LED, 2xSchließer, rot, Lötanschluss"]
[5246,"AF Schalter/LED, 2xSchließer, grün, Lötanschluss",19.37,"Anschlussfeld Schalter/LED, 2xSchließer, grün, Lötanschluss"]
[5247,"AF Schalter/LED, 2xSchließer, rot, 30cm, offen",24.73,"Anschlussfeld  Schalter mit LED, 2xSchließer, rot, 30cm, offenes Ende"]
[5248,"AF Schalter/LED, 2xSchließer, grün, 30cm, offen",24.73,"Anschlussfeld  Schalter/LED, 2xSchließer, grün, 30cm, offen"]
[5249,"AF Taster, 1xUmschalter, vernickelt, Lötanschluss",23.08,"Anschlussfeld  Taster vernickelt ohne LED, 1xUmschalter,  Lötanschluss"]
[5250,"AF Taster, 1xUmschalter, o. LED, vernickelt, 30cm",28.44,"Anschlussfeld  Taster vernickelt ohne LED, 1xUmschalter,  Länge 30cm"]
[5251,"AF Einbaudose Kaltgeräte, Steckanschluss",18.47,"Anschlussfeld Kaltgeräteeinbaudose mit Steckanschluss "]
[5252,"AF Einbaudose Kaltgeräte 3m",37.53,"Anschlussfeld Kaltgeräteeinbaudose auf Schukostecker, Länge: 3m"]
[5253,"AF Einbaustecker Kaltgeräte, Steckanschluss",18.47,"Anschlussfeld Kaltgeräteeinbaudose mit Steckanschluss "]
[5254,"AF Einbaustecker Kaltgeräte 3m",37.53,"Anschlussfeld Kaltgeräteeinbaustecker auf Schukokupplung, Länge: 3m"]
[5255,"AF HDMI-Bu./Bu. 360° drehbar",40,"Anschlussfeld  HDMI-Buchse/Buchse 360° drehbar"]
[5256,"AF Blindabdeckung XLR D-Bohrung",7.17,"Anschlussfeld Blindabdeckung fürXLR D-Bohrung"]
[5257,"AF 5p.XLR-Bu. Lüsterklemme 30cm",34.39,"Anschlussfeld 5pin-XLR-Buchse auf 5-fach Lüsterklemme 30cm"]
[5258,"AF 6p.XLR-Bu. Lüsterklemme 30cm",44.17,"Anschlussfeld 6pin-XLR-Buchse auf 6-fach Lüsterklemme 30cm"]
[5259,"AF 7p.XLR-Bu. löt",31.76,"Anschlussfeld 7pin-XLR-Buchse mit lötanschluss"]
[5260,"AF 7p.XLR-Bu. Lüsterklemme 30cm",51.44,"Anschlussfeld 7pin-XLR-Buchse auf 7-fach Lüsterklemme 30cm"]
[5261,"AF Taster, 1xEIN, 18x18mm, beschriftbar, lötbar",34.5,"Taster 18x18mm, 1xEIN, beschriftbar mit Hintergrundbeleuchtung,  Lötanschluss"]
[5262,"AF Taster, 1xEIN, 18x18mm, beschriftbar, 30cm",41.22,"Taster 18x18mm, 1xEIN, beschriftbar mit Hintergrundbeleuchtung, Länge 30cm"]
[5263,"AF Taster, 1xEIN, 24x18mm, beschriftbar, lötbar",35.68,"Taster 18x18mm, 1xEIN, beschriftbar mit Hintergrundbeleuchtung, Lötanschluss"]
[5264,"AF Taster, 1xEIN, 24x18mm, beschriftbar, 30cm",42.4,"Taster 24x18mm, 1xEIN, beschriftbar mit Hintergrundbeleuchtung, Länge 30cm"]
[5265,"AF RJ12-Bu./RJ12-Bu.",22.85,"Anschlussfeld RJ12-Buchse auf RJ12-Buchse"]
[5266,"AF RJ69-Bu./RJ69-Bu.",24.85,"Anschlussfeld RJ69-Buchse auf RJ69-Buchse"]
[5267,"AF USB-A-3.0-Bu./USB-A-3.0-Bu.",32.61,"Anschlussfeld USB-A-3.0 Buchse auf USB-A-3.0 Buchse"]
[5268,"AF HDMI-Bu./St. 30cm AWG24",84.96,"Anschlussfeld HDMI-Buchse auf HDMI-Stecker 30cm. Hochwertige AWG24-Leitung für große Distanzen."]
[5269,"AF HDMI-Bu./offenes Ende 30cm AWG24",50.82,"Anschlussfeld HDMI-Buchse auf offenes Ende. Länge: 30cm. Hochwertige AWG24-Leitung für große Distanzen."]
[5270,"AF Taster, 1xUm, LED-blau, Edelstahl, 18mm, Löt",35.35,"Anschlussfeld  Taster Edelstahl mit LED, blau, 1xUmschalter, 18/16mm,  Lötanschluss"]
[5271,"AF Taster, 1xUm, LED-blau, Edelstahl, 18mm, 30cm",41.5,"Anschlussfeld  Taster Edelstahl mit LED, blau, 1xUmschalter, 18/16mm,  Länge: 30cm"]
[5272,"AF Taster, 1xUm, LED-blau, Edelstahl, 22mm, Löt",38.99,"Anschlussfeld  Taster Edelstahl mit LED, blau, 1xUmschalter, 22/19mm,  Lötanschluss"]
[5273,"AF Taster, 1xUm, LED-blau, Edelstahl, 22mm, 30cm",45.15,"Anschlussfeld  Taster Edelstahl mit LED, blau, 1xUmschalter, 22/19mm,  Länge: 30cm"]
[5274,"AF Taster, 1xUm, ohne LED, Edelstahl, 22mm, Löt",36.6,"Anschlussfeld  Taster Edelstahl ohne LED, 1xUmschalter, 22/19mm,  Lötanschluss"]
[5275,"AF Taster, 1xUm, ohne LED, Edelstahl, 22mm, 30cm",42.76,"Anschlussfeld  Taster Edelstahl ohne LED, 1xUmschalter, 22/19mm,  Länge: 30cm"]
[5276,"AF 3,5-Klinkenbuchse 4pol/löt",21.32,"Anschlussfeld  4TE 3,5mm-Stereoklinkenbuchse 4pol mit Lötanschluss"]
[5277,"AF 3,5-Klinkenbu.-4p. mit 30cm Kabel auf 4p.Kup.",47.49,"Anschlussfeld  4TE 4pol-3,5mm-Klinkenbuchse mit 30cm Kabel auf 4pol-3,5mm-Klinkenkupplung"]
[5278,"AF 3,5-Klinkenbuchse auf offenes Kabelende 30cm",13.29,"AF 3,5-Klinkenbuchse auf offenes Kabelende, Länge: 30cm"]
[5279,"AF 12pin-miniCON-Buchse, mit 30cm Kabel auf RJ45 S",81.95,"AF 12pin-miniCON-Buchse, mit 30cm Kabel auf RJ45 S"]
[5280,"AF DisplayPort-Buchse/DisplayPort-Stecker 30cm",71.38,"DisplayPort-Buchse/DisplayPort-Stecker 30cm"]
[5281,"AF USB-A-Ladeteil 230V 5V/1A",97.8,"AF USB-A-Ladeteil 230V 5V/1A"]
[5282,"AF DisplayPort-Buchse/DisplayPort-Kupplung 30cm",71.38,"DisplayPort-Buchse/DisplayPort-Kupplung 30cm"]
[5283,"AF RJ45-EtherCon Neutrik, 30cm Kabel auf RJ45-St.",40.17,"Anschlussfeld Neutrik EtherCon-Buchse mit 30cm Kabel auf RJ45-Cat.6-Stecker"]
[5284,"AF RJ45-EtherCon Neutrik, 30cm Kabel auf RJ45-Ku.",40.17,"Anschlussfeld Neutrik EtherCon-Buchse mit 30cm Kabel auf RJ45-Cat.6-Kupplung"]
[5287,"AF HDMI-Bu-Keystone-abgewinkelt/Kupplung 25cm",47.12,"HDMI-Bu-Keystone-abgewinkelt/Kupplung 25cm"]
[5288,"AF DisplayPort Bu./Ku., 30cm, aktiv",161.62,"DisplayPort Bu./Ku., 30cm, aktiv"]
[5300,"zusätzliche Kabellänge VGA-Kabel",4.82,"zusätzliche Kabellänge VGA-Kabel"]
[5301,"zusätzliche Kabellänge Audio 3mm",0.61,"zusätzliche Kabellänge Audio-symmetrisch 3mm"]
[5302,"zusätzliche Kabellänge Audio-stereo",2.13,"zusätzliche Kabellänge Audio-stereo"]
[5303,"zusätzliche Kabellänge Video 3mm",0.52,"zusätzliche KabellängeVideo 3mm"]
[5304,"zusätzliche Kabellänge S-Video",2.13,"zusätzliche Kabellänge S-Video"]
[5305,"zusätzliche Kabellänge Cat.5",1.78,"zusätzliche Kabellänge Cat.5"]
[5306,"zusätzliche Kabellänge Cat.5+Strom",8.23,"zusätzliche Kabellänge Cat.5 und Stromversorgung"]
[5307,"zusätzliche Kabellänge 8pol-Steuerleitung",1.35,"zusätzliche Kabellänge 8pol Steuerleitung geschirmt"]
[5308,"zusätzliche Kabellänge Audio 6mm",1.25,"zusätzliche Kabellänge Audio-symmetrisch 6mm"]
[5309,"zusätzliche Kabellänge Speakon",5.78,"zusätzliche Kabellänge Speakon 4x2,5mm²"]
[5310,"zusätzliche Kabellänge Cat.6",1.99,"zusätzliche Kabellänge Cat.6"]
[5311,"zusätzliche Kabellänge Netzkabel",1.49,"zusätzliche Kabellänge Netzkabel"]
[5312,"zusätzliche Kabellänge USB",1.78,"zusätzliche Kabellänge USB"]
[5313,"zusätzliche Kabellänge DVI-D",6.6,"zusätzliche Kabellänge DVI-D"]
[5314,"zusätzliche Kabellänge DVI-I",7.58,"zusätzliche Kabellänge DVI-I"]
[5315,"zusätzliche Kabellänge 4pol-Steuerleitung",1.1499999999999999,"zusätzliche Kabellänge 4pol-Steuerleitung geschirmt"]
[5316,"zusätzliche Kabellänge RGB-Mini-Kabel 3x3mm",3.41,"zusätzliche Kabellänge RGB-Mini-Kabel 3x3mm"]
[5317,"zusätzliche Kabellänge 4pol-Flachbandleitung",1.1499999999999999,"zusätzliche Kabellänge 4pol-Flachbandleitung, ungeschirmt"]
[5318,"zusätzliche Kabellänge HDMI AWG24",8.73,"zusätzliche Kabellänge HDMI AWG24"]
[5319,"zusätzliche Kabellänge 10pol-Flachbandleitung",1.6,"zusätzliche Kabellänge 10pol-Flachbandleitung, ungeschirmt"]
[5320,"zusätzliche Kabellänge DisplayPort-Kabel",4.04,"zusätzliche Kabellänge DisplayPort-Kabel"]
[5500,"AFM  Träger GB3 Ackermann 36TE",43.97,"Modulares Anschlussfeld Modulträger Ackermann GB3 36TE"]
[5501,"AFM  Träger GB2 Ackermann 28TE",43.97,"Modulares Anschlussfeld Modulträger Ackermann GB2 28TE"]
[5502,"AFM  Träger GB3/GBR3 Electraplan 36TE",43.97,"Modulares Anschlussfeld Modulträger Electraplan GB3/GBR3 36TE"]
[5503,"AFM  Träger GB2 Electraplan 28TE",43.97,"Modulares Anschlussfeld Modulträger Electraplan GB2 28TE"]
[5504,"AFM  Träger PUK/Vergokan",49.21,"Modulares Anschlussfeld Modulträger PUK/Vergokan"]
[5505,"AFM  Träger GBV4 Electraplan 36TE",49.21,"Modulares Anschlussfeld Modulträger Electraplan GBV4 36TE"]
[5506,"AFM  Träger GBV3 Electraplan 28TE",49.21,"Modulares Anschlussfeld Modulträger Electraplan GBV3 28TE"]
[5507,"AFM  Träger GBR3 Electraplan 36TE",43.97,"Modulares Anschlussfeld Modulträger Electraplan GBR3 36TE"]
[5510,"AFM  Wandkanal 24TE",29.32,"Modulares Anschlussfeld Wandkanalanschlussfeld 24TE"]
[5511,"AFM  Wandkanal 36TE",36.65,"Modulares Anschlussfeld Wandkanalanschlussfeld 36TE"]
[5512,"AFM  Wandkanal 48TE",45.02,"Modulares Anschlussfeld Wandkanalanschlussfeld 48TE"]
[5513,"AFM  Wandkanal schräger Auslass 24TE",53.4,"Modulares Anschlussfeld Wandkanalanschlussfeld, schräger Auslass 24TE"]
[5519,"AFM  Träger 19\"-2HE 84TE RAL 9035",52.35,"Modulares Anschlussfeld Modulträger 19\"-Blende 2HE, 84TE, gepulvert in RAL 9035"]
[5520,"AFM  Tischeinbaufeld 28TE",303.63,"Modulares Anschlussfeld Tischeinbaufeld 28TE inkl. 2 Schukosteckdosen"]
["5520-HOR","AFM Option horizontal, Kabelausgang hinten",0,"Option Deckel horizontal, Kabelausgang hinten für Durchführungsbu."]
[5521,"AFM  Loch für Tischeinbaufeld",2.86,"Option Loch im Boden eines Tischeinbaufeldes inkl. Gummitülle. Innendurchmesser 45mm."]
[5522,"AFM  Tischeinbaufeld 44TE",340.28,"Modulares Anschlussfeld Tischeinbaufeld 44TE inkl. 2 Schukosteckdosen"]
[5523,"AFM  Tischeinbaufeld Sonderlack.",99.47,"Sonderlackierung Tischeinbaufeld (Preis pro Charge)"]
[5524,"AFM  Option Aluminium 90° Außenkante 28TE/315",171.32,"Option Aluminiumoberfläche mit Außenkante 90° für Tischeinbaufeld 28TE/315mm"]
[5526,"AFM  Option Aluminium 90° Außenkante 44TE/395",192.23,"Option Aluminiumoberfläche mit Außenkante 90° für Tischeinbaufeld 44TE/395mm"]
[5528,"AFM  Option Edelstahl Außenkante 90° für 28TE/315",247.48,"Option Edelstahloberfläche mit Außenkante 90° für Tischeinbaufeld 28TE/315mm"]
[5529,"AFM  Option LAN Switch f. Tischeinbaufeld 28TE/315",142.78,"Option integrierter LAN-Switch mit 5 Ports für Tischanschl. 28TE/315"]
[5530,"AFM  Wandgehäuse 215mm 36TE sw",86.9,"Modulares Anschlussfeld Wandgehäuse 215mm x 130mm x 65mm 36TE schwarz"]
[5531,"AFM  Wandgehäuse 160mm 24TE sw",57.59,"Modulares Anschlussfeld Wandgehäuse 160mm x 95mm x 45mm 24TE schwarz"]
[5532,"AFM  Wandgehäuse 125mm 20TE sw",36.65,"Modulares Anschlussfeld Wandgehäuse 125mm x 70mm x 35mm 20TE schwarz"]
[5533,"AFM  Wandgehäuse 215mm 36TE gr",86.9,"Modulares Anschlussfeld Wandgehäuse 215mm x 130mm x 65mm 36TE grau"]
[5534,"AFM  Wandgehäuse 160mm 24TE gr",57.59,"Modulares Anschlussfeld Wandgehäuse 160mm x 95mm x 45mm 24TE grau"]
[5535,"AFM  Wandgehäuse 125mm 20TE gr",36.65,"Modulares Anschlussfeld Wandgehäuse 125mm x 70mm x 35mm 20TE grau"]
[5536,"AFM  Option LAN Switch f. Tischeinbaufeld 44TE/395",161.81,"Option integrierter LAN-Switch mit 8 Ports für Tischanschl. 44TE/395"]
[5537,"AFM  Option Edelstahl Außenkante 90° für 44TE/395",284.77999999999997,"Option Edelstahloberfläche mit Außenkante 90° für Tischeinbaufeld 44TE/395mm"]
[5538,"AFM  Option Aluminium inkl. 45 Außenkante 28TE/315",237.94,"Option Aluminiumoberfläche incl. angefaster Außenkante 45° für Tischeinbaufeld 28TE/315mm"]
[5539,"AFM  Option Aluminium inkl. 45 Außenkante 44TE/395",266.99,"Option Aluminiumoberfläche incl. angefaster Außenkante 45° für Tischeinbaufeld  44TE/395mm"]
[5540]
[5550,"AFM  Montage & Beschriftung 36TE",12.56,"Montage & Beschriftung 36TE"]
[5551,"AFM  Montage & Beschriftung 24TE",8.3800000000000008,"Montage & Beschriftung 24TE"]
[5552,"AFM  Montage & Beschriftung 28TE",9.77,"Montage & Beschriftung 28TE"]
[5553,"AFM  Montage & Beschriftung 20TE",6.97,"Montage & Beschriftung 20TE"]
[5554,"AFM  Montage & Beschriftung 48TE",16.75,"Montage & Beschriftung 48TE"]
[5555,"AFM  Montage & Beschriftung 44TE",15.35,"Montage & Beschriftung 44TE"]
[5556,"AFM  Montage & Beschriftung 84TE",27.75,"Montage & Beschriftung 84TE"]
[5557,"AFM  Beschriftung Taster 18x18mm, 24x18mm",11.42,"Montage & Beschriftung Taster 18x18mm, 24x18mm"]
[5600,"AFM  Blindplatte  4TE",5.13,"Modulares Anschlussfeld Blindplatte 4TE"]
[5601,"AFM  Blindplatte  8TE",6.18,"Modulares Anschlussfeld Blindplatte 8TE"]
[5602,"AFM  Blindplatte 12TE",7.22,"Modulares Anschlussfeld Blindplatte 12TE"]
[5604,"AFM  Blindplatte 16TE",8.27,"Modulares Anschlussfeld Blindplatte 16TE"]
[5607,"AFM VGA-Bu./löt",12.83,"Modulares Anschlussfeldmodul 8TE VGA-Buchse mit Lötanschluss"]
[5608,"AFM VGA-Bu./Bu.",17.96,"Modulares Anschlussfeldmodul 8TE VGA-Buchse auf VGA-Buchse"]
[5609,"AFM VGA-Bu./5xBNC-Ku. 30cm",77.06,"Modulares Anschlussfeldmodul 8TE VGA-Buchse auf 5xBNC-Kupplung 30cm"]
[5610,"AFM VGA-Bu./5xBNC-St. 30cm",71.819999999999993,"Modulares Anschlussfeldmodul 8TE VGA-Buchse auf 5xBNC-Stecker 30cm"]
[5611,"AFM VGA-Bu./VGA-St. 30cm",56.43,"Modulares Anschlussfeldmodul 8TE VGA-Buchse auf VGA-Stecker 30cm"]
[5612,"AFM VGA-Bu./VGA-Ku. 30cm",56.43,"Modulares Anschlussfeldmodul 8TE VGA-Buchse auf VGA-Kupplung 30cm"]
[5613,"AFM DVI-Bu./löt 24+5",17.96,"Modulares Anschlussfeldmodul 8TE DVI-I-Buchse mit Lötanschluss (24+5) "]
[5614,"AFM DVI-Bu./DVI-St. 30cm 24+1",67.790000000000006,"Modulares Anschlussfeldmodul 8TE DVI-D-Buchse auf DVI-D-Stecker 30cm (24+1)"]
[5615,"AFM DVI-D-Bu./DVI-D-Ku. 30cm 24+1",67.790000000000006,"Modulares Anschlussfeldmodul 8TE DVI-D-Buchse auf DVI-D-Kupplung 30cm (24+1)"]
[5616,"AFM 3,5-Klinkenbuchse 3pol/löt",11.21,"Modulares Anschlussfeldmodul 4TE 3,5mm-Stereoklinkenbuchse 3pol mit Lötanschluss"]
[5617,"AFM 3,5-Klinkenbu./3,5-Ku. 30cm",20.89,"Modulares Anschlussfeldmodul 4TE 3,5mm-Stereoklinkenbuchse auf 3,5mm-Stereoklinkenkupplung 30cm"]
[5618,"AFM 3,5-Klinkenbu./3,5-St. 30cm",20.89,"Modulares Anschlussfeldmodul 4TE 3,5mm-Stereoklinkenbuchse auf 3,5mm-Stereoklinkenstecker 30cm"]
[5619,"AFM 3,5-Klinkenbu./2xC-Ku. 30cm",22.72,"Modulares Anschlussfeldmodul 4TE 3,5mm-Stereoklinkenbuchse auf 2xCinchkupplung 30cm"]
[5620,"AFM 3,5-Klinkenbu./2xC-St. 30cm",22.72,"Modulares Anschlussfeldmodul 4TE 3,5mm-Stereoklinkenbuchse auf 2xCinchstecker 30cm"]
[5621,"AFM BNC-Bu.rot/löt",15.39,"Modulares Anschlussfeldmodul 4TE BNC-Buchse rot mit Lötanschluss "]
[5622,"AFM BNC-Bu.grün/löt",15.39,"Modulares Anschlussfeldmodul 4TE BNC-Buchse grün mit Lötanschluss"]
[5623,"AFM BNC-Bu.blau/löt",15.39,"Modulares Anschlussfeldmodul 4TE BNC-Buchse blau mit Lötanschluss "]
[5624,"AFM BNC-Bu.schwarz/löt",15.39,"Modulares Anschlussfeldmodul 4TE BNC-Buchse schwarz mit Lötanschluss "]
[5625,"AFM BNC-Bu.weiß/löt",15.39,"Modulares Anschlussfeldmodul 4TE BNC-Buchse weiß mit Lötanschluss "]
[5626,"AFM BNC-Bu.gelb/löt",15.39,"Modulares Anschlussfeldmodul 4TE BNC-Buchse gelb mit Lötanschluss"]
[5627,"AFM BNC-Bu.rot/BNC-Bu.",16.86,"Modulares Anschlussfeldmodul 4TE BNC-Buchse rot auf BNC-Buchse"]
[5628,"AFM BNC-Bu.grün/BNC-Bu.",16.86,"Modulares Anschlussfeldmodul 4TE BNC-Buchse grün auf BNC-Buchse"]
[5629,"AFM BNC-Bu.blau/BNC-Bu.",16.86,"Modulares Anschlussfeldmodul 4TE BNC-Buchse blau auf BNC-Buchse"]
[5630,"AFM BNC-Bu.schwarz/BNC-Bu.",16.86,"Modulares Anschlussfeldmodul 4TE BNC-Buchse schwarz auf BNC-Buchse"]
[5631,"AFM BNC-Bu.weiß/BNC-Bu.",16.86,"Modulares Anschlussfeldmodul 4TE BNC-Buchse weiß auf BNC-Buchse"]
[5632,"AFM BNC-Bu.gelb/BNC-Bu.",16.86,"Modulares Anschlussfeldmodul 4TE BNC-Buchse gelb auf BNC-Buchse"]
[5633,"AFM BNC-Bu.rot/BNC-Ku. 30cm",25.65,"Modulares Anschlussfeldmodul 4TE BNC-Buchse rot auf BNC-Kupplung 30cm"]
[5634,"AFM BNC-Bu.grün/BNC-Ku. 30cm",25.65,"Modulares Anschlussfeldmodul 4TE BNC-Buchse grün auf BNC-Kupplung 30cm"]
[5635,"AFM BNC-Bu.blau/BNC-Ku. 30cm",25.65,"Modulares Anschlussfeldmodul 4TE BNC-Buchse blau auf BNC-Kupplung 30cm"]
[5636,"AFM BNC-Bu.schwarz/BNC-Ku. 30cm",25.65,"Modulares Anschlussfeldmodul 4TE BNC-Buchse schwarz auf BNC-Kupplung 30cm"]
[5637,"AFM BNC-Bu.weiß/BNC-Ku. 30cm",25.65,"Modulares Anschlussfeldmodul 4TE BNC-Buchse weiß auf BNC-Kupplung 30cm"]
[5638,"AFM BNC-Bu.gelb/BNC-Ku. 30cm",25.65,"Modulares Anschlussfeldmodul 4TE BNC-Buchse gelb auf BNC-Kupplung 30cm"]
[5639,"AFM BNC-Bu.rot/BNC-St. 30cm",24.92,"Modulares Anschlussfeldmodul 4TE BNC-Buchse rot auf BNC-Stecker 30cm  "]
[5640,"AFM BNC-Bu.grün/BNC-St. 30cm",24.92,"Modulares Anschlussfeldmodul 4TE BNC-Buchse grün auf BNC-Stecker 30cm  "]
[5641,"AFM BNC-Bu.blau/BNC-St. 30cm",24.92,"Modulares Anschlussfeldmodul 4TE BNC-Buchse blau auf BNC-Stecker 30cm  "]
[5642,"AFM BNC-Bu.schwarz/BNC-St. 30cm",24.92,"Modulares Anschlussfeldmodul 4TE BNC-Buchse schwarz auf BNC-Stecker 30cm  "]
[5643,"AFM BNC-Bu.weiß/BNC-St. 30cm",24.92,"Modulares Anschlussfeldmodul 4TE BNC-Buchse weiß auf BNC-Stecker 30cm  "]
[5644,"AFM BNC-Bu.gelb/BNC-St. 30cm",24.92,"Modulares Anschlussfeldmodul 4TE BNC-Buchse gelb auf BNC-Stecker 30cm  "]
[5645,"AFM Cinch-Bu.schwarz/löt",11.73,"Modulares Anschlussfeldmodul 4TE Cinch-Buchse schwarz mit Lötanschluss"]
[5646,"AFM Cinch-Bu.rot/löt",11.73,"Modulares Anschlussfeldmodul 4TE Cinch-Buchse rot mit Lötanschluss"]
[5647,"AFM Cinch-Bu.gelb/löt",11.73,"Modulares Anschlussfeldmodul 4TE Cinch-Buchse gelb mit Lötanschluss"]
[5648,"AFM Cinch-Bu.grün/löt",11.73,"Modulares Anschlussfeldmodul 4TE Cinch-Buchse grün mit Lötanschluss "]
[5649,"AFM Cinch-Bu.blau/löt",11.73,"Modulares Anschlussfeldmodul 4TE Cinch-Buchse blau mit Lötanschluss "]
[5650,"AFM Cinch-Bu.schwarz/Cinch-Bu.",17.59,"Modulares Anschlussfeldmodul 4TE Cinch-Buchse schwarz auf Cinch-Buchse"]
[5651,"AFM Cinch-Bu.rot/Cinch-Bu.",17.59,"Modulares Anschlussfeldmodul 4TE Cinch-Buchse rot auf Cinch-Buchse"]
[5652,"AFM Cinch-Bu.gelb/Cinch-Bu.",17.59,"Modulares Anschlussfeldmodul 4TE Cinch-Buchse gelb auf Cinch-Buchse "]
[5653,"AFM Cinch-Bu.schwarz/C-Ku. 30cm",21.99,"Modulares Anschlussfeldmodul 4TE Cinch-Buchse schwarz auf Cinch-Kupplung 30cm"]
[5654,"AFM Cinch-Bu.rot/C-Ku. 30cm",21.99,"Modulares Anschlussfeldmodul 4TE Cinch-Buchse rot auf Cinch-Kupplung 30cm"]
[5655,"AFM Cinch-Bu.gelb/C-Ku. 30cm",21.99,"Modulares Anschlussfeldmodul 4TE Cinch-Buchse gelb auf Cinch-Kupplung 30cm"]
[5656,"AFM Cinch-Bu.grün/C-Ku. 30cm",21.99,"Modulares Anschlussfeldmodul 4TE Cinch-Buchse grün auf Cinch-Kupplung 30cm  "]
[5657,"AFM Cinch-Bu.blau/C-Ku. 30cm",21.99,"Modulares Anschlussfeldmodul 4TE Cinch-Buchse blau auf Cinch-Kupplung 30cm "]
[5658,"AFM Cinch-Bu.schwarz/C-St. 30cm",21.99,"Modulares Anschlussfeldmodul 4TE Cinch-Buchse schwarz auf Cinch-Stecker 30cm"]
[5659,"AFM Cinch-Bu.rot/C-St. 30cm",21.99,"Modulares Anschlussfeldmodul 4TE Cinch-Buchse rot auf Cinch-Stecker 30cm"]
[5660,"AFM Cinch-Bu.gelb/C-St. 30cm",21.99,"Modulares Anschlussfeldmodul 4TE Cinch-Buchse gelb auf Cinch-Stecker 30cm"]
[5661,"AFM Cinch-Bu.grün/C-St. 30cm",21.99,"Modulares Anschlussfeldmodul 4TE Cinch-Buchse grün auf Cinch-Stecker 30cm "]
[5662,"AFM Cinch-Bu.blau/C-St. 30cm",21.99,"Modulares Anschlussfeldmodul 4TE Cinch-Buchse blau auf Cinch-Stecker 30cm "]
[5663,"AFM Cinch-Bu.gelb/BNC-Ku. 30cm",23.45,"Modulares Anschlussfeldmodul 4TE Cinch-Buchse gelb auf BNC-Kupplung 30cm"]
[5664,"AFM Cinch-Bu.gelb/BNC-St. 30cm",21.36,"Modulares Anschlussfeldmodul 4TE Cinch-Buchse gelb auf BNC-Stecker 30cm"]
[5665,"AFM 4p.-MD-Bu./löt",12.83,"Modulares Anschlussfeldmodul 4TE 4pin-Mini-DIN-Buchse  mit Lötanschluss"]
[5666,"AFM 4p.-MD-Bu./2xBNC-Ku. 30cm",38.11,"Modulares Anschlussfeldmodul 4TE 4pin-Mini-DIN-Buchse auf 2xBNC-Kupplung 30cm"]
[5667,"AFM 4p.-MD-Bu./2xBNC-St. 30cm",35.39,"Modulares Anschlussfeldmodul 4TE 4pin-Mini-DIN-Buchse auf 2xBNC-Stecker 30cm"]
[5668,"AFM 4p.-MD-Bu./4p.-MD-Ku. 30cm",35.909999999999997,"Modulares Anschlussfeldmodul 4TE 4pin-Mini-DIN-Buchse auf 4pin-Mini-DIN-Kupplung 30cm"]
[5669,"AFM 4p.-MD-Bu./4p.-MD-St. 30cm",35.909999999999997,"Modulares Anschlussfeldmodul 4TE 4pin-Mini-DIN-Buchse auf 4pin-Mini-DIN-Stecker 30cm"]
[5670,"AFM 9p.Sub-D-Bu./löt",12.09,"Modulares Anschlussfeldmodul 8TE 9pin-Sub-D-Buchse mit Lötanschluss"]
[5671,"AFM 9p.Sub-D-Bu./9p.Sub-D-Bu.",16.68,"Modulares Anschlussfeldmodul 8TE 9pin-Sub-D-Buchse auf 9pin-Sub-D-Buchse"]
[5672,"AFM 9p.Sub-D-Bu./9p.Sub-D-St.",16.68,"Modulares Anschlussfeldmodul 8TE 9pin-Sub-D-Buchse auf 9pin-Sub-D-Stiftleiste"]
[5673,"AFM 9p.Sub-D-Bu./9p.-Ku. 30cm",44.5,"Modulares Anschlussfeldmodul 8TE 9pin-Sub-D-Buchse auf 9pin-Sub-D-Kupplung 30cm"]
[5674,"AFM 9p.Sub-D-Bu./9p.-St. 30cm",44.5,"Modulares Anschlussfeldmodul 8TE 9pin-Sub-D-Buchse auf 9pin-Sub-D-Stecker 30cm"]
[5675,"AFM 9p.Sub-D-St./löt",12.09,"Modulares Anschlussfeldmodul 8TE 9pin-Sub-D-Stiftleiste mit Lötanschluss"]
[5676,"AFM 9p.Sub-D-St./9p.Sub-D-St.",16.68,"Modulares Anschlussfeldmodul 8TE 9pin-Sub-D-Stiftleiste auf 9pin-Sub-D-Stiftleiste"]
[5677,"AFM 9p.Sub-D-St./9p.Sub-D-Bu.",16.68,"Modulares Anschlussfeldmodul 8TE 9pin-Sub-D-Stiftleiste auf 9pin-Sub-D-Buchse"]
[5678,"AFM 9p.Sub-D-St./9p.-Ku. 30cm",44.5,"Modulares Anschlussfeldmodul 8TE 9pin-Sub-D-Stiftleiste auf 9pin-Sub-D-Kupplung 30cm"]
[5679,"AFM 9p.Sub-D-St./9p.-St. 30cm",44.5,"Modulares Anschlussfeldmodul 8TE 9pin-Sub-D-Stiftleiste auf 9pin-Sub-D-Stecker 30cm"]
[5680,"AFM 3p.XLR-Bu./löt",15.5,"Modulares Anschlussfeldmodul 8TE 3pin-XLR-Buchse mit Lötanschluss"]
[5681,"AFM 3pol-XLR-Bu./3pol-XLR-Ku. 30cm",32.979999999999997,"Modulares Anschlussfeldmodul 8TE 3pin-XLR-Buchse auf 3pin-XLR-Kupplung Länge: 30cm"]
[5682,"AFM 3p.XLR-Bu./3p.XLR-St. 30cm",32.979999999999997,"Modulares Anschlussfeldmodul 8TE 3pin-XLR-Buchse auf 3pin-XLR-Stecker Länge: 30cm"]
[5683,"AFM 3p.XLR-St./löt",15.5,"Modulares Anschlussfeldmodul 8TE 3pin-XLR-Einbaustecker mit Lötanschluss"]
[5684,"AFM 3p.XLR-St./3p.XLR-Ku. 30cm",32.979999999999997,"Modulares Anschlussfeldmodul 8TE 3pin-XLR-Einbaustecker auf 3pin-XLR-Kupplung 30cm"]
[5685,"AFM 3p.XLR-St./3p.XLR-St. 30cm",32.979999999999997,"Modulares Anschlussfeldmodul 8TE 3pin-XLR-Einbaustecker auf 3pin-XLR-Stecker 30cm"]
[5686,"AFM 4p.XLR-Bu./löt",17.59,"Modulares Anschlussfeldmodul 8TE 4pin-XLR-Buchse mit Lötanschluss"]
[5687,"AFM 4p.XLR-Bu./Lüsterkl. 30cm",29.32,"Modulares Anschlussfeldmodul 8TE 4pin-XLR-Buchse auf 4-fach Lüsterklemme, 4pol Steuerleitung Länge: 30cm"]
[5688,"AFM 4p.Speakon-Bu./löt",12.31,"Modulares Anschlussfeldmodul 8TE 4pin-Speakon-Buchse mit Lötanschluss"]
[5689,"AFM 4p.Speakon-Bu./Lüsterkl. 30cm",23.23,"Modulares Anschlussfeldmodul 8TE 4pin-Speakon-Buchse auf 4-fach-Lüsterklemme 30cm"]
[5690,"AFM USB-Bu./USB-Bu. (XLR)",20.89,"Modulares Anschlussfeldmodul 8TE USB-A-Buchse auf USB-B-Buchse (drehbar)"]
[5691,"AFM RJ45-Cat.6-Bu./schneid-klem",16.34,"Modulares Anschlussfeldmodul 4TE RJ45-Buchse Cat.6 mit werkzeuglosem schneid-klemmanschluss"]
[5692,"AFM RJ45-Cat.6-Bu./Cat.6-St. 30cm",26.75,"Modulares Anschlussfeldmodul 4TE RJ45-Buchse Cat.6 auf RJ45-Stecker Cat6 30cm"]
[5693,"AFM RJ45-Cat.6-Bu./Cat.5-Ku. 30cm",26.75,"Modulares Anschlussfeldmodul 4TE RJ45-Buchse Cat.6 auf RJ45-Kupplung Cat5 30cm"]
[5694,"AFM RJ45-Cat.6-Bu./RJ45-Cat.6-Bu.",19.420000000000002,"Modulares Anschlussfeldmodul 4TE RJ45-Buchse Cat.6 auf RJ45-Buchse Cat.6, rückseitig steckbar"]
[5695,"AFM 12pin-miniCON-Bu./RJ45-Ku.+2xAderendhülse 30cm",80.62,"Modulares Anschlussfeldmodul 4TE 12pin-miniCON-Buchse auf RJ45-Kupplung + 2xAderendhülse Länge: 30cm"]
[5696,"AFM RJ45-Cat.6-Bu./Cat.6-Ku. 30cm",31.2,"Modulares Anschlussfeldmodul 4TE RJ45-Buchse Cat.6 auf RJ45-Kupplung Cat6 30cm"]
[5697,"AFM USB-A-Bu./löt",21.99,"Modulares Anschlussfeldmodul 4TE USB-A-Buchse mit Lötanschluss"]
[5698,"AFM USB-A-Bu./USB-A-St. 30cm",27.75,"Modulares Anschlussfeldmodul 4TE USB-A-Buchse auf USB-A-Stecker 30cm"]
[5699,"AFM USB-A-Bu./USB-B-St. 30cm",27.75,"Modulares Anschlussfeldmodul 4TE USB-A-Buchse auf USB-B-Stecker 30cm"]
[5700,"AFM USB-A-2.0-Bu./USB-A-2.0-Bu.",20.89,"Modulares Anschlussfeldmodul 4TE USB-A-2.0 Buchse auf USB-A-2.0 Buchse"]
[5701,"AFM VGA-Bu.+Klinke 5xB+K 30cm",97.95,"Modulares Anschlussfeldmodul 8TE VGA-Buchse auf 5xBNC-Kupplung 30cm + 3,5mm-Stereoklinkenbuchse auf Klinkenkupplung 30cm"]
[5702,"AFM DVI-Bu./DVI-Bu. 24+5",40.31,"Modulares Anschlussfeldmodul 8TE DVI-I-Buchse auf DVI-I-Buchse (24+5)"]
[5703,"AFM DVI-Bu./DVI-St. 30cm 24+5",77.84,"Modulares Anschlussfeldmodul 8TE DVI-I-Buchse auf DVI-I-Stecker 30cm (24+5)"]
[5704,"AFM 3,5-Klinkenbu./steckbar",20.89,"Modulares Anschlussfeldmodul 4TE 3,5mm-Stereoklinkenbuchse rückseitig steckbar"]
[5705,"AFM VGA-Bu.+Klinke VGA-S+K 30cm",77.319999999999993,"Modulares Anschlussfeldmodul 8TE VGA-Buchse auf VGA-Stecker 30cm + 3,5mm-Stereoklinkenbuchse auf Klinkenstecker 30cm"]
[5706,"AFM 12pin-miniCON-Bu./St. 30cm",102.61,"Modulares Anschlussfeldmodul 4TE 12pin-miniCON-Buchse auf 12pin-miniCON-Stecker 30cm"]
[5707,"AFM 6p.XLR-Bu./löt",29.11,"Modulares Anschlussfeldmodul 8TE 6pin-XLR-Buchse mit Lötanschluss"]
[5708,"AFM 5p.XLR-Bu./Lüsterkl. 30cm",36.65,"Modulares Anschlussfeldmodul 8TE 5pin-XLR-Buchse auf 5-fach Lüsterklemme 30cm"]
[5709,"AFM VGA-Bu.+Klinke steckbar",38.840000000000003,"Modulares Anschlussfeldmodul 8TE VGA-Buchse + 3,5mm-Stereoklinkenbuchse rückseitig steckbar"]
[5710,"AFM 9p.Sub-D-St./offen 30cm",20.239999999999998,"Modulares Anschlussfeldmodul 8TE 9pin-Sub-D-Stiftleiste mit 30cm Kabel auf offenes Ende"]
[5711,"AFM 5p.XLR-Bu./löt",18.36,"Modulares Anschlussfeldmodul 8TE 5pin-XLR-Buchse mit Lötanschluss"]
[5712,"AFM VGA-Stecker/5xBNC-Kupplung 30cm",77.06,"Modulares Anschlussfeldmodul 8TE VGA-Stiftleiste auf 5xBNC-Kupplung Länge: 30cm"]
[5713,"AFM USB-A-Bu./USB-A-Ku. 30cm",27.75,"Modulares Anschlussfeldmodul 4TE USB-A-Buchse auf USB-A-Kupplung 30cm"]
[5714,"AFM 3p.XLR-Bu./3p.XLR-WSt. 30cm",37.17,"Modulares Anschlussfeldmodul 8TE 3pin-XLR-Buchse auf 3pin-XLR-Winkelstecker 30cm"]
[5715,"AFM RJ45-EtherCon schneid-klemm Neutrik",28.17,"Modulares Anschlussfeldmodul 8TE Neutrik EtherCon-Buchse mit schneid-klemmanschluss"]
[5716,"AFM PowerCon grau/löt",15.5,"Modulares Anschlussfeldmodul 8TE PowerCon-Einbaubuchse grau (B-Type Power Out) mit Lötanschluss"]
[5717,"AFM PowerCon blau/löt",15.5,"Modulares Anschlussfeldmodul 8TE PowerCon-Einbaubuchse blau (A-Type Power In) mit Lötanschluss"]
[5718,"AFM HDMI-Bu./Bu.",30.89,"Modulares Anschlussfeldmodul 4TE HDMI-Buchse auf HDMI-Buchse inklusive 90° Winkeladapter"]
[5719,"AFM VGA-Bu.+Klinke/5xBNC-Ku. 30cm+Kl.-löt",88.27,"Modulares Anschlussfeldmodul 8TE VGA-Buchse auf 5xBNC-Kupplung 30cm + 3,5mm-Stereoklinkenbuchse mit Lötanschluss"]
[5720,"AFM VGA-Bu.+Klinke 5xS+K 30cm",92.71,"Modulares Anschlussfeldmodul 8TE VGA-Buchse auf 5xBNC-Stecker 30cm + 3,5mm-Stereoklinkenbuchse auf Klinkenstecker 30cm"]
[5721,"AFM  Durchführung Mittelstück Lu/Ro",7.22,"Modulares Anschlussfeld 4TE Kabeldurchführung Mittelstück links unten /rechts oben"]
[5722,"AFM  Durchführung Mittelstück Lo/Ru",7.22,"Modulares Anschlussfeld 4TE Kabeldurchführung Mittelstück links oben/rechts unten"]
[5723,"AFM  Durchführung Endstück Lu",7.22,"Modulares Anschlussfeld 4TE Kabeldurchführung Endstück links unten"]
[5724,"AFM  Durchführung Endstück Ru",7.22,"Modulares Anschlussfeld 4TE Kabeldurchführung Endstück rechts unten "]
[5725,"AFM VGA-Bu.+Klinke VGA-K+K 30cm",77.319999999999993,"Modulares Anschlussfeldmodul 8TE VGA-Buchse auf VGA-Kupplung 30cm + 3,5mm-Stereoklinkenbuchse auf Klinkenkupplung 30cm"]
[5726,"AFM  Netzkabel 3m, Schuko-Stecker",17.05,"Netzkabel mit 3m Länge und einem Schukostecker an Tischanschlussfeld anschliessen"]
[5727,"AFM 3xCinch-Bu.ge-sw-rt/löt",35.18,"Modulares Anschlussfeldmodul 8TE 3xCinch-Buchse gelb, schwarz, rot mit Lötanschluss"]
[5728,"AFM 5xBNC-Bu./BNC-Bu.",84.28,"Modulares Anschlussfeldmodul 12TE 5xBNC-Buchse auf BNC-Buchse rot, grün, blau, schwarz, weiß"]
[5729,"AFM 15p.Sub-D-Bu./15p.Sub-D-Bu.",19.239999999999998,"Modulares Anschlussfeldmodul 12TE 15pin-Sub-D-Buchse auf 15pin-Sub-D-Buchse"]
[5730,"AFM 3xCinch-Bu.ge-sw-rt/3xCinch-Ku. 30cm",65.959999999999994,"Modulares Anschlussfeldmodul 8TE 3xCinch-Buchse gelb, schwarz, rot mit Länge: je 30cm Kabel auf Cinch-Kupplung"]
[5731,"AFM DVI-I-Bu.+Klinke DVI-D-S+Kl-St 30cm",88.68,"Modulares Anschlussfeldmodul 8TE DVI-I-Buchse auf DVI-D-Stecker 30cm + 3,5mm-Stereoklinkenbuchse auf 3,5mm-Stereoklinkenstecker 30cm"]
[5732,"AFM USB-B-Bu./USB-B-St. 30cm",27.75,"Modulares Anschlussfeldmodul 4TE USB-B-Buchse auf USB-B-Stecker 30cm"]
[5733,"AFM 5xBNC-Bu./BNC-Ku. 30cm",128.26,"Modulares Anschlussfeldmodul 12TE 5xBNC-Buchse auf BNC-Kupplung 30cm rot, grün, blau, schwarz, weiß"]
[5734,"AFM USB-B-Bu./USB-A-St. 30cm",27.75,"Modulares Anschlussfeldmodul 4TE USB-B-Buchse auf USB-A-Stecker 30cm"]
[5735,"AFM DVI-Bu.+Klinke auf DVI-St+Kl-löt",79.010000000000005,"Modulares Anschlussfeldmodul 8TE DVI-D-Buchse auf DVI-D-Kupplung 30cm + 3,5mm-Stereoklinkenbuchse mit Lötanschluss"]
[5736,"AFM DVI-24+5-Bu.+Klinke DVI-24+5-St+Kl-St 30cm",101.87,"Modulares Anschlussfeldmodul 8TE DVI-I (24+5)-Buchse auf DVI-I (24+5)-Stecker 30cm + 3,5mm-Stereoklinkenbuchse auf Klinkenstecker 30cm"]
[5737,"AFM 12pin-miniCON-Bu., Lötanschluss",58.02,"Modulares Anschlussfeldmodul 4TE 12pin-miniCON-Buchse mit Lötanschluss"]
[5738,"AFM VGA-Bu./offen 30cm",35.92,"Modulares Anschlussfeldmodul 8TE VGA-Buchse auf offenes Kabelende 30cm"]
[5739,"AFM 3,5-Klinkenbu./offen 30cm",15.92,"Modulares Anschlussfeldmodul 4TE 3,5mm-Stereoklinkenbuchse auf offenes Kabelende 30cm"]
[5740,"AFM VGA-Bu.+Klinke offen 30cm",51.85,"Modulares Anschlussfeldmodul 8TE VGA-Buchse auf offenes Kabelende 30cm + 3,5mm-Stereoklinkenbuchse auf offenes Kabelende 30cm"]
[5741,"AFM VGA-Bu.+Klinke-Bu. lötbar",24.04,"Modulares Anschlussfeldmodul 8TE VGA-Buchse + 3,5mm-Stereoklinkenbuchse mit Lötanschluss"]
[5742,"AFM HDMI-Bu./Ku. 30cm",49.84,"Modulares Anschlussfeldmodul 4TE HDMI-Buchse auf HDMI-Kupplung 30cm"]
[5743,"AFM DisplayPort Bu./St. 1m",49.84,"Modulares Anschlussfeldmodul 8TE \r\nDisplayPort-Buchse auf DisplayPort-Stecker \r\nLänge: 1m"]
[5744,"AFM Taster/LED, 2xSchließer, rot, lötbar",22.64,"AFM Taster/LED, 2xSchließer, rot, lötbar"]
[5745,"AFM Taster/LED, 2xSchließer, grün, lötbar",22.64,"Modulares Anschlussfeldmodul 4TE Taster grün mit integrierter LED, 2xSchließer,  Lötanschluß"]
[5746,"AFM Taster/LED, 2xSchließer, rot, 30cm, offen",27.73,"AFM Taster mit LED, 2xSchließer, rot, 30cm, offenes Ende"]
[5747,"AFM Taster/LED, 2xSchließer, grün, 30cm, offen",27.73,"AFM Taster mit LED, 2xSchließer, grün, 30cm, offenes Ende"]
[5748,"AFM Schalter/ LED, 2xSchließer, rot, lötbar",22.64,"AFM Schalter/ LED, 2xSchließer, rot, lötbar"]
[5749,"AFM Schalter/LED, 2xSchließer, grün, lötbar",22.64,"AFM Schalter/LED, 2xSchließer, grün, lötbar"]
[5750,"AFM Schalter/LED, 2xSchließer, rot, 30cm, offen",27.73,"AFM Schalter mit LED, 2xSchließer, rot, 30cm, offenes Ende"]
[5751,"AFM Schalter/LED, 2xSchließer, grün, 30cm, offen",27.73,"AFM Schalter/LED, 2xSchließer, grün, 30cm, offen"]
[5752,"AFM DisplayPort Bu./Bu.",45.27,"Modulares Anschlussfeldmodul 8TE \r\nDisplayPort-Buchse auf DisplayPort-Buchse "]
[5753,"AFM 15p.Sub-D-St./löt",16.059999999999999,"Modulares Anschlussfeldmodul 8TE 15pin-Sub-D-Stiftleiste mit Lötanschluss"]
[5754,"AFM USB-B-Bu./USB-A-Ku. 30cm",27.75,"Modulares Anschlussfeldmodul 4TE USB-B-Buchse auf USB-A-Kupplung 30cm"]
[5755,"AFM 7p.XLR-Bu./löt",35.380000000000003,"Modulares Anschlussfeldmodul 8TE 7pin-XLR-Buchse mit Lötanschluss"]
[5756,"AFM 6p.XLR-Bu./Lüsterkl. 30cm",47.47,"Modulares Anschlussfeldmodul 8TE 6pin-XLR-Buchse auf 6-fach Lüsterklemme 30cm"]
[5757,"AFM DVI-Bu./DVI-Ku. 20cm 24+5",77.84,"Modulares Anschlussfeldmodul 8TE DVI-I-Buchse auf DVI-I-Kupplung 20cm (24+5)"]
[5758,"AFM VGA-St./löt",12.83,"Modulares Anschlussfeldmodul 8TE VGA-Stiftleiste mit Lötanschluss"]
[5759,"AFM DVI-Bu.+Klinke-Bu. auf DVI-Bu.+Klinken-Bu.",38.840000000000003,"Modulares Anschlussfeldmodul 8TE DVI-D-Buchse auf DVI-D-Buchse + 3,5mm-Stereoklinkenbuchse auf Stereoklinkenbuchse "]
[5760,"AFM VGA-Stecker/5xBNC-Stecker 30cm",71.819999999999993,"Modulares Anschlussfeldmodul 8TE VGA-Stiftleiste auf 5xBNC-Stecker Länge: 30cm"]
[5761,"AFM 4p.-MD-Buchse steckbar",30.89,"Modulares Anschlussfeldmodul 4TE  4pin-Mini-DIN-Buchse rückseitig steckbar"]
[5762,"AFM USB-B-Bu./löt",21.99,"Modulares Anschlussfeldmodul 4TE USB-B-Buchse mit Lötanschluss"]
[5763,"AFM USB-B-Bu./USB-B-Bu.",20.89,"Modulares Anschlussfeldmodul 4TE USB-B-Buchse auf USB-B-Buchse"]
[5764,"AFM USB-A-Bu./USB-B-Bu.",20.89,"Modulares Anschlussfeldmodul 4TE USB-A-Buchse auf USB-B-Buchse"]
[5765,"AFM Taster, 1xUmschalter, vernickelt, lötbar",29,"Modulares Anschlussfeldmodul 4TE Taster vernickelt ohne LED, 1xUmschalter,  Lötanschluss"]
[5766,"AFM Taster, 1xUmschalter, vernickelt, 30cm",34.270000000000003,"Modulares Anschlussfeldmodul 4TE Taster vernickelt ohne LED, 1xUmschalter,  Länge 30cm"]
[5767,"AFM Antenneneinbaustecker, Lötanschluss",19,"Modulares Anschlussfeldmodul 4TE Antenneneinbaustecker, Lötanschluss"]
[5768,"AFM Antenneneinbaubuchse, Lötanschluss",19,"Modulares Anschlussfeldmodul 4TE Antenneneinbaubuchse, Lötanschluss"]
[5769,"AFM Antennen-F, Durchgangsverbinder",19,"Modulares Anschlussfeldmodul 4TE Antennen-F, Durchgangsverbinder, rückseitig steckbar"]
[5770,"AFM Antennen-F, Lötanschluss",19,"Modulares Anschlussfeldmodul 4TE Antennen-F, Lötanschluss"]
[5771,"AFM VGA-Stecker offenes Kabelende 30cm",35.92,"Modulares Anschlussfeldmodul 8TE VGA-Stecker auf offenes Kabelende, Länge: 30cm"]
[5772,"AFM 3xCinch-Bu.ge-sw-rt/3xCinch-St. 30cm",65.959999999999994,"Modulares Anschlussfeldmodul 8TE 3xCinch-Buchse gelb, schwarz, rot mit Länge: je 30cm Kabel auf Cinch-Stecker"]
[5773,"AFM USB-B-Bu./USB-A-Bu.",20.89,"Modulares Anschlussfeldmodul 4TE USB-B-Buchse auf USB-A-Buchse"]
[5775,"AFM 3xCinch-Buchse-Durchführung, gelb/schwarz/rot",52.77,"Modulares Anschlussfeldmodul 8TE 3xCinch-Buchse-Durchführung,  gelb/schwarz/rot"]
[5776,"AFM Blindabdeckung XLR D-Bohrung",8.32,"Modulares Anschlussfeld 8TE Blindabdeckung fürXLR D-Bohrung"]
[5777,"AFM DVI-24+5-Bu.+Klinke DVI-24+5-Kupl.+Kl-Kup 30cm",101.87,"Modulares Anschlussfeldmodul 8TE DVI-I (24+5)-Buchse auf DVI-I (24+5)-Kupplung 30cm + 3,5mm-Stereoklinkenbuchse auf Klinkenkupplung 30cm"]
[5778,"AFM DVI-I-Bu.+Klinke DVI-D-Ku+Kl-Ku 30cm",88.68,"Modulares Anschlussfeldmodul 8TE DVI-I-Buchse auf DVI-D-Kupplung 30cm + 3,5mm-Stereoklinkenbuchse auf 3,5mm-Klinkenkupplung 30cm"]
[5779,"AFM 7p.XLR-Bu./Lüsterkl. 30cm",53.69,"Modulares Anschlussfeldmodul 8TE 7pin-XLR-Buchse auf 7-fach Lüsterklemme 30cm"]
[5780,"AFM 4p.XLR-Bu. 4p.XLR-St. 30cm",40.58,"Modulares Anschlussfeldmodul 4pin-XLR-Buchse auf 4pin-XLR-Stecker 30cm"]
[5781,"AFM Option XLR-Modul farbliche Kennzeichnung",4.03,"Modulares Anschlussfeldmodul Option XLR-Modul farbliche Kennzeichnung"]
[5782,"AFM Taster, 1xEIN, 18x18mm, beschriftbar, lötbar",40.520000000000003,"Modulares Anschlussfeldmodul 4TE Taster 18x18mm, 1xEIN, beschriftbar mit Hintergrundbeleuchtung,  Lötanschluss"]
[5783,"AFM Taster, 1xEIN, 18x18mm, beschriftbar, 30cm",49.88,"Modulares Anschlussfeldmodul 4TE Taster 18x18mm, 1xEIN, beschriftbar mit Hintergrundbeleuchtung, Länge 30cm"]
[5784,"AFM Taster, 1xEIN, 24x18mm, beschriftbar, lötbar",41.74,"Modulares Anschlussfeldmodul 8TE Taster 24x18mm, 1xEIN, beschriftbar mit Hintergrundbeleuchtung,  Lötanschluss"]
[5785,"AFM Taster, 1xEIN, 24x18mm, beschriftbar, 30cm",51.11,"Modulares Anschlussfeldmodul 8TE Taster 24x18mm, 1xEIN, beschriftbar mit Hintergrundbeleuchtung, Länge 30cm"]
[5786,"AFM 3,5-Klinkenbuchse 4pol/löt",21.32,"Modulares Anschlussfeldmodul 4TE 3,5mm-Stereoklinkenbuchse 4pol mit Lötanschluss"]
[5787,"AFM HDMI-Bu./St. 8TE 30cm AWG24",86.02,"Modulares Anschlussfeldmodul 8TE HDMI-Buchse auf HDMI-Stecker 30cm. Hochwertige AWG24-Leitung für große Distanzen."]
[5788,"AFM USB-A-3.0-Bu./USB-A-3.0-Bu.",30.94,"Modulares Anschlussfeldmodul 4TE USB-A-3.0 Buchse auf USB-A-3.0 Buchse"]
[5789,"AFM HDMI-Bu./St. 4TE 30cm AWG24",86.02,"Modulares Anschlussfeldmodul 4TE HDMI-Buchse auf HDMI-Stecker 30cm. Hochwertige AWG24-Leitung für große Distanzen."]
[5790,"AFM RJ45-EtherCon Neutrik, 30cm Kabel auf RJ45-Ku.",40.17,"Modulares Anschlussfeldmodul 8TE Neutrik EtherCon-Buchse mit 30cm Kabel auf RJ45-Cat.6-Kupplung"]
[5791,"AFM HDMI-Bu./ offenes Ende 8TE AWG24 30cm",54.32,"Modulares Anschlussfeldmodul 8TE HDMI-Buchse auf offenes Ende. Länge: 30cm. Hochwertige AWG24-Leitung für große Distanzen."]
[5792,"AFM HDMI-Bu./ offenes Ende 4TE AWG24 30cm",54.32,"Modulares Anschlussfeldmodul 4TE HDMI-Buchse auf offenes Ende. Länge: 30cm. Hochwertige AWG24-Leitung für große Distanzen."]
[5793,"AFM  Netzkabel 3m, Wieland-Stecker",20.49,"Netzkabel mit 3m Länge und einem Wielandstecker an Tischanschlussfeld anschliessen"]
[5794,"AFM Taster, 1xUm, Edelstahl, LED, blau, lötbar",37.01,"Modulares Anschlussfeldmodul 4TE Taster Edelstahl mit LED, blau, 1xUmschalter,  Lötanschluss"]
[5795,"AFM Taster, 1xUm, Edelstahl, LED, blau, 30cm",43.45,"Modulares Anschlussfeldmodul 4TE Taster Edelstahl mit LED, blau, 1xUmschalter,  Länge 30cm"]
[5796,"AFM RJ69-Bu./RJ69-St. 30cm",28.65,"Modulares Anschlussfeldmodul 4TE RJ69-Buchse auf RJ69-Stecker 30cm"]
[5797,"AFM SC-Simplex-Bu./Bu. Multimode",20.149999999999999,"Modulares Anschlussfeldmodul 4TE SC-Simplex-Buchse auf SC-Simplex-Buchse Multimode"]
[5798,"AFM VGA-Bu.+Klinke/5xBNC-Ku. 30cm+Kl.-löt+6pol-XLR",116.86,"Modulares Anschlussfeldmodul 8TE VGA-Buchse auf 5xBNC-Kupplung und 6pol-XLR-Kupplung 30cm + 3,5mm-Stereoklinkenbuchse mit Lötanschluss"]
[5799,"AFM 3,5-Klinkenbu.-4p. mit 30cm Kabel auf 4p.Kup.",47.49,"Modulares Anschlussfeldmodul 4TE 4pol-3,5mm-Klinkenbuchse mit 30cm Kabel auf 4pol-3,5mm-Klinkenkupplung"]
[6004,"RG59",0.99,"Videokabel RG59 (75Ohm)"]
[6005,"Videokabel 0,6/3,7",2.79,"Videokabel 0,6/3,7 (75Ohm) FRNC"]
[6006,"Mikrofonkabel NF1147 2x0,22 Ø 6,4mm sw",1.3,"Mikrofonkabel 2x0,22 schwarz Ø 6,4mm hochflexibel"]
[6007,"Mikrofonkabel NF1147 2x0,22 Ø 6,4mm rt",1.3,"Mikrofonkabel 2x0,22 rot Ø 6,4mm hochflexibel"]
[6008,"Mikrofonkabel NF1147 2x0,22 Ø 6,4mm bl",1.3,"Mikrofonkabel 2x0,22 blau Ø 6,4mm hochflexibel"]
[6011,"RGB-Minkabel 3x75Ohm schwarz",3.44,"RGB-Minikabel 3x75Ohm schwarz"]
[6013,"Lautsprecherkabel 4x1,5mm² rund schwarz",2.09,"Lautsprecherkabel 4x1,5mm² rund schwarz"]
[6014,"Lautsprecherkabel 2x2,5mm² rund schwarz",3.08,"Lautsprecherkabel 2x2,5mm² rund schwarz"]
[6015,"Lautsprecherkabel 4x2,5mm² rund schwarz",3.39,"Lautsprecherkabel 4x2,5mm² rund schwarz"]
[6017,"Lautsprecherkabel 2x0,75 oval transp. flexibel",0.74,"Lautsprecherkabel 2x0,75mm² oval transparent flexibel (2x24x0,20)"]
[6018,"Lautsprecherkabel 2x1,5 oval flexibel",1.28,"Lautsprecherkabel 2x1,50mm² oval transparent flexibel (2x30x0,25)"]
[6019,"Lautsprecherkabel 2x2,5 oval transp. flexibel",1.88,"Lautsprecherkabel 2x2,50mm² oval transparent flexibel (2x50x0,25)"]
[6020,"Lautsprecherkabel 2x4,0 oval transp. flexibel",2.84,"Lautsprecherkabel 2x4,0mm² oval transparent flexibel (2x56x0,30)"]
[6021,"Lautsprecherkabel 2x6,0 oval transp. flexibel",3.77,"Lautsprecherkabel 2x6,0mm² oval transparent flexibel (2x84x0,30)"]
[6022,"Lautsprecherkabel 2x1,5 oval transp. super-flex",2.04,"Lautsprecherkabel 2x1,5mm² oval transparent super-flexibel (2x196x0,10)"]
[6023,"Lautsprecherkabel 2x2,5 oval transp. super-flex",2.91,"Lautsprecherkabel 2x2,5mm² oval transparent super-flexibel (2x322x0,10)"]
[6024,"Lautsprecherkabel 2x4,0 oval transp. super-flex",4.47,"Lautsprecherkabel 2x4,0mm² oval transparent super-flexibel (2x511x0,10)"]
[6025,"Lautsprecherkabel 2x6,0 oval transp. super-flex",6.17,"Lautsprecherkabel 2x6,0mm² oval transparent super-flexibel (2x777x0,10)"]
[6026,"ZZInaktiv Audiokabel 2x0,12 oval",1.05,"Audiokabel 2x0,12 oval schwarz"]
[6027,"ZZInaktiv Audiokabel 2x0,14 oval",1.58,"Audiokabel 2x0,14 oval schwarz"]
[6028,"ZZInaktiv Audiokabel 2x0,16 oval",1.7,"Audiokabel 2x0,16 oval schwarz"]
[6029,"Audiokabel 2x0,20 rund 3mm Typ C",0.84,"Audiokabel 2x0,20 rund 3mm schwarz Typ C"]
[6030,"Audiokabel Quads. 1x4x0,20 rund",1.98,"Audiokabel Quadson 1x4x0,20 rund schwarz sauerstofffrei"]
[6042,"Digitales Videokabel 0,8/3,7",2.09,"Digitales Videokabel 0,8/3,7 grün"]
[6043,"Digitales Audiokabel 2x0,22",0.86,"Digitales Audiokabel (AES/EBU) 2x0,22"]
[6049,"Digitales Videokabel 0,6/2,8HFg",1.47,"Digitales Videokabel 0,6/2,8 grün Halogenfrei/FRNC"]
[6050,"Digitales Videokabel 0,6/2,8HFs",1.47,"Digitales Videokabel 0,6/2,8 schwarz Halogenfrei/FRNC"]
[6051,"RGBHV Monitorkabel 5x0,6/2,8sw",8.82,"RGBHV Monitorkabel 5x0,6/2,8 schwarz"]
[6052,"Steuerleitung geschirmt,  8x0,14, Ø 5mm",1.43,"Steuerleitung geschirmt, 8x0,14mm², Ø 5mm"]
[6053,"Geflechtschlauch 8-21mm",2.3199999999999998,"Geflechtschlauch 8-21mm schwarz"]
[6054,"Geflechtschlauch 18-34mm",4.41,"Geflechtschlauch 18-34mm schwarz"]
[6058,"Geflechtschlauch 3-10mm",1.1299999999999999,"Geflechtschlauch 3-10mm schwarz"]
[6060,"Multikabel VA52Cat.5 5x0,6/2,8",13.4,"Kabel VA52Cat5 schwarz (5x0,6/2,8+2xAudio+1xCat.5)"]
[6061,"S-VHS-Kabel doppelt geschirmt HH",2.93,"S-VHS-Kabel 2x75Ohm doppelt geschirmt"]
[6062,"Cat.6-Installationskabel",2.08,"Cat.6-Installationskabel 4x2xAWG23/1 FRNC grau"]
[6063,"Cat.7-Installationskabel",2.13,"Cat.7-Installationskabel Draka UC600 FRNC orange"]
[6064,"Cat.5e-Patchkabel",1.7,"Cat.5e-Patchkabel Draka UC300 FRNC grau 4x2xAWG26/7"]
[6065,"Cat.5e-Installationskabel",1.7,"Cat.5e-Installationskabel"]
[6066,"Geflechtschlauch 22-58mm",5.22,"Geflechtschlauch 22-58mm schwarz"]
[6069,"S-Videokabel 2x0,36/1,7 ungesch",2.44,"S-Videokabel 2x0,36/1,7 2x75Ohm"]
[6070,"Steuerleitung geschirmt, 14x0,14, Ø 6,5mm",2.21,"Steuerleitung geschirmt 14x0,14mm², Ø 6,5mm"]
[6071,"Geflechtschlauch selbsteinrollend",6.31,"Geflechtschlauch, selbsteinrollend,schwarz"]
[6072,"Multikabel VAPS7348",15.79,"Multikabel VAPS7348 7xVideo, 2xAudio-symmetrisch, 1xAudio-asymmetrisch, 4xStrom, 8xSteuer"]
[6073,"Steuerleitung geschirmt,  4x0,14 Ø4mm",1.01,"Steuerleitung geschirmt, 4x0,14mm²,  Ø 4mm"]
[6074,"Steuerleitung geschirmt, 25x0,14, Ø 11,0mm",6.1,"Steuerleitung geschirmt, 25x0,14mm², Ø 11,0mm"]
[6075,"Multikabel VA52 superflex",6.97,"Kabel VA52 schwarz superflex(5x0,4/1,7+2xAudio)"]
[6076,"Multikabel VA86 8x0,36/1,7",16.579999999999998,"Kabel VA86 schwarz (8x0,36/1,7+6xAudio)"]
[6078,"Lautsprecherkabel 2x2,5 oval weiß",2.21,"Lautsprecherkabel 2x2,50mm² oval weiß"]
[6079,"Lautsprecherkabel 2x2,5 oval schwarz",2.21,"Lautsprecherkabel 2x2,50mm² oval schwarz"]
[6080,"Lautsprecherkabel 2x1,5 oval schwarz",1.32,"Lautsprecherkabel 2x1,50mm² oval schwarz"]
[6081,"Lautsprecherkabel 2x1,5 oval weiß",1.32,"Lautsprecherkabel 2x1,50mm² oval weiß"]
[6082,"Audiokabel 2x0,14 oval TR",1.58,"Audiokabel 2x0,14 oval schwarz TR"]
[6084,"S-VHS-Audio-Kabel",4.5999999999999996,"S-VHS-Audio-Kabel"]
[6085,"S-Videokabel 2x0,4/1,7 Superflex",2.44,"S-Videokabel 2x0,4/1,7 2x75Ohm Superflex"]
[6086,"Video-Minikabel 0,4/1,7 grün SS",0.85,"Video-Minikabel 0,4/1,7 grün 75Ohm (SS)"]
[6087,"ZZInaktiv Audiokabel 2x0,09 rund",0.84,"Audiokabel 2x0,09 rund schwarz"]
[6088,"Audiokabel 2x0,08 oval",1.61,"Audiokabel 2x0,08 oval schwarz"]
[6089,"Netzkabel 3x1,5 Gummi sw",2.17,"Netzkabel 3x1,5 Gummi sw"]
[6090,"Lautsprecherkabel 2x4,0 oval schwarz",2.84,"Lautsprecherkabel 2x4,0mm² oval schwarz"]
[6091,"Audiokabel 2x0,20 rund 3mm Typ S",0.84,"Audiokabel 2x0,20 rund 3mm schwarz Typ S"]
[6092,"Kabel HDMI AWG 24 Meterware",9.2100000000000009,"Kabel HDMI AWG 24 1.4 mit Ethernet Meterware"]
[6093,"Mikrofonkabel  2x0,50 FRNC 5,5mm sw",2.93,"Mikrofonkabel 2x0,50mm² FRNC schwarz 5,5mm "]
[6094,"RG58",1.1599999999999999,"Antennenkabel RG58 (50 Ohm)"]
[6095,"Digitales Videokabel 1,0/4,8HF",4.5199999999999996,"Digitales Videokabel 1,0/4,8 grün Halogenfrei/FRNC (starrer Innenleiter)"]
[6096,"Netzkabel 2x0,75 PVC sw",1.32,"Netzkabel 2x0,75 PVC sw"]
[6097,"Multikabel VA52 FRNC (Halogenfrei)",9.0500000000000007,"Kabel VA52 schwarz FRNC/Halogenfrei (5x0,4/1,7+2xAudio)"]
[6098,"Digitales Videokabel 0,8L/3,7Dz PVC Schwarz",4.37,"Digitales Videokabel 0,8L/3,7Dz PVC schwarz"]
[6099,"Kabel HDMI Halogenfrei Meterware AWG24 Typ S",12.96,"Kabel HDMI, Halogenfrei Meterware AWG24 Typ S"]
[6100,"Geflechtschlauch mit Klettband, 20mm",8.76,"Geflechtschlauch mit Klettband, 20mm, schwarz"]
[6101,"Lautsprecherkabel 2x0,75 oval schwarz",0.74,"Lautsprecherkabel 2x0,75mm² oval schwarz  (2x27x0,19)"]
[6102,"Kabel-Kobra, vertikal, schwarz, Höhe 825mm",44.74,"Kabel-Kobra, vertikal, schwarz, 15 Elemente, Höhe 825mm"]
[6103,"Kabel-Kobra, vertikal, schwarz, Höhe 1070mm",56.73,"Kabel-Kobra, vertikal, schwarz, 20 Elemente, Höhe 1070mm"]
[6104,"Kabel-Kobra, vertikal, schwarz, Höhe 1270mm",68.150000000000006,"Kabel-Kobra, vertikal, schwarz, 24 Elemente, Höhe 1270mm"]
[6105,"Kabel-Kobra, vertikal, schwarz, Einzelelement",2.2799999999999998,"Kabel-Kobra, vertikal, schwarz,  Einzelelement"]
[6106,"Kabel-Kobra, vertikal, silber, Höhe 825mm",44.74,"Kabel-Kobra, vertikal, silber, 15 Elemente, Höhe 825mm"]
[6107,"Kabel-Kobra, vertikal, silber, Höhe 1070mm",56.73,"Kabel-Kobra, vertikal, silber, 20 Elemente, Höhe 1070mm"]
[6108,"Kabel-Kobra, vertikal, silber, Höhe 1270mm",68.150000000000006,"Kabel-Kobra, vertikal, silber, 24 Elemente, Höhe 1270mm"]
[6109,"Kabel-Kobra, vertikal, silber, Einzelelement",2.2799999999999998,"Kabel-Kobra, vertikal, silber,  Einzelelement"]
[6110,"Kabel-Kobra, horizontal, schwarz, 50mm",44.74,"Kabel-Kobra, horizontal, schwarz, 50mm"]
[6111,"Kabel-Kobra, horizontal, silber, 50mm",44.74,"Kabel-Kobra, horizontal, silber, 50mm"]
[6113,"NeuerArtikel: 6099 Kabel HDMI Halogenfrei AWG 24",13.57,"Neuer Artikel: 6099 Kabel HDMI, AWG 24, HDMI 1.4, Halogenfrei Meterware"]
[6114,"Cat.6-Patchkabel",1.7,"Cat.6-Patchkabel Draka UC400 FRNC grau 4x2xAWG27"]
[6115,"Geflechtschlauch offen selbsteinrollend 25mm schwa",11.62,"Geflechtschlauch offen selbtseinrollend 25mm schwarz"]
[6116,"Geflechtschlauch offen selbsteinrollend 29mm schwa",12.51,"Geflechtschlauch offen selbtseinrollend 29mm schwarz"]
[8001,"AF4T 12p.Neutrik/Cat.5+AE 0,3m",78.13,"Anschlussfeld 4TE mit 12pol Neutrik Minicon Buchse auf  Cat.5-Stecker + 2xAderendhülse 0,3m"]
[8002,"AF7T 12p.Neutrik/Cat.5+AEH 0,3m",77.900000000000006,"Anschlussfeld Reinpack 7TE mit 12pol Neutrik Minicon Buchse auf  Cat.5-Stecker + 2xAderendhülse 0,3m"]
[8003,"Kabel 12p.Neutrik/Cat.5+2xAE 2m",68.209999999999994,"Kabel, 12pol Neutrik miniCON-Stecker auf  Cat.5-Stecker und 2xAderendhülse Länge: 2m"]
[8004,"Kabel 12p.Neutrik/Cat.5+2xAE 1m",59.98,"Kabel, 12pol Neutrik miniCON-Stecker auf  Cat.5-Stecker und 2xAderendhülse Länge: 1m"]
[8005,"AF7T VGA-Bu/5xBNC-Ku 0,3m",77.97,"Anschlussfeld Reinpack 7TE mit VGA-Buchse auf 5xBNC-Kupplung 0,3m"]
[8006,"AF7T VGA-Bu/5xBNC-St 0,3m",68.37,"Anschlussfeld Reinpack 7TE mit VGA-Buchse auf 5xBNC-Stecker 0,3m"]
[8007,"AF7T VGA-Bu/VGA-Ku 0,3m",65.099999999999994,"Anschlussfeld Reinpack 7TE mit VGA-Buchse auf VGA-Kupplung 0,3m"]
[8008,"AF7T VGA-Bu/VGA-St 0,3m",65.099999999999994,"Anschlussfeld Reinpack 7TE mit VGA-Buchse auf VGA-Stecker 0,3m"]
[8009,"AF7T 3.5-Bu/3.5-Ku 0,3m",38.36,"Anschlussfeld Reinpack 7TE mit 3,5mm-Stereoklinkenbuchse auf 3,5mm-Streoklinkenkupplung 0,3m"]
[8010,"AF7T 3.5-Bu/3.5-St 0,3m",38.36,"Anschlussfeld Reinpack 7TE mit 3,5mm-Stereoklinkenbuchse auf 3,5mm-Streoklinkenstecker 0,3m"]
[8011,"AF7T 3.5-Bu/2xCi-Ku 0,3m",40.49,"Anschlussfeld Reinpack 7TE mit 3,5mm-Stereoklinkenbuchse auf 2xCinchkupplung 0,3m"]
[8012,"AF7T 3.5-Bu/2xCi-St 0,3m",40.49,"Anschlussfeld Reinpack 7TE mit 3,5mm-Stereoklinkenbuchse auf 2xCinchstecker 0,3m"]
[8013,"AF7T BNC-Bu/BNC-Bu",33.86,"Anschlussfeld Reinpack 7TE mit BNC-Buchse steckbar gelb"]
[8014,"AF7T BNC-Bu/BNC-Ku 0,3m",40.56,"Anschlussfeld Reinpack 7TE mit BNC-Buchse gelb auf BNC-Kupplung 0,3m"]
[8015,"AF7T BNC-Bu/BNC-St 0,3m",38.99,"Anschlussfeld Reinpack 7TE mit BNC-Buchse gelb auf BNC-Stecker 0,3m"]
[8016,"AF7T 4p-MD-Bu/2xBNC-Ku 0,3m",48.52,"Anschlussfeld Reinpack 7TE mit 4pin-Mini-DIN-Buchse auf 2xBNC-Kupplung 0,3m"]
[8017,"AF7T 4p-MD-Bu/2xBNC-St 0,3m",47.79,"Anschlussfeld Reinpack 7TE mit 4pin-Mini-DIN-Buchse auf 2xBNC-Stecker 0,3m"]
[8018,"AF7T 4p-MD-Bu/4p-MD-Ku 0,3m",48.52,"Anschlussfeld Reinpack 7TE mit 4pin-Mini-DIN-Buchse auf 4pin-Mini-DIN-Kupplung 0,3m"]
[8019,"AF7T 4p-MD-Bu/4p-MD-St 0,3m",48.52,"Anschlussfeld Reinpack 7TE mit 4pin-Mini-DIN-Buchse auf 4pin-Mini-DIN-Stecker 0,3m"]
[8020,"AF7T RJ45-Bu/RJ45-St 0,3m",63.17,"Anschlussfeld Reinpack 7TE mit RJ45-Cat.5-Buchse auf RJ45-Cat.5-Stecker 0,3m"]
[8021,"AF7T 2x6p-MD-Bu/6p-MD-St 0,3m",82.92,"Anschlussfeld Reinpack 7TE mit 2x6pin-Mini-DIN-Buchse auf 2x6pin-Mini-DIN-Stecker 0,3m"]
[8022,"AF4T 12p.Neutrik/Cat.5+AE 0,5m",78.13,"Anschlussfeld 4TE mit 12pol Neutrik Minicon Buchse auf  Cat.5-Kupplung + 2xAderenhülse 0,5m"]
[8023,"Kabel 12p.Neutrik/Cat.5+2xAE 4m",84.67,"Kabel, 12pol Neutrik miniCON-Stecker auf  Cat.5-Stecker und 2xAderendhülse Länge: 4m"]
[8024,"Kabel 12p.Neutrik/Cat.5+2xAE 3m",76.44,"Kabel, 12pol Neutrik miniCON-Stecker auf  Cat.5-Stecker und 2xAderendhülse Länge: 3m"]
[8025,"Kabel 12p.Neutrik/Cat.5+2xA 2,5",72.33,"Kabel, 12pol Neutrik miniCON-Stecker auf  Cat.5-Stecker und 2xAderendhülse Länge: 2,5m"]
[8026,"AF7T 2xVGA-Bu/VGA-St 0,3m",106.8,"Anschlussfeld Reinpack 7TE mit 2xVGA-Buchse auf je VGA-Stecker 0,3m"]
[8027,"AF7T 2xRJ45-Bu/RJ45-St 0,3m",78.67,"Anschlussfeld Reinpack 7TE mit 2xRJ45-Cat.5-Buchse auf je RJ45-Cat.5-Stecker 0,3m"]
[8028,"AF7T USB-A--Bu/USB-A-St 0,3m",42.5,"Anschlussfeld Reinpack 7TE mit USB-A-Buchse auf USB-A-Stecker 0,3m"]
[8029,"AF7T 2xUSB-A-Bu/USB-A-St 0,3m",61.58,"Anschlussfeld Reinpack 7TE mit 2x USB-A-Buchse auf je USB-A-Stecker 0,3m"]
[8030,"AF14TE 2xSchukosteckdose 30cm",68.73,"Anschlussfeld Reinpack 14TE mit 2xSchukosteckdose auf einen Schukostecker 30cm"]
[8031,"AF7T 3p-XLR-Bu./XLR-St. St 0,3m",51.23,"Anschlussfeld Reinpack 7TE mit 3pin-XLR-Buchse auf 3pin-XLR-Kupplung 0,3m"]
[8032,"AF7T 12p.Neutrik/12p.-St. 0,3m",118.24,"Anschlussfeld Reinpack 7TE mit 12pol Neutrik Minicon Buchse auf  12pol-Stecker 0,3m"]
[8034,"Kabel 12p.Neutrik/Cat.5+2xAE 5m",92.9,"Kabel, 12pol Neutrik miniCON-Stecker auf  Cat.5-Stecker und 2xAderendhülse Länge: 5m"]
[8045,"AF7T HDMI-Buchse auf HDMI-Stecker 0,3m",109.23,"Anschlussfeld Reinpack 7TE mit HDMI-Buchse auf HDMI-Stecker 0,3m (AWG24)"]
[8046,"Kabel 12p.Neutrik/Cat.5 Stecker 2,5m",59.49,"Kabel, 12pol Neutrik miniCON-Stecker auf  Cat.5-Stecker  Länge: 2,5m"]